Workbook

Sheet Contents
C3: Sheet Tab | D3: Description | E3: Author
B4: 1 | C4: Contents
B5: 2 | C5: 1.00 - Overview
B6: 3 | C6: 1.01 Synergies and Premium
B7: 4 | C7: 1.02 Waterfall Graph
B8: 5 | C8: 1.03 Waterafall Data
B9: 6 | C9: 1.03 Long-term Proofs
B10: 7 | C10: 1.04 Accretion and Dilution
B11: 8 | C11: 1.05 IRR Analysis
B12: 9 | C12: 1.05 - LBO Model
B13: 10 | C13: 1.05 - Implied COC in LBO
B14: 11 | C14: 2.00 - Cost of Capital
B15: 12 | C15: 2.01 - CAPM & CoE
B16: 13 | C16: 2.02 - Beta Analysis no Tax
B17: 14 | C17: 2.03 - Beta levering w Tax
B18: 15 | C18: 2.04 - Beta with Credit Spread
B19: 16 | C19: 2.05 -Cost of Debt
B20: 17 | C20: 2.05 - WACC and Market Value
B21: 18 | C21: 2.05 - WACC and Market Value
B22: 19 | C22: 2.06 - Alternatives to CAPM
B23: 20 | C23: 3.00 - Multiples
B24: 21 | C24: 3.01 - Football Field
B25: 22 | C25: 3.02 - EV-EBITDA-PE Recon
B26: 23 | C26: 3.03 - EV-EBITDA
B27: 24 | C27: 3.04 - PE Ratio
B28: 25 | C28: 3.05 - Tornado Chart
B29: 26 | C29: 3.06 - Inflation & FX
B30: 27 | C30: 4.00 - Advanced DCF Analysis
B31: 28 | C31: 4.01 Timing in DCF
B32: 29 | C32: 4.02 - TVoM Proof
B33: 30 | C33: 4.03 - DCF Vs Terminal Analyses
B34: 31 | C34: 4.04 - Stable Working Capital
B35: 32 | C35: 4.05 -CAPEX Depreciation Parity
B36: 33 | C36: 4.06 - Implement CAPEX Parity
B37: 34 | C37: 5.00 - EV-Eq Bridge
B38: 35 | C38: 5.01 - Apple case study
B39: 36 | C39: 5.02 - Proving bridge contents
B40: 37 | C40: 6.00 - Misc-Other
B41: 38 | C41: 6.01 - Update models template
B42: 39 | C42: 6.01a - History and Forecast
B43: 40 | C43: 6.02 - Flexible charting
B44: 41 | C44: Sheet11
B46: File Name: | D46: I:\From Miami\Miami Exercises_v8.xlsm
B48: Colour Codes
B50: Last Save Date | D50: 2014-01-18T20:16:52
B51: Last Save By | D51: Administrator

Sheet Build-up Chartdata (hidden)
A1: SA DCF Value 1000000 | B1: 1000000 | E1: 100000 | F1: 1000000
A2: Premium 500000 | B2: 400000 | C2: 100000 | D2: 500000 | F2: 1000000 | G2: 500000
A3: Subtotal 500000 | B3: 500000 | D3: 0 | E3: 100000 | G3: 500000 | H3: 500000
A4: Synergies - Rev 750000 | B4: 500000 | D4: 250000 | E4: 100000 | H4: 500000 | I4: 750000
A5: Synergies - Cost (Economies of Scale) 900000 | B5: 750000 | D5: 150000 | E5: 100000 | I5: 750000 | J5: 900000
A6: Synergies - Cost (Industry - Return) 1200000 | B6: 900000 | D6: 300000 | E6: 100000 | J6: 900000 | K6: 1200000
A7: Synergies - Cost (Industry - Optimization) 1375000 | B7: 1200000 | D7: 175000 | E7: 100000 | K7: 1200000 | L7: 1375000
A8: Corporate Value 1375000 | B8: 1375000 | D8: 0 | E8: 100000 | L8: 1375000 | M8: 1375000

Sheet 1.00 - Overview (hidden)
A1: SECTION 1: MEASURING COSTS AND BENEFITS OF AN ACQUISITION
B2: Overview of the cost and benefits of the merger
B3: How does one measure them
B5: 4 methods to eveluate the costs/benefits of an acquisition:
C6: 1 - Synergies vs Premium
D7: NPV
C8: 2 - Accretion / Dilution
D9: EPS (or something else…ROE, ROIC)
D10: Compare Acquiror value to combined value
C11: 3 - IRR on the transaction
D12: LBO analysis
C13: 4 - Traditional DCF analysis approach
C16: 2014-01-01 | D16: =C16+20 -> 2014-01-21 | E16: 2014-02-10 | F16: 2014-03-02 | G16: 2014-03-22 | H16: 2014-04-11 | I16: 2014-05-01 | J16: 2014-05-21
B17: Day of week | C17: =TEXT(C$16,"dd") -> dd | D17: dd | E17: dd | F17: dd | G17: dd | H17: dd | I17: dd | J17: dd | K17: =show_formula(J17) -> <----=TEXT(J$16,"dd")
C18: =TEXT(C$16,"ddd") -> ddd | D18: ddd | E18: ddd | F18: ddd | G18: ddd | H18: ddd | I18: ddd | J18: ddd | K18: <----=TEXT(J$16,"ddd")
C19: =TEXT(C$16,"dddd") -> dddd | D19: =TEXT(D$16,"dddd") -> dddd | E19: dddd | F19: dddd | G19: dddd | H19: dddd | I19: dddd | J19: dddd | K19: <----=TEXT(J$16,"dddd")
C20: =TEXT(C$16,"mm") -> 01 | D20: =TEXT(D$16,"mm") -> 01 | E20: 02 | F20: 03 | G20: 03 | H20: 04 | I20: 05 | J20: 05 | K20: <----=TEXT(J$16,"mm")
C21: =TEXT(C$16,"mmm") -> janv | D21: janv | E21: févr | F21: mars | G21: mars | H21: avr | I21: mai | J21: mai | K21: <----=TEXT(J$16,"mmm")
C22: =TEXT(C$16,"mmmm") -> janvier | D22: janvier | E22: février | F22: mars | G22: mars | H22: avril | I22: mai | J22: mai | K22: <----=TEXT(J$16,"mmmm")

Sheet 1.01 Synergies and Premium (hidden)
A1: SYNERGY & PREMIUM(s) | E1: Rule #1: | F1: What is the value of the synergies vs the value of the premium?
B2: 1.02 - Waterfall Graph | F2: Sub rule 1 | G2: Buy a company in the same industry
F3: Sub rule 2 | G3: Buy a company with a lower return on investment (current not proforma)
B5: Synergies
H6: This macro uses the F5 (goto) key to automatically colour input cells
B7: Stock Price | C7: 52
B8: # Shares | C8: 1000
B9: MktCap | C9: =C7*C8 -> 52000
B10: Premium | C10: 0.3 | I10: Shade Area Below and Open Waterfall Graph
B11: Consideration | C11: =C9*(1+C10) -> 67600
I13: SA DCF Value | J13: 1000000
I14: Premium | J14: -500000
I15: Subtotal
B16: Estimated cost savings | C16: 180000 | I16: Synergies - Rev | J16: 250000
C17: 300000 | I17: Synergies - Cost (Economies of Scale) | J17: 150000 | K17: Bigger with lower costs
I18: Synergies - Cost (Industry - Return) | J18: 300000
B19: NPV | C19: 1500000 | I19: Synergies - Cost (Industry - Optimization) | J19: 175000
C20: 3000000 | I20: Corporate Value
B22: NPV after tax | C22: =C19*(1-$C$26) -> 930000
C23: =C20*(1-$C$26) -> 1860000
C25: 2100000
C26: 0.38

Sheet 1.03 Long-term Proofs (hidden)
A1: LT Proofs
A4: Basic Proof of Perputiy formula and Gordon Formula
D6: Cash Flow | E6: 180000
D7: Growth Rate | E7: 0
D8: WACC | E8: 0.1399999999
E9: Tx Period
D10: Period | E10: 0 | F10: =E10+1 -> 1 | G10: =F10+1 -> 2 | H10: 3 | I10: 4 | J10: 5 | K10: 6 | L10: 7 | M10: 8 | N10: 9 | O10: 10 | P10: 11 | Q10: 12 | R10: 13 | S10: 14 | T10: 15 | U10: 16 | V10: 17 | W10: 18 | X10: 19 | Y10: 20 | Z10: 21 | AA10: 22 | AB10: 23 | AC10: 24 | AD10: 25 | AE10: 26 | AF10: 27 | AG10: 28 | AH10: 29 | AI10: 30 | AJ10: 31 | AK10: 32 | AL10: 33 | AM10: 34 | AN10: 35 | AO10: 36 | AP10: 37 | AQ10: 38 | AR10: 39 | AS10: 40 | AT10: 41 | AU10: 42 | AV10: 43 | AW10: 44 | AX10: 45 | AY10: 46 | AZ10: 47 | BA10: 48 | BB10: 49 | BC10: 50 | BD10: 51 | BE10: 52 | BF10: 53 | BG10: 54 | BH10: 55 | BI10: 56 | BJ10: 57 | BK10: 58 | BL10: 59 | BM10: 60 | BN10: 61 | BO10: 62 | BP10: 63 | BQ10: 64 | BR10: 65 | BS10: =BR10+1 -> 66 | BT10: 67 | BU10: 68 | BV10: 69 | BW10: 70 | BX10: 71 | BY10: 72 | BZ10: 73 | CA10: 74 | CB10: 75 | CC10: 76 | CD10: 77 | CE10: 78 | CF10: 79 | CG10: 80 | CH10: 81 | CI10: 82 | CJ10: 83 | CK10: 84 | CL10: 85 | CM10: 86 | CN10: 87 | CO10: 88 | CP10: 89 | CQ10: 90 | CR10: 91 | CS10: 92 | CT10: 93 | CU10: 94 | CV10: 95 | CW10: 96 | CX10: 97 | CY10: 98 | CZ10: 99 | DA10: 100 | DB10: 101 | DC10: 102 | DD10: 103 | DE10: 104 | DF10: 105 | DG10: 106 | DH10: 107 | DI10: 108 | DJ10: 109 | DK10: 110 | DL10: 111 | DM10: 112 | DN10: 113 | DO10: 114 | DP10: 115 | DQ10: 116 | DR10: 117 | DS10: 118 | DT10: 119 | DU10: 120 | DV10: 121 | DW10: 122 | DX10: 123 | DY10: 124 | DZ10: 125 | EA10: 126 | EB10: 127 | EC10: 128 | ED10: 129 | EE10: =ED10+1 -> 130 | EF10: 131 | EG10: 132 | EH10: 133 | EI10: 134 | EJ10: 135 | EK10: 136 | EL10: 137 | EM10: 138 | EN10: 139 | EO10: 140 | EP10: 141 | EQ10: 142 | ER10: 143 | ES10: 144 | ET10: 145 | EU10: 146 | EV10: 147 | EW10: 148 | EX10: 149 | EY10: 150 | EZ10: 151 | FA10: 152 | FB10: 153 | FC10: 154 | FD10: 155 | FE10: 156 | FF10: 157 | FG10: 158 | FH10: 159 | FI10: 160 | FJ10: 161 | FK10: 162 | FL10: 163 | FM10: 164 | FN10: 165 | FO10: 166 | FP10: 167 | FQ10: 168 | FR10: 169 | FS10: 170 | FT10: 171 | FU10: 172 | FV10: 173 | FW10: 174 | FX10: 175 | FY10: 176 | FZ10: 177 | GA10: 178 | GB10: 179 | GC10: 180 | GD10: 181 | GE10: 182 | GF10: 183 | GG10: 184 | GH10: 185 | GI10: 186 | GJ10: 187 | GK10: 188 | GL10: 189 | GM10: 190 | GN10: 191 | GO10: 192 | GP10: 193 | GQ10: =GP10+1 -> 194 | GR10: 195 | GS10: 196 | GT10: 197 | GU10: 198 | GV10: 199 | GW10: 200 | GX10: 201 | GY10: 202 | GZ10: 203 | HA10: 204 | HB10: 205 | HC10: 206 | HD10: 207 | HE10: 208 | HF10: 209 | HG10: 210 | HH10: 211 | HI10: 212 | HJ10: 213 | HK10: 214 | HL10: 215 | HM10: 216 | HN10: 217 | HO10: 218 | HP10: 219 | HQ10: 220 | HR10: 221 | HS10: 222 | HT10: 223 | HU10: 224 | HV10: 225 | HW10: 226 | HX10: 227 | HY10: 228 | HZ10: 229 | IA10: 230 | IB10: 231 | IC10: 232 | ID10: 233 | IE10: 234 | IF10: 235 | IG10: 236 | IH10: 237 | II10: 238 | IJ10: 239 | IK10: 240 | IL10: 241 | IM10: 242 | IN10: 243 | IO10: 244 | IP10: 245 | IQ10: 246 | IR10: 247 | IS10: 248 | IT10: 249 | IU10: 250 | IV10: 251 | IW10: 252 | IX10: 253 | IY10: 254 | IZ10: 255 | JA10: 256 | JB10: 257 | JC10: =JB10+1 -> 258 | JD10: 259 | JE10: 260 | JF10: 261 | JG10: 262 | JH10: 263 | JI10: 264 | JJ10: 265 | JK10: 266 | JL10: 267 | JM10: 268 | JN10: 269 | JO10: 270 | JP10: 271 | JQ10: 272 | JR10: 273 | JS10: 274 | JT10: 275 | JU10: 276 | JV10: 277 | JW10: 278 | JX10: 279 | JY10: 280 | JZ10: 281 | KA10: 282 | KB10: 283 | KC10: 284 | KD10: 285 | KE10: 286 | KF10: 287 | KG10: 288 | KH10: 289 | KI10: 290 | KJ10: 291 | KK10: 292 | KL10: 293 | KM10: 294 | KN10: 295 | KO10: 296 | KP10: 297 | KQ10: 298 | KR10: 299 | KS10: 300
D11: Annual Cash Flow | E11: =E6 -> 180000 | F11: =E11*(1+$E$7) -> 180000 | G11: =F11*(1+$E$7) -> 180000 | H11: 180000 | I11: 180000 | J11: 180000 | K11: 180000 | L11: 180000 | M11: 180000 | N11: 180000 | O11: 180000 | P11: 180000 | Q11: 180000 | R11: 180000 | S11: 180000 | T11: 180000 | U11: 180000 | V11: 180000 | W11: 180000 | X11: 180000 | Y11: 180000 | Z11: 180000 | AA11: 180000 | AB11: 180000 | AC11: 180000 | AD11: 180000 | AE11: 180000 | AF11: 180000 | AG11: 180000 | AH11: 180000 | AI11: 180000 | AJ11: 180000 | AK11: 180000 | AL11: 180000 | AM11: 180000 | AN11: 180000 | AO11: 180000 | AP11: 180000 | AQ11: 180000 | AR11: 180000 | AS11: 180000 | AT11: 180000 | AU11: 180000 | AV11: 180000 | AW11: 180000 | AX11: 180000 | AY11: 180000 | AZ11: 180000 | BA11: 180000 | BB11: 180000 | BC11: 180000 | BD11: 180000 | BE11: 180000 | BF11: 180000 | BG11: 180000 | BH11: 180000 | BI11: 180000 | BJ11: 180000 | BK11: 180000 | BL11: 180000 | BM11: 180000 | BN11: 180000 | BO11: 180000 | BP11: 180000 | BQ11: 180000 | BR11: 180000 | BS11: =BR11*(1+$E$7) -> 180000 | BT11: 180000 | BU11: 180000 | BV11: 180000 | BW11: 180000 | BX11: 180000 | BY11: 180000 | BZ11: 180000 | CA11: 180000 | CB11: 180000 | CC11: 180000 | CD11: 180000 | CE11: 180000 | CF11: 180000 | CG11: 180000 | CH11: 180000 | CI11: 180000 | CJ11: 180000 | CK11: 180000 | CL11: 180000 | CM11: 180000 | CN11: 180000 | CO11: 180000 | CP11: 180000 | CQ11: 180000 | CR11: 180000 | CS11: 180000 | CT11: 180000 | CU11: 180000 | CV11: 180000 | CW11: 180000 | CX11: 180000 | CY11: 180000 | CZ11: 180000 | DA11: 180000 | DB11: 180000 | DC11: 180000 | DD11: 180000 | DE11: 180000 | DF11: 180000 | DG11: 180000 | DH11: 180000 | DI11: 180000 | DJ11: 180000 | DK11: 180000 | DL11: 180000 | DM11: 180000 | DN11: 180000 | DO11: 180000 | DP11: 180000 | DQ11: 180000 | DR11: 180000 | DS11: 180000 | DT11: 180000 | DU11: 180000 | DV11: 180000 | DW11: 180000 | DX11: 180000 | DY11: 180000 | DZ11: 180000 | EA11: 180000 | EB11: 180000 | EC11: 180000 | ED11: 180000 | EE11: =ED11*(1+$E$7) -> 180000 | EF11: 180000 | EG11: 180000 | EH11: 180000 | EI11: 180000 | EJ11: 180000 | EK11: 180000 | EL11: 180000 | EM11: 180000 | EN11: 180000 | EO11: 180000 | EP11: 180000 | EQ11: 180000 | ER11: 180000 | ES11: 180000 | ET11: 180000 | EU11: 180000 | EV11: 180000 | EW11: 180000 | EX11: 180000 | EY11: 180000 | EZ11: 180000 | FA11: 180000 | FB11: 180000 | FC11: 180000 | FD11: 180000 | FE11: 180000 | FF11: 180000 | FG11: 180000 | FH11: 180000 | FI11: 180000 | FJ11: 180000 | FK11: 180000 | FL11: 180000 | FM11: 180000 | FN11: 180000 | FO11: 180000 | FP11: 180000 | FQ11: 180000 | FR11: 180000 | FS11: 180000 | FT11: 180000 | FU11: 180000 | FV11: 180000 | FW11: 180000 | FX11: 180000 | FY11: 180000 | FZ11: 180000 | GA11: 180000 | GB11: 180000 | GC11: 180000 | GD11: 180000 | GE11: 180000 | GF11: 180000 | GG11: 180000 | GH11: 180000 | GI11: 180000 | GJ11: 180000 | GK11: 180000 | GL11: 180000 | GM11: 180000 | GN11: 180000 | GO11: 180000 | GP11: 180000 | GQ11: =GP11*(1+$E$7) -> 180000 | GR11: 180000 | GS11: 180000 | GT11: 180000 | GU11: 180000 | GV11: 180000 | GW11: 180000 | GX11: 180000 | GY11: 180000 | GZ11: 180000 | HA11: 180000 | HB11: 180000 | HC11: 180000 | HD11: 180000 | HE11: 180000 | HF11: 180000 | HG11: 180000 | HH11: 180000 | HI11: 180000 | HJ11: 180000 | HK11: 180000 | HL11: 180000 | HM11: 180000 | HN11: 180000 | HO11: 180000 | HP11: 180000 | HQ11: 180000 | HR11: 180000 | HS11: 180000 | HT11: 180000 | HU11: 180000 | HV11: 180000 | HW11: 180000 | HX11: 180000 | HY11: 180000 | HZ11: 180000 | IA11: 180000 | IB11: 180000 | IC11: 180000 | ID11: 180000 | IE11: 180000 | IF11: 180000 | IG11: 180000 | IH11: 180000 | II11: 180000 | IJ11: 180000 | IK11: 180000 | IL11: 180000 | IM11: 180000 | IN11: 180000 | IO11: 180000 | IP11: 180000 | IQ11: 180000 | IR11: 180000 | IS11: 180000 | IT11: 180000 | IU11: 180000 | IV11: 180000 | IW11: 180000 | IX11: 180000 | IY11: 180000 | IZ11: 180000 | JA11: 180000 | JB11: 180000 | JC11: =JB11*(1+$E$7) -> 180000 | JD11: 180000 | JE11: 180000 | JF11: 180000 | JG11: 180000 | JH11: 180000 | JI11: 180000 | JJ11: 180000 | JK11: 180000 | JL11: 180000 | JM11: 180000 | JN11: 180000 | JO11: 180000 | JP11: 180000 | JQ11: 180000 | JR11: 180000 | JS11: 180000 | JT11: 180000 | JU11: 180000 | JV11: 180000 | JW11: 180000 | JX11: 180000 | JY11: 180000 | JZ11: 180000 | KA11: 180000 | KB11: 180000 | KC11: 180000 | KD11: 180000 | KE11: 180000 | KF11: 180000 | KG11: 180000 | KH11: 180000 | KI11: 180000 | KJ11: 180000 | KK11: 180000 | KL11: 180000 | KM11: 180000 | KN11: 180000 | KO11: 180000 | KP11: 180000 | KQ11: 180000 | KR11: 180000 | KS11: 180000
D12: NPV | E12: =NPV(E8,11:11) -> 1285714.287
D13: Perpetuity Formula | E13: =Cash_Flow/WACC -> 1285714.287 | F13: =show_formula(E13) -> <----=Cash_Flow/WACC
D14: Gordon's Formula | E14: =Cash_Flow/(WACC-Growth_Rate) -> 1285714.287 | F14: =show_formula(E14) -> <----=Cash_Flow/(WACC-Growth_Rate)
D15: Target Value | E15: ='1.01 Synergies and Premium'!C19 -> 1500000
D16: Value Differnce | E16: =E15-E12 -> 214285.7131
D18: Continual | E18: =E11*EXP(WACC*E10) -> 180000 | F18: =F11*EXP(WACC*-F10) -> 156484.4824 | G18: 136041.0735 | H18: 118268.4276 | I18: 102817.6315 | J18: 89385.35474 | K18: 77707.89427 | L18: 67555.99785 | M18: 58730.36309 | N18: 51057.72483 | O18: 44387.45356 | P18: 38588.59831 | Q18: 33547.31574 | R18: 29164.63522 | S18: 25354.51581 | T18: 22042.15713 | U18: 19162.53083 | V18: 16659.10399 | W18: 14482.72925 | X18: 12590.67994 | Y18: 10945.8113 | Z18: 9515.831198 | AA18: 8272.666219 | AB18: 7191.910507 | AC18: 6252.346629 | AD18: 5435.529033 | AE18: 4725.421929 | AF18: 4108.08447 | AG18: 3571.397066 | AH18: 3104.823452 | AI18: 2699.203838 | AJ18: 2346.575086 | AK18: 2040.014376 | AL18: 1773.503298 | AM18: 1541.809698 | AN18: 1340.384959 | AO18: 1165.274702 | AP18: 1013.041159 | AQ18: 880.6956747 | AR18: 765.6400378 | AS18: 665.6154723 | AT18: 578.6582925 | AU18: 503.0613521 | AV18: 437.3405294 | AW18: 380.205591 | AX18: 330.5348617 | AY18: 287.3532041 | AZ18: 249.8128745 | BA18: 217.1768798 | BB18: 188.804509 | BC18: 164.1387548 | BD18: 142.6953783 | BE18: 124.0534023 | BF18: 107.8468469 | BG18: 93.75754453 | BH18: 81.50889347 | BI18: 70.86042781 | BJ18: 61.60309649 | BK18: 53.55515926 | BL18: 46.55861876 | BM18: 40.47611865 | BN18: 35.18824709 | BO18: 30.5911924 | BP18: 26.59470505 | BQ18: 23.12032586 | BR18: =BR11*EXP(WACC*-BR10) -> 20.09984569 | BS18: 17.47396638 | BT18: 15.19113658 | BU18: 13.20653969 | BV18: 11.48121405 | BW18: 9.981287984 | BX18: 8.67731491 | BY18: 7.543695179 | BZ18: 6.55817353 | CA18: 5.701402168 | CB18: 4.956560929 | CC18: 4.309027063 | CD18: 3.746088165 | CE18: 3.256692597 | CF18: 2.83123253 | CG18: 2.461355316 | CH18: 2.139799515 | CI18: 1.86025233 | CJ18: 1.617225684 | CK18: 1.405948467 | CL18: 1.222272878 | CM18: 1.062592993 | CN18: 0.9237739692 | CO18: 0.8030905079 | CP18: 0.6981733469 | CQ18: 0.6069627489 | CR18: 0.5276680644 | CS18: 0.4587325774 | CT18: 0.3988029441 | CU18: 0.3467026238 | CV18: 0.3014087812 | CW18: 0.2620322062 | CX18: 0.2277998565 | CY18: 0.1980396813 | CZ18: 0.1721674279 | DA18: 0.1496751713 | DB18: 0.1301213428 | DC18: 0.113122061 | DD18: 0.09834359534 | DE18: 0.08549581452 | DF18: 0.07432649045 | DG18: 0.06461634659 | DH18: 0.05617475306 | DI18: 0.0488359842 | DJ18: 0.04245596505 | DK18: 0.03690944286 | DL18: 0.03208752812 | DM18: 0.02789555683 | DN18: 0.02425123206 | DO18: 0.02108300832 | DP18: 0.01832868691 | DQ18: 0.01593419491 | DR18: 0.01385252357 | DS18: 0.01204280545 | DT18: 0.0104695121 | DU18: 0.009101756562 | DV18: 0.007912687025 | DW18: 0.00687895963 | DX18: 0.005980280206 | DY18: 0.005199005848 | DZ18: 0.00451979855 | EA18: 0.003929324093 | EB18: 0.00341599026 | EC18: 0.002969719265 | ED18: =ED11*EXP(WACC*-ED10) -> 0.0025817499 | EE18: 0.002244465538 | EF18: 0.001951244599 | EG18: 0.001696330562 | EH18: 0.001474718944 | EI18: 0.001282059059 | EJ18: 0.001114568602 | EK18: 0.0009689593928 | EL18: 0.000842372828 | EM18: 0.0007323237554 | EN18: 0.0006366516878 | EO18: 0.0005534783879 | EP18: 0.0004811709947 | EQ18: 0.0004183099669 | ER18: 0.0003636612148 | ES18: 0.000316151872 | ET18: 0.0002748492336 | EU18: 0.0002389424447 | EV18: 0.0002077265821 | EW18: 0.0001805888149 | EX18: 0.0001569963735 | EY18: 0.0001364860902 | EZ18: 0.0001186553066 | FA18: 0.000103153968 | FB18: 8.967775157e-05 | FC18: 7.796209187e-05 | FD18: 6.777698663e-05 | FE18: 5.89224815e-05 | FF18: 5.122474455e-05 | FG18: 4.453265354e-05 | FH18: 3.87148291e-05 | FI18: 3.365705551e-05 | FJ18: 2.926003839e-05 | FK18: 2.543745535e-05 | FL18: 2.21142613e-05 | FM18: 1.922521518e-05 | FN18: 1.671359915e-05 | FO18: 1.453010506e-05 | FP18: 1.26318665e-05 | FQ18: 1.098161717e-05 | FR18: 9.546959327e-06 | FS18: 8.299727715e-06 | FT18: 7.215436642e-06 | FU18: 6.272799267e-06 | FV18: 5.453309703e-06 | FW18: 4.740879701e-06 | FX18: 4.121522811e-06 | FY18: 3.583079799e-06 | FZ18: 3.114979932e-06 | GA18: 2.708033457e-06 | GB18: 2.354251188e-06 | GC18: 2.046687659e-06 | GD18: 1.779304772e-06 | GE18: 1.546853257e-06 | GF18: 1.344769618e-06 | GG18: 1.169086542e-06 | GH18: 1.016355013e-06 | GI18: 8.835766011e-07 | GJ18: 7.681445949e-07 | GK18: 6.677928296e-07 | GL18: 5.80551196e-07 | GM18: 5.047069634e-07 | GN18: 4.387711551e-07 | GO18: 3.814493172e-07 | GP18: =GP11*EXP(WACC*-GP10) -> 3.316161054e-07 | GQ18: 2.882931922e-07 | GR18: 2.506300609e-07 | GS18: 2.178873075e-07 | GT18: 1.894221252e-07 | GU18: 1.646756845e-07 | GV18: 1.431621625e-07 | GW18: 1.24459205e-07 | GX18: 1.081996349e-07 | GY18: 9.406424364e-08 | GZ18: 8.177552488e-08 | HA18: 7.109222601e-08 | HB18: 6.180461217e-08 | HC18: 5.373034858e-08 | HD18: 4.671092103e-08 | HE18: 4.060852389e-08 | HF18: 3.530335467e-08 | HG18: 3.069126213e-08 | HH18: 2.668170149e-08 | HI18: 2.319595693e-08 | HJ18: 2.016559618e-08 | HK18: 1.753112712e-08 | HL18: 1.524082974e-08 | HM18: 1.324974085e-08 | HN18: 1.151877132e-08 | HO18: 1.001393871e-08 | HP18: 8.70570009e-09 | HQ18: 7.56837207e-09 | HR18: 6.579626588e-09 | HS18: 5.720052561e-09 | HT18: 4.972774801e-09 | HU18: 4.323122727e-09 | HV18: 3.758342346e-09 | HW18: 3.26734587e-09 | HX18: 2.84049404e-09 | HY18: 2.469406887e-09 | HZ18: 2.146799214e-09 | IA18: 1.866337577e-09 | IB18: 1.622515942e-09 | IC18: 1.410547597e-09 | ID18: 1.22627117e-09 | IE18: 1.066068941e-09 | IF18: 9.26795813e-10 | IG18: 8.057175727e-10 | IH18: 7.004572073e-10 | II18: 6.089482418e-10 | IJ18: 5.29394169e-10 | IK18: 4.602331807e-10 | IL18: 4.001075059e-10 | IM18: 3.478367553e-10 | IN18: 3.023947478e-10 | IO18: 2.628893644e-10 | IP18: 2.28545034e-10 | IQ18: 1.986875075e-10 | IR18: 1.727306209e-10 | IS18: 1.501647878e-10 | IT18: 1.30546995e-10 | IU18: 1.134921052e-10 | IV18: 9.866529632e-11 | IW18: 8.577548791e-11 | IX18: 7.456962682e-11 | IY18: 6.48277192e-11 | IZ18: 5.635851157e-11 | JA18: 4.899573618e-11 | JB18: =JB11*EXP(WACC*-JB10) -> 4.259484675e-11 | JC18: 3.703018081e-11 | JD18: 3.219249265e-11 | JE18: 2.798680861e-11 | JF18: 2.433056255e-11 | JG18: 2.115197493e-11 | JH18: 1.83886436e-11 | JI18: 1.598631875e-11 | JJ18: 1.389783786e-11 | JK18: 1.20821998e-11 | JL18: 1.05037599e-11 | JM18: 9.131530174e-12 | JN18: 7.938570959e-12 | JO18: 6.901462042e-12 | JP18: 5.999842863e-12 | JQ18: 5.216012805e-12 | JR18: 4.534583688e-12 | JS18: 3.942177674e-12 | JT18: 3.427164627e-12 | JU18: 2.979433793e-12 | JV18: 2.590195305e-12 | JW18: 2.25180762e-12 | JX18: 1.957627499e-12 | JY18: 1.701879588e-12 | JZ18: 1.479543036e-12 | KA18: 1.286252923e-12 | KB18: 1.118214572e-12 | KC18: 9.721290469e-13 | KD18: 8.451283929e-13 | KE18: 7.347193284e-13 | KF18: 6.38734299e-13 | KG18: 5.552889231e-13 | KH18: 4.827449984e-13 | KI18: 4.1967834e-13 | KJ18: 3.648508211e-13 | KK18: 3.171860661e-13 | KL18: 2.757483187e-13 | KM18: 2.397240718e-13 | KN18: 2.084060961e-13 | KO18: 1.81179556e-13 | KP18: 1.575099391e-13 | KQ18: 1.369325627e-13 | KR18: 1.190434511e-13 | KS18: 1.034914046e-13
D19: Sum | E19: =SUM(18:18) -> 1377813.601
E21: =(1/WACC)*EXP(WACC) -> 8.216241427
E22: =E21*E18 -> 1478923.457
M23: r | N23: -0.1
H24: =Cash_Flow/E15+Growth_Rate -> 0.12 | M24: t | N24: 1
G25: 0.01 | H25: 0.13 | M25: exp rt | N25: =EXP(N23*N24) -> 0.904837418
G26: =G25+0.5% -> 0.015 | H26: 0.135
G27: =G26+0.5% -> 0.02 | H27: 0.14 | M27: Infinite
G28: =G27+0.5% -> 0.025 | H28: 0.145 | M28: r | N28: -0.1
G29: =G28+0.5% -> 0.03 | H29: 0.15 | M29: t | N29: 1000000
M30: exp rt | N30: =EXP(N28*N29) -> 0
M33: 1/(1+r)t

Sheet 1.04 Accretion and Dilution (hidden)
A1: ACCRETION / DILUTION
C3: Price | D3: NOSH | E3: P/E | F3: g | G3: EPS1 | H3: EPS2 | I3: EPS3 | J3: EPS4 | K3: EPS5
A4: Buyer | B4: GOOG | C4: =1154 -> 1154 | D4: 334.09 | E4: =C4/G4 -> 26.5043638 | F4: 0.1452 | G4: 43.54 | H4: 54.34 | I4: =H4*(1+$F$4) -> 62.230168 | J4: =I4*(1+$F$4) -> 71.26598839 | K4: =J4*(1+$F$4) -> 81.61380991
H5: =H4/G4-1 -> 0.2480477722 | I5: =I4/H4-1 -> 0.1452 | J5: =J4/I4-1 -> 0.1452 | K5: =K4/J4-1 -> 0.1452
A7: Target | B7: DE | C7: 88.82 | D7: 372.48 | E7: 11.65 | F7: 0.08 | G7: =C7/E7 -> 7.624034335 | H7: 7.65 | I7: =H7*(1+$F$7) -> 8.262 | J7: =I7*(1+$F$7) -> 8.92296 | K7: =J7*(1+$F$7) -> 9.6367968
B9: Premium % | C9: 0.3
B10: After-tax | C10: 0
B11: Exchange Ratio (no premium) | C11: =C7/C4 -> 0.07696707106
B12: Exchange Ratio (with premium) | C12: =C11*(1+C9) -> 0.1000571924
B13: New GOOG shares | C13: =D7*C12 -> 37.26930302
B15: DE earnings | G15: =G7*$D$7 -> 2839.800309 | H15: =H7*$D$7 -> 2849.472 | I15: =I7*$D$7 -> 3077.42976 | J15: =J7*$D$7 -> 3323.624141 | K15: =K7*$D$7 -> 3589.514072
B16: GOOG earnings | G16: =G4*$D$4 -> 14546.2786 | H16: =H4*$D$4 -> 18154.4506 | I16: =I4*$D$4 -> 20790.47683 | J16: =J4*$D$4 -> 23809.25406 | K16: =K4*$D$4 -> 27266.35775
B17: Synergies | G17: =$C$10 -> 0 | H17: =$C$10 -> 0 | I17: =$C$10 -> 0 | J17: =$C$10 -> 0 | K17: =$C$10 -> 0
B18: Total | G18: =SUM(G15:G17) -> 17386.07891 | H18: =SUM(H15:H17) -> 21003.9226 | I18: =SUM(I15:I17) -> 23867.90659 | J18: =SUM(J15:J17) -> 27132.8782 | K18: =SUM(K15:K17) -> 30855.87182
B20: GOOG SA shares | G20: =$D$4 -> 334.09 | H20: =$D$4 -> 334.09 | I20: =$D$4 -> 334.09 | J20: =$D$4 -> 334.09 | K20: =$D$4 -> 334.09
B21: New shares | G21: =$C$13 -> 37.26930302 | H21: =$C$13 -> 37.26930302 | I21: =$C$13 -> 37.26930302 | J21: =$C$13 -> 37.26930302 | K21: =$C$13 -> 37.26930302
B22: Total Shares | G22: =SUM(G20:$G$21) -> 371.359303 | H22: =SUM(H20:H21) -> 371.359303 | I22: =SUM(I20:I21) -> 371.359303 | J22: =SUM(J20:J21) -> 371.359303 | K22: =SUM(K20:K21) -> 371.359303
G24: 1 | H24: =G24+1 -> 2 | I24: =H24+1 -> 3 | J24: =I24+1 -> 4 | K24: =J24+1 -> 5
B25: Consolidated EPS | G25: =G18/G22 -> 46.81740505 | H25: =H18/H22 -> 56.55957029 | I25: =I18/I22 -> 64.27173466 | J25: =J18/J22 -> 73.06368248 | K25: =K18/K22 -> 83.08899649
B26: GOOG SA EPS | G26: =G4 -> 43.54 | H26: =H4 -> 54.34 | I26: =I4 -> 62.230168 | J26: =J4 -> 71.26598839 | K26: =K4 -> 81.61380991
B27: (Dilution)/Accretion | G27: =G25-G26 -> 3.277405052 | H27: =H25-H26 -> 2.219570285 | I27: =I25-I26 -> 2.04156666 | J27: =J25-J26 -> 1.797694091 | K27: =K25-K26 -> 1.47518658
H28: =H25/G25-1 -> 0.2080885351 | I28: =I25/H25-1 -> 0.1363547201 | J28: =J25/I25-1 -> 0.13679338 | K28: =K25/J25-1 -> 0.1372133687
B30: GOODE

Sheet 1.05 IRR Analysis (hidden)
A1: IRR Exercises
A5: Part 1 - IRR Definition
E7: 1 Period | H7: 2 Period | K7: middle Period
C8: Cash Outflow | E8: 100 | F8: =-E8 -> -100 | H8: 100 | I8: =-H8 -> -100 | K8: 100 | L8: =-K8 -> -100
I9: 0 | L9: 60
C10: Cash Inflow | E10: 120 | F10: =E10 -> 120 | H10: 120 | I10: =H10 -> 120 | K10: =L10+L9*(1+L11) -> 127.8397432 | L10: 60
E11: =E10/E8-1 -> 0.2 | F11: =IRR(F8:F10,) -> 0.2 | H11: =(H10/H8)^(1/2)-1 -> 0.09544511501 | I11: =IRR(I8:I10,) -> 0.09544511501 | K11: =(K10/K8)^(1/2)-1 -> 0.1306623863 | L11: =IRR(L8:L10,) -> 0.1306623863
A13: Part 2 - Analyst price forcasts and the IRR
C15: MSFT | D15: 2013 | E15: 2014 | F15: 2015 | G15: 2016 | H15: 2017
C16: EPS | H16: 4
C17: PE Ratio | H17: 14
C18: Price | D18: -36.64 | H18: =H16*H17 -> 56
C19: Dividends | E19: 1.04 | F19: 1.04 | G19: 1.04
C20: FCFE | D20: =SUM(D18:D19) -> -36.64 | E20: =SUM(E18:E19) -> 1.04 | F20: =SUM(F18:F19) -> 1.04 | G20: =SUM(G18:G19) -> 1.04 | H20: =SUM(H18:H19) -> 56
C21: IRR | D21: =IRR(D20:H20) -> 0.1312875159
D23: IRR and ROI Reconciliation
C25: 0 | D25: 1 | E25: 2 | F25: 3 | G25: 4 | H25: 5 | I25: 6 | J25: 7
B26: Construction Phase | C26: TRUE | D26: FALSE | E26: FALSE | F26: FALSE | G26: FALSE | H26: FALSE | I26: FALSE | J26: FALSE
B27: Operation Phase | C27: FALSE | D27: TRUE | E27: TRUE | F27: TRUE | G27: TRUE | H27: TRUE | I27: TRUE | J27: TRUE
B29: EBITDA | D29: 70 | E29: =+D29*1.1 -> 77 | F29: 84.7 | G29: 93.17 | H29: 102.487 | I29: 112.7357 | J29: 124.00927
B30: Construction Cost | C30: 400
B31: Depreciation | D31: =C30/7 -> 57.14285714 | E31: =D31 -> 57.14285714 | F31: 57.14285714 | G31: 57.14285714 | H31: 57.14285714 | I31: 57.14285714 | J31: 57.14285714
B32: Earnings | D32: =D29-D31 -> 12.85714286 | E32: =E29-E31 -> 19.85714286 | F32: 27.55714286 | G32: 36.02714286 | H32: 45.34414286 | I32: 55.59284286 | J32: 66.86641286 | L32: =show_formulaR(J32) -> < ---- =J29-J31
B34: Net Plant | C34: =C30 -> 400 | D34: =C34-D31 -> 342.8571429 | E34: 285.7142857 | F34: 228.5714286 | G34: 171.4285714 | H34: 114.2857143 | I34: 57.14285714 | J34: 0 | L34: =show_formulaR(J34) -> < ---- =I34-J31
B35: Equity | C35: =C34 -> 400 | D35: =D34 -> 342.8571429 | E35: 285.7142857 | F35: 228.5714286 | G35: 171.4285714 | H35: 114.2857143 | I35: 57.14285714 | J35: 0 | L35: =show_formulaR(J35) -> < ---- =J34
B37: Return on Investment | D37: =D32/C35 -> 0.03214285714 | E37: =E32/D35 -> 0.05791666667 | F37: 0.09645 | G37: 0.15761875 | H37: 0.2645075 | I37: 0.486437375 | J37: 1.170162225 | L37: =show_formulaR(J37) -> < ---- =J32/I35
B39: Cash Flow | C39: =-C30 -> -400 | D39: =D29 -> 70 | E39: =E29 -> 77 | F39: 84.7 | G39: 93.17 | H39: 102.487 | I39: 112.7357 | J39: 124.00927
B40: IRR | C40: =IRR(C39:J39) -> 0.1304206498 | E40: =show_formulaR(C40) -> < ---- =IRR(C39:J39)
B42: Reconciliation demonstrating that IRR is a time, investment and cost of capital weighted average
B44: Investment Weighting | D44: =C34/SUM(34:34) -> 0.25 | E44: 0.2142857143 | F44: 0.1785714286 | G44: 0.1428571429 | H44: 0.1071428571 | I44: 0.07142857143 | J44: 0.03571428571 | L44: =show_formulaR(J44) -> < ---- =I34/SUM(34:34)
B45: Discount Factor | D45: =1/(1+$C$40)^D25 -> 0.8846264443 | E45: 0.7825639459 | F45: 0.6922767609 | G45: 0.6124063295 | H45: 0.5417508337 | I45: 0.4792471137 | J45: 0.4239546702 | L45: =show_formulaR(J45) -> < ---- =1/(1+$C$40)^J25
B46: Discount Factor Weighting | D46: =D45/SUM(45:45) -> 0.20028555 | E46: =E45/SUM(45:45) -> 0.1771778939 | F46: 0.1567362503 | G46: 0.1386530318 | H46: 0.1226561385 | I46: 0.1085048637 | J46: 0.09598627175 | L46: =show_formulaR(J46) -> < ---- =J45/SUM(45:45)
B47: Investment x Discount Factor | D47: =PRODUCT(D46,D44) -> 0.0500713875 | E47: =PRODUCT(E46,E44) -> 0.03796669156 | F47: 0.02798861613 | G47: 0.01980757597 | H47: 0.01314172913 | I47: 0.007750347406 | J47: 0.003428081134 | L47: =show_formulaR(J47) -> < ---- =PRODUCT(J46,J44)
B48: Combined Weighting | D48: =D47/SUM(47:47) -> 0.3126444137 | E48: =E47/SUM(47:47) -> 0.2370630137 | F48: 0.1747601757 | G48: 0.1236779783 | H48: 0.08205660764 | I48: 0.04839296336 | J48: 0.02140484755 | L48: =show_formulaR(J48) -> < ---- =J47/SUM(47:47)
B50: Weighted ROI | C50: =SUMPRODUCT(48:48,37:37) -> 0.1304206498 | E50: =show_formulaR(C50) -> < ---- =SUMPRODUCT(48:48,37:37)

Sheet 1.05 - Basic LBO Model (hidden)
A1: LBO Analysis
A4: Transaction Assumptions | I4: Outputs
B5: Entry EV/EBITDA | E5: 4.817042491 | I5: Equity IRR | K5: =E97 -> 
I6: Unlevered IRR | K6: =IRR(47:47) -> 0.3285696923 | M6: <----Implied WACC
B7: Holding Period (yrs) | E7: 5 | I7: Transaction Value | K7: =G45 -> 481.7042491
B9: Exit EV/EBITDA | E9: 7 | F9: <–see EV/EBITDA Sheet
E11: multiple | F11: Cost of Capital
B12: Senior Debt | E12: 5.5 | F12: 0.06
B13: Mezanine Debt | E13: 0 | F13: 0.18
B14: Equity | E14: =E5-E12-E13 -> -0.6829575088 | F14: 0.23 | H14: 20 | I14: Spinner Attached to Goal Seek Macro
A16: Operating Assumptions
B17: EBITDA | E17: 100
B18: EBITDA growth
C19: 1 | E19: -0.04
C20: =C19+1 -> 2 | E20: 0.12
C21: 3 | E21: 0.15
C22: 4 | E22: 0.15
C23: 5 | E23: 0.1
C24: 6 | E24: 0.05
C25: 7 | E25: 0.03
B27: Capex | E27: 20
B28: Capex growth | E28: 0.05
A30: Timeline
G31: 0 | H31: =G31+1 -> 1 | I31: =H31+1 -> 2 | J31: 3 | K31: 4 | L31: 5 | M31: 6 | N31: 7 | O31: 8 | P31: 9 | Q31: 10 | R31: 11 | S31: 12 | T31: 13 | U31: 14 | V31: 15 | W31: 16 | X31: 17 | Y31: 18 | Z31: 19 | AA31: 20
B32: Holding Period Switch | H32: =H31<=$E$7 -> TRUE | I32: =I31<=$E$7 -> TRUE | J32: TRUE | K32: TRUE | L32: TRUE | M32: FALSE | N32: FALSE | O32: FALSE | P32: FALSE | Q32: FALSE | R32: FALSE | S32: FALSE | T32: FALSE | U32: FALSE | V32: FALSE | W32: FALSE | X32: FALSE | Y32: FALSE | Z32: FALSE | AA32: FALSE
B33: Terminal Switch | H33: =H31=$E$7 -> FALSE | I33: =I31=$E$7 -> FALSE | J33: FALSE | K33: FALSE | L33: TRUE | M33: FALSE | N33: FALSE | O33: FALSE | P33: FALSE | Q33: FALSE | R33: FALSE | S33: FALSE | T33: FALSE | U33: FALSE | V33: FALSE | W33: FALSE | X33: FALSE | Y33: FALSE | Z33: FALSE | AA33: FALSE
A35: Opearting CF
B36: Base EBITDA | G36: =E17 -> 100 | H36: =G36 -> 100 | I36: =H36 -> 100 | J36: 100 | K36: 100 | L36: 100 | M36: 100 | N36: 100 | O36: 100 | P36: 100 | Q36: 100 | R36: 100 | S36: 100 | T36: 100 | U36: 100 | V36: 100 | W36: 100 | X36: 100 | Y36: 100 | Z36: 100 | AA36: 100
B37: growth | H37: =LOOKUP(H31,$C$19:$C$25,$E$19:$E$25) -> -0.04 | I37: =LOOKUP(I31,$C$19:$C$25,$E$19:$E$25) -> 0.12 | J37: 0.15 | K37: 0.15 | L37: 0.1 | M37: 0.05 | N37: 0.03 | O37: 0.03 | P37: 0.03 | Q37: 0.03 | R37: 0.03 | S37: 0.03 | T37: 0.03 | U37: 0.03 | V37: 0.03 | W37: 0.03 | X37: 0.03 | Y37: 0.03 | Z37: 0.03 | AA37: 0.03
B38: growth index | G38: 1 | H38: =G38*(1+H37) -> 0.96 | I38: =H38*(1+I37) -> 1.0752 | J38: 1.23648 | K38: 1.421952 | L38: 1.5641472 | M38: 1.64235456 | N38: 1.691625197 | O38: 1.742373953 | P38: 1.794645171 | Q38: 1.848484526 | R38: 1.903939062 | S38: 1.961057234 | T38: 2.019888951 | U38: 2.08048562 | V38: 2.142900188 | W38: 2.207187194 | X38: 2.27340281 | Y38: 2.341604894 | Z38: 2.411853041 | AA38: 2.484208632
B40: EBITDA | G40: =G36*G38 -> 100 | H40: =H36*H38*H32 -> 96 | I40: =I36*I38*I32 -> 107.52 | J40: 123.648 | K40: 142.1952 | L40: 156.41472 | M40: 0 | N40: 0 | O40: 0 | P40: 0 | Q40: 0 | R40: 0 | S40: 0 | T40: 0 | U40: 0 | V40: 0 | W40: 0 | X40: 0 | Y40: 0 | Z40: 0 | AA40: 0
B41: Terminal Proceeds | E41: =E9 -> 7 | H41: =H40*$E$41*H33 -> 0 | I41: =I40*$E$41*I33 -> 0 | J41: 0 | K41: 0 | L41: 1094.90304 | M41: 0 | N41: 0 | O41: 0 | P41: 0 | Q41: 0 | R41: 0 | S41: 0 | T41: 0 | U41: 0 | V41: 0 | W41: 0 | X41: 0 | Y41: 0 | Z41: 0 | AA41: 0
B43: Capex | G43: =E27 -> 20 | H43: =G43*(1+$E$28)*H32 -> 21 | I43: =H43*(1+$E$28)*I32 -> 22.05 | J43: 23.1525 | K43: 24.310125 | L43: 25.52563125 | M43: 0 | N43: 0 | O43: 0 | P43: 0 | Q43: 0 | R43: 0 | S43: 0 | T43: 0 | U43: 0 | V43: 0 | W43: 0 | X43: 0 | Y43: 0 | Z43: 0 | AA43: 0
B45: Acquisition Value | E45: =E5 -> 4.817042491 | G45: =E45*G36 -> 481.7042491
B47: FCFF | G47: =-G45 -> -481.7042491 | H47: =H40+H41-H43 -> 75 | I47: =I40+I41-I43 -> 85.47 | J47: 100.4955 | K47: 117.885075 | L47: 1225.792129 | M47: 0 | N47: 0 | O47: 0 | P47: 0 | Q47: 0 | R47: 0 | S47: 0 | T47: 0 | U47: 0 | V47: 0 | W47: 0 | X47: 0 | Y47: 0 | Z47: 0 | AA47: 0
B49: Unlevered IRR | E49: =IRR(47:47) -> 0.3285696923
B50: ROIC
A53: Sources & Uses of Funds
B54: Uses of funds
C55: Purchase Price | G55: =G45 -> 481.7042491
B57: Sources of funds
C58: Senior Debt | E58: =E12 -> 5.5 | G58: =E58*G$36 -> 550
C59: Mezzanine Debt | E59: =E13 -> 0 | G59: =E59*G$36 -> 0
C60: Equity | E60: =E14 -> -0.6829575088 | G60: =E60*G$36 -> -68.29575088
G61: =SUM(G58:G60) -> 481.7042491
C62: test | G62: =G55=G61 -> TRUE
A64: Debt Schedule
B65: Senior Debt
C66: Beg Bal | G66: =F69 -> 0 | H66: =G69 -> 550 | I66: 508 | J66: 453.01 | K66: 379.6951 | L66: 284.591731 | M66: 766.3499883 | N66: 812.3309875 | O66: 861.0708468 | P66: 912.7350976 | Q66: 967.4992035 | R66: 1025.549156 | S66: 1087.082105 | T66: 1152.307031 | U66: 1221.445453 | V66: 1294.73218 | W66: 1372.416111 | X66: 1454.761078 | Y66: 1542.046743 | Z66: 1634.569547 | AA66: 1732.64372
C67: Add draws | G67: =G58 -> 550 | H67: =H58 -> 0 | I67: 0 | J67: 0 | K67: 0 | L67: 0 | M67: 0 | N67: 0 | O67: 0 | P67: 0 | Q67: 0 | R67: 0 | S67: 0 | T67: 0 | U67: 0 | V67: 0 | W67: 0 | X67: 0 | Y67: 0 | Z67: 0 | AA67: 0
C68: Less repayment | G68: =-G91 -> 0 | H68: =-H91 -> -42 | I68: -54.99 | J68: -73.3149 | K68: -95.103369 | L68: 481.7582573 | M68: 45.9809993 | N68: 48.73985925 | O68: 51.66425081 | P68: 54.76410586 | Q68: 58.04995221 | R68: 61.53294934 | S68: 65.2249263 | T68: 69.13842188 | U68: 73.28672719 | V68: 77.68393082 | W68: 82.34496667 | X68: 87.28566467 | Y68: 92.52280455 | Z68: 98.07417283 | AA68: 103.9586232
C69: Ending Bal | G69: =SUM(G66:G68) -> 550 | H69: =SUM(H66:H68) -> 508 | I69: 453.01 | J69: 379.6951 | K69: 284.591731 | L69: 766.3499883 | M69: 812.3309875 | N69: 861.0708468 | O69: 912.7350976 | P69: 967.4992035 | Q69: 1025.549156 | R69: 1087.082105 | S69: 1152.307031 | T69: 1221.445453 | U69: 1294.73218 | V69: 1372.416111 | W69: 1454.761078 | X69: 1542.046743 | Y69: 1634.569547 | Z69: 1732.64372 | AA69: 1836.602343
C71: interest rate | E71: =F12 -> 0.06 | G71: =$E$71 -> 0.06 | H71: =$E$71 -> 0.06 | I71: 0.06 | J71: 0.06 | K71: 0.06 | L71: 6 | M71: 0.06 | N71: 0.06 | O71: 0.06 | P71: 0.06 | Q71: 0.06 | R71: 0.06 | S71: 0.06 | T71: 0.06 | U71: 0.06 | V71: 0.06 | W71: 0.06 | X71: 0.06 | Y71: 0.06 | Z71: 0.06 | AA71: 0.06
C72: interest expense | G72: =G71*G66 -> 0 | H72: =H71*H66 -> 33 | I72: 30.48 | J72: 27.1806 | K72: 22.781706 | L72: 1707.550386 | M72: 45.9809993 | N72: 48.73985925 | O72: 51.66425081 | P72: 54.76410586 | Q72: 58.04995221 | R72: 61.53294934 | S72: 65.2249263 | T72: 69.13842188 | U72: 73.28672719 | V72: 77.68393082 | W72: 82.34496667 | X72: 87.28566467 | Y72: 92.52280455 | Z72: 98.07417283 | AA72: 103.9586232
B74: Mezanine Debt
C75: Beg Bal | G75: =F79 -> 0 | H75: =G79 -> 0 | I75: 0 | J75: 0 | K75: 0 | L75: 0 | M75: 0 | N75: 0 | O75: 0 | P75: 0 | Q75: 0 | R75: 0 | S75: 0 | T75: 0 | U75: 0 | V75: 0 | W75: 0 | X75: 0 | Y75: 0 | Z75: 0 | AA75: 0
C76: Add interest capitalized | G76: =G82 -> 0 | H76: =H82 -> 0 | I76: =I82 -> 0 | J76: 0 | K76: 0 | L76: 0 | M76: 0 | N76: 0 | O76: 0 | P76: 0 | Q76: 0 | R76: 0 | S76: 0 | T76: 0 | U76: 0 | V76: 0 | W76: 0 | X76: 0 | Y76: 0 | Z76: 0 | AA76: 0
C77: Add draws | G77: =G59 -> 0 | H77: =H59 -> 0 | I77: 0 | J77: 0 | K77: 0 | L77: 0 | M77: 0 | N77: 0 | O77: 0 | P77: 0 | Q77: 0 | R77: 0 | S77: 0 | T77: 0 | U77: 0 | V77: 0 | W77: 0 | X77: 0 | Y77: 0 | Z77: 0 | AA77: 0
C78: Less repayment | G78: =G94 -> 0 | H78: =H94 -> 0 | I78: 0 | J78: 0 | K78: 0 | L78: 0 | M78: 0 | N78: 0 | O78: 0 | P78: 0 | Q78: 0 | R78: 0 | S78: 0 | T78: 0 | U78: 0 | V78: 0 | W78: 0 | X78: 0 | Y78: 0 | Z78: 0 | AA78: 0
C79: Ending Bal | G79: =SUM(G75:G78) -> 0 | H79: =SUM(H75:H78) -> 0 | I79: 0 | J79: 0 | K79: 0 | L79: 0 | M79: 0 | N79: 0 | O79: 0 | P79: 0 | Q79: 0 | R79: 0 | S79: 0 | T79: 0 | U79: 0 | V79: 0 | W79: 0 | X79: 0 | Y79: 0 | Z79: 0 | AA79: 0
C81: interest rate | E81: =F13 -> 0.18 | G81: =$E$81 -> 0.18 | H81: =$E$81 -> 0.18 | I81: 0.18 | J81: 0.18 | K81: 0.18 | L81: 0.18 | M81: 0.18 | N81: 0.18 | O81: 0.18 | P81: 0.18 | Q81: 0.18 | R81: 0.18 | S81: 0.18 | T81: 0.18 | U81: 0.18 | V81: 0.18 | W81: 0.18 | X81: 0.18 | Y81: 0.18 | Z81: 0.18 | AA81: 0.18
C82: interest expense | G82: =G81*G75 -> 0 | H82: =H81*H75 -> 0 | I82: 0 | J82: 0 | K82: 0 | L82: 0 | M82: 0 | N82: 0 | O82: 0 | P82: 0 | Q82: 0 | R82: 0 | S82: 0 | T82: 0 | U82: 0 | V82: 0 | W82: 0 | X82: 0 | Y82: 0 | Z82: 0 | AA82: 0
A84: CF Analysis
B85: EBITDA | H85: =H40 -> 96 | I85: =I40 -> 107.52 | J85: 123.648 | K85: 142.1952 | L85: 156.41472 | M85: 0 | N85: 0 | O85: 0 | P85: 0 | Q85: 0 | R85: 0 | S85: 0 | T85: 0 | U85: 0 | V85: 0 | W85: 0 | X85: 0 | Y85: 0 | Z85: 0 | AA85: 0
B86: less Capex | H86: =-H43 -> -21 | I86: =-I43 -> -22.05 | J86: -23.1525 | K86: -24.310125 | L86: -25.52563125 | M86: 0 | N86: 0 | O86: 0 | P86: 0 | Q86: 0 | R86: 0 | S86: 0 | T86: 0 | U86: 0 | V86: 0 | W86: 0 | X86: 0 | Y86: 0 | Z86: 0 | AA86: 0
B87: Terminal Proceeds | H87: =H41 -> 0 | I87: =I41 -> 0 | J87: 0 | K87: 0 | L87: 1094.90304 | M87: 0 | N87: 0 | O87: 0 | P87: 0 | Q87: 0 | R87: 0 | S87: 0 | T87: 0 | U87: 0 | V87: 0 | W87: 0 | X87: 0 | Y87: 0 | Z87: 0 | AA87: 0
B88: Operating CF | H88: =SUM(H85:H87) -> 75 | I88: =SUM(I85:I87) -> 85.47 | J88: 100.4955 | K88: 117.885075 | L88: 1225.792129 | M88: 0 | N88: 0 | O88: 0 | P88: 0 | Q88: 0 | R88: 0 | S88: 0 | T88: 0 | U88: 0 | V88: 0 | W88: 0 | X88: 0 | Y88: 0 | Z88: 0 | AA88: 0
B89: less Interest on senior debt | H89: =-H72 -> -33 | I89: =-I72 -> -30.48 | J89: -27.1806 | K89: -22.781706 | L89: -1707.550386 | M89: -45.9809993 | N89: -48.73985925 | O89: -51.66425081 | P89: -54.76410586 | Q89: -58.04995221 | R89: -61.53294934 | S89: -65.2249263 | T89: -69.13842188 | U89: -73.28672719 | V89: -77.68393082 | W89: -82.34496667 | X89: -87.28566467 | Y89: -92.52280455 | Z89: -98.07417283 | AA89: -103.9586232
B90: CF after senior debt interest | H90: =SUM(H88:H89) -> 42 | I90: =SUM(I88:I89) -> 54.99 | J90: 73.3149 | K90: 95.103369 | L90: -481.7582573 | M90: -45.9809993 | N90: -48.73985925 | O90: -51.66425081 | P90: -54.76410586 | Q90: -58.04995221 | R90: -61.53294934 | S90: -65.2249263 | T90: -69.13842188 | U90: -73.28672719 | V90: -77.68393082 | W90: -82.34496667 | X90: -87.28566467 | Y90: -92.52280455 | Z90: -98.07417283 | AA90: -103.9586232
B91: Repayment of senior debt | H91: =MIN(H90,H66) -> 42 | I91: =MIN(I90,I66) -> 54.99 | J91: 73.3149 | K91: 95.103369 | L91: -481.7582573 | M91: -45.9809993 | N91: -48.73985925 | O91: -51.66425081 | P91: -54.76410586 | Q91: -58.04995221 | R91: -61.53294934 | S91: -65.2249263 | T91: -69.13842188 | U91: -73.28672719 | V91: -77.68393082 | W91: -82.34496667 | X91: -87.28566467 | Y91: -92.52280455 | Z91: -98.07417283 | AA91: -103.9586232
B93: CF to mezzanine | H93: =H90-H91 -> 0 | I93: =I90-I91 -> 0 | J93: 0 | K93: 0 | L93: 0 | M93: 0 | N93: 0 | O93: 0 | P93: 0 | Q93: 0 | R93: 0 | S93: 0 | T93: 0 | U93: 0 | V93: 0 | W93: 0 | X93: 0 | Y93: 0 | Z93: 0 | AA93: 0
B94: Repayment of mezz & interest | H94: =MIN(H93,H75) -> 0 | I94: =MIN(I93,I75) -> 0 | J94: 0 | K94: 0 | L94: 0 | M94: 0 | N94: 0 | O94: 0 | P94: 0 | Q94: 0 | R94: 0 | S94: 0 | T94: 0 | U94: 0 | V94: 0 | W94: 0 | X94: 0 | Y94: 0 | Z94: 0 | AA94: 0
B96: FCFE | G96: =-G60 -> 68.29575088 | H96: =H93-H94 -> 0 | I96: =I93-I94 -> 0 | J96: 0 | K96: 0 | L96: 0 | M96: 0 | N96: 0 | O96: 0 | P96: 0 | Q96: 0 | R96: 0 | S96: 0 | T96: 0 | U96: 0 | V96: 0 | W96: 0 | X96: 0 | Y96: 0 | Z96: 0 | AA96: 0
B97: Equity IRR | E97: =IFERROR(IRR(G96:AA96),"") -> 
I100: Data Table -- Must be in same page as the INPUTS
I103: Optimal Holding Period Table (sensitivity calculation) | S103: Press Shift F9 to update the table
K105: Exit Multiple
J106: =K5 ->  | K106: 6 | L106: =K106+1 -> 7 | M106: =L106+1 -> 8 | N106: =M106+1 -> 9 | O106: =N106+1 -> 10
I107: Holding Period | J107: 1 | K107: -0.4486640356 | L107: 0.3296926199 | M107: 1.108049275 | N107: 1.886405931 | O107: 2.664762587
J108: =J107+1 -> 2 | K108: 0.2480405354 | L108: 0.5586419192 | M108: 0.8168995808 | N108: 1.042763702 | O108: 1.246028271
J109: =J108+1 -> 3 | K109: 0.4320201016 | L109: 0.5793091843 | M109: 0.7032997015 | N109: 0.8114686806 | O109: 0.9080645875
J110: 4 | K110: 0.4652935772 | L110: 0.5493867513 | M110: 0.6216617572 | N110: 0.6853908564 | O110: 0.7426146703
J111: 5
J112: 6
J113: 7
J114: 8
J115: 9 | O115: -0.06279896729
J116: 10 | O116: 0.03343089619
K118: =MAX(K107:K116) -> 0.4652935772 | L118: =MAX(L107:L116) -> 0.5793091843 | M118: =MAX(M107:M116) -> 1.108049275 | N118: =MAX(N107:N116) -> 1.886405931 | O118: =MAX(O107:O116) -> 2.664762587
K119: =MATCH(K118,K107:K116,0) -> 4 | L119: =MATCH(L118,L107:L116,0) -> 3 | M119: =MATCH(M118,M107:M116,0) -> 1 | N119: =MATCH(N118,N107:N116,0) -> 1 | O119: =MATCH(O118,O107:O116,0) -> 1

Sheet 1.05 - Implied COC in LBO (hidden)
A1: Purchase Price and WACC sensitivity
B3: Required Entry Multiple
P4: Table | Q4: 1
F5: Required Equity IRR
F6: 0.23 | G6: =F6+0.01 -> 0.24 | H6: =G6+0.01 -> 0.25 | I6: 0.26 | J6: 0.27 | K6: 0.28 | L6: 0.29 | M6: 0.3 | Q6: =INDEX(S6:T6,$Q$4) -> 7 | R6: Row Start | S6: =ROW(F7) -> 7 | T6: =ROW(E19) -> 19
D7: Senior Debt Capacity | E7: 1 | F7: 6.756967425 | G7: 6.545854914 | H7: 6.347818009 | I7: 6.158482874 | J7: 5.977532129 | K7: 5.804522261 | L7: 5.639041766 | M7: 5.480703378 | Q7: =INDEX(S7:T7,$Q$4) -> 13 | R7: Row End | S7: =ROW(D13) -> 13 | T7: =ROW(E25) -> 25
E8: =E7+0.5 -> 1.5 | F8: 6.876385938 | G8: 6.684449105 | H8: 6.491844143 | I8: 6.308306897 | J8: 6.132995313 | K8: 5.965490277 | L8: 5.805383817 | M8: 5.652292802 | Q8: =INDEX(S8:T8,$Q$4) -> 6 | R8: Column Start | S8: =COLUMN(F2) -> 6 | T8: =COLUMN(F6) -> 6
E9: =E8+0.5 -> 2 | F9: 7.05525717 | G9: 6.872339149 | H9: 6.687119559 | I9: 6.510782512 | J9: 6.342444414 | K9: 6.181696749 | L9: 6.028139787 | M9: 5.881398332 | Q9: =INDEX(S9:T9,$Q$4) -> 13 | R9: Column End | S9: =COLUMN(M2) -> 13 | T9: =COLUMN(M9) -> 13
E10: =E9+0.5 -> 2.5 | F10: 7.252769326 | G10: 7.077225448 | H10: 6.899843674 | I10: 6.7310446 | J10: 6.569986812 | K10: 6.416271472 | L10: 6.269509281 | M10: 6.129334909
E11: 3.5 | F11: 7.054320951 | G11: 6.913216051 | H11: 6.778930035 | I11: 6.650929552 | J11: 6.528879498 | K11: 6.412459457 | L11: 6.301368774 | M11: 6.195324996
E12: 4.5 | F12: 4.917514834 | G12: 4.901232217 | H12: 4.885487688 | I12: 4.870475787 | J12: 4.856161654 | K12: 4.84250787 | L12: 4.829479187 | M12: 4.817042491
E13: 5.5 | F13: 8.782500523 | G13: 8.652269954 | H13: 8.528179272 | I13: 8.409904621 | J13: 8.297130456 | K13: 8.189560639 | L13: 8.086917115 | M13: 7.988938678
B15: Required Implied WACC
F17: Required Equity IRR
F18: 0.23 | G18: =F18+0.01 -> 0.24 | H18: 0.25 | I18: 0.26 | J18: 0.27 | K18: 0.28 | L18: 0.29 | M18: 0.3
D19: Senior Debt Capacity | E19: 1 | F19: 0.222308269 | G19: 0.2315717279 | H19: 0.2407996054 | I19: 0.2499884097 | J19: 0.2591370589 | K19: 0.2682444751 | L19: 0.2773095831 | M19: 0.2863313114
E20: =E19+0.5 -> 1.5 | F20: 0.2166289927 | G20: 0.2253728002 | H20: 0.2340665447 | I20: 0.2426987466 | J20: 0.2512680391 | K20: 0.2597730908 | L20: 0.2682125972 | M20: 0.276585283
E21: =E20+0.5 -> 2 | F21: 0.209094751 | G21: 0.2172148879 | H21: 0.2252552719 | I21: 0.2332125409 | J21: 0.2410854337 | K21: 0.2488727504 | L21: 0.2565733523 | M21: 0.2641861637
E22: =E21+0.5 -> 2.5 | F22: 0.2011624214 | G22: 0.2086518265 | H22: 0.2160440408 | I22: 0.2233363044 | J22: 0.2305277292 | K22: 0.2376175181 | L22: 0.2446049641 | M22: 0.2514894504
E23: 3.5 | F23: 0.1833960268 | G23: 0.189603775 | H23: 0.1956939494 | I23: 0.2016654413 | J23: 0.2075186079 | K23: 0.213253917 | L23: 0.2188719422 | M23: 0.2243733592
E24: 4.5 | F24: 0.1651070232 | G24: 0.1701425107 | H24: 0.1750572407 | I24: 0.179851847 | J24: 0.1845278806 | K24: 0.1890869703 | L24: 0.1935308152 | M24: 0.1978611785
E25: 5.5 | F25: 0.1483047379 | G25: 0.1523484917 | H25: 0.1562775754 | I25: 0.1600939456 | J25: 0.1637999762 | K25: 0.1673980662 | L25: 0.1708906326 | M25: 0.174280104
D30: Optimal Holding Period Table (sensitivity calculation) Equity IRR
C31: ='1.05 - Basic LBO Model'!J106 -> 
C32: ='1.05 - Basic LBO Model'!E9 -> 7 | F32: Exit Multiple
C33: ='1.05 - Basic LBO Model'!E7 -> 5 | F33: 6 | G33: =F33+1 -> 7 | H33: =G33+1 -> 8 | I33: =H33+1 -> 9 | J33: =I33+1 -> 10
D34: Holding Period | E34: 1 | F34: -0.4794717663 | G34: 0.1958081044 | H34: 0.8710879752 | I34: 1.546367846 | J34: 2.221647717
E35: =E34+1 -> 2 | F35: 0.1452776114 | G35: 0.4380452922 | H35: 0.6805617268 | I35: 0.8922476511 | J35: 1.082526021
E36: =E35+1 -> 3 | F36: 0.3399932987 | G36: 0.4851616061 | H36: 0.6064309981 | I36: 0.7117239573 | J36: 0.805447468
E37: 4 | F37: 0.3898866851 | G37: 0.4748966625 | H37: 0.5473235523 | I37: 0.6108071804 | J37: 0.6675646126
E38: 5 | F38: 0.3785001722 | G38: 0.4346708259 | H38: 0.4832139036 | I38: 0.5261258953 | J38: 0.5646924657
E39: 6 | F39: 0.3485108439 | G39: 0.3885896008 | H39: 0.423602566 | I39: 0.4547749277 | J39: 0.4829267702
E40: 7 | F40: 0.2771180489 | G40: 0.3131058871 | H40: 0.3439984242 | I40: 0.371139693 | J40: 0.3953954379
E41: 8 | F41: 0.2008130412 | G41: 0.2388673767 | H41: 0.2701614187 | I41: 0.296840009 | J41: 0.3201538472
E42: 9 | F42: 0.1222541089 | G42: 0.1692925881 | H42: 0.2047987142 | I42: 0.2335018445 | J42: 0.2576872379
E43: 10 | F43: -0.0009322852614 | G43: 0.08643051223 | H43: 0.136381789 | I43: 0.1720443003 | J43: 0.199999962
F45: =MAX(F34:F43) -> 0.3898866851 | G45: =MAX(G34:G43) -> 0.4851616061 | H45: =MAX(H34:H43) -> 0.8710879752 | I45: =MAX(I34:I43) -> 1.546367846 | J45: =MAX(J34:J43) -> 2.221647717
F46: =MATCH(F45,F34:F43,0) -> 4 | G46: =MATCH(G45,G34:G43,0) -> 3 | H46: =MATCH(H45,H34:H43,0) -> 1 | I46: =MATCH(I45,I34:I43,0) -> 1 | J46: =MATCH(J45,J34:J43,0) -> 1

Sheet 2.00 - Cost of Capital (hidden)
B2: Cost of Capital defined
B3: How do you measure the cost of equity/debt
B4: How does one put the WACC together
B5: What are the different approaches to cost of capital
B6: How can you practically implement CAPM alternatives
B9: EB to DS recommendations / ideas:
B11: Shift + F11 = Insert new sheet
B13: How to manually compute Betas…
C14: How to compare CNHi vs a Brazilian company
C15: How to get Beta (regression of market index)
D16: How to make Macro that downloads the file(s)
B18: Macros from another file…
C19: From Macro file:
D20: Can run Macros (subroutines) but cannot run Functions
E21: For functions to cross files one needs to create an Add-in
B23: Shift + control (1,2,3,4,5) for Formatting
B25: Named ranges necessary for macro
C26: Shift + control F3
B28: Risk free rate = longest term rate for a bond
B30: In formulas in valuation, Debt is always considered NET Debt…
B32: Valuation Tax Rate
B34: Remind EB about Beta reconciliation with Taxes (email file)
B36: Charting trick: Alt + F1 for chart
C37: See structure on
B39: Fix Debt/Equity WACC calculation for margin differencese in reconciliation(s)
B41: APV vs NPV is that APV does not account for Taxes
B43: Trading Comparables should be of the same RISK PROFILE (an analysis of risk…)

Sheet 2.01 - CAPM & CoE (hidden)
A1: How to download equity data from google/yahoo | M1: 5
B2: Ke = Rf + B * emrp + country risk premium + small company premium | M2: F | N2: =$C$17&M2&$C$18 -> http://www.google.com/finance/historical?q=NYSE%3AF&ei=mMjWUtDQFISfqAHXfg&output=csv
M3: DE | N3: =$C$17&M3&$C$18 -> http://www.google.com/finance/historical?q=NYSE%3ADE&ei=mMjWUtDQFISfqAHXfg&output=csv
C4: Ke Inputs | M4: AGCO | N4: http://www.google.com/finance/historical?q=NYSE%3AAGCO&ei=mMjWUtDQFISfqAHXfg&output=csv
B5: Beta | C5: 1.2 | M5: KUBTY | N5: http://www.google.com/finance/historical?q=NYSE%3AKUBTY&ei=mMjWUtDQFISfqAHXfg&output=csv
B6: rF | C6: 0.03 | M6: TTC | N6: http://www.google.com/finance/historical?q=NYSE%3ATTC&ei=mMjWUtDQFISfqAHXfg&output=csv
B7: emrp | C7: 0.06 | M7: HSQVY | N7: http://www.google.com/finance/historical?q=NYSE%3AHSQVY&ei=mMjWUtDQFISfqAHXfg&output=csv
B8: crp | C8: 0 | M8: LNN | N8: http://www.google.com/finance/historical?q=NYSE%3ALNN&ei=mMjWUtDQFISfqAHXfg&output=csv
B9: scp | C9: 0 | M9: ARTW | N9: http://www.google.com/finance/historical?q=NYSE%3AARTW&ei=mMjWUtDQFISfqAHXfg&output=csv
M10: CAT | N10: http://www.google.com/finance/historical?q=NYSE%3ACAT&ei=mMjWUtDQFISfqAHXfg&output=csv
B11: Ke | C11: =rF+Beta*emrp+crp+scp -> 0.102 | E11: =show_formula(C11) -> <----=rF+Beta*emrp+crp+scp | M11: BLT | N11: http://www.google.com/finance/historical?q=NYSE%3ABLT&ei=mMjWUtDQFISfqAHXfg&output=csv
M12: HMC | N12: http://www.google.com/finance/historical?q=NYSE%3AHMC&ei=mMjWUtDQFISfqAHXfg&output=csv
M13: CNHI | N13: http://www.google.com/finance/historical?q=NYSE%3ACNHI&ei=mMjWUtDQFISfqAHXfg&output=csv
B14: Cost of Capital defined
M15: =INDEX(M2:M13,$M$1) -> TTC | N15: =INDEX(N2:N13,$M$1) -> http://www.google.com/finance/historical?q=NYSE%3ATTC&ei=mMjWUtDQFISfqAHXfg&output=csv
C16: http://www.google.com/finance/historical?q=NYSE%3ADE&ei=mMjWUtDQFISfqAHXfg&output=csv
C17: http://www.google.com/finance/historical?q=NYSE%3A
C18: &ei=mMjWUtDQFISfqAHXfg&output=csv

Sheet 2.02 - Beta Analysis no Tax (hidden)
A1: (De)Leveraging Betas (NO Taxes) | I1: Proof section: | K1: IB Approach | N1: vs | O1: Theoretical Finance Proof
A2: Step 1 & 2:
A3: Deleveraging (Unleveraging) | O3: WACC Method #1
D4: (NET Debt / Capital) | E4: (strips out debt impact) | L4: rF | M4: =rF -> 0.03 | P4: % | Q4: Cost
C5: Equity Beta | D5: Debt/Capital | E5: aBeta | L5: emrp | M5: =emrp -> 0.06 | O5: Debt | P5: =D20 -> 0.35 | Q5: =$M$4 -> 0.03 | R5: =P5*Q5 -> 0.0105
B6: F | C6: 1.6 | D6: 0.4 | E6: =C6*(1-D6) -> 0.96 | L6: eBeta | M6: =C20 -> 1.352447552 | O6: Equity | P6: =1-P5 -> 0.65 | Q6: =M4+M6*M5 -> 0.1111468531 | R6: =P6*Q6 -> 0.07224545455
B7: DE | C7: 1.4 | D7: 0.35 | E7: =C7*(1-D7) -> 0.91 | L7: aBeta | M7: =(M6*P6) -> 0.8790909091 | R7: =SUMPRODUCT(P5:P6,Q5:Q6) -> 0.08274545455
B8: AGCO | C8: 1.2 | D8: 0.2 | E8: 0.96
B9: KUBTY | C9: 1.8 | D9: 0.5 | E9: 0.9 | O9: WACC Method #2
B10: TTC | C10: 0.9 | D10: 0 | E10: 0.9 | P10: % | Q10: Cost | U10: Miller-Modigliani
B11: HSQVY | C11: 1.6 | D11: 0.4 | E11: 0.96 | O11: Debt | P11: 0.8 | Q11: =$M$4 -> 0.03 | R11: =P11*Q11 -> 0.024 | U11: The cost of capital remains The same regardless of The capital structure
B12: LNN | C12: 1.4 | D12: 0.3 | E12: 0.98 | L12: eBeta | M12: =aBeta/equity_to_capital -> 4.395454545 | O12: Equity | P12: =1-P11 -> 0.2 | Q12: =(R7-R11)/P12 -> 0.2937272727 | R12: =P12*Q12 -> 0.05874545455 | U12: Beta of assets = (Beta of Equity * Equity/Capital) + (Beta of Debt * Debt/Capital)
B13: ARTW | C13: 1.2 | D13: 0.2 | E13: 0.96 | R13: =SUMPRODUCT(P11:P12,Q11:Q12) -> 0.08274545455
B14: CAT | C14: 1.5 | D14: 0.4 | E14: 0.9 | K14: Equity Beta Formula | M14: =show_formula(M12) -> <----=aBeta/equity_to_capital | O14: Equity Cost Formula | V14: Assume Beta of Debt = 0
B15: BLT | C15: 0.8 | D15: 0 | E15: 0.8 | V15: Beta of assets = (Beta of Equity * Equity/Capital) + 0
B16: HMC | C16: 0.4 | D16: -0.1 | E16: 0.44 | L16: Cost of Equity | M16: =(M12*M5)+M4 -> 0.2937272727
B17: Average | C17: =AVERAGE(C6:C16) -> 1.254545455 | E17: =AVERAGE(E6:E16) -> 0.8790909091 | K17: PROOF | L17: Check | M17: =M16=Q12 -> TRUE | V17: Beta of Equity = Beta of Assets / (Equity/Capital)
A18: Step 3 & 4: | V18: Beta of Equity = (Beta of Assets * Capital) / Equity
A19: Releveraging
B20: CNHi | C20: =E17/(1-D20) -> 1.352447552 | D20: 0.35
B21: assumed placeholder figures

Sheet 2.03 - Beta levering w Tax (hidden)
A1: (De)Leveraging Betas w/ Taxes
F2: eBeta = aBeta / (Eq/Cap) * (1-t) | J2: IB Approach | M2: vs | N2: Theoretical Finance Proof
F4: aBeta = eBeta * (Eq/Cap) / (1-t) | P4: Tax Rate | Q4: 0.4
A6: Deleveraging (Unleveraging) | N6: WACC Method #1
D7: (NET Debt / Capital) | F7: (strips out debt impact) | K7: rF | L7: 0.03 | O7: % | P7: Cost | Q7: aTax Cost
C8: Equity Beta | D8: Debt/Capital | E8: Equity/Capital | F8: Pre-tax aBeta | H8: Fed Tax | I8: 0.35 | K8: emrp | L8: ='2.02 - Beta Analysis no Tax'!M5 -> 0.06 | N8: Debt | O8: 0 | P8: =$L$7 -> 0.03 | Q8: =P8*(1-$Q$4) -> 0.018 | R8: =O8*Q8 -> 0
B9: F | C9: 1.6 | D9: 0.4 | E9: =1-D9 -> 0.6 | F9: =C9*E9/(1-$Q$4) -> 1.6 | H9: State Tax | I9: 0.08 | K9: eBeta | L9: =L10*(1-Q4) -> 0.8790909091 | N9: Equity | O9: =1-O8 -> 1 | P9: =L7+L9*L8 -> 0.08274545455 | R9: =O9*P9 -> 0.08274545455
B10: DE | C10: 1.4 | D10: 0.35 | E10: 0.65 | F10: =C10*E10/(1-$Q$4) -> 1.516666667 | H10: Effective Tax Rate | I10: =I9+(1-I9)*I8 -> 0.402 | K10: aBeta | L10: =F23 -> 1.465151515 | R10: =SUM(R8:R9) -> 0.08274545455
B11: AGCO | C11: 1.2 | D11: 0.2 | E11: 0.8 | F11: 1.6
B12: KUBTY | C12: 1.8 | D12: 0.5 | E12: 0.5 | F12: 1.5 | K12: Pre-tax | L12: =L7+L10*L8 -> 0.1179090909 | N12: WACC Method #2
B13: TTC | C13: 0.9 | D13: 0 | E13: 1 | F13: 1.5 | K13: After-tax | L13: =L8*L10*(1-Q4)+L7 -> 0.08274545455 | O13: % | P13: Cost | U13: Miller-Modigliani
B14: HSQVY | C14: 1.6 | D14: 0.4 | E14: 0.6 | F14: 1.6 | N14: Debt w/o Tax | O14: 0.6 | P14: =$L$7 -> 0.03 | Q14: =P14*(1-$Q$4) -> 0.018 | R14: =O14*P14 -> 0.018 | U14: The cost of capital remains The same regardless of The capital structure
B15: LNN | C15: 1.4 | D15: 0.3 | E15: 0.7 | F15: 1.633333333 | N15: Equity | O15: =1-O14 -> 0.4 | P15: =R15/O15 -> 0.1618636364 | R15: =R17-R16-R14 -> 0.06474545455
B16: ARTW | C16: 1.2 | D16: 0.2 | E16: 0.8 | F16: 1.6 | K16: eBeta | L16: =L10/O15*(1-Q4) -> 2.197727273 | N16: Tax Shield | O16: =O14 -> 0.6 | P16: =P14*Q4 -> 0.012 | R16: =-O16*P16 -> -0.0072 | V16: Beta of assets = (Beta of Equity * Equity/Capital) + (Beta of Debt * Debt/Capital)
B17: CAT | C17: 1.5 | D17: 0.4 | E17: 0.6 | F17: 1.5 | J17: Formula for eBeta | R17: =R10+R16 -> 0.07554545455 | V17: Assume Beta of Debt = 0
B18: BLT | C18: 0.8 | D18: 0 | E18: 1 | F18: 1.333333333 | V18: Beta of assets = (Beta of Equity * Equity/Capital) + 0
B19: HMC | C19: 0.4 | D19: -0.1 | E19: 1.1 | F19: 0.7333333333 | K19: Cost of Equity | L19: =(L16*L8)+L7 -> 0.1618636364
B20: Average | C20: =AVERAGE(C9:C19) -> 1.254545455 | F20: =AVERAGE(F9:F19) -> 1.465151515 | J20: PROOF | K20: Check | L20: =L19=P15 -> TRUE | V20: Beta of Equity = Beta of Assets / (Equity/Capital)
V21: Beta of Equity = (Beta of Assets * Capital) / Equity
A22: Releveraging
B23: CNHi | D23: 0.35 | F23: =F20 -> 1.465151515 | N23: Cost of Equity | V23: Levered Beta (eBeta) = aBeta * (1 + Debt/Equity) * (1 - t)
B24: assumed placeholder figures | V24: (1 + Debt/Equity) = Equity/Equity + Debt/Equity
V25: (1 + Debt/Equity) = Equity/Equity + Debt/Equity = Capital/Equity
V26: Tax Adjusted
V27: eBeta = Capital / Equity * aBeta * (1-t)

Sheet 2.04 - Beta with Credit Spread (hidden)
A1: EB is working on this and will email finished product…
F2: eBeta = aBeta / (Eq/Cap) * (1-t) | J2: IB Approach | M2: vs | N2: Theoretical Finance Proof
F4: aBeta = eBeta * (Eq/Cap) / (1-t) | P4: Tax Rate | Q4: 0.4
A6: Deleveraging (Unleveraging) | N6: WACC Method #1
D7: (NET Debt / Capital) | F7: (strips out debt impact) | K7: rF | L7: 0.03 | O7: % | P7: Cost | Q7: aTax Cost
C8: Equity Beta | D8: Debt/Capital | E8: Equity/Capital | F8: Pre-tax aBeta | H8: Fed Tax | I8: 0.35 | K8: emrp | L8: ='2.02 - Beta Analysis no Tax'!M5 -> 0.06 | N8: Debt | O8: 0 | P8: =$L$7 -> 0.03 | Q8: =P8*(1-$Q$4) -> 0.018 | R8: =O8*Q8 -> 0
B9: F | C9: 1.6 | D9: 0.4 | E9: =1-D9 -> 0.6 | F9: =C9*E9/(1-$Q$4) -> 1.6 | H9: State Tax | I9: 0.08 | K9: eBeta | L9: =L10*(1-Q4) -> 0.8790909091 | N9: Equity | O9: =1-O8 -> 1 | P9: =L7+L9*L8 -> 0.08274545455 | R9: =O9*P9 -> 0.08274545455
B10: DE | C10: 1.4 | D10: 0.35 | E10: 0.65 | F10: =C10*E10/(1-$Q$4) -> 1.516666667 | H10: Effective Tax Rate | I10: =I9+(1-I9)*I8 -> 0.402 | K10: aBeta | L10: =F23 -> 1.465151515 | R10: =SUM(R8:R9) -> 0.08274545455
B11: AGCO | C11: 1.2 | D11: 0.2 | E11: 0.8 | F11: 1.6
B12: KUBTY | C12: 1.8 | D12: 0.5 | E12: 0.5 | F12: 1.5 | K12: Pre-tax | L12: =L7+L10*L8 -> 0.1179090909 | N12: WACC Method #2
B13: TTC | C13: 0.9 | D13: 0 | E13: 1 | F13: 1.5 | K13: After-tax | L13: =L8*L10*(1-Q4)+L7 -> 0.08274545455 | O13: % | P13: Cost | U13: Miller-Modigliani
B14: HSQVY | C14: 1.6 | D14: 0.4 | E14: 0.6 | F14: 1.6 | N14: Debt w/o Tax | O14: 0.6 | P14: =$L$7 -> 0.03 | Q14: =P14*(1-$Q$4) -> 0.018 | R14: =O14*P14 -> 0.018 | U14: The cost of capital remains The same regardless of The capital structure
B15: LNN | C15: 1.4 | D15: 0.3 | E15: 0.7 | F15: 1.633333333 | N15: Equity | O15: =1-O14 -> 0.4 | P15: =R15/O15 -> 0.1618636364 | R15: =R17-R16-R14 -> 0.06474545455
B16: ARTW | C16: 1.2 | D16: 0.2 | E16: 0.8 | F16: 1.6 | K16: eBeta | L16: =L10/O15*(1-Q4) -> 2.197727273 | N16: Tax Shield | O16: =O14 -> 0.6 | P16: =P14*Q4 -> 0.012 | R16: =-O16*P16 -> -0.0072 | V16: Beta of assets = (Beta of Equity * Equity/Capital) + (Beta of Debt * Debt/Capital)
B17: CAT | C17: 1.5 | D17: 0.4 | E17: 0.6 | F17: 1.5 | J17: Formula for eBeta | R17: =R10+R16 -> 0.07554545455 | V17: Assume Beta of Debt = 0
B18: BLT | C18: 0.8 | D18: 0 | E18: 1 | F18: 1.333333333 | V18: Beta of assets = (Beta of Equity * Equity/Capital) + 0
B19: HMC | C19: 0.4 | D19: -0.1 | E19: 1.1 | F19: 0.7333333333 | K19: Cost of Equity | L19: =(L16*L8)+L7 -> 0.1618636364
B20: Average | C20: =AVERAGE(C9:C19) -> 1.254545455 | F20: =AVERAGE(F9:F19) -> 1.465151515 | J20: PROOF | K20: Check | L20: =L19=P15 -> TRUE | V20: Beta of Equity = Beta of Assets / (Equity/Capital)
V21: Beta of Equity = (Beta of Assets * Capital) / Equity
A22: Releveraging
B23: CNHi | D23: 0.35 | F23: =F20 -> 1.465151515 | N23: Cost of Equity | V23: Levered Beta (eBeta) = aBeta * (1 + Debt/Equity) * (1 - t)
B24: assumed placeholder figures | V24: (1 + Debt/Equity) = Equity/Equity + Debt/Equity
V25: (1 + Debt/Equity) = Equity/Equity + Debt/Equity = Capital/Equity
V26: Tax Adjusted
V27: eBeta = Capital / Equity * aBeta * (1-t)

Sheet 2.05 - Cost of Debt (hidden)
A1: Calculating the Cost of Debt
C3: Assumptions
D4: WACC | E4: 0.1 | I4: Credit Spread | J4: =G51 -> 0.1978480728
D5: RF | E5: 0.05 | R5: Col | S5: =COLUMN(S10) -> 19
D6: Credit Spread | E6: =IFERROR(J4,100%) -> 0.1978480728 | R6: Start_row | S6: =ROW(R11) -> 11
D7: Interest Rate | E7: =E5 -> 0.05 | R7: End_row | S7: =ROW(R19) -> 19
D8: Volatilty | E8: 0.2
F9: 1 | G9: 2 | H9: 3 | I9: 4 | J9: 5 | K9: 6 | L9: 7 | M9: 8 | N9: 9 | O9: 10
D10: EBITDA | F10: 90 | G10: =F10 -> 90 | H10: =G10 -> 90 | I10: 90 | J10: 90 | K10: 90 | L10: 90 | M10: 90 | N10: 90 | O10: 90 | S10: CS
R11: 50 | S11: 0
D12: Market Value of Cash Flow | E12: =NPV(E4,10:10) -> 553.0110395 | R12: 150 | S12: 8.412131257e-06
R13: 250 | S13: 0.0001211253148
D14: Debt | E14: 850 | F14: =E14-$E$14/10 -> 765 | G14: =F14-$E$14/10 -> 680 | H14: 595 | I14: 510 | J14: 425 | K14: 340 | L14: 255 | M14: 170 | N14: 85 | O14: 0 | R14: 350 | S14: 0.001023879155
D15: Interest | F15: =E14*$E$7 -> 42.5 | G15: =F14*$E$7 -> 38.25 | H15: 34 | I15: 29.75 | J15: 25.5 | K15: 21.25 | L15: 17 | M15: 12.75 | N15: 8.5 | O15: 4.25 | R15: 450 | S15: 0.00601815545
D16: Repayment | F16: =E14-F14 -> 85 | G16: =F14-G14 -> 85 | H16: 85 | I16: 85 | J16: 85 | K16: 85 | L16: 85 | M16: 85 | N16: 85 | O16: 85 | R16: 550 | S16: 0.02293343977
D17: Interest on Default | F17: =E20*$E$7 -> 0 | G17: =F20*$E$7 -> 1.875 | H17: 3.63125 | I17: 5.2628125 | J17: 6.763453125 | K17: 8.126625781 | L17: 9.34545707 | M17: 10.41272992 | N17: 11.32086642 | O17: 12.06190974 | R17: 650 | S17: 0.0618512384
D18: Debt Service | F18: =F15+F16+F17 -> 127.5 | G18: =G15+G16+G17 -> 125.125 | H18: 122.63125 | I18: 120.0128125 | J18: 117.2634531 | K18: 114.3766258 | L18: 111.3454571 | M18: 108.1627299 | N18: 104.8208664 | O18: 101.3119097 | R18: 750 | S18: 0.1234683717
D19: Default | F19: =MAX(F18-F10,0) -> 37.5 | G19: =MAX(G18-G10,0) -> 35.125 | H19: 32.63125 | I19: 30.0128125 | J19: 27.26345312 | K19: 24.37662578 | L19: 21.34545707 | M19: 18.16272992 | N19: 14.82086642 | O19: 11.31190974 | R19: 850 | S19: 0.1978480728
D20: Accumulated Default | F20: =E20+F19 -> 37.5 | G20: =F20+G19 -> 72.625 | H20: 105.25625 | I20: 135.2690625 | J20: 162.5325156 | K20: 186.9091414 | L20: 208.2545985 | M20: 226.4173284 | N20: 241.2381948 | O20: 252.5501046
D21: Loss | E21: =NPV(E5,F21:O21) -> 155.0438564 | F21: 0 | G21: 0 | H21: 0 | I21: 0 | J21: 0 | K21: 0 | L21: 0 | M21: 0 | N21: 0 | O21: =O20 -> 252.5501046
D22: PV of Loss/Loan | E22: =E21/E14 -> 0.1824045369
I26: Debt Sensitiity
F27: =MIN(E22,100%) -> 0.1824045369 | G27: 50 | H27: =G27+100 -> 150 | I27: =H27+100 -> 250 | J27: 350 | K27: 450 | L27: 550 | M27: 650 | N27: 750 | O27: 850
F28: 0 | G28: 1 | H28: 1 | I28: 1 | J28: 1 | K28: 1 | L28: 1 | M28: 1 | N28: 1 | O28: 1
F29: =F28+10 -> 10 | G29: 0 | H29: 0.4852176714 | I29: 0.6911306028 | J29: 0.779379002 | K29: 0.8284058905 | L29: 0.8596048195 | M29: 0.881204078 | N29: 0.8970435343 | O29: 0.9091560597
F30: =F29+10 -> 20 | G30: 0 | H30: 0.02506172959 | I30: 0.3822612057 | J30: 0.558758004 | K30: 0.6568117809 | L30: 0.7192096389 | M30: 0.762408156 | N30: 0.7940870686 | O30: 0.8183121193
F31: 30 | G31: 0 | H31: 0 | I31: 0.08076788795 | J31: 0.3381370061 | K31: 0.4852176714 | L31: 0.5788144584 | M31: 0.643612234 | N31: 0.6911306028 | O31: 0.727468179
F32: 40 | G32: 0 | H32: 0 | I32: 0 | J32: 0.1175160081 | K32: 0.3136235619 | L32: 0.4384192779 | M32: 0.5248163121 | N32: 0.5881741371 | O32: 0.6366242386
E33: EBITDA Sens | F33: 50 | G33: 0 | H33: 0 | I33: 0 | J33: 0.005919877802 | K33: 0.1420294523 | L33: 0.2980240973 | M33: 0.4060203901 | N33: 0.4852176714 | O33: 0.5457802983
F34: 60 | G34: 0 | H34: 0 | I34: 0 | J34: 0 | K34: 0.02506172959 | L34: 0.1576289168 | M34: 0.2872244681 | N34: 0.3822612057 | O34: 0.4549363579
F35: 70 | G35: 0 | H35: 0 | I35: 0 | J35: 0 | K35: 0 | L35: 0.0456737011 | M35: 0.1684285461 | N35: 0.2793047399 | O35: 0.3640924176
F36: 80 | G36: 0 | H36: 0 | I36: 0 | J36: 0 | K36: 0 | L36: 0.002790514789 | M36: 0.0644652348 | N36: 0.1763482742 | O36: 0.2732484773
F37: 90 | G37: 0 | H37: 0 | I37: 0 | J37: 0 | K37: 0 | L37: 0 | M37: 0.01296891748 | N37: 0.08076788795 | O37: 0.1824045369
F38: 100 | G38: 0 | H38: 0 | I38: 0 | J38: 0 | K38: 0 | L38: 0 | M38: 0 | N38: 0.02506172959 | O38: 0.09459504152
F39: 110 | G39: 0 | H39: 0 | I39: 0 | J39: 0 | K39: 0 | L39: 0 | M39: 0 | N39: 0.002046377512 | O39: 0.03757141212
F40: 120 | G40: 0 | H40: 0 | I40: 0 | J40: 0 | K40: 0 | L40: 0 | M40: 0 | N40: 0 | O40: 0.008035041113
F41: 130 | G41: 0 | H41: 0 | I41: 0 | J41: 0 | K41: 0 | L41: 0 | M41: 0 | N41: 0 | O41: 0
F46: Volatility | G46: =E8 -> 0.2
F47: Mean | G47: =F10 -> 90
F48: Std Dev | G48: =G46*G47 -> 18
F50: Debt | G50: =E14 -> 850
F51: Credit Spread | G51: =SUMPRODUCT(F54:F84,J54:J84) -> 0.1978480728
F53: Prob | G53: EBITDA | H53: Col of Table | I53: Row of Table | J53: Loss
F54: =NORMDIST(G54,$G$47,$G$48,0)*10 -> 1.138437897e-05 | G54: 10 | H54: =MATCH(G50,G27:O27,0) -> 9 | I54: =MATCH(G54,$F$29:$F$41) -> 1 | J54: =INDEX($G$29:$O$41,I54,H54) -> 0.9091560597
F55: =NORMDIST(G55,$G$47,$G$48,0)*10 -> 0.000115244616 | G55: =G54+10 -> 20 | H55: =H54 -> 9 | I55: =MATCH(G55,$F$29:$F$41) -> 2 | J55: =INDEX($G$29:$O$41,I55,H55) -> 0.8183121193
F56: 0.0008568216646 | G56: =G55+10 -> 30 | H56: =H55 -> 9 | I56: 3 | J56: 0.727468179
F57: 0.004678630269 | G57: 40 | H57: 9 | I57: 4 | J57: 0.6366242386
F58: 0.01876313946 | G58: 50 | H58: 9 | I58: 5 | J58: 0.5457802983
F59: 0.05526507711 | G59: 60 | H59: 9 | I59: 6 | J59: 0.4549363579
F60: 0.1195513672 | G60: 70 | H60: 9 | I60: 7 | J60: 0.3640924176
F61: 0.1899401634 | G61: 80 | H61: 9 | I61: 8 | J61: 0.2732484773
F62: 0.2216346002 | G62: 90 | H62: 9 | I62: 9 | J62: 0.1824045369
F63: 0.1899401634 | G63: 100 | H63: 9 | I63: 10 | J63: 0.09459504152
F64: 0.1195513672 | G64: 110 | H64: 9 | I64: 11 | J64: 0.03757141212
F65: 0.05526507711 | G65: 120 | H65: 9 | I65: 12 | J65: 0.008035041113
F66: 0.01876313946 | G66: 130 | H66: 9 | I66: 13 | J66: 0
F67: 0.004678630269 | G67: 140 | H67: 9 | I67: 13 | J67: 0
F68: 0.0008568216646 | G68: 150 | H68: 9 | I68: 13 | J68: 0
F69: 0.000115244616 | G69: 160 | H69: 9 | I69: 13 | J69: 0
F70: 1.138437897e-05 | G70: 170 | H70: 9 | I70: 13 | J70: 0
F71: 8.25955286e-07 | G71: 180 | H71: 9 | I71: 13 | J71: 0
F72: 4.401109994e-08 | G72: 190 | H72: 9 | I72: 13 | J72: 0
F73: 1.722369799e-09 | G73: 200 | H73: 9 | I73: 13 | J73: 0
F74: 4.950500104e-11 | G74: 210 | H74: 9 | I74: 13 | J74: 0
F75: 1.045033565e-12 | G75: 220 | H75: 9 | I75: 13 | J75: 0
F76: 1.620204739e-14 | G76: 230 | H76: 9 | I76: 13 | J76: 0
F77: 1.844879692e-16 | G77: 240 | H77: 9 | I77: 13 | J77: 0
F78: 1.542853519e-18 | G78: 250 | H78: 9 | I78: 13 | J78: 0
F79: 9.476322534e-21 | G79: 260 | H79: 9 | I79: 13 | J79: 0
F80: 4.274777015e-23 | G80: 270 | H80: 9 | I80: 13 | J80: 0
F81: 1.416268482e-25 | G81: 280 | H81: 9 | I81: 13 | J81: 0
F82: 3.446166122e-28 | G82: 290 | H82: 9 | I82: 13 | J82: 0
F83: 6.158647114e-31 | G83: 300 | H83: 9 | I83: 13 | J83: 0
F84: 8.083378683e-34 | G84: 310 | H84: 9 | I84: 13 | J84: 0
F86: =SUM(F54:F85) -> 0.9999991283
A90: Proof that Risk Neutral Result Works

Sheet 2.06 - WACC and Market Value (hidden)
A1: Calculating WACC using the Cost of Debt & Equity
C5: EBITDA | D5: 150
C6: Investment | D6: 1000
C8: Debt | D8: 800
C9: Interest Rate | D9: 0.05
C10: Equity | D10: =D6-D8 -> 200
C11: Cost of Equity | D11: ='2.03 - Beta levering w Tax'!P9 -> 0.08274545455
E14: 0 | F14: 1 | G14: 2 | H14: 3 | I14: 4 | J14: 5 | K14: 6 | L14: 7 | M14: 8 | N14: 9 | O14: 10
C15: CAPEX | E15: =-D6 -> -1000
C16: EBITDA | F16: =D5 -> 150 | G16: =F16 -> 150 | H16: 150 | I16: 150 | J16: 150 | K16: 150 | L16: 150 | M16: 150 | N16: 150 | O16: 150
C17: FCFF | E17: =SUM(E15:E16) -> -1000 | F17: 150 | G17: 150 | H17: 150 | I17: 150 | J17: 150 | K17: 150 | L17: 150 | M17: 150 | N17: 150 | O17: 150
C19: Project IRR (unlevered) | E19: =IRR(17:17) -> 0.08144165645
C20: assuming no debt
C22: Debt Balance (10 years) | E22: =D8 -> 800 | F22: =E22-($D$8/10) -> 720 | G22: =F22-($D$8/10) -> 640 | H22: 560 | I22: 480 | J22: 400 | K22: 320 | L22: 240 | M22: 160 | N22: 80 | O22: 0
C23: Interest | F23: =E22*$D$9 -> 40 | G23: 36 | H23: 32 | I23: 28 | J23: 24 | K23: 20 | L23: 16 | M23: 12 | N23: 8 | O23: 4
C25: Debt Repayment | F25: =E22-F22 -> 80 | G25: 80 | H25: 80 | I25: 80 | J25: 80 | K25: 80 | L25: 80 | M25: 80 | N25: 80 | O25: 80
C26: Debt Service | F26: =SUM(F23:F25) -> 120 | G26: 116 | H26: 112 | I26: 108 | J26: 104 | K26: 100 | L26: 96 | M26: 92 | N26: 88 | O26: 84
C28: FCFE | E28: =E17+E22 -> -200 | F28: =F17-F26 -> 30 | G28: 34 | H28: 38 | I28: 42 | J28: 46 | K28: 50 | L28: 54 | M28: 58 | N28: 62 | O28: 66
C29: IRR (Equity) | E29: =IFERROR(IRR(28:28),FALSE) -> 0.1705003284
C30: Value of Equity | E30: =NPV(D11,F28:O28) -> 300.9275438
C32: Debt Cash Flow | E32: =-E22 -> -800 | F32: =F26 -> 120 | G32: 116 | H32: 112 | I32: 108 | J32: 104 | K32: 100 | L32: 96 | M32: 92 | N32: 88 | O32: 84
C33: IRR (Debt) | E33: =IRR(32:32) -> 0.05
C34: Value of Equity | E34: =NPV(D9,F32:O32) -> 800
C36: Enterprise Value | E36: =SUM(E30,E34) -> 1100.927544
C38: WACC
E40: Equity IRR Table
G42: EBITDA
F43: =E29 -> 0.1705003284 | G43: 60 | H43: =G43+40 -> 100 | I43: =H43+40 -> 140 | J43: 180 | K43: 220 | L43: 260 | M43: 300 | N43: 340 | O43: 380 | P43: 420 | Q43: 460
E44: Debt | F44: 0 | G44: -0.08351480033 | H44: 2.920330644e-12 | I44: 0.06637325949 | J44: 0.1241482928 | K44: 0.1768137743 | L44: 0.2261522985 | M44: 0.2731984241 | N44: 0.3186038565 | O44: 0.3628029956 | P44: 0.406097428 | Q44: 0.4487029687
F45: 100 | G45: -0.1014677254 | H45: -0.005555555556 | I45: 0.06803860189 | J45: 0.131345596 | K45: 0.1888136426 | L45: 0.2426007306 | M45: 0.2939174531 | N45: 0.3435070974 | O45: 0.3918545698 | P45: 0.4392900361 | Q45: 0.4860454249 | R45: Therefore, higher risk when higher debt
F46: 200 | G46: -0.1254675453 | H46: -0.0125 | I46: 0.07008251153 | J46: 0.1401292004 | K46: 0.2034443373 | L46: 0.2626760995 | M46: 0.319252882 | N46: 0.3740259605 | O46: 0.4275367143 | P46: 0.4801451448 | Q46: 0.5320983778
F47: 300 | G47: -0.1596941974 | H47: -0.02142857143 | I47: 0.07265131193 | J47: 0.1511043684 | K47: 0.221722103 | L47: 0.2878053919 | M47: 0.3510542053 | N47: 0.4124462224 | O47: 0.4725839701 | P47: 0.5318562291 | Q47: 0.5905219763
F48: 400 | G48: -0.2144940876 | H48: -0.03333333333 | I48: 0.07597840354 | J48: 0.1652392615 | K48: 0.2452889456 | L48: 0.3203165878 | M48: 0.392361902 | N48: 0.4625468751 | O48: 0.5315351407 | P48: 0.5997377701 | Q48: 0.6674173645
F49: 500 | G49: FALSE | H49: -0.05 | I49: 0.0804609515 | J49: 0.1841946209 | K49: 0.2770029614 | L49: 0.3643122251 | M49: 0.4485826696 | N49: 0.5310889987 | O49: 0.6125422507 | P49: 0.6933568786 | Q49: 0.7737812352
C53: Balance Sheet (Right Side - Capital Structure)
E55: Book Value | F55: Market Value
D56: Debt | E56: =D8 -> 800 | F56: =E34 -> 800 | G56: =F56/SUM($F$56:$F$57) -> 0.7266599918
D57: Equity | E57: =D10 -> 200 | F57: =E30 -> 300.9275438 | G57: =F57/SUM($F$56:$F$57) -> 0.2733400082
B60: See, no title –> | F60: 2014 | G60: 2015 | H60: 2016 | I60: 2017 | J60: 2018 | K60: 2019 | L60: 2020 | M60: 2021 | N60: 2022 | O60: 2023
C61: FCFF | D61: =NPV(H88,F61:O61) -> 1109.522565 | F61: =F17 -> 150 | G61: 150 | H61: 150 | I61: 150 | J61: 150 | K61: 150 | L61: 150 | M61: 150 | N61: 150 | O61: 150
C62: FCFd | D62: =NPV(G86,F62:O62) -> 800 | F62: =F32 -> 120 | G62: 116 | H62: 112 | I62: 108 | J62: 104 | K62: 100 | L62: 96 | M62: 92 | N62: 88 | O62: 84
C63: FCFe | D63: =NPV(G87,F63:O63) -> 300.9275438 | F63: =F28 -> 30 | G63: 34 | H63: 38 | I63: 42 | J63: 46 | K63: 50 | L63: 54 | M63: 58 | N63: 62 | O63: 66
C65: Value of Debt | E65: =D9 -> 0.05 | F65: =NPV($E65,F62:O62) -> 800 | G65: =NPV($E65,G62:P62) -> 720 | H65: 640 | I65: 560 | J65: 480 | K65: 400 | L65: 320 | M65: 240 | N65: 160 | O65: 80
C66: Value of Equty | E66: =D11 -> 0.08274545455 | F66: =NPV($E66,F63:O63) -> 300.9275438 | G66: 295.8279302 | H66: 286.3063467 | I66: 271.9968955 | J66: 252.5034023 | K66: 227.3969111 | L66: 196.2129719 | M66: 158.4487034 | N66: 113.5596134 | O66: 60.95615523
C67: Total
C69: WACC | F69: =F65/SUM(F65:F66)*$E$65+F66/SUM(F65:F66)*$E$66 -> 0.05895064281 | G69: =G65/SUM(G65:G66)*$E$65+G66/SUM(G65:G66)*$E$66 -> 0.05953608358 | H69: 0.06012109168 | I69: 0.06070516252 | J69: 0.06128778195 | K69: 0.06186842824 | L69: 0.062446574 | M69: 0.06302168829 | N69: 0.06359323883 | O69: 0.0641606942
C71: Discount Factor | E71: 1 | F71: =E71*(1+F69) -> 1.058950643 | G71: =F71*(1+G69) -> 1.121996417 | H71: 1.189452066 | I71: 1.261657947 | J71: 1.338982164 | K71: 1.421822886 | L71: 1.510610854 | M71: 1.605812101 | N71: 1.707930893 | O71: 1.817512925
C73: PV of FCFF | F73: =SUMPRODUCT(F61:$O61/F71:$O71) -> 1100.927544
C78: Check of Value
C80: % Debt | F80: =F65/SUM(F65:F66) -> 0.7266599918 | G80: =G65/SUM(G65:G66) -> 0.7087814566 | H80: 0.690916134 | I80: 0.6730794346 | J80: 0.6552870587 | K80: 0.63755494 | L80: 0.6198991839 | M80: 0.6023360045 | N80: 0.5848816571 | O80: 0.5675523702
C81: % Equity | F81: =1-F80 -> 0.2733400082 | G81: =1-G80 -> 0.2912185434 | H81: 0.309083866 | I81: 0.3269205654 | J81: 0.3447129413 | K81: 0.36244506 | L81: 0.3801008161 | M81: 0.3976639955 | N81: 0.4151183429 | O81: 0.4324476298
C83: Trick –> | D83: =AND(F83:O83) -> TRUE | F83: =SUM(F80:F81)=1 -> TRUE | G83: =SUM(G80:G81)=1 -> TRUE | H83: TRUE | I83: TRUE | J83: TRUE | K83: TRUE | L83: TRUE | M83: TRUE | N83: TRUE | O83: TRUE
F85: % | G85: Cost (pre-tax) | H85: WACC
E86: Debt | F86: =G56 -> 0.7266599918 | G86: =D9 -> 0.05 | H86: =F86*G86 -> 0.03633299959
E87: Equity | F87: =G57 -> 0.2733400082 | G87: =D11 -> 0.08274545455 | H87: =F87*G87 -> 0.02261764322
H88: =SUM(H86:H87) -> 0.05895064281
D90: Note for presentation: | E90: WACC based on PV of Debt CF and Equity CF

Sheet 2.07 - Alternatives to CAPM (hidden)
A1: Cost of Equity computed for DE from the PE ratio

Sheet 3.00 - Multiples (hidden)
B2: Multiples in company valuations
B3: EV/EBITDA
B4: How multiples relate to Cost of Capital and drive value
B5: Gain an understanding of why a multiple is higher than another (e.g. high PE Ratio and relation to high growth, etc.)
C6: Therefore, which company to accept
C7: …and how to adjust those multiple to "match" the target under consideration
B10: EB to DS recommendations / ideas:

Sheet 3.01 - Football Field (hidden)
M1: Step 4: Remove Fill from Spaces; Double Click on Labels
D2: Value | G2: Step 1: Make Increment and label space
D3: Low | E3: High | G3: Low | I3: High
C4: Trading Comparables | D4: 100 | E4: 150 | F4: =C4 -> Trading Comparables | G4: 100 | H4: =$G$4/3 -> 33.33333333 | I4: =E4-D4 -> 50 | J4: =H4 -> 33.33333333
C5: Precedent Transactions | D5: 150 | E5: 200 | F5: Precedent Transactions | G5: 150 | H5: =$G$4/3 -> 33.33333333 | I5: =E5-D5 -> 50 | J5: =H5 -> 33.33333333
C6: DCF | D6: 125 | E6: 175 | F6: DCF | G6: 125 | H6: =$G$4/3 -> 33.33333333 | I6: =E6-D6 -> 50 | J6: =H6 -> 33.33333333
C7: LBO | D7: 175 | E7: 225 | F7: LBO | G7: 175 | H7: =$G$4/3 -> 33.33333333 | I7: =E7-D7 -> 50 | J7: =H7 -> 33.33333333
C8: Premium(s) - Other Tx | D8: 60 | E8: 110 | F8: Premium(s) - Other Tx | G8: 60 | H8: =$G$4/3 -> 33.33333333 | I8: =E8-D8 -> 50 | J8: =H8 -> 33.33333333
B18: Step2: Make chart with Alt F1; Change to Bars
B36: Step 3: Remove Fill and add labels
D56: Low | E56: High | G56: Low | H56: S1 | I56: High | J56: S2 | K56: High | L56: Low
C57: Trading Comparables | D57: 100 | E57: 150 | F57: =C57 -> Trading Comparables | G57: 100 | H57: =$G$4/3 -> 33.33333333 | I57: =E57-D57 -> 50 | J57: =H57 -> 33.33333333 | K57: 150 | L57: 120
C58: Precedent Transactions | D58: 150 | E58: 200 | F58: Precedent Transactions | G58: 150 | H58: =$G$4/3 -> 33.33333333 | I58: =E58-D58 -> 50 | J58: =H58 -> 33.33333333 | K58: =K57 -> 150 | L58: 120
C59: DCF | D59: 125 | E59: 175 | F59: DCF | G59: 125 | H59: =$G$4/3 -> 33.33333333 | I59: =E59-D59 -> 50 | J59: =H59 -> 33.33333333 | K59: 150 | L59: 120
C60: LBO | D60: 175 | E60: 225 | F60: LBO | G60: 175 | H60: =$G$4/3 -> 33.33333333 | I60: =E60-D60 -> 50 | J60: =H60 -> 33.33333333 | K60: 150 | L60: 120
C61: Premium(s) - Other Tx | D61: 60 | E61: 110 | F61: Premium(s) - Other Tx | G61: 60 | H61: =$G$4/3 -> 33.33333333 | I61: =E61-D61 -> 50 | J61: =H61 -> 33.33333333 | K61: 150 | L61: 120

Sheet 3.02 - EV-EBITDA-PE Recon (hidden)
A1: Differences between PE ration and EV/EBITDA ratio
E4: Factors that impact the EV/EBITDA vs P/E comparison!
D5: Tax Rate | E5: 0 | I5: FCFF | J5: FCFE
D6: Depreciation Rate | E6: 0 | H6: Discounting | I6: WACC | J6: CoE
D7: Net Debt | E7: 0 | H7: Rate of Return | I7: RoIC | J7: RoE
H8: Valuation | I8: EV/EVITDA | J8: P/E
D9: Market Cap | E9: 1000 | H9: IRR | I9: Unlevered | J9: Equity IRR
D10: EV | E10: =SUM(E7:E9) -> 1000
D12: EBITDA | E12: 100
D13: Less: D&A | E13: 0
D14: EBIT | E14: =E12-E13 -> 100
D15: Less: Interest | E15: 0
D16: EBT | E16: =E14-E15 -> 100
D17: Less: Taxes | E17: 0
D18: Earnings | E18: =E16-E17 -> 100
D20: P/E Ration | E20: 10
D21: EV/EBITDA | E21: =E10/E12 -> 10

Sheet 3.03 - EV-EBITDA (hidden)
F4: Working Capital to EBITDA | G4: 0.3 | H4: 0.3
A5: Assumptions
C6: 5
C7: 0
C8: 1000
A10: Assumptions | D10: Long-term
B11: ROIC (Real) | C11: 0.1 | D11: 0.08
B12: WACC (Real) | C12: 0.07 | D12: 0.06 | G12: EV = NPV FCF | H12: =NPV(C17,39:39) -> 2491.298454 | I12: =show_formulaR(H12) -> < ---- =NPV(C17,39:39)
B13: Growth Rate (Real) | C13: 0.05 | D13: 0.01 | G13: EBITDA | H13: =F37 -> 304.7857956
B14: Inflation | C14: 0.02 | D14: 0.025
B15: Growth Rate Nominal | C15: =(1+C13)*(1+C14)-1 -> 0.071 | D15: =(1+D13)*(1+D14)-1 -> 0.03525 | E15: =show_formulaR(C15) -> < ---- =(1+C13)*(1+C14)-1 | G15: EV/EBITDA | H15: =H12/H13 -> 8.173932284
B16: ROIC Nominal | C16: =(1+C11)*(1+C14)-1 -> 0.122 | D16: =(1+D11)*(1+D14)-1 -> 0.107 | E16: =show_formulaR(C16) -> < ---- =(1+C11)*(1+C14)-1
B17: WACC Nominal | C17: =(1+C12)*(1+C14)-1 -> 0.0914 | E17: =show_formulaR(C17) -> < ---- =(1+C12)*(1+C14)-1 | G17: Function | H17: =EV_EBITDA_Simple(C16,C17,C15,C19,C18) -> 8.173932284 | I17: =show_formulaR(H17) -> < ---- =EV_EBITDA_Simple(C16,C17,C15,C19,C18)
B18: Tax rate | C18: 0.38 | D18: =C18 -> 0.38
B19: Deprectiation life (yrs) | C19: 15 | D19: =C19 -> 15
B20: Net Plant Depreciation Rate | C20: =net_depreciation_rate(C19,C15) -> 0.108011602 | D20: =net_depreciation_rate(D19,D13) -> 0.1221647057 | E20: =show_formulaR(C20) -> < ---- =net_depreciation_rate(C19,C15)
B21: Capital Expenditure to Depreciation | C21: =cap_exp_depreciation_simple(C19,C15,1) -> 1.657336792 | D21: =cap_exp_depreciation_simple(D19,D13,1) -> 1.081856703 | E21: =show_formulaR(C21) -> < ---- =cap_exp_depreciation_simple(C19,C15,1)
E23: 0 | F23: =E23+1 -> 1 | G23: =F23+1 -> 2 | H23: 3 | I23: 4 | J23: 5 | K23: 6 | L23: 7 | M23: 8 | N23: 9 | O23: 10 | P23: 11 | Q23: 12 | R23: 13 | S23: 14 | T23: 15 | U23: 16 | V23: 17 | W23: 18 | X23: 19 | Y23: 20 | Z23: 21 | AA23: 22 | AB23: 23 | AC23: 24 | AD23: 25 | AE23: 26 | AF23: 27 | AG23: 28 | AH23: 29 | AI23: 30 | AJ23: 31 | AK23: 32 | AL23: 33 | AM23: 34 | AN23: 35 | AO23: 36 | AP23: 37 | AQ23: 38 | AR23: 39 | AS23: 40 | AT23: 41 | AU23: 42 | AV23: 43 | AW23: 44 | AX23: 45 | AY23: 46 | AZ23: 47 | BA23: 48 | BB23: 49 | BC23: 50 | BD23: 51 | BE23: 52 | BF23: 53 | BG23: 54 | BH23: 55 | BI23: 56 | BJ23: 57 | BK23: 58 | BL23: 59 | BM23: 60 | BN23: 61 | BO23: 62 | BP23: 63 | BQ23: 64 | BR23: 65 | BS23: =BR23+1 -> 66 | BT23: 67 | BU23: 68 | BV23: 69 | BW23: 70 | BX23: 71 | BY23: 72 | BZ23: 73 | CA23: 74 | CB23: 75 | CC23: 76 | CD23: 77 | CE23: 78 | CF23: 79 | CG23: 80 | CH23: 81 | CI23: 82 | CJ23: 83 | CK23: 84 | CL23: 85 | CM23: 86 | CN23: 87 | CO23: 88 | CP23: 89 | CQ23: 90 | CR23: 91 | CS23: 92 | CT23: 93 | CU23: 94 | CV23: 95 | CW23: 96 | CX23: 97 | CY23: 98 | CZ23: 99 | DA23: 100 | DB23: 101 | DC23: 102 | DD23: 103 | DE23: 104 | DF23: 105 | DG23: 106 | DH23: 107 | DI23: 108 | DJ23: 109 | DK23: 110 | DL23: 111 | DM23: 112 | DN23: 113 | DO23: 114 | DP23: 115 | DQ23: 116 | DR23: 117 | DS23: 118 | DT23: 119 | DU23: 120 | DV23: 121 | DW23: 122 | DX23: 123 | DY23: 124 | DZ23: 125 | EA23: 126 | EB23: 127 | EC23: 128 | ED23: 129 | EE23: =ED23+1 -> 130 | EF23: 131 | EG23: 132 | EH23: 133 | EI23: 134 | EJ23: 135 | EK23: 136 | EL23: 137 | EM23: 138 | EN23: 139 | EO23: 140 | EP23: 141 | EQ23: 142 | ER23: 143 | ES23: 144 | ET23: 145 | EU23: 146 | EV23: 147 | EW23: 148 | EX23: 149 | EY23: 150 | EZ23: 151 | FA23: 152 | FB23: 153 | FC23: 154 | FD23: 155 | FE23: 156 | FF23: 157 | FG23: 158 | FH23: 159 | FI23: 160 | FJ23: 161 | FK23: 162 | FL23: 163 | FM23: 164 | FN23: 165 | FO23: 166 | FP23: 167 | FQ23: 168 | FR23: 169 | FS23: 170 | FT23: 171 | FU23: 172 | FV23: 173 | FW23: 174 | FX23: 175 | FY23: 176 | FZ23: 177 | GA23: 178 | GB23: 179 | GC23: 180 | GD23: 181 | GE23: 182 | GF23: 183 | GG23: 184 | GH23: 185 | GI23: 186 | GJ23: 187 | GK23: 188 | GL23: 189 | GM23: 190 | GN23: 191 | GO23: 192 | GP23: 193 | GQ23: =GP23+1 -> 194 | GR23: 195 | GS23: 196 | GT23: 197 | GU23: 198 | GV23: 199 | GW23: 200 | GX23: 201 | GY23: 202 | GZ23: 203 | HA23: 204 | HB23: 205 | HC23: 206 | HD23: 207 | HE23: 208 | HF23: 209 | HG23: 210 | HH23: 211 | HI23: 212 | HJ23: 213 | HK23: 214 | HL23: 215 | HM23: 216 | HN23: 217 | HO23: 218 | HP23: 219 | HQ23: 220 | HR23: 221 | HS23: 222 | HT23: 223 | HU23: 224 | HV23: 225 | HW23: 226 | HX23: 227 | HY23: 228 | HZ23: 229 | IA23: 230 | IB23: 231 | IC23: 232 | ID23: 233 | IE23: 234 | IF23: 235 | IG23: 236 | IH23: 237 | II23: 238 | IJ23: 239 | IK23: 240 | IL23: 241 | IM23: 242 | IN23: 243 | IO23: 244 | IP23: 245 | IQ23: 246 | IR23: 247 | IS23: 248 | IT23: 249 | IU23: 250 | IV23: 251 | IW23: 252 | IX23: 253 | IY23: 254 | IZ23: 255 | JA23: 256 | JB23: 257 | JC23: =JB23+1 -> 258 | JD23: 259 | JE23: 260 | JF23: 261 | JG23: 262 | JH23: 263 | JI23: 264 | JJ23: 265 | JK23: 266 | JL23: 267 | JM23: 268 | JN23: 269 | JO23: 270 | JP23: 271 | JQ23: 272 | JR23: 273 | JS23: 274 | JT23: 275 | JU23: 276 | JV23: 277 | JW23: 278 | JX23: 279 | JY23: 280 | JZ23: 281 | KA23: 282 | KB23: 283 | KC23: 284 | KD23: 285 | KE23: 286 | KF23: 287 | KG23: 288 | KH23: 289 | KI23: 290 | KJ23: 291 | KK23: 292 | KL23: 293 | KM23: 294 | KN23: 295 | KO23: 296 | KP23: 297 | KQ23: 298 | KR23: 299 | KS23: 300
B24: Short-term Period | E24: =COUNTIF(F24:KS24,TRUE) -> 5 | F24: =F23<=$C$6 -> TRUE | G24: TRUE | H24: TRUE | I24: TRUE | J24: TRUE | K24: FALSE | L24: FALSE | M24: FALSE | N24: FALSE | O24: FALSE | P24: FALSE | Q24: FALSE | R24: FALSE | S24: FALSE | T24: FALSE | U24: FALSE | V24: FALSE | W24: FALSE | X24: FALSE | Y24: FALSE | Z24: FALSE | AA24: FALSE | AB24: FALSE | AC24: FALSE | AD24: FALSE | AE24: FALSE | AF24: FALSE | AG24: FALSE | AH24: FALSE | AI24: FALSE | AJ24: FALSE | AK24: FALSE | AL24: FALSE | AM24: FALSE | AN24: FALSE | AO24: FALSE | AP24: FALSE | AQ24: FALSE | AR24: FALSE | AS24: FALSE | AT24: FALSE | AU24: FALSE | AV24: FALSE | AW24: FALSE | AX24: FALSE | AY24: FALSE | AZ24: FALSE | BA24: FALSE | BB24: FALSE | BC24: FALSE | BD24: FALSE | BE24: FALSE | BF24: FALSE | BG24: FALSE | BH24: FALSE | BI24: FALSE | BJ24: FALSE | BK24: FALSE | BL24: FALSE | BM24: FALSE | BN24: FALSE | BO24: FALSE | BP24: FALSE | BQ24: FALSE | BR24: =BR23<=$C$6 -> FALSE | BS24: FALSE | BT24: FALSE | BU24: FALSE | BV24: FALSE | BW24: FALSE | BX24: FALSE | BY24: FALSE | BZ24: FALSE | CA24: FALSE | CB24: FALSE | CC24: FALSE | CD24: FALSE | CE24: FALSE | CF24: FALSE | CG24: FALSE | CH24: FALSE | CI24: FALSE | CJ24: FALSE | CK24: FALSE | CL24: FALSE | CM24: FALSE | CN24: FALSE | CO24: FALSE | CP24: FALSE | CQ24: FALSE | CR24: FALSE | CS24: FALSE | CT24: FALSE | CU24: FALSE | CV24: FALSE | CW24: FALSE | CX24: FALSE | CY24: FALSE | CZ24: FALSE | DA24: FALSE | DB24: FALSE | DC24: FALSE | DD24: FALSE | DE24: FALSE | DF24: FALSE | DG24: FALSE | DH24: FALSE | DI24: FALSE | DJ24: FALSE | DK24: FALSE | DL24: FALSE | DM24: FALSE | DN24: FALSE | DO24: FALSE | DP24: FALSE | DQ24: FALSE | DR24: FALSE | DS24: FALSE | DT24: FALSE | DU24: FALSE | DV24: FALSE | DW24: FALSE | DX24: FALSE | DY24: FALSE | DZ24: FALSE | EA24: FALSE | EB24: FALSE | EC24: FALSE | ED24: =ED23<=$C$6 -> FALSE | EE24: FALSE | EF24: FALSE | EG24: FALSE | EH24: FALSE | EI24: FALSE | EJ24: FALSE | EK24: FALSE | EL24: FALSE | EM24: FALSE | EN24: FALSE | EO24: FALSE | EP24: FALSE | EQ24: FALSE | ER24: FALSE | ES24: FALSE | ET24: FALSE | EU24: FALSE | EV24: FALSE | EW24: FALSE | EX24: FALSE | EY24: FALSE | EZ24: FALSE | FA24: FALSE | FB24: FALSE | FC24: FALSE | FD24: FALSE | FE24: FALSE | FF24: FALSE | FG24: FALSE | FH24: FALSE | FI24: FALSE | FJ24: FALSE | FK24: FALSE | FL24: FALSE | FM24: FALSE | FN24: FALSE | FO24: FALSE | FP24: FALSE | FQ24: FALSE | FR24: FALSE | FS24: FALSE | FT24: FALSE | FU24: FALSE | FV24: FALSE | FW24: FALSE | FX24: FALSE | FY24: FALSE | FZ24: FALSE | GA24: FALSE | GB24: FALSE | GC24: FALSE | GD24: FALSE | GE24: FALSE | GF24: FALSE | GG24: FALSE | GH24: FALSE | GI24: FALSE | GJ24: FALSE | GK24: FALSE | GL24: FALSE | GM24: FALSE | GN24: FALSE | GO24: FALSE | GP24: =GP23<=$C$6 -> FALSE | GQ24: FALSE | GR24: FALSE | GS24: FALSE | GT24: FALSE | GU24: FALSE | GV24: FALSE | GW24: FALSE | GX24: FALSE | GY24: FALSE | GZ24: FALSE | HA24: FALSE | HB24: FALSE | HC24: FALSE | HD24: FALSE | HE24: FALSE | HF24: FALSE | HG24: FALSE | HH24: FALSE | HI24: FALSE | HJ24: FALSE | HK24: FALSE | HL24: FALSE | HM24: FALSE | HN24: FALSE | HO24: FALSE | HP24: FALSE | HQ24: FALSE | HR24: FALSE | HS24: FALSE | HT24: FALSE | HU24: FALSE | HV24: FALSE | HW24: FALSE | HX24: FALSE | HY24: FALSE | HZ24: FALSE | IA24: FALSE | IB24: FALSE | IC24: FALSE | ID24: FALSE | IE24: FALSE | IF24: FALSE | IG24: FALSE | IH24: FALSE | II24: FALSE | IJ24: FALSE | IK24: FALSE | IL24: FALSE | IM24: FALSE | IN24: FALSE | IO24: FALSE | IP24: FALSE | IQ24: FALSE | IR24: FALSE | IS24: FALSE | IT24: FALSE | IU24: FALSE | IV24: FALSE | IW24: FALSE | IX24: FALSE | IY24: FALSE | IZ24: FALSE | JA24: FALSE | JB24: =JB23<=$C$6 -> FALSE | JC24: FALSE | JD24: FALSE | JE24: FALSE | JF24: FALSE | JG24: FALSE | JH24: FALSE | JI24: FALSE | JJ24: FALSE | JK24: FALSE | JL24: FALSE | JM24: FALSE | JN24: FALSE | JO24: FALSE | JP24: FALSE | JQ24: FALSE | JR24: FALSE | JS24: FALSE | JT24: FALSE | JU24: FALSE | JV24: FALSE | JW24: FALSE | JX24: FALSE | JY24: FALSE | JZ24: FALSE | KA24: FALSE | KB24: FALSE | KC24: FALSE | KD24: FALSE | KE24: FALSE | KF24: FALSE | KG24: FALSE | KH24: FALSE | KI24: FALSE | KJ24: FALSE | KK24: FALSE | KL24: FALSE | KM24: FALSE | KN24: FALSE | KO24: FALSE | KP24: FALSE | KQ24: FALSE | KR24: FALSE | KS24: FALSE
B25: Long-term Period | E25: =COUNTIF(F25:KS25,TRUE) -> 295 | F25: =F23>$C$7+$C$6 -> FALSE | G25: FALSE | H25: FALSE | I25: FALSE | J25: FALSE | K25: TRUE | L25: TRUE | M25: TRUE | N25: TRUE | O25: TRUE | P25: TRUE | Q25: TRUE | R25: TRUE | S25: TRUE | T25: TRUE | U25: TRUE | V25: TRUE | W25: TRUE | X25: TRUE | Y25: TRUE | Z25: TRUE | AA25: TRUE | AB25: TRUE | AC25: TRUE | AD25: TRUE | AE25: TRUE | AF25: TRUE | AG25: TRUE | AH25: TRUE | AI25: TRUE | AJ25: TRUE | AK25: TRUE | AL25: TRUE | AM25: TRUE | AN25: TRUE | AO25: TRUE | AP25: TRUE | AQ25: TRUE | AR25: TRUE | AS25: TRUE | AT25: TRUE | AU25: TRUE | AV25: TRUE | AW25: TRUE | AX25: TRUE | AY25: TRUE | AZ25: TRUE | BA25: TRUE | BB25: TRUE | BC25: TRUE | BD25: TRUE | BE25: TRUE | BF25: TRUE | BG25: TRUE | BH25: TRUE | BI25: TRUE | BJ25: TRUE | BK25: TRUE | BL25: TRUE | BM25: TRUE | BN25: TRUE | BO25: TRUE | BP25: TRUE | BQ25: TRUE | BR25: =BR23>$C$7+$C$6 -> TRUE | BS25: TRUE | BT25: TRUE | BU25: TRUE | BV25: TRUE | BW25: TRUE | BX25: TRUE | BY25: TRUE | BZ25: TRUE | CA25: TRUE | CB25: TRUE | CC25: TRUE | CD25: TRUE | CE25: TRUE | CF25: TRUE | CG25: TRUE | CH25: TRUE | CI25: TRUE | CJ25: TRUE | CK25: TRUE | CL25: TRUE | CM25: TRUE | CN25: TRUE | CO25: TRUE | CP25: TRUE | CQ25: TRUE | CR25: TRUE | CS25: TRUE | CT25: TRUE | CU25: TRUE | CV25: TRUE | CW25: TRUE | CX25: TRUE | CY25: TRUE | CZ25: TRUE | DA25: TRUE | DB25: TRUE | DC25: TRUE | DD25: TRUE | DE25: TRUE | DF25: TRUE | DG25: TRUE | DH25: TRUE | DI25: TRUE | DJ25: TRUE | DK25: TRUE | DL25: TRUE | DM25: TRUE | DN25: TRUE | DO25: TRUE | DP25: TRUE | DQ25: TRUE | DR25: TRUE | DS25: TRUE | DT25: TRUE | DU25: TRUE | DV25: TRUE | DW25: TRUE | DX25: TRUE | DY25: TRUE | DZ25: TRUE | EA25: TRUE | EB25: TRUE | EC25: TRUE | ED25: =ED23>$C$7+$C$6 -> TRUE | EE25: TRUE | EF25: TRUE | EG25: TRUE | EH25: TRUE | EI25: TRUE | EJ25: TRUE | EK25: TRUE | EL25: TRUE | EM25: TRUE | EN25: TRUE | EO25: TRUE | EP25: TRUE | EQ25: TRUE | ER25: TRUE | ES25: TRUE | ET25: TRUE | EU25: TRUE | EV25: TRUE | EW25: TRUE | EX25: TRUE | EY25: TRUE | EZ25: TRUE | FA25: TRUE | FB25: TRUE | FC25: TRUE | FD25: TRUE | FE25: TRUE | FF25: TRUE | FG25: TRUE | FH25: TRUE | FI25: TRUE | FJ25: TRUE | FK25: TRUE | FL25: TRUE | FM25: TRUE | FN25: TRUE | FO25: TRUE | FP25: TRUE | FQ25: TRUE | FR25: TRUE | FS25: TRUE | FT25: TRUE | FU25: TRUE | FV25: TRUE | FW25: TRUE | FX25: TRUE | FY25: TRUE | FZ25: TRUE | GA25: TRUE | GB25: TRUE | GC25: TRUE | GD25: TRUE | GE25: TRUE | GF25: TRUE | GG25: TRUE | GH25: TRUE | GI25: TRUE | GJ25: TRUE | GK25: TRUE | GL25: TRUE | GM25: TRUE | GN25: TRUE | GO25: TRUE | GP25: =GP23>$C$7+$C$6 -> TRUE | GQ25: TRUE | GR25: TRUE | GS25: TRUE | GT25: TRUE | GU25: TRUE | GV25: TRUE | GW25: TRUE | GX25: TRUE | GY25: TRUE | GZ25: TRUE | HA25: TRUE | HB25: TRUE | HC25: TRUE | HD25: TRUE | HE25: TRUE | HF25: TRUE | HG25: TRUE | HH25: TRUE | HI25: TRUE | HJ25: TRUE | HK25: TRUE | HL25: TRUE | HM25: TRUE | HN25: TRUE | HO25: TRUE | HP25: TRUE | HQ25: TRUE | HR25: TRUE | HS25: TRUE | HT25: TRUE | HU25: TRUE | HV25: TRUE | HW25: TRUE | HX25: TRUE | HY25: TRUE | HZ25: TRUE | IA25: TRUE | IB25: TRUE | IC25: TRUE | ID25: TRUE | IE25: TRUE | IF25: TRUE | IG25: TRUE | IH25: TRUE | II25: TRUE | IJ25: TRUE | IK25: TRUE | IL25: TRUE | IM25: TRUE | IN25: TRUE | IO25: TRUE | IP25: TRUE | IQ25: TRUE | IR25: TRUE | IS25: TRUE | IT25: TRUE | IU25: TRUE | IV25: TRUE | IW25: TRUE | IX25: TRUE | IY25: TRUE | IZ25: TRUE | JA25: TRUE | JB25: =JB23>$C$7+$C$6 -> TRUE | JC25: TRUE | JD25: TRUE | JE25: TRUE | JF25: TRUE | JG25: TRUE | JH25: TRUE | JI25: TRUE | JJ25: TRUE | JK25: TRUE | JL25: TRUE | JM25: TRUE | JN25: TRUE | JO25: TRUE | JP25: TRUE | JQ25: TRUE | JR25: TRUE | JS25: TRUE | JT25: TRUE | JU25: TRUE | JV25: TRUE | JW25: TRUE | JX25: TRUE | JY25: TRUE | JZ25: TRUE | KA25: TRUE | KB25: TRUE | KC25: TRUE | KD25: TRUE | KE25: TRUE | KF25: TRUE | KG25: TRUE | KH25: TRUE | KI25: TRUE | KJ25: TRUE | KK25: TRUE | KL25: TRUE | KM25: TRUE | KN25: TRUE | KO25: TRUE | KP25: TRUE | KQ25: TRUE | KR25: TRUE | KS25: TRUE
B26: Transition Period | E26: =COUNTIF(F26:KS26,TRUE) -> 0 | F26: =F24=F25 -> FALSE | G26: =G24=G25 -> FALSE | H26: FALSE | I26: FALSE | J26: FALSE | K26: FALSE | L26: FALSE | M26: FALSE | N26: FALSE | O26: FALSE | P26: FALSE | Q26: FALSE | R26: FALSE | S26: FALSE | T26: FALSE | U26: FALSE | V26: FALSE | W26: FALSE | X26: FALSE | Y26: FALSE | Z26: FALSE | AA26: FALSE | AB26: FALSE | AC26: FALSE | AD26: FALSE | AE26: FALSE | AF26: FALSE | AG26: FALSE | AH26: FALSE | AI26: FALSE | AJ26: FALSE | AK26: FALSE | AL26: FALSE | AM26: FALSE | AN26: FALSE | AO26: FALSE | AP26: FALSE | AQ26: FALSE | AR26: FALSE | AS26: FALSE | AT26: FALSE | AU26: FALSE | AV26: FALSE | AW26: FALSE | AX26: FALSE | AY26: FALSE | AZ26: FALSE | BA26: FALSE | BB26: FALSE | BC26: FALSE | BD26: FALSE | BE26: FALSE | BF26: FALSE | BG26: FALSE | BH26: FALSE | BI26: FALSE | BJ26: FALSE | BK26: FALSE | BL26: FALSE | BM26: FALSE | BN26: FALSE | BO26: FALSE | BP26: FALSE | BQ26: FALSE | BR26: FALSE | BS26: =BS24=BS25 -> FALSE | BT26: FALSE | BU26: FALSE | BV26: FALSE | BW26: FALSE | BX26: FALSE | BY26: FALSE | BZ26: FALSE | CA26: FALSE | CB26: FALSE | CC26: FALSE | CD26: FALSE | CE26: FALSE | CF26: FALSE | CG26: FALSE | CH26: FALSE | CI26: FALSE | CJ26: FALSE | CK26: FALSE | CL26: FALSE | CM26: FALSE | CN26: FALSE | CO26: FALSE | CP26: FALSE | CQ26: FALSE | CR26: FALSE | CS26: FALSE | CT26: FALSE | CU26: FALSE | CV26: FALSE | CW26: FALSE | CX26: FALSE | CY26: FALSE | CZ26: FALSE | DA26: FALSE | DB26: FALSE | DC26: FALSE | DD26: FALSE | DE26: FALSE | DF26: FALSE | DG26: FALSE | DH26: FALSE | DI26: FALSE | DJ26: FALSE | DK26: FALSE | DL26: FALSE | DM26: FALSE | DN26: FALSE | DO26: FALSE | DP26: FALSE | DQ26: FALSE | DR26: FALSE | DS26: FALSE | DT26: FALSE | DU26: FALSE | DV26: FALSE | DW26: FALSE | DX26: FALSE | DY26: FALSE | DZ26: FALSE | EA26: FALSE | EB26: FALSE | EC26: FALSE | ED26: FALSE | EE26: =EE24=EE25 -> FALSE | EF26: FALSE | EG26: FALSE | EH26: FALSE | EI26: FALSE | EJ26: FALSE | EK26: FALSE | EL26: FALSE | EM26: FALSE | EN26: FALSE | EO26: FALSE | EP26: FALSE | EQ26: FALSE | ER26: FALSE | ES26: FALSE | ET26: FALSE | EU26: FALSE | EV26: FALSE | EW26: FALSE | EX26: FALSE | EY26: FALSE | EZ26: FALSE | FA26: FALSE | FB26: FALSE | FC26: FALSE | FD26: FALSE | FE26: FALSE | FF26: FALSE | FG26: FALSE | FH26: FALSE | FI26: FALSE | FJ26: FALSE | FK26: FALSE | FL26: FALSE | FM26: FALSE | FN26: FALSE | FO26: FALSE | FP26: FALSE | FQ26: FALSE | FR26: FALSE | FS26: FALSE | FT26: FALSE | FU26: FALSE | FV26: FALSE | FW26: FALSE | FX26: FALSE | FY26: FALSE | FZ26: FALSE | GA26: FALSE | GB26: FALSE | GC26: FALSE | GD26: FALSE | GE26: FALSE | GF26: FALSE | GG26: FALSE | GH26: FALSE | GI26: FALSE | GJ26: FALSE | GK26: FALSE | GL26: FALSE | GM26: FALSE | GN26: FALSE | GO26: FALSE | GP26: FALSE | GQ26: =GQ24=GQ25 -> FALSE | GR26: FALSE | GS26: FALSE | GT26: FALSE | GU26: FALSE | GV26: FALSE | GW26: FALSE | GX26: FALSE | GY26: FALSE | GZ26: FALSE | HA26: FALSE | HB26: FALSE | HC26: FALSE | HD26: FALSE | HE26: FALSE | HF26: FALSE | HG26: FALSE | HH26: FALSE | HI26: FALSE | HJ26: FALSE | HK26: FALSE | HL26: FALSE | HM26: FALSE | HN26: FALSE | HO26: FALSE | HP26: FALSE | HQ26: FALSE | HR26: FALSE | HS26: FALSE | HT26: FALSE | HU26: FALSE | HV26: FALSE | HW26: FALSE | HX26: FALSE | HY26: FALSE | HZ26: FALSE | IA26: FALSE | IB26: FALSE | IC26: FALSE | ID26: FALSE | IE26: FALSE | IF26: FALSE | IG26: FALSE | IH26: FALSE | II26: FALSE | IJ26: FALSE | IK26: FALSE | IL26: FALSE | IM26: FALSE | IN26: FALSE | IO26: FALSE | IP26: FALSE | IQ26: FALSE | IR26: FALSE | IS26: FALSE | IT26: FALSE | IU26: FALSE | IV26: FALSE | IW26: FALSE | IX26: FALSE | IY26: FALSE | IZ26: FALSE | JA26: FALSE | JB26: FALSE | JC26: =JC24=JC25 -> FALSE | JD26: FALSE | JE26: FALSE | JF26: FALSE | JG26: FALSE | JH26: FALSE | JI26: FALSE | JJ26: FALSE | JK26: FALSE | JL26: FALSE | JM26: FALSE | JN26: FALSE | JO26: FALSE | JP26: FALSE | JQ26: FALSE | JR26: FALSE | JS26: FALSE | JT26: FALSE | JU26: FALSE | JV26: FALSE | JW26: FALSE | JX26: FALSE | JY26: FALSE | JZ26: FALSE | KA26: FALSE | KB26: FALSE | KC26: FALSE | KD26: FALSE | KE26: FALSE | KF26: FALSE | KG26: FALSE | KH26: FALSE | KI26: FALSE | KJ26: FALSE | KK26: FALSE | KL26: FALSE | KM26: FALSE | KN26: FALSE | KO26: FALSE | KP26: FALSE | KQ26: FALSE | KR26: FALSE | KS26: FALSE
A29: Model
B30: Opening Balance | F30: =E33 -> 1000 | G30: =F33 -> 1071 | H30: 1147.041 | I30: 1228.480911 | J30: 1315.703056 | K30: 1409.117973 | L30: 1509.165349 | M30: 1616.316088 | N30: 1731.074531 | O30: 1853.980822 | P30: 1985.613461 | Q30: 2126.592017 | R30: 2277.58005 | S30: 2439.288233 | T30: 2612.477698 | U30: 2797.963614 | V30: 2996.619031 | W30: 3209.378982 | X30: 3437.24489 | Y30: 3681.289277 | Z30: 3942.660816 | AA30: 4222.589734 | AB30: 4522.393605 | AC30: 4843.483551 | AD30: 5187.370883 | AE30: 5555.674215 | AF30: 5950.127085 | AG30: 6372.586108 | AH30: 6825.039721 | AI30: 7309.617542 | AJ30: 7828.600387 | AK30: 8384.431015 | AL30: 8979.725617 | AM30: 9617.286135 | AN30: 10300.11345 | AO30: 11031.42151 | AP30: 11814.65243 | AQ30: 12653.49276 | AR30: 13551.89074 | AS30: 14514.07498 | AT30: 15544.57431 | AU30: 16648.23908 | AV30: 17830.26406 | AW30: 19096.21281 | AX30: 20452.04392 | AY30: 21904.13903 | AZ30: 23459.33291 | BA30: 25124.94554 | BB30: 26908.81668 | BC30: 28819.34266 | BD30: 30865.51599 | BE30: 33056.96762 | BF30: 35404.01232 | BG30: 37917.6972 | BH30: 40609.8537 | BI30: 43493.15331 | BJ30: 46581.1672 | BK30: 49888.43007 | BL30: 53430.5086 | BM30: 57224.07472 | BN30: 61286.98402 | BO30: 65638.35989 | BP30: 70298.68344 | BQ30: 75289.88996 | BR30: 80635.47215 | BS30: =BR33 -> 86360.59067 | BT30: 92492.19261 | BU30: 99059.13828 | BV30: 106092.3371 | BW30: 113624.893 | BX30: 121692.2604 | BY30: 130332.4109 | BZ30: 139586.0121 | CA30: 149496.619 | CB30: 160110.8789 | CC30: 171478.7513 | CD30: 183653.7427 | CE30: 196693.1584 | CF30: 210658.3726 | CG30: 225615.1171 | CH30: 241633.7904 | CI30: 258789.7895 | CJ30: 277163.8646 | CK30: 296842.499 | CL30: 317918.3164 | CM30: 340490.5169 | CN30: 364665.3436 | CO30: 390556.583 | CP30: 418286.1003 | CQ30: 447984.4135 | CR30: 479791.3068 | CS30: 513856.4896 | CT30: 550340.3004 | CU30: 589414.4617 | CV30: 631262.8885 | CW30: 676082.5536 | CX30: 724084.4149 | CY30: 775494.4083 | CZ30: 830554.5113 | DA30: 889523.8816 | DB30: 952680.0772 | DC30: 1020320.363 | DD30: 1092763.108 | DE30: 1170349.289 | DF30: 1253444.089 | DG30: 1342438.619 | DH30: 1437751.761 | DI30: 1539832.136 | DJ30: 1649160.218 | DK30: 1766250.593 | DL30: 1891654.385 | DM30: 2025961.846 | DN30: 2169805.138 | DO30: 2323861.302 | DP30: 2488855.455 | DQ30: 2665564.192 | DR30: 2854819.25 | DS30: 3057511.416 | DT30: 3274594.727 | DU30: 3507090.953 | DV30: 3756094.41 | DW30: 4022777.113 | DX30: 4308394.288 | DY30: 4614290.283 | DZ30: 4941904.893 | EA30: 5292780.14 | EB30: 5668567.53 | EC30: 6071035.825 | ED30: 6502079.369 | EE30: =ED33 -> 6963727.004 | EF30: 7458151.621 | EG30: 7987680.386 | EH30: 8554805.694 | EI30: 9162196.898 | EJ30: 9812712.878 | EK30: 10509415.49 | EL30: 11255583.99 | EM30: 12054730.46 | EN30: 12910616.32 | EO30: 13827270.08 | EP30: 14809006.25 | EQ30: 15860445.7 | ER30: 16986537.34 | ES30: 18192581.49 | ET30: 19484254.78 | EU30: 20867636.87 | EV30: 22349239.08 | EW30: 23936035.06 | EX30: 25635493.55 | EY30: 27455613.59 | EZ30: 29404962.15 | FA30: 31492714.47 | FB30: 33728697.19 | FC30: 36123434.7 | FD30: 38688198.56 | FE30: 41435060.66 | FF30: 44376949.96 | FG30: 47527713.41 | FH30: 50902181.06 | FI30: 54516235.92 | FJ30: 58386888.67 | FK30: 62532357.76 | FL30: 66972155.16 | FM30: 71727178.18 | FN30: 76819807.83 | FO30: 82274014.19 | FP30: 88115469.2 | FQ30: 94371667.51 | FR30: 101072055.9 | FS30: 108248171.9 | FT30: 115933792.1 | FU30: 124165091.3 | FV30: 132980812.8 | FW30: 142422450.5 | FX30: 152534444.5 | FY30: 163364390 | FZ30: 174963261.7 | GA30: 187385653.3 | GB30: 200690034.7 | GC30: 214939027.2 | GD30: 230199698.1 | GE30: 246543876.7 | GF30: 264048491.9 | GG30: 282795934.8 | GH30: 302874446.2 | GI30: 324378531.9 | GJ30: 347409407.7 | GK30: 372075475.6 | GL30: 398492834.4 | GM30: 426785825.6 | GN30: 457087619.2 | GO30: 489540840.2 | GP30: 524298239.8 | GQ30: =GP33 -> 561523414.9 | GR30: 601391577.3 | GS30: 644090379.3 | GT30: 689820796.2 | GU30: 738798072.8 | GV30: 791252735.9 | GW30: 847431680.2 | GX30: 907599329.5 | GY30: 972038881.9 | GZ30: 1041053643 | HA30: 1114968451 | HB30: 1194131211 | HC30: 1278914527 | HD30: 1369717459 | HE30: 1466967398 | HF30: 1571122083 | HG30: 1682671751 | HH30: 1802141446 | HI30: 1930093488 | HJ30: 2067130126 | HK30: 2213896365 | HL30: 2371083007 | HM30: 2539429900 | HN30: 2719729423 | HO30: 2912830212 | HP30: 3119641157 | HQ30: 3341135680 | HR30: 3578356313 | HS30: 3832419611 | HT30: 4104521403 | HU30: 4395942423 | HV30: 4708054335 | HW30: 5042326193 | HX30: 5400331353 | HY30: 5783754879 | HZ30: 6194401475 | IA30: 6634203980 | IB30: 7105232462 | IC30: 7609703967 | ID30: 8149992949 | IE30: 8728642448 | IF30: 9348376062 | IG30: 1.001211076e+10 | IH30: 1.072297063e+10 | II30: 1.148430154e+10 | IJ30: 1.229968695e+10 | IK30: 1.317296472e+10 | IL30: 1.410824522e+10 | IM30: 1.510993063e+10 | IN30: 1.61827357e+10 | IO30: 1.733170994e+10 | IP30: 1.856226134e+10 | IQ30: 1.98801819e+10 | IR30: 2.129167482e+10 | IS30: 2.280338373e+10 | IT30: 2.442242397e+10 | IU30: 2.615641607e+10 | IV30: 2.801352162e+10 | IW30: 3.000248165e+10 | IX30: 3.213265785e+10 | IY30: 3.441407655e+10 | IZ30: 3.685747599e+10 | JA30: 3.947435678e+10 | JB30: 4.227703612e+10 | JC30: =JB33 -> 4.527870568e+10 | JD30: 4.849349378e+10 | JE30: 5.193653184e+10 | JF30: 5.56240256e+10 | JG30: 5.957333142e+10 | JH30: 6.380303795e+10 | JI30: 6.833305365e+10 | JJ30: 7.318470046e+10 | JK30: 7.838081419e+10 | JL30: 8.3945852e+10 | JM30: 8.990600749e+10 | JN30: 9.628933402e+10 | JO30: 1.031258767e+11 | JP30: 1.10447814e+11 | JQ30: 1.182896088e+11 | JR30: 1.26688171e+11 | JS30: 1.356830311e+11 | JT30: 1.453165264e+11 | JU30: 1.556339997e+11 | JV30: 1.666840137e+11 | JW30: 1.785185787e+11 | JX30: 1.911933978e+11 | JY30: 2.04768129e+11 | JZ30: 2.193066662e+11 | KA30: 2.348774395e+11 | KB30: 2.515537377e+11 | KC30: 2.69414053e+11 | KD30: 2.885424508e+11 | KE30: 3.090289648e+11 | KF30: 3.309700213e+11 | KG30: 3.544688928e+11 | KH30: 3.796361842e+11 | KI30: 4.065903533e+11 | KJ30: 4.354582684e+11 | KK30: 4.663758054e+11 | KL30: 4.994884876e+11 | KM30: 5.349521702e+11 | KN30: 5.729337743e+11 | KO30: 6.136120723e+11 | KP30: 6.571785294e+11 | KQ30: 7.03838205e+11 | KR30: 7.538107176e+11 | KS30: 8.073312785e+11
B31: Less: Depreciation | C31: =C20 -> 0.108011602 | E31: =show_formulaL(F31) -> =F30*$C$31----> | F31: =F30*$C$31 -> 108.011602 | G31: =G30*$C$31 -> 115.6804258 | H31: 123.893736 | I31: 132.6901912 | J31: 142.1111948 | K31: 152.2010897 | L31: 163.007367 | M31: 174.5808901 | N31: 186.9761333 | O31: 200.2514387 | P31: 214.4692909 | Q31: 229.6966105 | R31: 246.0050699 | S31: 263.4714298 | T31: 282.1779014 | U31: 302.2125324 | V31: 323.6696222 | W31: 346.6501653 | X31: 371.2623271 | Y31: 397.6219523 | Z31: 425.8531109 | AA31: 456.0886818 | AB31: 488.4709782 | AC31: 523.1524176 | AD31: 560.2962393 | AE31: 600.0772723 | AF31: 642.6827586 | AG31: 688.3132345 | AH31: 737.1834741 | AI31: 789.5235008 | AJ31: 845.5796693 | AK31: 905.6158259 | AL31: 969.9145495 | AM31: 1038.778483 | AN31: 1112.531755 | AO31: 1191.521509 | AP31: 1276.119537 | AQ31: 1366.724024 | AR31: 1463.761429 | AS31: 1567.688491 | AT31: 1678.994374 | AU31: 1798.202974 | AV31: 1925.875385 | AW31: 2062.612538 | AX31: 2209.058028 | AY31: 2365.901148 | AZ31: 2533.880129 | BA31: 2713.785618 | BB31: 2906.464397 | BC31: 3112.82337 | BD31: 3333.833829 | BE31: 3570.536031 | BF31: 3824.044089 | BG31: 4095.551219 | BH31: 4386.335356 | BI31: 4697.765166 | BJ31: 5031.306493 | BK31: 5388.529254 | BL31: 5771.114831 | BM31: 6180.863984 | BN31: 6619.705327 | BO31: 7089.704405 | BP31: 7593.073418 | BQ31: 8132.18163 | BR31: 8709.566526 | BS31: =BS30*$C$31 -> 9327.945749 | BT31: 9990.229897 | BU31: 10699.53622 | BV31: 11459.20329 | BW31: 12272.80673 | BX31: 13144.176 | BY31: 14077.4125 | BZ31: 15076.90879 | CA31: 16147.36931 | CB31: 17293.83253 | CC31: 18521.69464 | CD31: 19836.73496 | CE31: 21245.14314 | CF31: 22753.54831 | CG31: 24369.05024 | CH31: 26099.2528 | CI31: 27952.29975 | CJ31: 29936.91303 | CK31: 32062.43386 | CL31: 34338.86666 | CM31: 36776.9262 | CN31: 39388.08796 | CO31: 42184.6422 | CP31: 45179.7518 | CQ31: 48387.51418 | CR31: 51823.02768 | CS31: 55502.46265 | CT31: 59443.1375 | CU31: 63663.60026 | CV31: 68183.71588 | CW31: 73024.7597 | CX31: 78209.51764 | CY31: 83762.39339 | CZ31: 89709.52333 | DA31: 96078.89948 | DB31: 102900.5013 | DC31: 110206.4369 | DD31: 118031.094 | DE31: 126411.3016 | DF31: 135386.5041 | DG31: 144998.9458 | DH31: 155293.871 | DI31: 166319.7358 | DJ31: 178128.4371 | DK31: 190775.5561 | DL31: 204320.6206 | DM31: 218827.3847 | DN31: 234364.129 | DO31: 251003.9821 | DP31: 268825.2649 | DQ31: 287911.8587 | DR31: 308353.6006 | DS31: 330246.7063 | DT31: 353694.2224 | DU31: 378806.5122 | DV31: 405701.7746 | DW31: 434506.6006 | DX31: 465356.5692 | DY31: 498396.8856 | DZ31: 533783.0645 | EA31: 571681.6621 | EB31: 612271.0601 | EC31: 655742.3053 | ED31: 702300.009 | EE31: =EE30*$C$31 -> 752163.3097 | EF31: 805566.9047 | EG31: 862762.1549 | EH31: 924018.2679 | EI31: 989623.5649 | EJ31: 1059886.838 | EK31: 1135138.804 | EL31: 1215733.659 | EM31: 1302050.748 | EN31: 1394496.351 | EO31: 1493505.592 | EP31: 1599544.489 | EQ31: 1713112.148 | ER31: 1834743.111 | ES31: 1965009.872 | ET31: 2104525.572 | EU31: 2253946.888 | EV31: 2413977.117 | EW31: 2585369.493 | EX31: 2768930.726 | EY31: 2965524.808 | EZ31: 3176077.069 | FA31: 3401578.541 | FB31: 3643090.618 | FC31: 3901750.052 | FD31: 4178774.305 | FE31: 4475467.281 | FF31: 4793225.458 | FG31: 5133544.465 | FH31: 5498026.123 | FI31: 5888385.977 | FJ31: 6306461.382 | FK31: 6754220.14 | FL31: 7233769.77 | FM31: 7747367.423 | FN31: 8297430.51 | FO31: 8886548.077 | FP31: 9517492.99 | FQ31: 10193234.99 | FR31: 10916954.68 | FS31: 11692058.46 | FT31: 12522194.61 | FU31: 13411270.43 | FV31: 14363470.63 | FW31: 15383277.04 | FX31: 16475489.71 | FY31: 17645249.48 | FZ31: 18898062.19 | GA31: 20239824.61 | GB31: 21676852.16 | GC31: 23215908.66 | GD31: 24864238.18 | GE31: 26629599.09 | GF31: 28520300.62 | GG31: 30545241.96 | GH31: 32713954.14 | GI31: 35036644.89 | GJ31: 37524246.68 | GK31: 40188468.19 | GL31: 43041849.43 | GM31: 46097820.74 | GN31: 49370766.01 | GO31: 52876090.4 | GP31: 56630292.82 | GQ31: =GQ30*$C$31 -> 60651043.61 | GR31: 64957267.7 | GS31: 69569233.71 | GT31: 74508649.3 | GU31: 79798763.41 | GV31: 85464475.61 | GW31: 91532453.38 | GX31: 98031257.57 | GY31: 104991476.9 | GZ31: 112445871.7 | HA31: 120429528.6 | HB31: 128980025.1 | HC31: 138137606.9 | HD31: 147945377 | HE31: 158449498.8 | HF31: 169699413.2 | HG31: 181748071.5 | HH31: 194652184.6 | HI31: 208472489.7 | HJ31: 223274036.5 | HK31: 239126493.1 | HL31: 256104474.1 | HM31: 274287891.7 | HN31: 293762332 | HO31: 314619457.6 | HP31: 336957439.1 | HQ31: 360881417.3 | HR31: 386503997.9 | HS31: 413945781.8 | HT31: 443335932.3 | HU31: 474812783.5 | HV31: 508524491.1 | HW31: 544629730 | HX31: 583298440.8 | HY31: 624712630.1 | HZ31: 669067226.8 | IA31: 716570999.9 | IB31: 767447540.9 | IC31: 821936316.3 | ID31: 880293794.8 | IE31: 942794654.2 | IF31: 1009733075 | IG31: 1081424123 | IH31: 1158205236 | II31: 1240437807 | IJ31: 1328508892 | IK31: 1422833023 | IL31: 1523854168 | IM31: 1632047814 | IN31: 1747923208 | IO31: 1872025756 | IP31: 2004939585 | IQ31: 2147290295 | IR31: 2299747906 | IS31: 2463030008 | IT31: 2637905138 | IU31: 2825196403 | IV31: 3025785348 | IW31: 3240616107 | IX31: 3470699851 | IY31: 3717119540 | IZ31: 3981035028 | JA31: 4263688515 | JB31: 4566410399 | JC31: =JC30*$C$31 -> 4890625538 | JD31: 5237859951 | JE31: 5609748007 | JF31: 6008040116 | JG31: 6434610964 | JH31: 6891468343 | JI31: 7380762595 | JJ31: 7904796739 | JK31: 8466037308 | JL31: 9067125956 | JM31: 9710891899 | JN31: 1.040036522e+10 | JO31: 1.113879116e+10 | JP31: 1.192964533e+10 | JQ31: 1.277665015e+10 | JR31: 1.368379231e+10 | JS31: 1.465534156e+10 | JT31: 1.569587081e+10 | JU31: 1.681027764e+10 | JV31: 1.800380735e+10 | JW31: 1.928207767e+10 | JX31: 2.065110519e+10 | JY31: 2.211733365e+10 | JZ31: 2.368766434e+10 | KA31: 2.536948851e+10 | KB31: 2.71707222e+10 | KC31: 2.909984347e+10 | KD31: 3.116593236e+10 | KE31: 3.337871356e+10 | KF31: 3.574860222e+10 | KG31: 3.828675298e+10 | KH31: 4.100511244e+10 | KI31: 4.391647542e+10 | KJ31: 4.703454518e+10 | KK31: 5.037399788e+10 | KL31: 5.395055173e+10 | KM31: 5.778104091e+10 | KN31: 6.188349481e+10 | KO31: 6.627722294e+10 | KP31: 7.098290577e+10 | KQ31: 7.602269208e+10 | KR31: 8.142030322e+10 | KS31: 8.720114475e+10
B32: Add: Capital Expenditure | C32: =C21 -> 1.657336792 | E32: =show_formulaL(F32) -> =$C$32*F31----> | F32: =$C$32*F31 -> 179.011602 | G32: =$C$32*G31 -> 191.7214258 | H32: 205.333647 | I32: 219.9123359 | J32: 235.5261118 | K32: 252.2484657 | L32: 270.1581068 | M32: 289.3393324 | N32: 309.882425 | O32: 331.8840771 | P32: 355.4478466 | Q32: 380.6846437 | R32: 407.7132534 | S32: 436.6608944 | T32: 467.6638179 | U32: 500.867949 | V32: 536.4295734 | W32: 574.5160731 | X32: 615.3067142 | Y32: 658.993491 | Z32: 705.7820288 | AA32: 755.8925529 | AB32: 809.5609241 | AC32: 867.0397497 | AD32: 928.599572 | AE32: 994.5301416 | AF32: 1065.141782 | AG32: 1140.766848 | AH32: 1221.761294 | AI32: 1308.506346 | AJ32: 1401.410297 | AK32: 1500.910428 | AL32: 1607.475068 | AM32: 1721.605798 | AN32: 1843.83981 | AO32: 1974.752436 | AP32: 2114.959859 | AQ32: 2265.122009 | AR32: 2425.945672 | AS32: 2598.187815 | AT32: 2782.659149 | AU32: 2980.227949 | AV32: 3191.824133 | AW32: 3418.443647 | AX32: 3661.153146 | AY32: 3921.095019 | AZ32: 4199.492766 | BA32: 4497.656752 | BB32: 4816.990381 | BC32: 5158.996698 | BD32: 5525.285464 | BE32: 5917.580732 | BF32: 6337.728964 | BG32: 6787.70772 | BH32: 7269.634968 | BI32: 7785.779051 | BJ32: 8338.569364 | BK32: 8930.607789 | BL32: 9564.680942 | BM32: 10243.77329 | BN32: 10971.08119 | BO32: 11750.02796 | BP32: 12584.27994 | BQ32: 13477.76382 | BR32: 14434.68505 | BS32: =$C$32*BS31 -> 15459.54769 | BT32: 16557.17557 | BU32: 17732.73504 | BV32: 18991.75923 | BW32: 20340.17413 | BX32: 21784.32649 | BY32: 23331.01368 | BZ32: 24987.51565 | CA32: 26761.62926 | CB32: 28661.70493 | CC32: 30696.68599 | CD32: 32876.15069 | CE32: 35210.35739 | CF32: 37710.29276 | CG32: 40387.72355 | CH32: 43255.25192 | CI32: 46326.37481 | CJ32: 49615.54742 | CK32: 53138.25129 | CL32: 56911.06713 | CM32: 60951.75289 | CN32: 65279.32735 | CO32: 69914.15959 | CP32: 74878.06492 | CQ32: 80194.40753 | CR32: 85888.21047 | CS32: 91986.27341 | CT32: 98517.29882 | CU32: 105512.027 | CV32: 113003.381 | CW32: 121026.621 | CX32: 129619.5111 | CY32: 138822.4964 | CZ32: 148678.8936 | DA32: 159235.0951 | DB32: 170540.7868 | DC32: 182649.1827 | DD32: 195617.2747 | DE32: 209506.1012 | DF32: 224381.0343 | DG32: 240312.0878 | DH32: 257374.246 | DI32: 275647.8175 | DJ32: 295218.8125 | DK32: 316179.3482 | DL32: 338628.0819 | DM32: 362670.6758 | DN32: 388420.2937 | DO32: 415998.1346 | DP32: 445534.0021 | DQ32: 477166.9163 | DR32: 511045.7674 | DS32: 547330.0168 | DT32: 586190.448 | DU32: 627809.9698 | DV32: 672384.4777 | DW32: 720123.7756 | DX32: 771252.5637 | DY32: 826011.4957 | DZ32: 884658.3119 | EA32: 947469.052 | EB32: 1014739.355 | EC32: 1086785.849 | ED32: 1163947.644 | EE32: =$C$32*EE31 -> 1246587.927 | EF32: 1335095.67 | EG32: 1429887.462 | EH32: 1531409.472 | EI32: 1640139.545 | EJ32: 1756589.452 | EK32: 1881307.303 | EL32: 2014880.122 | EM32: 2157936.611 | EN32: 2311150.11 | EO32: 2475241.768 | EP32: 2650983.933 | EQ32: 2839203.793 | ER32: 3040787.262 | ES32: 3256683.157 | ET32: 3487907.662 | EU32: 3735549.106 | EV32: 4000773.092 | EW32: 4284827.982 | EX32: 4589050.768 | EY32: 4914873.373 | EZ32: 5263829.382 | FA32: 5637561.269 | FB32: 6037828.119 | FC32: 6466513.915 | FD32: 6925636.403 | FE32: 7417356.588 | FF32: 7943988.905 | FG32: 8508012.118 | FH32: 9112080.978 | FI32: 9759038.727 | FJ32: 10451930.48 | FK32: 11194017.54 | FL32: 11988792.79 | FM32: 12839997.07 | FN32: 13751636.87 | FO32: 14728003.08 | FP32: 15773691.3 | FQ32: 16893623.39 | FR32: 18093070.65 | FS32: 19377678.66 | FT32: 20753493.85 | FU32: 22226991.91 | FV32: 23805108.34 | FW32: 25495271.03 | FX32: 27305435.27 | FY32: 29244121.17 | FZ32: 31320453.78 | GA32: 33544206 | GB32: 35925844.62 | GC32: 38476579.59 | GD32: 41208416.74 | GE32: 44134214.33 | GF32: 47267743.55 | GG32: 50623753.34 | GH32: 54218039.82 | GI32: 58067520.65 | GJ32: 62190314.62 | GK32: 66605826.96 | GL32: 71334840.67 | GM32: 76399614.36 | GN32: 81823986.98 | GO32: 87633490.05 | GP32: 93855467.85 | GQ32: =$C$32*GQ31 -> 100519206.1 | GR32: 107656069.7 | GS32: 115299650.6 | GT32: 123485925.8 | GU32: 132253426.6 | GV32: 141643419.9 | GW32: 151700102.7 | GX32: 162470810 | GY32: 174006237.5 | GZ32: 186360680.3 | HA32: 199592288.6 | HB32: 213763341.1 | HC32: 228940538.3 | HD32: 245195316.6 | HE32: 262604184 | HF32: 281249081.1 | HG32: 301217765.9 | HH32: 322604227.2 | HI32: 345509127.4 | HJ32: 370040275.4 | HK32: 396313135 | HL32: 424451367.6 | HM32: 454587414.7 | HN32: 486863121.1 | HO32: 521430402.7 | HP32: 558451961.3 | HQ32: 598102050.5 | HR32: 640567296.1 | HS32: 686047574.1 | HT32: 734756951.9 | HU32: 786924695.5 | HV32: 842796348.9 | HW32: 902634889.7 | HX32: 966721966.8 | HY32: 1035359226 | HZ32: 1108869732 | IA32: 1187599482 | IB32: 1271919046 | IC32: 1362225298 | ID32: 1458943294 | IE32: 1562528268 | IF32: 1673467775 | IG32: 1792283987 | IH32: 1919536150 | II32: 2055823217 | IJ32: 2201786665 | IK32: 2358113518 | IL32: 2525539578 | IM32: 2704852888 | IN32: 2896897443 | IO32: 3102577162 | IP32: 3322860140 | IQ32: 3558783210 | IR32: 3811456818 | IS32: 4082070252 | IT32: 4371897240 | IU32: 4682301944 | IV32: 5014745382 | IW32: 5370792305 | IX32: 5752118558 | IY32: 6160518976 | IZ32: 6597915823 | JA32: 7066367846 | JB32: 7568079964 | JC32: =$C$32*JC31 -> 8105413641 | JD32: 8680898010 | JE32: 9297241768 | JF32: 9957345934 | JG32: 1.06643175e+10 | JH32: 1.142148404e+10 | JI32: 1.22324094e+10 | JJ32: 1.310091047e+10 | JK32: 1.403107511e+10 | JL32: 1.502728145e+10 | JM32: 1.609421843e+10 | JN32: 1.723690794e+10 | JO32: 1.84607284e+10 | JP32: 1.977144012e+10 | JQ32: 2.117521237e+10 | JR32: 2.267865245e+10 | JS32: 2.428883677e+10 | JT32: 2.601334418e+10 | JU32: 2.786029162e+10 | JV32: 2.983837232e+10 | JW32: 3.195689676e+10 | JX32: 3.422583643e+10 | JY32: 3.665587081e+10 | JZ32: 3.925843764e+10 | KA32: 4.204578671e+10 | KB32: 4.503103757e+10 | KC32: 4.822824124e+10 | KD32: 5.165244637e+10 | KE32: 5.531977006e+10 | KF32: 5.924747373e+10 | KG32: 6.345404437e+10 | KH32: 6.795928152e+10 | KI32: 7.278439051e+10 | KJ32: 7.795208223e+10 | KK32: 8.348668007e+10 | KL32: 8.941423435e+10 | KM32: 9.576264499e+10 | KN32: 1.025617928e+11 | KO32: 1.098436801e+11 | KP32: 1.176425814e+11 | KQ32: 1.259952046e+11 | KR32: 1.349408642e+11 | KS32: 1.445216655e+11
B33: Closing Balance | E33: =C8 -> 1000 | F33: =F30-F31+F32 -> 1071 | G33: =G30-G31+G32 -> 1147.041 | H33: 1228.480911 | I33: 1315.703056 | J33: 1409.117973 | K33: 1509.165349 | L33: 1616.316088 | M33: 1731.074531 | N33: 1853.980822 | O33: 1985.613461 | P33: 2126.592017 | Q33: 2277.58005 | R33: 2439.288233 | S33: 2612.477698 | T33: 2797.963614 | U33: 2996.619031 | V33: 3209.378982 | W33: 3437.24489 | X33: 3681.289277 | Y33: 3942.660816 | Z33: 4222.589734 | AA33: 4522.393605 | AB33: 4843.483551 | AC33: 5187.370883 | AD33: 5555.674215 | AE33: 5950.127085 | AF33: 6372.586108 | AG33: 6825.039721 | AH33: 7309.617542 | AI33: 7828.600387 | AJ33: 8384.431015 | AK33: 8979.725617 | AL33: 9617.286135 | AM33: 10300.11345 | AN33: 11031.42151 | AO33: 11814.65243 | AP33: 12653.49276 | AQ33: 13551.89074 | AR33: 14514.07498 | AS33: 15544.57431 | AT33: 16648.23908 | AU33: 17830.26406 | AV33: 19096.21281 | AW33: 20452.04392 | AX33: 21904.13903 | AY33: 23459.33291 | AZ33: 25124.94554 | BA33: 26908.81668 | BB33: 28819.34266 | BC33: 30865.51599 | BD33: 33056.96762 | BE33: 35404.01232 | BF33: 37917.6972 | BG33: 40609.8537 | BH33: 43493.15331 | BI33: 46581.1672 | BJ33: 49888.43007 | BK33: 53430.5086 | BL33: 57224.07472 | BM33: 61286.98402 | BN33: 65638.35989 | BO33: 70298.68344 | BP33: 75289.88996 | BQ33: 80635.47215 | BR33: 86360.59067 | BS33: =BS30-BS31+BS32 -> 92492.19261 | BT33: 99059.13828 | BU33: 106092.3371 | BV33: 113624.893 | BW33: 121692.2604 | BX33: 130332.4109 | BY33: 139586.0121 | BZ33: 149496.619 | CA33: 160110.8789 | CB33: 171478.7513 | CC33: 183653.7427 | CD33: 196693.1584 | CE33: 210658.3726 | CF33: 225615.1171 | CG33: 241633.7904 | CH33: 258789.7895 | CI33: 277163.8646 | CJ33: 296842.499 | CK33: 317918.3164 | CL33: 340490.5169 | CM33: 364665.3436 | CN33: 390556.583 | CO33: 418286.1003 | CP33: 447984.4135 | CQ33: 479791.3068 | CR33: 513856.4896 | CS33: 550340.3004 | CT33: 589414.4617 | CU33: 631262.8885 | CV33: 676082.5536 | CW33: 724084.4149 | CX33: 775494.4083 | CY33: 830554.5113 | CZ33: 889523.8816 | DA33: 952680.0772 | DB33: 1020320.363 | DC33: 1092763.108 | DD33: 1170349.289 | DE33: 1253444.089 | DF33: 1342438.619 | DG33: 1437751.761 | DH33: 1539832.136 | DI33: 1649160.218 | DJ33: 1766250.593 | DK33: 1891654.385 | DL33: 2025961.846 | DM33: 2169805.138 | DN33: 2323861.302 | DO33: 2488855.455 | DP33: 2665564.192 | DQ33: 2854819.25 | DR33: 3057511.416 | DS33: 3274594.727 | DT33: 3507090.953 | DU33: 3756094.41 | DV33: 4022777.113 | DW33: 4308394.288 | DX33: 4614290.283 | DY33: 4941904.893 | DZ33: 5292780.14 | EA33: 5668567.53 | EB33: 6071035.825 | EC33: 6502079.369 | ED33: 6963727.004 | EE33: =EE30-EE31+EE32 -> 7458151.621 | EF33: 7987680.386 | EG33: 8554805.694 | EH33: 9162196.898 | EI33: 9812712.878 | EJ33: 10509415.49 | EK33: 11255583.99 | EL33: 12054730.46 | EM33: 12910616.32 | EN33: 13827270.08 | EO33: 14809006.25 | EP33: 15860445.7 | EQ33: 16986537.34 | ER33: 18192581.49 | ES33: 19484254.78 | ET33: 20867636.87 | EU33: 22349239.08 | EV33: 23936035.06 | EW33: 25635493.55 | EX33: 27455613.59 | EY33: 29404962.15 | EZ33: 31492714.47 | FA33: 33728697.19 | FB33: 36123434.7 | FC33: 38688198.56 | FD33: 41435060.66 | FE33: 44376949.96 | FF33: 47527713.41 | FG33: 50902181.06 | FH33: 54516235.92 | FI33: 58386888.67 | FJ33: 62532357.76 | FK33: 66972155.16 | FL33: 71727178.18 | FM33: 76819807.83 | FN33: 82274014.19 | FO33: 88115469.2 | FP33: 94371667.51 | FQ33: 101072055.9 | FR33: 108248171.9 | FS33: 115933792.1 | FT33: 124165091.3 | FU33: 132980812.8 | FV33: 142422450.5 | FW33: 152534444.5 | FX33: 163364390 | FY33: 174963261.7 | FZ33: 187385653.3 | GA33: 200690034.7 | GB33: 214939027.2 | GC33: 230199698.1 | GD33: 246543876.7 | GE33: 264048491.9 | GF33: 282795934.8 | GG33: 302874446.2 | GH33: 324378531.9 | GI33: 347409407.7 | GJ33: 372075475.6 | GK33: 398492834.4 | GL33: 426785825.6 | GM33: 457087619.2 | GN33: 489540840.2 | GO33: 524298239.8 | GP33: 561523414.9 | GQ33: =GQ30-GQ31+GQ32 -> 601391577.3 | GR33: 644090379.3 | GS33: 689820796.2 | GT33: 738798072.8 | GU33: 791252735.9 | GV33: 847431680.2 | GW33: 907599329.5 | GX33: 972038881.9 | GY33: 1041053643 | GZ33: 1114968451 | HA33: 1194131211 | HB33: 1278914527 | HC33: 1369717459 | HD33: 1466967398 | HE33: 1571122083 | HF33: 1682671751 | HG33: 1802141446 | HH33: 1930093488 | HI33: 2067130126 | HJ33: 2213896365 | HK33: 2371083007 | HL33: 2539429900 | HM33: 2719729423 | HN33: 2912830212 | HO33: 3119641157 | HP33: 3341135680 | HQ33: 3578356313 | HR33: 3832419611 | HS33: 4104521403 | HT33: 4395942423 | HU33: 4708054335 | HV33: 5042326193 | HW33: 5400331353 | HX33: 5783754879 | HY33: 6194401475 | HZ33: 6634203980 | IA33: 7105232462 | IB33: 7609703967 | IC33: 8149992949 | ID33: 8728642448 | IE33: 9348376062 | IF33: 1.001211076e+10 | IG33: 1.072297063e+10 | IH33: 1.148430154e+10 | II33: 1.229968695e+10 | IJ33: 1.317296472e+10 | IK33: 1.410824522e+10 | IL33: 1.510993063e+10 | IM33: 1.61827357e+10 | IN33: 1.733170994e+10 | IO33: 1.856226134e+10 | IP33: 1.98801819e+10 | IQ33: 2.129167482e+10 | IR33: 2.280338373e+10 | IS33: 2.442242397e+10 | IT33: 2.615641607e+10 | IU33: 2.801352162e+10 | IV33: 3.000248165e+10 | IW33: 3.213265785e+10 | IX33: 3.441407655e+10 | IY33: 3.685747599e+10 | IZ33: 3.947435678e+10 | JA33: 4.227703612e+10 | JB33: 4.527870568e+10 | JC33: =JC30-JC31+JC32 -> 4.849349378e+10 | JD33: 5.193653184e+10 | JE33: 5.56240256e+10 | JF33: 5.957333142e+10 | JG33: 6.380303795e+10 | JH33: 6.833305365e+10 | JI33: 7.318470046e+10 | JJ33: 7.838081419e+10 | JK33: 8.3945852e+10 | JL33: 8.990600749e+10 | JM33: 9.628933402e+10 | JN33: 1.031258767e+11 | JO33: 1.10447814e+11 | JP33: 1.182896088e+11 | JQ33: 1.26688171e+11 | JR33: 1.356830311e+11 | JS33: 1.453165264e+11 | JT33: 1.556339997e+11 | JU33: 1.666840137e+11 | JV33: 1.785185787e+11 | JW33: 1.911933978e+11 | JX33: 2.04768129e+11 | JY33: 2.193066662e+11 | JZ33: 2.348774395e+11 | KA33: 2.515537377e+11 | KB33: 2.69414053e+11 | KC33: 2.885424508e+11 | KD33: 3.090289648e+11 | KE33: 3.309700213e+11 | KF33: 3.544688928e+11 | KG33: 3.796361842e+11 | KH33: 4.065903533e+11 | KI33: 4.354582684e+11 | KJ33: 4.663758054e+11 | KK33: 4.994884876e+11 | KL33: 5.349521702e+11 | KM33: 5.729337743e+11 | KN33: 6.136120723e+11 | KO33: 6.571785294e+11 | KP33: 7.03838205e+11 | KQ33: 7.538107176e+11 | KR33: 8.073312785e+11 | KS33: 8.646517993e+11
B35: NOPLAT = ROIC x Investment | C35: =C16 -> 0.122 | E35: =show_formulaL(F35) -> =$C$35*F30----> | F35: =$C$35*F30 -> 122 | G35: =$C$35*G30 -> 130.662 | H35: 139.939002 | I35: 149.8746711 | J35: 160.5157728 | K35: 171.9123927 | L35: 184.1181725 | M35: 197.1905628 | N35: 211.1910927 | O35: 226.1856603 | P35: 242.2448422 | Q35: 259.444226 | R35: 277.8647661 | S35: 297.5931645 | T35: 318.7222791 | U35: 341.3515609 | V35: 365.5875218 | W35: 391.5442358 | X35: 419.3438766 | Y35: 449.1172918 | Z35: 481.0046195 | AA35: 515.1559475 | AB35: 551.7320198 | AC35: 590.9049932 | AD35: 632.8592477 | AE35: 677.7922543 | AF35: 725.9155043 | AG35: 777.4555051 | AH35: 832.654846 | AI35: 891.7733401 | AJ35: 955.0892472 | AK35: 1022.900584 | AL35: 1095.526525 | AM35: 1173.308909 | AN35: 1256.613841 | AO35: 1345.833424 | AP35: 1441.387597 | AQ35: 1543.726116 | AR35: 1653.33067 | AS35: 1770.717148 | AT35: 1896.438066 | AU35: 2031.085168 | AV35: 2175.292215 | AW35: 2329.737962 | AX35: 2495.149358 | AY35: 2672.304962 | AZ35: 2862.038614 | BA35: 3065.243356 | BB35: 3282.875634 | BC35: 3515.959804 | BD35: 3765.592951 | BE35: 4032.95005 | BF35: 4319.289504 | BG35: 4625.959058 | BH35: 4954.402151 | BI35: 5306.164704 | BJ35: 5682.902398 | BK35: 6086.388468 | BL35: 6518.52205 | BM35: 6981.337115 | BN35: 7477.01205 | BO35: 8007.879906 | BP35: 8576.439379 | BQ35: 9185.366575 | BR35: 9837.527602 | BS35: =$C$35*BS30 -> 10535.99206 | BT35: 11284.0475 | BU35: 12085.21487 | BV35: 12943.26513 | BW35: 13862.23695 | BX35: 14846.45577 | BY35: 15900.55413 | BZ35: 17029.49348 | CA35: 18238.58751 | CB35: 19533.52723 | CC35: 20920.40766 | CD35: 22405.7566 | CE35: 23996.56532 | CF35: 25700.32146 | CG35: 27525.04429 | CH35: 29479.32243 | CI35: 31572.35432 | CJ35: 33813.99148 | CK35: 36214.78487 | CL35: 38786.0346 | CM35: 41539.84306 | CN35: 44489.17191 | CO35: 47647.90312 | CP35: 51030.90424 | CQ35: 54654.09844 | CR35: 58534.53943 | CS35: 62690.49173 | CT35: 67141.51664 | CU35: 71908.56433 | CV35: 77014.07239 | CW35: 82482.07153 | CX35: 88338.29861 | CY35: 94610.31781 | CZ35: 101327.6504 | DA35: 108521.9136 | DB35: 116226.9694 | DC35: 124479.0842 | DD35: 133317.0992 | DE35: 142782.6133 | DF35: 152920.1788 | DG35: 163777.5115 | DH35: 175405.7148 | DI35: 187859.5206 | DJ35: 201197.5465 | DK35: 215482.5723 | DL35: 230781.835 | DM35: 247167.3453 | DN35: 264716.2268 | DO35: 283511.0789 | DP35: 303640.3655 | DQ35: 325198.8314 | DR35: 348287.9485 | DS35: 373016.3928 | DT35: 399500.5567 | DU35: 427865.0962 | DV35: 458243.5181 | DW35: 490778.8078 | DX35: 525624.1032 | DY35: 562943.4145 | DZ35: 602912.397 | EA35: 645719.1771 | EB35: 691565.2387 | EC35: 740666.3707 | ED35: 793253.683 | EE35: =$C$35*EE30 -> 849574.6945 | EF35: 909894.4978 | EG35: 974497.0071 | EH35: 1043686.295 | EI35: 1117788.022 | EJ35: 1197150.971 | EK35: 1282148.69 | EL35: 1373181.247 | EM35: 1470677.116 | EN35: 1575095.191 | EO35: 1686926.949 | EP35: 1806698.763 | EQ35: 1934974.375 | ER35: 2072357.555 | ES35: 2219494.942 | ET35: 2377079.083 | EU35: 2545851.698 | EV35: 2726607.168 | EW35: 2920196.277 | EX35: 3127530.213 | EY35: 3349584.858 | EZ35: 3587405.383 | FA35: 3842111.165 | FB35: 4114901.058 | FC35: 4407059.033 | FD35: 4719960.224 | FE35: 5055077.4 | FF35: 5413987.895 | FG35: 5798381.036 | FH35: 6210066.09 | FI35: 6650980.782 | FJ35: 7123200.417 | FK35: 7628947.647 | FL35: 8170602.93 | FM35: 8750715.738 | FN35: 9372016.556 | FO35: 10037429.73 | FP35: 10750087.24 | FQ35: 11513343.44 | FR35: 12330790.82 | FS35: 13206276.97 | FT35: 14143922.63 | FU35: 15148141.14 | FV35: 16223659.16 | FW35: 17375538.96 | FX35: 18609202.23 | FY35: 19930455.59 | FZ35: 21345517.93 | GA35: 22861049.71 | GB35: 24484184.23 | GC35: 26222561.32 | GD35: 28084363.17 | GE35: 30078352.95 | GF35: 32213916.01 | GG35: 34501104.05 | GH35: 36950682.44 | GI35: 39574180.89 | GJ35: 42383947.73 | GK35: 45393208.02 | GL35: 48616125.79 | GM35: 52067870.72 | GN35: 55764689.55 | GO35: 59723982.5 | GP35: 63964385.26 | GQ35: =$C$35*GQ30 -> 68505856.61 | GR35: 73369772.43 | GS35: 78579026.28 | GT35: 84158137.14 | GU35: 90133364.88 | GV35: 96532833.79 | GW35: 103386665 | GX35: 110727118.2 | GY35: 118588743.6 | GZ35: 127008544.4 | HA35: 136026151 | HB35: 145684007.8 | HC35: 156027572.3 | HD35: 167105529.9 | HE35: 178970022.6 | HF35: 191676894.2 | HG35: 205285953.7 | HH35: 219861256.4 | HI35: 235471405.6 | HJ35: 252189875.4 | HK35: 270095356.5 | HL35: 289272126.8 | HM35: 309810447.8 | HN35: 331806989.6 | HO35: 355365285.9 | HP35: 380596221.2 | HQ35: 407618552.9 | HR35: 436559470.2 | HS35: 467555192.5 | HT35: 500751611.2 | HU35: 536304975.6 | HV35: 574382628.9 | HW35: 615163795.5 | HX35: 658840425 | HY35: 705618095.2 | HZ35: 755716979.9 | IA35: 809372885.5 | IB35: 866838360.4 | IC35: 928383884 | ID35: 994299139.7 | IE35: 1064894379 | IF35: 1140501880 | IG35: 1221477513 | IH35: 1308202416 | II35: 1401084788 | IJ35: 1500561808 | IK35: 1607101696 | IL35: 1721205917 | IM35: 1843411537 | IN35: 1974293756 | IO35: 2114468613 | IP35: 2264595884 | IQ35: 2425382192 | IR35: 2597584327 | IS35: 2782012815 | IT35: 2979535725 | IU35: 3191082761 | IV35: 3417649637 | IW35: 3660302761 | IX35: 3920184257 | IY35: 4198517340 | IZ35: 4496612071 | JA35: 4815871528 | JB35: 5157798406 | JC35: =$C$35*JC30 -> 5524002093 | JD35: 5916206242 | JE35: 6336256885 | JF35: 6786131124 | JG35: 7267946433 | JH35: 7783970630 | JI35: 8336632545 | JJ35: 8928533456 | JK35: 9562459331 | JL35: 1.024139394e+10 | JM35: 1.096853291e+10 | JN35: 1.174729875e+10 | JO35: 1.258135696e+10 | JP35: 1.347463331e+10 | JQ35: 1.443133227e+10 | JR35: 1.545595686e+10 | JS35: 1.65533298e+10 | JT35: 1.772861621e+10 | JU35: 1.898734797e+10 | JV35: 2.033544967e+10 | JW35: 2.17792666e+10 | JX35: 2.332559453e+10 | JY35: 2.498171174e+10 | JZ35: 2.675541327e+10 | KA35: 2.865504761e+10 | KB35: 3.068955599e+10 | KC35: 3.286851447e+10 | KD35: 3.5202179e+10 | KE35: 3.770153371e+10 | KF35: 4.03783426e+10 | KG35: 4.324520492e+10 | KH35: 4.631561447e+10 | KI35: 4.96040231e+10 | KJ35: 5.312590874e+10 | KK35: 5.689784826e+10 | KL35: 6.093759549e+10 | KM35: 6.526416477e+10 | KN35: 6.989792047e+10 | KO35: 7.486067282e+10 | KP35: 8.017578059e+10 | KQ35: 8.586826101e+10 | KR35: 9.196490754e+10 | KS35: 9.849441598e+10
B36: EBIT = NOPLAT/(1-t) | C36: =C18 -> 0.38 | E36: =show_formulaL(F36) -> =F35/(1-$C$36)----> | F36: =F35/(1-$C$36) -> 196.7741935 | G36: =G35/(1-$C$36) -> 210.7451613 | H36: 225.7080677 | I36: 241.7333406 | J36: 258.8964077 | K36: 277.2780527 | L36: 296.9647944 | M36: 318.0492948 | N36: 340.6307948 | O36: 364.8155812 | P36: 390.7174874 | Q36: 418.4584291 | R36: 448.1689775 | S36: 479.9889749 | T36: 514.0681921 | U36: 550.5670338 | V36: 589.6572932 | W36: 631.522961 | X36: 676.3610912 | Y36: 724.3827287 | Z36: 775.8139024 | AA36: 830.8966895 | AB36: 889.8903545 | AC36: 953.0725696 | AD36: 1020.740722 | AE36: 1093.213313 | AF36: 1170.831459 | AG36: 1253.960492 | AH36: 1342.991687 | AI36: 1438.344097 | AJ36: 1540.466528 | AK36: 1649.839651 | AL36: 1766.978266 | AM36: 1892.433723 | AN36: 2026.796518 | AO36: 2170.699071 | AP36: 2324.818705 | AQ36: 2489.880833 | AR36: 2666.662372 | AS36: 2855.9954 | AT36: 3058.771073 | AU36: 3275.94382 | AV36: 3508.535831 | AW36: 3757.641875 | AX36: 4024.434448 | AY36: 4310.169294 | AZ36: 4616.191314 | BA36: 4943.940897 | BB36: 5294.960701 | BC36: 5670.90291 | BD36: 6073.537017 | BE36: 6504.758145 | BF36: 6966.595973 | BG36: 7461.224288 | BH36: 7990.971212 | BI36: 8558.330168 | BJ36: 9165.97161 | BK36: 9816.755594 | BL36: 10513.74524 | BM36: 11260.22115 | BN36: 12059.69686 | BO36: 12915.93533 | BP36: 13832.96674 | BQ36: 14815.10738 | BR36: 15866.98 | BS36: =BS35/(1-$C$36) -> 16993.53558 | BT36: 18200.07661 | BU36: 19492.28205 | BV36: 20876.23408 | BW36: 22358.44669 | BX36: 23945.89641 | BY36: 25646.05505 | BZ36: 27466.92496 | CA36: 29417.07664 | CB36: 31505.68908 | CC36: 33742.593 | CD36: 36138.3171 | CE36: 38704.13762 | CF36: 41452.13139 | CG36: 44395.23272 | CH36: 47547.29424 | CI36: 50923.15213 | CJ36: 54538.69593 | CK36: 58410.94335 | CL36: 62558.12032 | CM36: 66999.74687 | CN36: 71756.72889 | CO36: 76851.45665 | CP36: 82307.91007 | CQ36: 88151.77168 | CR36: 94410.54747 | CS36: 101113.6963 | CT36: 108292.7688 | CU36: 115981.5554 | CV36: 124216.2458 | CW36: 133035.5992 | CX36: 142481.1268 | CY36: 152597.2868 | CZ36: 163431.6942 | DA36: 175035.3444 | DB36: 187462.8539 | DC36: 200772.7165 | DD36: 215027.5794 | DE36: 230294.5375 | DF36: 246645.4497 | DG36: 264157.2766 | DH36: 282912.4433 | DI36: 302999.2267 | DJ36: 324512.1718 | DK36: 347552.536 | DL36: 372228.7661 | DM36: 398657.0085 | DN36: 426961.6561 | DO36: 457275.9337 | DP36: 489742.525 | DQ36: 524514.2443 | DR36: 561754.7556 | DS36: 601639.3432 | DT36: 644355.7366 | DU36: 690104.9939 | DV36: 739102.4485 | DW36: 791578.7223 | DX36: 847780.8116 | DY36: 907973.2492 | DZ36: 972439.3499 | EA36: 1041482.544 | EB36: 1115427.804 | EC36: 1194623.178 | ED36: 1279441.424 | EE36: =EE35/(1-$C$36) -> 1370281.765 | EF36: 1467571.771 | EG36: 1571769.366 | EH36: 1683364.991 | EI36: 1802883.906 | EJ36: 1930888.663 | EK36: 2067981.758 | EL36: 2214808.463 | EM36: 2372059.864 | EN36: 2540476.114 | EO36: 2720849.918 | EP36: 2914030.262 | EQ36: 3120926.411 | ER36: 3342512.186 | ES36: 3579830.551 | ET36: 3833998.521 | EU36: 4106212.416 | EV36: 4397753.497 | EW36: 4709993.995 | EX36: 5044403.569 | EY36: 5402556.222 | EZ36: 5786137.714 | FA36: 6196953.492 | FB36: 6636937.19 | FC36: 7108159.73 | FD36: 7612839.071 | FE36: 8153350.645 | FF36: 8732238.541 | FG36: 9352227.477 | FH36: 10016235.63 | FI36: 10727388.36 | FJ36: 11489032.93 | FK36: 12304754.27 | FL36: 13178391.82 | FM36: 14114057.64 | FN36: 15116155.73 | FO36: 16189402.79 | FP36: 17338850.39 | FQ36: 18569908.77 | FR36: 19888372.29 | FS36: 21300446.72 | FT36: 22812778.44 | FU36: 24432485.71 | FV36: 26167192.19 | FW36: 28025062.84 | FX36: 30014842.3 | FY36: 32145896.11 | FZ36: 34428254.73 | GA36: 36872660.82 | GB36: 39490619.73 | GC36: 42294453.73 | GD36: 45297359.95 | GE36: 48513472.51 | GF36: 51957929.05 | GG36: 55646942.02 | GH36: 59597874.9 | GI36: 63829324.02 | GJ36: 68361206.02 | GK36: 73214851.65 | GL36: 78413106.12 | GM36: 83980436.65 | GN36: 89943047.65 | GO36: 96329004.04 | GP36: 103168363.3 | GQ36: =GQ35/(1-$C$36) -> 110493317.1 | GR36: 118338342.6 | GS36: 126740365 | GT36: 135738930.9 | GU36: 145376395 | GV36: 155698119 | GW36: 166752685.5 | GX36: 178592126.1 | GY36: 191272167.1 | GZ36: 204852490.9 | HA36: 219397017.8 | HB36: 234974206.1 | HC36: 251657374.7 | HD36: 269525048.3 | HE36: 288661326.7 | HF36: 309156280.9 | HG36: 331106376.9 | HH36: 354614929.6 | HI36: 379792589.6 | HJ36: 406757863.5 | HK36: 435637671.8 | HL36: 466567946.5 | HM36: 499694270.7 | HN36: 535172563.9 | HO36: 573169816 | HP36: 613864872.9 | HQ36: 657449278.9 | HR36: 704128177.7 | HS36: 754121278.3 | HT36: 807663889 | HU36: 865008025.2 | HV36: 926423595 | HW36: 992199670.2 | HX36: 1062645847 | HY36: 1138093702 | HZ36: 1218898355 | IA36: 1305440138 | IB36: 1398126388 | IC36: 1497393361 | ID36: 1603708290 | IE36: 1717571578 | IF36: 1839519161 | IG36: 1970125021 | IH36: 2110003897 | II36: 2259814174 | IJ36: 2420260981 | IK36: 2592099510 | IL36: 2776138575 | IM36: 2973244414 | IN36: 3184344768 | IO36: 3410433246 | IP36: 3652574007 | IQ36: 3911906761 | IR36: 4189652141 | IS36: 4487117443 | IT36: 4805702782 | IU36: 5146907679 | IV36: 5512338124 | IW36: 5903714131 | IX36: 6322877834 | IY36: 6771802161 | IZ36: 7252600114 | JA36: 7767534722 | JB36: 8319029687 | JC36: =JC35/(1-$C$36) -> 8909680795 | JD36: 9542268132 | JE36: 1.021976917e+10 | JF36: 1.094537278e+10 | JG36: 1.172249425e+10 | JH36: 1.255479134e+10 | JI36: 1.344618152e+10 | JJ36: 1.440086041e+10 | JK36: 1.54233215e+10 | JL36: 1.651837733e+10 | JM36: 1.769118212e+10 | JN36: 1.894725605e+10 | JO36: 2.029251123e+10 | JP36: 2.173327953e+10 | JQ36: 2.327634237e+10 | JR36: 2.492896268e+10 | JS36: 2.669891903e+10 | JT36: 2.859454228e+10 | JU36: 3.062475478e+10 | JV36: 3.279911237e+10 | JW36: 3.512784935e+10 | JX36: 3.762192666e+10 | JY36: 4.029308345e+10 | JZ36: 4.315389237e+10 | KA36: 4.621781873e+10 | KB36: 4.949928386e+10 | KC36: 5.301373302e+10 | KD36: 5.677770806e+10 | KE36: 6.080892533e+10 | KF36: 6.512635903e+10 | KG36: 6.975033052e+10 | KH36: 7.470260399e+10 | KI36: 8.000648887e+10 | KJ36: 8.568694958e+10 | KK36: 9.1770723e+10 | KL36: 9.828644434e+10 | KM36: 1.052647819e+11 | KN36: 1.127385814e+11 | KO36: 1.207430207e+11 | KP36: 1.293157751e+11 | KQ36: 1.384971952e+11 | KR36: 1.48330496e+11 | KS36: 1.588619613e+11
B37: EBITDA = EBIT + Depreciation | E37: =show_formulaL(F37) -> =F36+F31----> | F37: =F36+F31 -> 304.7857956 | G37: =G36+G31 -> 326.425587 | H37: 349.6018037 | I37: 374.4235318 | J37: 401.0076025 | K37: 429.4791423 | L37: 459.9721614 | M37: 492.6301849 | N37: 527.606928 | O37: 565.0670199 | P37: 605.1867783 | Q37: 648.1550396 | R37: 694.1740474 | S37: 743.4604048 | T37: 796.2460935 | U37: 852.7795661 | V37: 913.3269153 | W37: 978.1731263 | X37: 1047.623418 | Y37: 1122.004681 | Z37: 1201.667013 | AA37: 1286.985371 | AB37: 1378.361333 | AC37: 1476.224987 | AD37: 1581.036961 | AE37: 1693.290586 | AF37: 1813.514217 | AG37: 1942.273727 | AH37: 2080.175161 | AI37: 2227.867598 | AJ37: 2386.046197 | AK37: 2555.455477 | AL37: 2736.892816 | AM37: 2931.212206 | AN37: 3139.328273 | AO37: 3362.22058 | AP37: 3600.938241 | AQ37: 3856.604856 | AR37: 4130.423801 | AS37: 4423.683891 | AT37: 4737.765447 | AU37: 5074.146794 | AV37: 5434.411216 | AW37: 5820.254413 | AX37: 6233.492476 | AY37: 6676.070442 | AZ37: 7150.071443 | BA37: 7657.726515 | BB37: 8201.425098 | BC37: 8783.72628 | BD37: 9407.370846 | BE37: 10075.29418 | BF37: 10790.64006 | BG37: 11556.77551 | BH37: 12377.30657 | BI37: 13256.09533 | BJ37: 14197.2781 | BK37: 15205.28485 | BL37: 16284.86007 | BM37: 17441.08514 | BN37: 18679.40218 | BO37: 20005.63974 | BP37: 21426.04016 | BQ37: 22947.28901 | BR37: 24576.54653 | BS37: =BS36+BS31 -> 26321.48133 | BT37: 28190.30651 | BU37: 30191.81827 | BV37: 32335.43737 | BW37: 34631.25342 | BX37: 37090.07241 | BY37: 39723.46755 | BZ37: 42543.83375 | CA37: 45564.44595 | CB37: 48799.52161 | CC37: 52264.28764 | CD37: 55975.05207 | CE37: 59949.28076 | CF37: 64205.6797 | CG37: 68764.28295 | CH37: 73646.54704 | CI37: 78875.45188 | CJ37: 84475.60897 | CK37: 90473.37721 | CL37: 96896.98699 | CM37: 103776.6731 | CN37: 111144.8169 | CO37: 119036.0988 | CP37: 127487.6619 | CQ37: 136539.2859 | CR37: 146233.5752 | CS37: 156616.159 | CT37: 167735.9063 | CU37: 179645.1556 | CV37: 192399.9617 | CW37: 206060.359 | CX37: 220690.6444 | CY37: 236359.6802 | CZ37: 253141.2175 | DA37: 271114.2439 | DB37: 290363.3552 | DC37: 310979.1535 | DD37: 333058.6734 | DE37: 356705.8392 | DF37: 382031.9538 | DG37: 409156.2225 | DH37: 438206.3143 | DI37: 469318.9626 | DJ37: 502640.6089 | DK37: 538328.0922 | DL37: 576549.3867 | DM37: 617484.3932 | DN37: 661325.7851 | DO37: 708279.9158 | DP37: 758567.7898 | DQ37: 812426.1029 | DR37: 870108.3562 | DS37: 931886.0495 | DT37: 998049.959 | DU37: 1068911.506 | DV37: 1144804.223 | DW37: 1226085.323 | DX37: 1313137.381 | DY37: 1406370.135 | DZ37: 1506222.414 | EA37: 1613164.206 | EB37: 1727698.864 | EC37: 1850365.484 | ED37: 1981741.433 | EE37: =EE36+EE31 -> 2122445.075 | EF37: 2273138.675 | EG37: 2434531.521 | EH37: 2607383.259 | EI37: 2792507.471 | EJ37: 2990775.501 | EK37: 3203120.562 | EL37: 3430542.121 | EM37: 3674110.612 | EN37: 3934972.466 | EO37: 4214355.511 | EP37: 4513574.752 | EQ37: 4834038.559 | ER37: 5177255.297 | ES37: 5544840.423 | ET37: 5938524.093 | EU37: 6360159.304 | EV37: 6811730.614 | EW37: 7295363.488 | EX37: 7813334.296 | EY37: 8368081.03 | EZ37: 8962214.784 | FA37: 9598532.033 | FB37: 10280027.81 | FC37: 11009909.78 | FD37: 11791613.38 | FE37: 12628817.93 | FF37: 13525464 | FG37: 14485771.94 | FH37: 15514261.75 | FI37: 16615774.34 | FJ37: 17795494.31 | FK37: 19058974.41 | FL37: 20412161.59 | FM37: 21861425.07 | FN37: 23413586.24 | FO37: 25075950.87 | FP37: 26856343.38 | FQ37: 28763143.76 | FR37: 30805326.97 | FS37: 32992505.18 | FT37: 35334973.05 | FU37: 37843756.14 | FV37: 40530662.82 | FW37: 43408339.88 | FX37: 46490332.01 | FY37: 49791145.59 | FZ37: 53326316.92 | GA37: 57112485.42 | GB37: 61167471.89 | GC37: 65510362.39 | GD37: 70161598.12 | GE37: 75143071.59 | GF37: 80478229.67 | GG37: 86192183.98 | GH37: 92311829.04 | GI37: 98865968.91 | GJ37: 105885452.7 | GK37: 113403319.8 | GL37: 121454955.5 | GM37: 130078257.4 | GN37: 139313813.7 | GO37: 149205094.4 | GP37: 159798656.1 | GQ37: =GQ36+GQ31 -> 171144360.7 | GR37: 183295610.3 | GS37: 196309598.7 | GT37: 210247580.2 | GU37: 225175158.4 | GV37: 241162594.6 | GW37: 258285138.8 | GX37: 276623383.7 | GY37: 296263643.9 | GZ37: 317298362.7 | HA37: 339826546.4 | HB37: 363954231.2 | HC37: 389794981.6 | HD37: 417470425.3 | HE37: 447110825.5 | HF37: 478855694.1 | HG37: 512854448.4 | HH37: 549267114.2 | HI37: 588265079.3 | HJ37: 630031900 | HK37: 674764164.9 | HL37: 722672420.6 | HM37: 773982162.4 | HN37: 828934896 | HO37: 887789273.6 | HP37: 950822312 | HQ37: 1018330696 | HR37: 1090632176 | HS37: 1168067060 | HT37: 1250999821 | HU37: 1339820809 | HV37: 1434948086 | HW37: 1536829400 | HX37: 1645944288 | HY37: 1762806332 | HZ37: 1887965582 | IA37: 2022011138 | IB37: 2165573929 | IC37: 2319329678 | ID37: 2484002085 | IE37: 2660366233 | IF37: 2849252235 | IG37: 3051549144 | IH37: 3268209133 | II37: 3500251982 | IJ37: 3748769872 | IK37: 4014932533 | IL37: 4299992743 | IM37: 4605292228 | IN37: 4932267976 | IO37: 5282459002 | IP37: 5657513591 | IQ37: 6059197056 | IR37: 6489400047 | IS37: 6950147451 | IT37: 7443607920 | IU37: 7972104082 | IV37: 8538123472 | IW37: 9144330238 | IX37: 9793577685 | IY37: 1.04889217e+10 | IZ37: 1.123363514e+10 | JA37: 1.203122324e+10 | JB37: 1.288544009e+10 | JC37: =JC36+JC31 -> 1.380030633e+10 | JD37: 1.478012808e+10 | JE37: 1.582951718e+10 | JF37: 1.69534129e+10 | JG37: 1.815710521e+10 | JH37: 1.944625968e+10 | JI37: 2.082694412e+10 | JJ37: 2.230565715e+10 | JK37: 2.388935881e+10 | JL37: 2.558550328e+10 | JM37: 2.740207402e+10 | JN37: 2.934762127e+10 | JO37: 3.143130238e+10 | JP37: 3.366292485e+10 | JQ37: 3.605299252e+10 | JR37: 3.861275499e+10 | JS37: 4.135426059e+10 | JT37: 4.429041309e+10 | JU37: 4.743503242e+10 | JV37: 5.080291972e+10 | JW37: 5.440992702e+10 | JX37: 5.827303184e+10 | JY37: 6.24104171e+10 | JZ37: 6.684155672e+10 | KA37: 7.158730724e+10 | KB37: 7.667000606e+10 | KC37: 8.211357649e+10 | KD37: 8.794364042e+10 | KE37: 9.418763889e+10 | KF37: 1.008749613e+11 | KG37: 1.080370835e+11 | KH37: 1.157077164e+11 | KI37: 1.239229643e+11 | KJ37: 1.327214948e+11 | KK37: 1.421447209e+11 | KL37: 1.522369961e+11 | KM37: 1.630458228e+11 | KN37: 1.746220762e+11 | KO37: 1.870202436e+11 | KP37: 2.002986809e+11 | KQ37: 2.145198873e+11 | KR37: 2.297507993e+11 | KS37: 2.46063106e+11
B39: Free Cash Flow (EBITDA - Cap Exp - EBIT x t) | E39: =show_formulaL(F39) -> =F37-F32-F36*$C$36----> | F39: =F37-F32-F36*$C$36 -> 51 | G39: =G37-G32-G36*$C$36 -> 54.621 | H39: 58.499091 | I39: 62.65252646 | J39: 67.10085584 | K39: 71.8650166 | L39: 76.96743278 | M39: 82.43212051 | N39: 88.28480107 | O39: 94.55302194 | P39: 101.2662865 | Q39: 108.4561928 | R39: 116.1565825 | S39: 124.4036999 | T39: 133.2363626 | U39: 142.6961443 | V39: 152.8275706 | W39: 163.6783281 | X39: 175.2994894 | Y39: 187.7457531 | Z39: 201.0757016 | AA39: 215.3520764 | AB39: 230.6420738 | AC39: 247.0176611 | AD39: 264.555915 | AE39: 283.339385 | AF39: 303.4564813 | AG39: 325.0018915 | AH39: 348.0770258 | AI39: 372.7904946 | AJ39: 399.2586197 | AK39: 427.6059817 | AL39: 457.9660064 | AM39: 490.4815929 | AN39: 525.305786 | AO39: 562.6024968 | AP39: 602.5472741 | AQ39: 645.3281305 | AR39: 691.1464278 | AS39: 740.2178242 | AT39: 792.7732897 | AU39: 849.0601933 | AV39: 909.343467 | AW39: 973.9068531 | AX39: 1043.05424 | AY39: 1117.111091 | AZ39: 1196.425978 | BA39: 1281.372223 | BB39: 1372.34965 | BC39: 1469.786476 | BD39: 1574.141315 | BE39: 1685.905349 | BF39: 1805.604629 | BG39: 1933.802557 | BH39: 2071.102539 | BI39: 2218.150819 | BJ39: 2375.639527 | BK39: 2544.309934 | BL39: 2724.955939 | BM39: 2918.42781 | BN39: 3125.636185 | BO39: 3347.556354 | BP39: 3585.232855 | BQ39: 3839.784388 | BR39: 4112.40908 | BS39: =BS37-BS32-BS36*$C$36 -> 4404.390124 | BT39: 4717.101823 | BU39: 5052.016053 | BV39: 5410.709192 | BW39: 5794.869545 | BX39: 6206.305283 | BY39: 6646.952958 | BZ39: 7118.886618 | CA39: 7624.327567 | CB39: 8165.654825 | CC39: 8745.416317 | CD39: 9366.340876 | CE39: 10031.35108 | CF39: 10743.577 | CG39: 11506.37097 | CH39: 12323.32331 | CI39: 13198.27927 | CJ39: 14135.35709 | CK39: 15138.96745 | CL39: 16213.83414 | CM39: 17365.01636 | CN39: 18597.93252 | CO39: 19918.38573 | CP39: 21332.59112 | CQ39: 22847.20509 | CR39: 24469.35665 | CS39: 26206.68097 | CT39: 28067.35532 | CU39: 30060.13755 | CV39: 32194.40731 | CW39: 34480.21023 | CX39: 36928.30516 | CY39: 39550.21482 | CZ39: 42358.28008 | DA39: 45365.71796 | DB39: 48586.68394 | DC39: 52036.3385 | DD39: 55730.91853 | DE39: 59687.81375 | DF39: 63925.64852 | DG39: 68464.36957 | DH39: 73325.33981 | DI39: 78531.43893 | DJ39: 84107.1711 | DK39: 90078.78024 | DL39: 96474.37364 | DM39: 103324.0542 | DN39: 110660.062 | DO39: 118516.9264 | DP39: 126931.6282 | DQ39: 135943.7738 | DR39: 145595.7817 | DS39: 155933.0822 | DT39: 167004.3311 | DU39: 178861.6386 | DV39: 191560.8149 | DW39: 205161.6328 | DX39: 219728.1087 | DY39: 235328.8044 | DZ39: 252037.1495 | EA39: 269931.7872 | EB39: 289096.9441 | EC39: 309622.8271 | ED39: 331606.0478 | EE39: =EE37-EE32-EE36*$C$36 -> 355150.0772 | EF39: 380365.7327 | EG39: 407371.6997 | EH39: 436295.0904 | EI39: 467272.0418 | EJ39: 500448.3568 | EK39: 535980.1901 | EL39: 574034.7836 | EM39: 614791.2532 | EN39: 658441.4322 | EO39: 705190.7739 | EP39: 755259.3188 | EQ39: 808882.7305 | ER39: 866313.4043 | ES39: 927821.656 | ET39: 993696.9936 | EU39: 1064249.48 | EV39: 1139811.193 | EW39: 1220737.788 | EX39: 1307410.171 | EY39: 1400236.293 | EZ39: 1499653.07 | FA39: 1606128.438 | FB39: 1720163.557 | FC39: 1842295.169 | FD39: 1973098.126 | FE39: 2113188.093 | FF39: 2263224.448 | FG39: 2423913.384 | FH39: 2596011.234 | FI39: 2780328.032 | FJ39: 2977731.322 | FK39: 3189150.246 | FL39: 3415579.913 | FM39: 3658086.087 | FN39: 3917810.199 | FO39: 4195974.724 | FP39: 4493888.929 | FQ39: 4812955.043 | FR39: 5154674.851 | FS39: 5520656.765 | FT39: 5912623.396 | FU39: 6332419.657 | FV39: 6782021.452 | FW39: 7263544.976 | FX39: 7779256.669 | FY39: 8331583.892 | FZ39: 8923126.349 | GA39: 9556668.319 | GB39: 10235191.77 | GC39: 10961890.39 | GD39: 11740184.6 | GE39: 12573737.71 | GF39: 13466473.09 | GG39: 14422592.68 | GH39: 15446596.76 | GI39: 16543305.13 | GJ39: 17717879.79 | GK39: 18975849.26 | GL39: 20323134.55 | GM39: 21766077.11 | GN39: 23311468.58 | GO39: 24966582.85 | GP39: 26739210.23 | GQ39: =GQ37-GQ32-GQ36*$C$36 -> 28637694.16 | GR39: 30670970.44 | GS39: 32848609.35 | GT39: 35180860.61 | GU39: 37678701.71 | GV39: 40353889.53 | GW39: 43219015.69 | GX39: 46287565.8 | GY39: 49573982.98 | GZ39: 53093735.77 | HA39: 56863391.01 | HB39: 60900691.77 | HC39: 65224640.88 | HD39: 69855590.39 | HE39: 74815337.3 | HF39: 80127226.25 | HG39: 85816259.32 | HH39: 91909213.73 | HI39: 98434767.9 | HJ39: 105423636.4 | HK39: 112908714.6 | HL39: 120925233.3 | HM39: 129510924.9 | HN39: 138706200.6 | HO39: 148554340.8 | HP39: 159101699 | HQ39: 170397919.7 | HR39: 182496172 | HS39: 195453400.2 | HT39: 209330591.6 | HU39: 224193063.6 | HV39: 240110771.1 | HW39: 257158635.8 | HX39: 275416899 | HY39: 294971498.8 | HZ39: 315914475.2 | IA39: 338344403 | IB39: 362366855.6 | IC39: 388094902.3 | ID39: 415649640.4 | IE39: 445160764.8 | IF39: 476767179.2 | IG39: 510617648.9 | IH39: 546871501.9 | II39: 585699378.6 | IJ39: 627284034.5 | IK39: 671821200.9 | IL39: 719520506.2 | IM39: 770606462.1 | IN39: 825319520.9 | IO39: 883917206.9 | IP39: 946675328.6 | IQ39: 1013889277 | IR39: 1085875416 | IS39: 1162972570 | IT39: 1245543623 | IU39: 1333977220 | IV39: 1428689602 | IW39: 1530126564 | IX39: 1638765550 | IY39: 1755117904 | IZ39: 1879731275 | JA39: 2013192196 | JB39: 2156128842 | JC39: =JC37-JC32-JC36*$C$36 -> 2309213990 | JD39: 2473168183 | JE39: 2648763124 | JF39: 2836825306 | JG39: 3038239902 | JH39: 3253954936 | JI39: 3484985736 | JJ39: 3732419723 | JK39: 3997421524 | JL39: 4281238452 | JM39: 4585206382 | JN39: 4910756035 | JO39: 5259419713 | JP39: 5632838513 | JQ39: 6032770048 | JR39: 6461096721 | JS39: 6919834588 | JT39: 7411142844 | JU39: 7937333986 | JV39: 8500884699 | JW39: 9104447512 | JX39: 9750863286 | JY39: 1.044317458e+10 | JZ39: 1.118463997e+10 | KA39: 1.197874941e+10 | KB39: 1.282924062e+10 | KC39: 1.37401167e+10 | KD39: 1.471566499e+10 | KE39: 1.576047721e+10 | KF39: 1.687947109e+10 | KG39: 1.807791353e+10 | KH39: 1.936144539e+10 | KI39: 2.073610802e+10 | KJ39: 2.220837169e+10 | KK39: 2.378516608e+10 | KL39: 2.547391287e+10 | KM39: 2.728256068e+10 | KN39: 2.921962249e+10 | KO39: 3.129421569e+10 | KP39: 3.3516105e+10 | KQ39: 3.589574846e+10 | KR39: 3.84443466e+10 | KS39: 4.11738952e+10

Sheet 3.04 - PE Ratio (hidden)
H2: Actual P/E | K2: 15
A5: Inputs | L5: Outputs
D6: Short-term | E6: Long-run | M6: Price | P6: =SUMPRODUCT(H31:KU31/H34:KU34) -> 19.53048048 | R6: =show_formulaR(P6) -> < ---- =SUMPRODUCT(H31:KU31/H34:KU34)
C7: Inflation Rate | D7: 0.01 | E7: 0.025 | G7: Initial Book Value | I7: 10 | M7: First Year Earnings | P7: =H30 -> 1.312
G8: Short-term Period | I8: 5 | M8: Compute P/E Ratio | P8: =P6/P7 -> 14.88603695
C9: Real ROE (no inf) | D9: 0.12 | E9: 0.1
C10: Nominal ROE | D10: =(1+Real_ROE__no_inf)*(1+Inflation_Rate)-1 -> 0.1312 | E10: =(1+E7)*(1+E9)-1 -> 0.1275 | G10: =show_formulaR(Nominal_ROE) -> < ---- =(1+Real_ROE__no_inf)*(1+Inflation_Rate)-1 | M10: Book Value | P10: =H29 -> 10
M11: Price to Book | P11: =P6/P10 -> 1.953048048
C12: Real CoE (no inflation) | D12: 0.07 | E12: 0.06
C13: Nominal Cost of Equity | D13: =(1+Real_CoE__no_inflation)*(1+Inflation_Rate)-1 -> 0.0807 | E13: =(1+E12)*(1+E7)-1 -> 0.0865 | G13: =show_formulaR(Nominal_Cost_of_Equity) -> < ---- =(1+Real_CoE__no_inflation)*(1+Inflation_Rate)-1 | M13: Value from Value Driver | P13: =P14*H31 -> 18.86051829
M14: PE from Value Driver | P14: =(1-D16/D10)/(D13-D16) -> 26.67682927
C15: Real growth (no inf) | D15: 0.05 | E15: 0.01
C16: Nominal growth rate | D16: =(1+D15)*(1+D7)-1 -> 0.0605 | E16: =(1+E15)*(1+E7)-1 -> 0.03525
C18: Dividend Payout Ratio | D18: =1-Nominal_growth_rate/Nominal_ROE -> 0.5388719512 | E18: =1-(E16/E10) -> 0.7235294118 | G18: =show_formulaR(Dividend_Payout_Ratio) -> < ---- =1-Nominal_growth_rate/Nominal_ROE
A20: Period | D20: ROE | E20: DPO | F20: COE | G20: 0 | H20: 1 | I20: =H20+1 -> 2 | J20: 3 | K20: 4 | L20: 5 | M20: 6 | N20: 7 | O20: 8 | P20: 9 | Q20: 10 | R20: 11 | S20: 12 | T20: 13 | U20: 14 | V20: 15 | W20: 16 | X20: 17 | Y20: 18 | Z20: 19 | AA20: 20 | AB20: 21 | AC20: 22 | AD20: 23 | AE20: 24 | AF20: 25 | AG20: 26 | AH20: 27 | AI20: 28 | AJ20: 29 | AK20: 30 | AL20: 31 | AM20: 32 | AN20: 33 | AO20: 34 | AP20: 35 | AQ20: 36 | AR20: 37 | AS20: 38 | AT20: 39 | AU20: 40 | AV20: 41 | AW20: 42 | AX20: 43 | AY20: 44 | AZ20: 45 | BA20: 46 | BB20: 47 | BC20: 48 | BD20: 49 | BE20: 50 | BF20: 51 | BG20: 52 | BH20: 53 | BI20: 54 | BJ20: 55 | BK20: 56 | BL20: 57 | BM20: 58 | BN20: 59 | BO20: 60 | BP20: 61 | BQ20: 62 | BR20: 63 | BS20: 64 | BT20: 65 | BU20: =BT20+1 -> 66 | BV20: 67 | BW20: 68 | BX20: 69 | BY20: 70 | BZ20: 71 | CA20: 72 | CB20: 73 | CC20: 74 | CD20: 75 | CE20: 76 | CF20: 77 | CG20: 78 | CH20: 79 | CI20: 80 | CJ20: 81 | CK20: 82 | CL20: 83 | CM20: 84 | CN20: 85 | CO20: 86 | CP20: 87 | CQ20: 88 | CR20: 89 | CS20: 90 | CT20: 91 | CU20: 92 | CV20: 93 | CW20: 94 | CX20: 95 | CY20: 96 | CZ20: 97 | DA20: 98 | DB20: 99 | DC20: 100 | DD20: 101 | DE20: 102 | DF20: 103 | DG20: 104 | DH20: 105 | DI20: 106 | DJ20: 107 | DK20: 108 | DL20: 109 | DM20: 110 | DN20: 111 | DO20: 112 | DP20: 113 | DQ20: 114 | DR20: 115 | DS20: 116 | DT20: 117 | DU20: 118 | DV20: 119 | DW20: 120 | DX20: 121 | DY20: 122 | DZ20: 123 | EA20: 124 | EB20: 125 | EC20: 126 | ED20: 127 | EE20: 128 | EF20: 129 | EG20: =EF20+1 -> 130 | EH20: 131 | EI20: 132 | EJ20: 133 | EK20: 134 | EL20: 135 | EM20: 136 | EN20: 137 | EO20: 138 | EP20: 139 | EQ20: 140 | ER20: 141 | ES20: 142 | ET20: 143 | EU20: 144 | EV20: 145 | EW20: 146 | EX20: 147 | EY20: 148 | EZ20: 149 | FA20: 150 | FB20: 151 | FC20: 152 | FD20: 153 | FE20: 154 | FF20: 155 | FG20: 156 | FH20: 157 | FI20: 158 | FJ20: 159 | FK20: 160 | FL20: 161 | FM20: 162 | FN20: 163 | FO20: 164 | FP20: 165 | FQ20: 166 | FR20: 167 | FS20: 168 | FT20: 169 | FU20: 170 | FV20: 171 | FW20: 172 | FX20: 173 | FY20: 174 | FZ20: 175 | GA20: 176 | GB20: 177 | GC20: 178 | GD20: 179 | GE20: 180 | GF20: 181 | GG20: 182 | GH20: 183 | GI20: 184 | GJ20: 185 | GK20: 186 | GL20: 187 | GM20: 188 | GN20: 189 | GO20: 190 | GP20: 191 | GQ20: 192 | GR20: 193 | GS20: =GR20+1 -> 194 | GT20: 195 | GU20: 196 | GV20: 197 | GW20: 198 | GX20: 199 | GY20: 200 | GZ20: 201 | HA20: 202 | HB20: 203 | HC20: 204 | HD20: 205 | HE20: 206 | HF20: 207 | HG20: 208 | HH20: 209 | HI20: 210 | HJ20: 211 | HK20: 212 | HL20: 213 | HM20: 214 | HN20: 215 | HO20: 216 | HP20: 217 | HQ20: 218 | HR20: 219 | HS20: 220 | HT20: 221 | HU20: 222 | HV20: 223 | HW20: 224 | HX20: 225 | HY20: 226 | HZ20: 227 | IA20: 228 | IB20: 229 | IC20: 230 | ID20: 231 | IE20: 232 | IF20: 233 | IG20: 234 | IH20: 235 | II20: 236 | IJ20: 237 | IK20: 238 | IL20: 239 | IM20: 240 | IN20: 241 | IO20: 242 | IP20: 243 | IQ20: 244 | IR20: 245 | IS20: 246 | IT20: 247 | IU20: 248 | IV20: 249 | IW20: 250 | IX20: 251 | IY20: 252 | IZ20: 253 | JA20: 254 | JB20: 255 | JC20: 256 | JD20: 257 | JE20: =JD20+1 -> 258 | JF20: 259 | JG20: 260 | JH20: 261 | JI20: 262 | JJ20: 263 | JK20: 264 | JL20: 265 | JM20: 266 | JN20: 267 | JO20: 268 | JP20: 269 | JQ20: 270 | JR20: 271 | JS20: 272 | JT20: 273 | JU20: 274 | JV20: 275 | JW20: 276 | JX20: 277 | JY20: 278 | JZ20: 279 | KA20: 280 | KB20: 281 | KC20: 282 | KD20: 283 | KE20: 284 | KF20: 285 | KG20: 286 | KH20: 287 | KI20: 288 | KJ20: 289 | KK20: 290 | KL20: 291 | KM20: 292 | KN20: 293 | KO20: 294 | KP20: 295 | KQ20: 296 | KR20: 297 | KS20: 298 | KT20: 299 | KU20: 300
B21: Short-term Period | D21: =D10 -> 0.1312 | E21: =D18 -> 0.5388719512 | F21: =D13 -> 0.0807 | H21: =H20<=$I$8 -> TRUE | I21: TRUE | J21: TRUE | K21: TRUE | L21: TRUE | M21: FALSE | N21: FALSE | O21: FALSE | P21: FALSE | Q21: FALSE | R21: FALSE | S21: FALSE | T21: FALSE | U21: FALSE | V21: FALSE | W21: FALSE | X21: FALSE | Y21: FALSE | Z21: FALSE | AA21: FALSE | AB21: FALSE | AC21: FALSE | AD21: FALSE | AE21: FALSE | AF21: FALSE | AG21: FALSE | AH21: FALSE | AI21: FALSE | AJ21: FALSE | AK21: FALSE | AL21: FALSE | AM21: FALSE | AN21: FALSE | AO21: FALSE | AP21: FALSE | AQ21: FALSE | AR21: FALSE | AS21: FALSE | AT21: FALSE | AU21: FALSE | AV21: FALSE | AW21: FALSE | AX21: FALSE | AY21: FALSE | AZ21: FALSE | BA21: FALSE | BB21: FALSE | BC21: FALSE | BD21: FALSE | BE21: FALSE | BF21: FALSE | BG21: FALSE | BH21: FALSE | BI21: FALSE | BJ21: FALSE | BK21: FALSE | BL21: FALSE | BM21: FALSE | BN21: FALSE | BO21: FALSE | BP21: FALSE | BQ21: FALSE | BR21: FALSE | BS21: FALSE | BT21: =BT20<=$I$8 -> FALSE | BU21: FALSE | BV21: FALSE | BW21: FALSE | BX21: FALSE | BY21: FALSE | BZ21: FALSE | CA21: FALSE | CB21: FALSE | CC21: FALSE | CD21: FALSE | CE21: FALSE | CF21: FALSE | CG21: FALSE | CH21: FALSE | CI21: FALSE | CJ21: FALSE | CK21: FALSE | CL21: FALSE | CM21: FALSE | CN21: FALSE | CO21: FALSE | CP21: FALSE | CQ21: FALSE | CR21: FALSE | CS21: FALSE | CT21: FALSE | CU21: FALSE | CV21: FALSE | CW21: FALSE | CX21: FALSE | CY21: FALSE | CZ21: FALSE | DA21: FALSE | DB21: FALSE | DC21: FALSE | DD21: FALSE | DE21: FALSE | DF21: FALSE | DG21: FALSE | DH21: FALSE | DI21: FALSE | DJ21: FALSE | DK21: FALSE | DL21: FALSE | DM21: FALSE | DN21: FALSE | DO21: FALSE | DP21: FALSE | DQ21: FALSE | DR21: FALSE | DS21: FALSE | DT21: FALSE | DU21: FALSE | DV21: FALSE | DW21: FALSE | DX21: FALSE | DY21: FALSE | DZ21: FALSE | EA21: FALSE | EB21: FALSE | EC21: FALSE | ED21: FALSE | EE21: FALSE | EF21: =EF20<=$I$8 -> FALSE | EG21: FALSE | EH21: FALSE | EI21: FALSE | EJ21: FALSE | EK21: FALSE | EL21: FALSE | EM21: FALSE | EN21: FALSE | EO21: FALSE | EP21: FALSE | EQ21: FALSE | ER21: FALSE | ES21: FALSE | ET21: FALSE | EU21: FALSE | EV21: FALSE | EW21: FALSE | EX21: FALSE | EY21: FALSE | EZ21: FALSE | FA21: FALSE | FB21: FALSE | FC21: FALSE | FD21: FALSE | FE21: FALSE | FF21: FALSE | FG21: FALSE | FH21: FALSE | FI21: FALSE | FJ21: FALSE | FK21: FALSE | FL21: FALSE | FM21: FALSE | FN21: FALSE | FO21: FALSE | FP21: FALSE | FQ21: FALSE | FR21: FALSE | FS21: FALSE | FT21: FALSE | FU21: FALSE | FV21: FALSE | FW21: FALSE | FX21: FALSE | FY21: FALSE | FZ21: FALSE | GA21: FALSE | GB21: FALSE | GC21: FALSE | GD21: FALSE | GE21: FALSE | GF21: FALSE | GG21: FALSE | GH21: FALSE | GI21: FALSE | GJ21: FALSE | GK21: FALSE | GL21: FALSE | GM21: FALSE | GN21: FALSE | GO21: FALSE | GP21: FALSE | GQ21: FALSE | GR21: =GR20<=$I$8 -> FALSE | GS21: FALSE | GT21: FALSE | GU21: FALSE | GV21: FALSE | GW21: FALSE | GX21: FALSE | GY21: FALSE | GZ21: FALSE | HA21: FALSE | HB21: FALSE | HC21: FALSE | HD21: FALSE | HE21: FALSE | HF21: FALSE | HG21: FALSE | HH21: FALSE | HI21: FALSE | HJ21: FALSE | HK21: FALSE | HL21: FALSE | HM21: FALSE | HN21: FALSE | HO21: FALSE | HP21: FALSE | HQ21: FALSE | HR21: FALSE | HS21: FALSE | HT21: FALSE | HU21: FALSE | HV21: FALSE | HW21: FALSE | HX21: FALSE | HY21: FALSE | HZ21: FALSE | IA21: FALSE | IB21: FALSE | IC21: FALSE | ID21: FALSE | IE21: FALSE | IF21: FALSE | IG21: FALSE | IH21: FALSE | II21: FALSE | IJ21: FALSE | IK21: FALSE | IL21: FALSE | IM21: FALSE | IN21: FALSE | IO21: FALSE | IP21: FALSE | IQ21: FALSE | IR21: FALSE | IS21: FALSE | IT21: FALSE | IU21: FALSE | IV21: FALSE | IW21: FALSE | IX21: FALSE | IY21: FALSE | IZ21: FALSE | JA21: FALSE | JB21: FALSE | JC21: FALSE | JD21: =JD20<=$I$8 -> FALSE | JE21: FALSE | JF21: FALSE | JG21: FALSE | JH21: FALSE | JI21: FALSE | JJ21: FALSE | JK21: FALSE | JL21: FALSE | JM21: FALSE | JN21: FALSE | JO21: FALSE | JP21: FALSE | JQ21: FALSE | JR21: FALSE | JS21: FALSE | JT21: FALSE | JU21: FALSE | JV21: FALSE | JW21: FALSE | JX21: FALSE | JY21: FALSE | JZ21: FALSE | KA21: FALSE | KB21: FALSE | KC21: FALSE | KD21: FALSE | KE21: FALSE | KF21: FALSE | KG21: FALSE | KH21: FALSE | KI21: FALSE | KJ21: FALSE | KK21: FALSE | KL21: FALSE | KM21: FALSE | KN21: FALSE | KO21: FALSE | KP21: FALSE | KQ21: FALSE | KR21: FALSE | KS21: FALSE | KT21: FALSE | KU21: FALSE
B22: Long-term Period | D22: =E10 -> 0.1275 | E22: =E18 -> 0.7235294118 | F22: =E13 -> 0.0865 | H22: =H20>$I$8 -> FALSE | I22: FALSE | J22: FALSE | K22: FALSE | L22: FALSE | M22: TRUE | N22: TRUE | O22: TRUE | P22: TRUE | Q22: TRUE | R22: TRUE | S22: TRUE | T22: TRUE | U22: TRUE | V22: TRUE | W22: TRUE | X22: TRUE | Y22: TRUE | Z22: TRUE | AA22: TRUE | AB22: TRUE | AC22: TRUE | AD22: TRUE | AE22: TRUE | AF22: TRUE | AG22: TRUE | AH22: TRUE | AI22: TRUE | AJ22: TRUE | AK22: TRUE | AL22: TRUE | AM22: TRUE | AN22: TRUE | AO22: TRUE | AP22: TRUE | AQ22: TRUE | AR22: TRUE | AS22: TRUE | AT22: TRUE | AU22: TRUE | AV22: TRUE | AW22: TRUE | AX22: TRUE | AY22: TRUE | AZ22: TRUE | BA22: TRUE | BB22: TRUE | BC22: TRUE | BD22: TRUE | BE22: TRUE | BF22: TRUE | BG22: TRUE | BH22: TRUE | BI22: TRUE | BJ22: TRUE | BK22: TRUE | BL22: TRUE | BM22: TRUE | BN22: TRUE | BO22: TRUE | BP22: TRUE | BQ22: TRUE | BR22: TRUE | BS22: TRUE | BT22: =BT20>$I$8 -> TRUE | BU22: TRUE | BV22: TRUE | BW22: TRUE | BX22: TRUE | BY22: TRUE | BZ22: TRUE | CA22: TRUE | CB22: TRUE | CC22: TRUE | CD22: TRUE | CE22: TRUE | CF22: TRUE | CG22: TRUE | CH22: TRUE | CI22: TRUE | CJ22: TRUE | CK22: TRUE | CL22: TRUE | CM22: TRUE | CN22: TRUE | CO22: TRUE | CP22: TRUE | CQ22: TRUE | CR22: TRUE | CS22: TRUE | CT22: TRUE | CU22: TRUE | CV22: TRUE | CW22: TRUE | CX22: TRUE | CY22: TRUE | CZ22: TRUE | DA22: TRUE | DB22: TRUE | DC22: TRUE | DD22: TRUE | DE22: TRUE | DF22: TRUE | DG22: TRUE | DH22: TRUE | DI22: TRUE | DJ22: TRUE | DK22: TRUE | DL22: TRUE | DM22: TRUE | DN22: TRUE | DO22: TRUE | DP22: TRUE | DQ22: TRUE | DR22: TRUE | DS22: TRUE | DT22: TRUE | DU22: TRUE | DV22: TRUE | DW22: TRUE | DX22: TRUE | DY22: TRUE | DZ22: TRUE | EA22: TRUE | EB22: TRUE | EC22: TRUE | ED22: TRUE | EE22: TRUE | EF22: =EF20>$I$8 -> TRUE | EG22: TRUE | EH22: TRUE | EI22: TRUE | EJ22: TRUE | EK22: TRUE | EL22: TRUE | EM22: TRUE | EN22: TRUE | EO22: TRUE | EP22: TRUE | EQ22: TRUE | ER22: TRUE | ES22: TRUE | ET22: TRUE | EU22: TRUE | EV22: TRUE | EW22: TRUE | EX22: TRUE | EY22: TRUE | EZ22: TRUE | FA22: TRUE | FB22: TRUE | FC22: TRUE | FD22: TRUE | FE22: TRUE | FF22: TRUE | FG22: TRUE | FH22: TRUE | FI22: TRUE | FJ22: TRUE | FK22: TRUE | FL22: TRUE | FM22: TRUE | FN22: TRUE | FO22: TRUE | FP22: TRUE | FQ22: TRUE | FR22: TRUE | FS22: TRUE | FT22: TRUE | FU22: TRUE | FV22: TRUE | FW22: TRUE | FX22: TRUE | FY22: TRUE | FZ22: TRUE | GA22: TRUE | GB22: TRUE | GC22: TRUE | GD22: TRUE | GE22: TRUE | GF22: TRUE | GG22: TRUE | GH22: TRUE | GI22: TRUE | GJ22: TRUE | GK22: TRUE | GL22: TRUE | GM22: TRUE | GN22: TRUE | GO22: TRUE | GP22: TRUE | GQ22: TRUE | GR22: =GR20>$I$8 -> TRUE | GS22: TRUE | GT22: TRUE | GU22: TRUE | GV22: TRUE | GW22: TRUE | GX22: TRUE | GY22: TRUE | GZ22: TRUE | HA22: TRUE | HB22: TRUE | HC22: TRUE | HD22: TRUE | HE22: TRUE | HF22: TRUE | HG22: TRUE | HH22: TRUE | HI22: TRUE | HJ22: TRUE | HK22: TRUE | HL22: TRUE | HM22: TRUE | HN22: TRUE | HO22: TRUE | HP22: TRUE | HQ22: TRUE | HR22: TRUE | HS22: TRUE | HT22: TRUE | HU22: TRUE | HV22: TRUE | HW22: TRUE | HX22: TRUE | HY22: TRUE | HZ22: TRUE | IA22: TRUE | IB22: TRUE | IC22: TRUE | ID22: TRUE | IE22: TRUE | IF22: TRUE | IG22: TRUE | IH22: TRUE | II22: TRUE | IJ22: TRUE | IK22: TRUE | IL22: TRUE | IM22: TRUE | IN22: TRUE | IO22: TRUE | IP22: TRUE | IQ22: TRUE | IR22: TRUE | IS22: TRUE | IT22: TRUE | IU22: TRUE | IV22: TRUE | IW22: TRUE | IX22: TRUE | IY22: TRUE | IZ22: TRUE | JA22: TRUE | JB22: TRUE | JC22: TRUE | JD22: =JD20>$I$8 -> TRUE | JE22: TRUE | JF22: TRUE | JG22: TRUE | JH22: TRUE | JI22: TRUE | JJ22: TRUE | JK22: TRUE | JL22: TRUE | JM22: TRUE | JN22: TRUE | JO22: TRUE | JP22: TRUE | JQ22: TRUE | JR22: TRUE | JS22: TRUE | JT22: TRUE | JU22: TRUE | JV22: TRUE | JW22: TRUE | JX22: TRUE | JY22: TRUE | JZ22: TRUE | KA22: TRUE | KB22: TRUE | KC22: TRUE | KD22: TRUE | KE22: TRUE | KF22: TRUE | KG22: TRUE | KH22: TRUE | KI22: TRUE | KJ22: TRUE | KK22: TRUE | KL22: TRUE | KM22: TRUE | KN22: TRUE | KO22: TRUE | KP22: TRUE | KQ22: TRUE | KR22: TRUE | KS22: TRUE | KT22: TRUE | KU22: TRUE
B24: ROE | D24: =show_formulaL(H24) -> =SUMPRODUCT(H21:H22*$D$21:$D$22)----> | H24: =SUMPRODUCT(H21:H22*$D$21:$D$22) -> 0.1312 | I24: =SUMPRODUCT(I21:I22*$D$21:$D$22) -> 0.1312 | J24: 0.1312 | K24: 0.1312 | L24: 0.1312 | M24: 0.1275 | N24: 0.1275 | O24: 0.1275 | P24: 0.1275 | Q24: 0.1275 | R24: 0.1275 | S24: 0.1275 | T24: 0.1275 | U24: 0.1275 | V24: 0.1275 | W24: 0.1275 | X24: 0.1275 | Y24: 0.1275 | Z24: 0.1275 | AA24: 0.1275 | AB24: 0.1275 | AC24: 0.1275 | AD24: 0.1275 | AE24: 0.1275 | AF24: 0.1275 | AG24: 0.1275 | AH24: 0.1275 | AI24: 0.1275 | AJ24: 0.1275 | AK24: 0.1275 | AL24: 0.1275 | AM24: 0.1275 | AN24: 0.1275 | AO24: 0.1275 | AP24: 0.1275 | AQ24: 0.1275 | AR24: 0.1275 | AS24: 0.1275 | AT24: 0.1275 | AU24: 0.1275 | AV24: 0.1275 | AW24: 0.1275 | AX24: 0.1275 | AY24: 0.1275 | AZ24: 0.1275 | BA24: 0.1275 | BB24: 0.1275 | BC24: 0.1275 | BD24: 0.1275 | BE24: 0.1275 | BF24: 0.1275 | BG24: 0.1275 | BH24: 0.1275 | BI24: 0.1275 | BJ24: 0.1275 | BK24: 0.1275 | BL24: 0.1275 | BM24: 0.1275 | BN24: 0.1275 | BO24: 0.1275 | BP24: 0.1275 | BQ24: 0.1275 | BR24: 0.1275 | BS24: 0.1275 | BT24: 0.1275 | BU24: =SUMPRODUCT(BU21:BU22*$D$21:$D$22) -> 0.1275 | BV24: 0.1275 | BW24: 0.1275 | BX24: 0.1275 | BY24: 0.1275 | BZ24: 0.1275 | CA24: 0.1275 | CB24: 0.1275 | CC24: 0.1275 | CD24: 0.1275 | CE24: 0.1275 | CF24: 0.1275 | CG24: 0.1275 | CH24: 0.1275 | CI24: 0.1275 | CJ24: 0.1275 | CK24: 0.1275 | CL24: 0.1275 | CM24: 0.1275 | CN24: 0.1275 | CO24: 0.1275 | CP24: 0.1275 | CQ24: 0.1275 | CR24: 0.1275 | CS24: 0.1275 | CT24: 0.1275 | CU24: 0.1275 | CV24: 0.1275 | CW24: 0.1275 | CX24: 0.1275 | CY24: 0.1275 | CZ24: 0.1275 | DA24: 0.1275 | DB24: 0.1275 | DC24: 0.1275 | DD24: 0.1275 | DE24: 0.1275 | DF24: 0.1275 | DG24: 0.1275 | DH24: 0.1275 | DI24: 0.1275 | DJ24: 0.1275 | DK24: 0.1275 | DL24: 0.1275 | DM24: 0.1275 | DN24: 0.1275 | DO24: 0.1275 | DP24: 0.1275 | DQ24: 0.1275 | DR24: 0.1275 | DS24: 0.1275 | DT24: 0.1275 | DU24: 0.1275 | DV24: 0.1275 | DW24: 0.1275 | DX24: 0.1275 | DY24: 0.1275 | DZ24: 0.1275 | EA24: 0.1275 | EB24: 0.1275 | EC24: 0.1275 | ED24: 0.1275 | EE24: 0.1275 | EF24: 0.1275 | EG24: =SUMPRODUCT(EG21:EG22*$D$21:$D$22) -> 0.1275 | EH24: 0.1275 | EI24: 0.1275 | EJ24: 0.1275 | EK24: 0.1275 | EL24: 0.1275 | EM24: 0.1275 | EN24: 0.1275 | EO24: 0.1275 | EP24: 0.1275 | EQ24: 0.1275 | ER24: 0.1275 | ES24: 0.1275 | ET24: 0.1275 | EU24: 0.1275 | EV24: 0.1275 | EW24: 0.1275 | EX24: 0.1275 | EY24: 0.1275 | EZ24: 0.1275 | FA24: 0.1275 | FB24: 0.1275 | FC24: 0.1275 | FD24: 0.1275 | FE24: 0.1275 | FF24: 0.1275 | FG24: 0.1275 | FH24: 0.1275 | FI24: 0.1275 | FJ24: 0.1275 | FK24: 0.1275 | FL24: 0.1275 | FM24: 0.1275 | FN24: 0.1275 | FO24: 0.1275 | FP24: 0.1275 | FQ24: 0.1275 | FR24: 0.1275 | FS24: 0.1275 | FT24: 0.1275 | FU24: 0.1275 | FV24: 0.1275 | FW24: 0.1275 | FX24: 0.1275 | FY24: 0.1275 | FZ24: 0.1275 | GA24: 0.1275 | GB24: 0.1275 | GC24: 0.1275 | GD24: 0.1275 | GE24: 0.1275 | GF24: 0.1275 | GG24: 0.1275 | GH24: 0.1275 | GI24: 0.1275 | GJ24: 0.1275 | GK24: 0.1275 | GL24: 0.1275 | GM24: 0.1275 | GN24: 0.1275 | GO24: 0.1275 | GP24: 0.1275 | GQ24: 0.1275 | GR24: 0.1275 | GS24: =SUMPRODUCT(GS21:GS22*$D$21:$D$22) -> 0.1275 | GT24: 0.1275 | GU24: 0.1275 | GV24: 0.1275 | GW24: 0.1275 | GX24: 0.1275 | GY24: 0.1275 | GZ24: 0.1275 | HA24: 0.1275 | HB24: 0.1275 | HC24: 0.1275 | HD24: 0.1275 | HE24: 0.1275 | HF24: 0.1275 | HG24: 0.1275 | HH24: 0.1275 | HI24: 0.1275 | HJ24: 0.1275 | HK24: 0.1275 | HL24: 0.1275 | HM24: 0.1275 | HN24: 0.1275 | HO24: 0.1275 | HP24: 0.1275 | HQ24: 0.1275 | HR24: 0.1275 | HS24: 0.1275 | HT24: 0.1275 | HU24: 0.1275 | HV24: 0.1275 | HW24: 0.1275 | HX24: 0.1275 | HY24: 0.1275 | HZ24: 0.1275 | IA24: 0.1275 | IB24: 0.1275 | IC24: 0.1275 | ID24: 0.1275 | IE24: 0.1275 | IF24: 0.1275 | IG24: 0.1275 | IH24: 0.1275 | II24: 0.1275 | IJ24: 0.1275 | IK24: 0.1275 | IL24: 0.1275 | IM24: 0.1275 | IN24: 0.1275 | IO24: 0.1275 | IP24: 0.1275 | IQ24: 0.1275 | IR24: 0.1275 | IS24: 0.1275 | IT24: 0.1275 | IU24: 0.1275 | IV24: 0.1275 | IW24: 0.1275 | IX24: 0.1275 | IY24: 0.1275 | IZ24: 0.1275 | JA24: 0.1275 | JB24: 0.1275 | JC24: 0.1275 | JD24: 0.1275 | JE24: =SUMPRODUCT(JE21:JE22*$D$21:$D$22) -> 0.1275 | JF24: 0.1275 | JG24: 0.1275 | JH24: 0.1275 | JI24: 0.1275 | JJ24: 0.1275 | JK24: 0.1275 | JL24: 0.1275 | JM24: 0.1275 | JN24: 0.1275 | JO24: 0.1275 | JP24: 0.1275 | JQ24: 0.1275 | JR24: 0.1275 | JS24: 0.1275 | JT24: 0.1275 | JU24: 0.1275 | JV24: 0.1275 | JW24: 0.1275 | JX24: 0.1275 | JY24: 0.1275 | JZ24: 0.1275 | KA24: 0.1275 | KB24: 0.1275 | KC24: 0.1275 | KD24: 0.1275 | KE24: 0.1275 | KF24: 0.1275 | KG24: 0.1275 | KH24: 0.1275 | KI24: 0.1275 | KJ24: 0.1275 | KK24: 0.1275 | KL24: 0.1275 | KM24: 0.1275 | KN24: 0.1275 | KO24: 0.1275 | KP24: 0.1275 | KQ24: 0.1275 | KR24: 0.1275 | KS24: 0.1275 | KT24: 0.1275 | KU24: 0.1275
B25: Dividend Payout | D25: =show_formulaL(H25) -> =SUMPRODUCT(H21:H22*$E$21:$E$22)----> | H25: =SUMPRODUCT(H21:H22*$E$21:$E$22) -> 0.5388719512 | I25: =SUMPRODUCT(I21:I22*$E$21:$E$22) -> 0.5388719512 | J25: 0.5388719512 | K25: 0.5388719512 | L25: 0.5388719512 | M25: 0.7235294118 | N25: 0.7235294118 | O25: 0.7235294118 | P25: 0.7235294118 | Q25: 0.7235294118 | R25: 0.7235294118 | S25: 0.7235294118 | T25: 0.7235294118 | U25: 0.7235294118 | V25: 0.7235294118 | W25: 0.7235294118 | X25: 0.7235294118 | Y25: 0.7235294118 | Z25: 0.7235294118 | AA25: 0.7235294118 | AB25: 0.7235294118 | AC25: 0.7235294118 | AD25: 0.7235294118 | AE25: 0.7235294118 | AF25: 0.7235294118 | AG25: 0.7235294118 | AH25: 0.7235294118 | AI25: 0.7235294118 | AJ25: 0.7235294118 | AK25: 0.7235294118 | AL25: 0.7235294118 | AM25: 0.7235294118 | AN25: 0.7235294118 | AO25: 0.7235294118 | AP25: 0.7235294118 | AQ25: 0.7235294118 | AR25: 0.7235294118 | AS25: 0.7235294118 | AT25: 0.7235294118 | AU25: 0.7235294118 | AV25: 0.7235294118 | AW25: 0.7235294118 | AX25: 0.7235294118 | AY25: 0.7235294118 | AZ25: 0.7235294118 | BA25: 0.7235294118 | BB25: 0.7235294118 | BC25: 0.7235294118 | BD25: 0.7235294118 | BE25: 0.7235294118 | BF25: 0.7235294118 | BG25: 0.7235294118 | BH25: 0.7235294118 | BI25: 0.7235294118 | BJ25: 0.7235294118 | BK25: 0.7235294118 | BL25: 0.7235294118 | BM25: 0.7235294118 | BN25: 0.7235294118 | BO25: 0.7235294118 | BP25: 0.7235294118 | BQ25: 0.7235294118 | BR25: 0.7235294118 | BS25: 0.7235294118 | BT25: 0.7235294118 | BU25: =SUMPRODUCT(BU21:BU22*$E$21:$E$22) -> 0.7235294118 | BV25: 0.7235294118 | BW25: 0.7235294118 | BX25: 0.7235294118 | BY25: 0.7235294118 | BZ25: 0.7235294118 | CA25: 0.7235294118 | CB25: 0.7235294118 | CC25: 0.7235294118 | CD25: 0.7235294118 | CE25: 0.7235294118 | CF25: 0.7235294118 | CG25: 0.7235294118 | CH25: 0.7235294118 | CI25: 0.7235294118 | CJ25: 0.7235294118 | CK25: 0.7235294118 | CL25: 0.7235294118 | CM25: 0.7235294118 | CN25: 0.7235294118 | CO25: 0.7235294118 | CP25: 0.7235294118 | CQ25: 0.7235294118 | CR25: 0.7235294118 | CS25: 0.7235294118 | CT25: 0.7235294118 | CU25: 0.7235294118 | CV25: 0.7235294118 | CW25: 0.7235294118 | CX25: 0.7235294118 | CY25: 0.7235294118 | CZ25: 0.7235294118 | DA25: 0.7235294118 | DB25: 0.7235294118 | DC25: 0.7235294118 | DD25: 0.7235294118 | DE25: 0.7235294118 | DF25: 0.7235294118 | DG25: 0.7235294118 | DH25: 0.7235294118 | DI25: 0.7235294118 | DJ25: 0.7235294118 | DK25: 0.7235294118 | DL25: 0.7235294118 | DM25: 0.7235294118 | DN25: 0.7235294118 | DO25: 0.7235294118 | DP25: 0.7235294118 | DQ25: 0.7235294118 | DR25: 0.7235294118 | DS25: 0.7235294118 | DT25: 0.7235294118 | DU25: 0.7235294118 | DV25: 0.7235294118 | DW25: 0.7235294118 | DX25: 0.7235294118 | DY25: 0.7235294118 | DZ25: 0.7235294118 | EA25: 0.7235294118 | EB25: 0.7235294118 | EC25: 0.7235294118 | ED25: 0.7235294118 | EE25: 0.7235294118 | EF25: 0.7235294118 | EG25: =SUMPRODUCT(EG21:EG22*$E$21:$E$22) -> 0.7235294118 | EH25: 0.7235294118 | EI25: 0.7235294118 | EJ25: 0.7235294118 | EK25: 0.7235294118 | EL25: 0.7235294118 | EM25: 0.7235294118 | EN25: 0.7235294118 | EO25: 0.7235294118 | EP25: 0.7235294118 | EQ25: 0.7235294118 | ER25: 0.7235294118 | ES25: 0.7235294118 | ET25: 0.7235294118 | EU25: 0.7235294118 | EV25: 0.7235294118 | EW25: 0.7235294118 | EX25: 0.7235294118 | EY25: 0.7235294118 | EZ25: 0.7235294118 | FA25: 0.7235294118 | FB25: 0.7235294118 | FC25: 0.7235294118 | FD25: 0.7235294118 | FE25: 0.7235294118 | FF25: 0.7235294118 | FG25: 0.7235294118 | FH25: 0.7235294118 | FI25: 0.7235294118 | FJ25: 0.7235294118 | FK25: 0.7235294118 | FL25: 0.7235294118 | FM25: 0.7235294118 | FN25: 0.7235294118 | FO25: 0.7235294118 | FP25: 0.7235294118 | FQ25: 0.7235294118 | FR25: 0.7235294118 | FS25: 0.7235294118 | FT25: 0.7235294118 | FU25: 0.7235294118 | FV25: 0.7235294118 | FW25: 0.7235294118 | FX25: 0.7235294118 | FY25: 0.7235294118 | FZ25: 0.7235294118 | GA25: 0.7235294118 | GB25: 0.7235294118 | GC25: 0.7235294118 | GD25: 0.7235294118 | GE25: 0.7235294118 | GF25: 0.7235294118 | GG25: 0.7235294118 | GH25: 0.7235294118 | GI25: 0.7235294118 | GJ25: 0.7235294118 | GK25: 0.7235294118 | GL25: 0.7235294118 | GM25: 0.7235294118 | GN25: 0.7235294118 | GO25: 0.7235294118 | GP25: 0.7235294118 | GQ25: 0.7235294118 | GR25: 0.7235294118 | GS25: =SUMPRODUCT(GS21:GS22*$E$21:$E$22) -> 0.7235294118 | GT25: 0.7235294118 | GU25: 0.7235294118 | GV25: 0.7235294118 | GW25: 0.7235294118 | GX25: 0.7235294118 | GY25: 0.7235294118 | GZ25: 0.7235294118 | HA25: 0.7235294118 | HB25: 0.7235294118 | HC25: 0.7235294118 | HD25: 0.7235294118 | HE25: 0.7235294118 | HF25: 0.7235294118 | HG25: 0.7235294118 | HH25: 0.7235294118 | HI25: 0.7235294118 | HJ25: 0.7235294118 | HK25: 0.7235294118 | HL25: 0.7235294118 | HM25: 0.7235294118 | HN25: 0.7235294118 | HO25: 0.7235294118 | HP25: 0.7235294118 | HQ25: 0.7235294118 | HR25: 0.7235294118 | HS25: 0.7235294118 | HT25: 0.7235294118 | HU25: 0.7235294118 | HV25: 0.7235294118 | HW25: 0.7235294118 | HX25: 0.7235294118 | HY25: 0.7235294118 | HZ25: 0.7235294118 | IA25: 0.7235294118 | IB25: 0.7235294118 | IC25: 0.7235294118 | ID25: 0.7235294118 | IE25: 0.7235294118 | IF25: 0.7235294118 | IG25: 0.7235294118 | IH25: 0.7235294118 | II25: 0.7235294118 | IJ25: 0.7235294118 | IK25: 0.7235294118 | IL25: 0.7235294118 | IM25: 0.7235294118 | IN25: 0.7235294118 | IO25: 0.7235294118 | IP25: 0.7235294118 | IQ25: 0.7235294118 | IR25: 0.7235294118 | IS25: 0.7235294118 | IT25: 0.7235294118 | IU25: 0.7235294118 | IV25: 0.7235294118 | IW25: 0.7235294118 | IX25: 0.7235294118 | IY25: 0.7235294118 | IZ25: 0.7235294118 | JA25: 0.7235294118 | JB25: 0.7235294118 | JC25: 0.7235294118 | JD25: 0.7235294118 | JE25: =SUMPRODUCT(JE21:JE22*$E$21:$E$22) -> 0.7235294118 | JF25: 0.7235294118 | JG25: 0.7235294118 | JH25: 0.7235294118 | JI25: 0.7235294118 | JJ25: 0.7235294118 | JK25: 0.7235294118 | JL25: 0.7235294118 | JM25: 0.7235294118 | JN25: 0.7235294118 | JO25: 0.7235294118 | JP25: 0.7235294118 | JQ25: 0.7235294118 | JR25: 0.7235294118 | JS25: 0.7235294118 | JT25: 0.7235294118 | JU25: 0.7235294118 | JV25: 0.7235294118 | JW25: 0.7235294118 | JX25: 0.7235294118 | JY25: 0.7235294118 | JZ25: 0.7235294118 | KA25: 0.7235294118 | KB25: 0.7235294118 | KC25: 0.7235294118 | KD25: 0.7235294118 | KE25: 0.7235294118 | KF25: 0.7235294118 | KG25: 0.7235294118 | KH25: 0.7235294118 | KI25: 0.7235294118 | KJ25: 0.7235294118 | KK25: 0.7235294118 | KL25: 0.7235294118 | KM25: 0.7235294118 | KN25: 0.7235294118 | KO25: 0.7235294118 | KP25: 0.7235294118 | KQ25: 0.7235294118 | KR25: 0.7235294118 | KS25: 0.7235294118 | KT25: 0.7235294118 | KU25: 0.7235294118
B26: Cost of Equity | D26: =show_formulaL(H26) -> =SUMPRODUCT(H21:H22*$F$21:$F$22)----> | H26: =SUMPRODUCT(H21:H22*$F$21:$F$22) -> 0.0807 | I26: =SUMPRODUCT(I21:I22*$F$21:$F$22) -> 0.0807 | J26: 0.0807 | K26: 0.0807 | L26: 0.0807 | M26: 0.0865 | N26: 0.0865 | O26: 0.0865 | P26: 0.0865 | Q26: 0.0865 | R26: 0.0865 | S26: 0.0865 | T26: 0.0865 | U26: 0.0865 | V26: 0.0865 | W26: 0.0865 | X26: 0.0865 | Y26: 0.0865 | Z26: 0.0865 | AA26: 0.0865 | AB26: 0.0865 | AC26: 0.0865 | AD26: 0.0865 | AE26: 0.0865 | AF26: 0.0865 | AG26: 0.0865 | AH26: 0.0865 | AI26: 0.0865 | AJ26: 0.0865 | AK26: 0.0865 | AL26: 0.0865 | AM26: 0.0865 | AN26: 0.0865 | AO26: 0.0865 | AP26: 0.0865 | AQ26: 0.0865 | AR26: 0.0865 | AS26: 0.0865 | AT26: 0.0865 | AU26: 0.0865 | AV26: 0.0865 | AW26: 0.0865 | AX26: 0.0865 | AY26: 0.0865 | AZ26: 0.0865 | BA26: 0.0865 | BB26: 0.0865 | BC26: 0.0865 | BD26: 0.0865 | BE26: 0.0865 | BF26: 0.0865 | BG26: 0.0865 | BH26: 0.0865 | BI26: 0.0865 | BJ26: 0.0865 | BK26: 0.0865 | BL26: 0.0865 | BM26: 0.0865 | BN26: 0.0865 | BO26: 0.0865 | BP26: 0.0865 | BQ26: 0.0865 | BR26: 0.0865 | BS26: 0.0865 | BT26: 0.0865 | BU26: =SUMPRODUCT(BU21:BU22*$F$21:$F$22) -> 0.0865 | BV26: 0.0865 | BW26: 0.0865 | BX26: 0.0865 | BY26: 0.0865 | BZ26: 0.0865 | CA26: 0.0865 | CB26: 0.0865 | CC26: 0.0865 | CD26: 0.0865 | CE26: 0.0865 | CF26: 0.0865 | CG26: 0.0865 | CH26: 0.0865 | CI26: 0.0865 | CJ26: 0.0865 | CK26: 0.0865 | CL26: 0.0865 | CM26: 0.0865 | CN26: 0.0865 | CO26: 0.0865 | CP26: 0.0865 | CQ26: 0.0865 | CR26: 0.0865 | CS26: 0.0865 | CT26: 0.0865 | CU26: 0.0865 | CV26: 0.0865 | CW26: 0.0865 | CX26: 0.0865 | CY26: 0.0865 | CZ26: 0.0865 | DA26: 0.0865 | DB26: 0.0865 | DC26: 0.0865 | DD26: 0.0865 | DE26: 0.0865 | DF26: 0.0865 | DG26: 0.0865 | DH26: 0.0865 | DI26: 0.0865 | DJ26: 0.0865 | DK26: 0.0865 | DL26: 0.0865 | DM26: 0.0865 | DN26: 0.0865 | DO26: 0.0865 | DP26: 0.0865 | DQ26: 0.0865 | DR26: 0.0865 | DS26: 0.0865 | DT26: 0.0865 | DU26: 0.0865 | DV26: 0.0865 | DW26: 0.0865 | DX26: 0.0865 | DY26: 0.0865 | DZ26: 0.0865 | EA26: 0.0865 | EB26: 0.0865 | EC26: 0.0865 | ED26: 0.0865 | EE26: 0.0865 | EF26: 0.0865 | EG26: =SUMPRODUCT(EG21:EG22*$F$21:$F$22) -> 0.0865 | EH26: 0.0865 | EI26: 0.0865 | EJ26: 0.0865 | EK26: 0.0865 | EL26: 0.0865 | EM26: 0.0865 | EN26: 0.0865 | EO26: 0.0865 | EP26: 0.0865 | EQ26: 0.0865 | ER26: 0.0865 | ES26: 0.0865 | ET26: 0.0865 | EU26: 0.0865 | EV26: 0.0865 | EW26: 0.0865 | EX26: 0.0865 | EY26: 0.0865 | EZ26: 0.0865 | FA26: 0.0865 | FB26: 0.0865 | FC26: 0.0865 | FD26: 0.0865 | FE26: 0.0865 | FF26: 0.0865 | FG26: 0.0865 | FH26: 0.0865 | FI26: 0.0865 | FJ26: 0.0865 | FK26: 0.0865 | FL26: 0.0865 | FM26: 0.0865 | FN26: 0.0865 | FO26: 0.0865 | FP26: 0.0865 | FQ26: 0.0865 | FR26: 0.0865 | FS26: 0.0865 | FT26: 0.0865 | FU26: 0.0865 | FV26: 0.0865 | FW26: 0.0865 | FX26: 0.0865 | FY26: 0.0865 | FZ26: 0.0865 | GA26: 0.0865 | GB26: 0.0865 | GC26: 0.0865 | GD26: 0.0865 | GE26: 0.0865 | GF26: 0.0865 | GG26: 0.0865 | GH26: 0.0865 | GI26: 0.0865 | GJ26: 0.0865 | GK26: 0.0865 | GL26: 0.0865 | GM26: 0.0865 | GN26: 0.0865 | GO26: 0.0865 | GP26: 0.0865 | GQ26: 0.0865 | GR26: 0.0865 | GS26: =SUMPRODUCT(GS21:GS22*$F$21:$F$22) -> 0.0865 | GT26: 0.0865 | GU26: 0.0865 | GV26: 0.0865 | GW26: 0.0865 | GX26: 0.0865 | GY26: 0.0865 | GZ26: 0.0865 | HA26: 0.0865 | HB26: 0.0865 | HC26: 0.0865 | HD26: 0.0865 | HE26: 0.0865 | HF26: 0.0865 | HG26: 0.0865 | HH26: 0.0865 | HI26: 0.0865 | HJ26: 0.0865 | HK26: 0.0865 | HL26: 0.0865 | HM26: 0.0865 | HN26: 0.0865 | HO26: 0.0865 | HP26: 0.0865 | HQ26: 0.0865 | HR26: 0.0865 | HS26: 0.0865 | HT26: 0.0865 | HU26: 0.0865 | HV26: 0.0865 | HW26: 0.0865 | HX26: 0.0865 | HY26: 0.0865 | HZ26: 0.0865 | IA26: 0.0865 | IB26: 0.0865 | IC26: 0.0865 | ID26: 0.0865 | IE26: 0.0865 | IF26: 0.0865 | IG26: 0.0865 | IH26: 0.0865 | II26: 0.0865 | IJ26: 0.0865 | IK26: 0.0865 | IL26: 0.0865 | IM26: 0.0865 | IN26: 0.0865 | IO26: 0.0865 | IP26: 0.0865 | IQ26: 0.0865 | IR26: 0.0865 | IS26: 0.0865 | IT26: 0.0865 | IU26: 0.0865 | IV26: 0.0865 | IW26: 0.0865 | IX26: 0.0865 | IY26: 0.0865 | IZ26: 0.0865 | JA26: 0.0865 | JB26: 0.0865 | JC26: 0.0865 | JD26: 0.0865 | JE26: =SUMPRODUCT(JE21:JE22*$F$21:$F$22) -> 0.0865 | JF26: 0.0865 | JG26: 0.0865 | JH26: 0.0865 | JI26: 0.0865 | JJ26: 0.0865 | JK26: 0.0865 | JL26: 0.0865 | JM26: 0.0865 | JN26: 0.0865 | JO26: 0.0865 | JP26: 0.0865 | JQ26: 0.0865 | JR26: 0.0865 | JS26: 0.0865 | JT26: 0.0865 | JU26: 0.0865 | JV26: 0.0865 | JW26: 0.0865 | JX26: 0.0865 | JY26: 0.0865 | JZ26: 0.0865 | KA26: 0.0865 | KB26: 0.0865 | KC26: 0.0865 | KD26: 0.0865 | KE26: 0.0865 | KF26: 0.0865 | KG26: 0.0865 | KH26: 0.0865 | KI26: 0.0865 | KJ26: 0.0865 | KK26: 0.0865 | KL26: 0.0865 | KM26: 0.0865 | KN26: 0.0865 | KO26: 0.0865 | KP26: 0.0865 | KQ26: 0.0865 | KR26: 0.0865 | KS26: 0.0865 | KT26: 0.0865 | KU26: 0.0865
B28: Book Value
C29: Opening Equity Balance | H29: =G32 -> 10 | I29: =H32 -> 10.605 | J29: 11.2466025 | K29: 11.92702195 | L29: 12.64860678 | M29: 13.41384749 | N29: 13.88668561 | O29: 14.37619128 | P29: 14.88295202 | Q29: 15.40757608 | R29: 15.95069314 | S29: 16.51295507 | T29: 17.09503674 | U29: 17.69763678 | V29: 18.32147848 | W29: 18.9673106 | X29: 19.6359083 | Y29: 20.32807406 | Z29: 21.04463867 | AA29: 21.78646219 | AB29: 22.55443498 | AC29: 23.34947881 | AD29: 24.17254794 | AE29: 25.02463026 | AF29: 25.90674847 | AG29: 26.81996136 | AH29: 27.76536499 | AI29: 28.74409411 | AJ29: 29.75732343 | AK29: 30.80626908 | AL29: 31.89219006 | AM29: 33.01638976 | AN29: 34.1802175 | AO29: 35.38507017 | AP29: 36.63239389 | AQ29: 37.92368578 | AR29: 39.2604957 | AS29: 40.64442817 | AT29: 42.07714427 | AU29: 43.5603636 | AV29: 45.09586642 | AW29: 46.68549571 | AX29: 48.33115943 | AY29: 50.0348328 | AZ29: 51.79856066 | BA29: 53.62445992 | BB29: 55.51472214 | BC29: 57.47161609 | BD29: 59.49749056 | BE29: 61.5947771 | BF29: 63.76599299 | BG29: 66.01374425 | BH29: 68.34072873 | BI29: 70.74973942 | BJ29: 73.24366773 | BK29: 75.82550702 | BL29: 78.49835614 | BM29: 81.2654232 | BN29: 84.13002937 | BO29: 87.0956129 | BP29: 90.16573326 | BQ29: 93.34407535 | BR29: 96.63445401 | BS29: 100.0408185 | BT29: 103.5672574 | BU29: =BT32 -> 107.2180032 | BV29: 110.9974378 | BW29: 114.9100975 | BX29: 118.9606784 | BY29: 123.1540423 | BZ29: 127.4952223 | CA29: 131.9894289 | CB29: 136.6420563 | CC29: 141.4586888 | CD29: 146.4451075 | CE29: 151.6072976 | CF29: 156.9514548 | CG29: 162.4839936 | CH29: 168.2115544 | CI29: 174.1410117 | CJ29: 180.2794823 | CK29: 186.6343341 | CL29: 193.2131944 | CM29: 200.0239595 | CN29: 207.074804 | CO29: 214.3741909 | CP29: 221.9308811 | CQ29: 229.7539447 | CR29: 237.8527712 | CS29: 246.2370814 | CT29: 254.9169385 | CU29: 263.9027606 | CV29: 273.2053329 | CW29: 282.8358209 | CX29: 292.8057836 | CY29: 303.1271875 | CZ29: 313.8124208 | DA29: 324.8743087 | DB29: 336.326128 | DC29: 348.181624 | DD29: 360.4550263 | DE29: 373.161066 | DF29: 386.3149935 | DG29: 399.9325971 | DH29: 414.0302211 | DI29: 428.6247864 | DJ29: 443.7338101 | DK29: 459.3754269 | DL29: 475.5684107 | DM29: 492.3321972 | DN29: 509.6869072 | DO29: 527.6533706 | DP29: 546.253152 | DQ29: 565.5085756 | DR29: 585.4427529 | DS29: 606.0796099 | DT29: 627.4439161 | DU29: 649.5613142 | DV29: 672.4583505 | DW29: 696.1625074 | DX29: 720.7022357 | DY29: 746.1069896 | DZ29: 772.4072609 | EA29: 799.6346169 | EB29: 827.8217371 | EC29: 857.0024534 | ED29: 887.2117898 | EE29: 918.4860054 | EF29: 950.8626371 | EG29: =EF32 -> 984.3805451 | EH29: 1019.079959 | EI29: 1055.002528 | EJ29: 1092.191367 | EK29: 1130.691113 | EL29: 1170.547974 | EM29: 1211.80979 | EN29: 1254.526086 | EO29: 1298.74813 | EP29: 1344.529002 | EQ29: 1391.923649 | ER29: 1440.988958 | ES29: 1491.783818 | ET29: 1544.369198 | EU29: 1598.808212 | EV29: 1655.166202 | EW29: 1713.51081 | EX29: 1773.912066 | EY29: 1836.442467 | EZ29: 1901.177064 | FA29: 1968.193555 | FB29: 2037.572378 | FC29: 2109.396804 | FD29: 2183.753042 | FE29: 2260.730336 | FF29: 2340.421081 | FG29: 2422.920924 | FH29: 2508.328886 | FI29: 2596.74748 | FJ29: 2688.282828 | FK29: 2783.044798 | FL29: 2881.147127 | FM29: 2982.707563 | FN29: 3087.848005 | FO29: 3196.694647 | FP29: 3309.378133 | FQ29: 3426.033713 | FR29: 3546.801401 | FS29: 3671.82615 | FT29: 3801.258022 | FU29: 3935.252367 | FV29: 4073.970013 | FW29: 4217.577456 | FX29: 4366.247062 | FY29: 4520.157271 | FZ29: 4679.492814 | GA29: 4844.444936 | GB29: 5015.21162 | GC29: 5191.99783 | GD29: 5375.015753 | GE29: 5564.485059 | GF29: 5760.633157 | GG29: 5963.695476 | GH29: 6173.915741 | GI29: 6391.546271 | GJ29: 6616.848277 | GK29: 6850.092179 | GL29: 7091.557928 | GM29: 7341.535345 | GN29: 7600.324466 | GO29: 7868.235904 | GP29: 8145.591219 | GQ29: 8432.72331 | GR29: 8729.976806 | GS29: =GR32 -> 9037.708489 | GT29: 9356.287713 | GU29: 9686.096855 | GV29: 10027.53177 | GW29: 10381.00226 | GX29: 10746.93259 | GY29: 11125.76197 | GZ29: 11517.94508 | HA29: 11923.95264 | HB29: 12344.27197 | HC29: 12779.40756 | HD29: 13229.88167 | HE29: 13696.235 | HF29: 14179.02729 | HG29: 14678.838 | HH29: 15196.26704 | HI29: 15731.93545 | HJ29: 16286.48618 | HK29: 16860.58481 | HL29: 17454.92043 | HM29: 18070.20637 | HN29: 18707.18115 | HO29: 19366.60928 | HP29: 20049.28226 | HQ29: 20756.01946 | HR29: 21487.66915 | HS29: 22245.10949 | HT29: 23029.24959 | HU29: 23841.03064 | HV29: 24681.42697 | HW29: 25551.44727 | HX29: 26452.13579 | HY29: 27384.57358 | HZ29: 28349.8798 | IA29: 29349.21306 | IB29: 30383.77282 | IC29: 31454.80081 | ID29: 32563.58254 | IE29: 33711.44882 | IF29: 34899.77739 | IG29: 36129.99455 | IH29: 37403.57686 | II29: 38722.05294 | IJ29: 40087.00531 | IK29: 41500.07224 | IL29: 42962.94979 | IM29: 44477.39377 | IN29: 46045.2219 | IO29: 47668.31597 | IP29: 49348.62411 | IQ29: 51088.16311 | IR29: 52889.02086 | IS29: 54753.35884 | IT29: 56683.41474 | IU29: 58681.50511 | IV29: 60750.02817 | IW29: 62891.46666 | IX29: 65108.39086 | IY29: 67403.46164 | IZ29: 69779.43366 | JA29: 72239.1587 | JB29: 74785.58904 | JC29: 77421.78106 | JD29: 80150.89884 | JE29: =JD32 -> 82976.21802 | JF29: 85901.12971 | JG29: 88929.14453 | JH29: 92063.89688 | JI29: 95309.14924 | JJ29: 98668.79675 | JK29: 102146.8718 | JL29: 105747.5491 | JM29: 109475.1502 | JN29: 113334.1492 | JO29: 117329.178 | JP29: 121465.0315 | JQ29: 125746.6739 | JR29: 130179.2441 | JS29: 134768.0625 | JT29: 139518.6367 | JU29: 144436.6686 | JV29: 149528.0612 | JW29: 154798.9253 | JX29: 160255.5875 | JY29: 165904.5969 | JZ29: 171752.734 | KA29: 177807.0178 | KB29: 184074.7152 | KC29: 190563.3489 | KD29: 197280.707 | KE29: 204234.8519 | KF29: 211434.1304 | KG29: 218887.1835 | KH29: 226602.9567 | KI29: 234590.711 | KJ29: 242860.0335 | KK29: 251420.8497 | KL29: 260283.4347 | KM29: 269458.4257 | KN29: 278956.8352 | KO29: 288790.0637 | KP29: 298969.9134 | KQ29: 309508.6029 | KR29: 320418.7811 | KS29: 331713.5432 | KT29: 343406.4455 | KU29: 355511.5228
C30: Add: Net Income (ROE x Opening Balance) | D30: =show_formulaL(H30) -> =H29:KU29*roe----> | H30: =H29:KU29*roe -> 1.312 | I30: 1.391376 | J30: 1.475554248 | K30: 1.56482528 | L30: 1.659497209 | M30: 1.710265555 | N30: 1.770552416 | O30: 1.832964388 | P30: 1.897576383 | Q30: 1.964465951 | R30: 2.033713375 | S30: 2.105401772 | T30: 2.179617184 | U30: 2.25644869 | V30: 2.335988506 | W30: 2.418332101 | X30: 2.503578308 | Y30: 2.591829443 | Z30: 2.683191431 | AA30: 2.777773929 | AB30: 2.87569046 | AC30: 2.977058549 | AD30: 3.081999862 | AE30: 3.190640358 | AF30: 3.30311043 | AG30: 3.419545073 | AH30: 3.540084037 | AI30: 3.664871999 | AJ30: 3.794058737 | AK30: 3.927799307 | AL30: 4.066254233 | AM30: 4.209589695 | AN30: 4.357977731 | AO30: 4.511596446 | AP30: 4.670630221 | AQ30: 4.835269937 | AR30: 5.005713202 | AS30: 5.182164592 | AT30: 5.364835894 | AU30: 5.553946359 | AV30: 5.749722968 | AW30: 5.952400703 | AX30: 6.162222828 | AY30: 6.379441183 | AZ30: 6.604316484 | BA30: 6.83711864 | BB30: 7.078127072 | BC30: 7.327631052 | BD30: 7.585930046 | BE30: 7.85333408 | BF30: 8.130164107 | BG30: 8.416752391 | BH30: 8.713442913 | BI30: 9.020591776 | BJ30: 9.338567636 | BK30: 9.667752145 | BL30: 10.00854041 | BM30: 10.36134146 | BN30: 10.72657874 | BO30: 11.10469064 | BP30: 11.49613099 | BQ30: 11.90136961 | BR30: 12.32089289 | BS30: 12.75520436 | BT30: 13.20482531 | BU30: 13.67029541 | BV30: 14.15217332 | BW30: 14.65103743 | BX30: 15.1674865 | BY30: 15.7021404 | BZ30: 16.25564085 | CA30: 16.82865219 | CB30: 17.42186218 | CC30: 18.03598282 | CD30: 18.67175121 | CE30: 19.32993044 | CF30: 20.01131049 | CG30: 20.71670918 | CH30: 21.44697318 | CI30: 22.20297899 | CJ30: 22.985634 | CK30: 23.7958776 | CL30: 24.63468228 | CM30: 25.50305483 | CN30: 26.40203751 | CO30: 27.33270934 | CP30: 28.29618734 | CQ30: 29.29362795 | CR30: 30.32622833 | CS30: 31.39522788 | CT30: 32.50190966 | CU30: 33.64760198 | CV30: 34.83367995 | CW30: 36.06156716 | CX30: 37.33273741 | CY30: 38.6487164 | CZ30: 40.01108365 | DA30: 41.42147435 | DB30: 42.88158132 | DC30: 44.39315707 | DD30: 45.95801585 | DE30: 47.57803591 | DF30: 49.25516168 | DG30: 50.99140613 | DH30: 52.78885319 | DI30: 54.64966027 | DJ30: 56.57606079 | DK30: 58.57036693 | DL30: 60.63497237 | DM30: 62.77235514 | DN30: 64.98508066 | DO30: 67.27580476 | DP30: 69.64727687 | DQ30: 72.10234338 | DR30: 74.64395099 | DS30: 77.27515026 | DT30: 79.99909931 | DU30: 82.81906756 | DV30: 85.73843969 | DW30: 88.76071969 | DX30: 91.88953506 | DY30: 95.12864117 | DZ30: 98.48192577 | EA30: 101.9534137 | EB30: 105.5472715 | EC30: 109.2678128 | ED30: 113.1195032 | EE30: 117.1069657 | EF30: 121.2349862 | EG30: 125.5085195 | EH30: 129.9326948 | EI30: 134.5128223 | EJ30: 139.2543993 | EK30: 144.1631169 | EL30: 149.2448667 | EM30: 154.5057483 | EN30: 159.9520759 | EO30: 165.5903866 | EP30: 171.4274477 | EQ30: 177.4702652 | ER30: 183.7260921 | ES30: 190.2024368 | ET30: 196.9070727 | EU30: 203.8480471 | EV30: 211.0336907 | EW30: 218.4726283 | EX30: 226.1737885 | EY30: 234.1464145 | EZ30: 242.4000756 | FA30: 250.9446783 | FB30: 259.7904782 | FC30: 268.9480925 | FD30: 278.4285128 | FE30: 288.2431179 | FF30: 298.4036878 | FG30: 308.9224178 | FH30: 319.811933 | FI30: 331.0853037 | FJ30: 342.7560606 | FK30: 354.8382117 | FL30: 367.3462587 | FM30: 380.2952143 | FN30: 393.7006206 | FO30: 407.5785675 | FP30: 421.945712 | FQ30: 436.8192984 | FR30: 452.2171786 | FS30: 468.1578342 | FT30: 484.6603978 | FU30: 501.7446769 | FV30: 519.4311767 | FW30: 537.7411257 | FX30: 556.6965004 | FY30: 576.320052 | FZ30: 596.6353338 | GA30: 617.6667294 | GB30: 639.4394816 | GC30: 661.9797233 | GD30: 685.3145085 | GE30: 709.471845 | GF30: 734.4807275 | GG30: 760.3711732 | GH30: 787.174257 | GI30: 814.9221496 | GJ30: 843.6481553 | GK30: 873.3867528 | GL30: 904.1736359 | GM30: 936.0457565 | GN30: 969.0413694 | GO30: 1003.200078 | GP30: 1038.56288 | GQ30: 1075.172222 | GR30: 1113.072043 | GS30: 1152.307832 | GT30: 1192.926683 | GU30: 1234.977349 | GV30: 1278.510301 | GW30: 1323.577789 | GX30: 1370.233906 | GY30: 1418.534651 | GZ30: 1468.537997 | HA30: 1520.303962 | HB30: 1573.894676 | HC30: 1629.374464 | HD30: 1686.809914 | HE30: 1746.269963 | HF30: 1807.825979 | HG30: 1871.551845 | HH30: 1937.524047 | HI30: 2005.82177 | HJ30: 2076.526988 | HK30: 2149.724564 | HL30: 2225.502355 | HM30: 2303.951313 | HN30: 2385.165597 | HO30: 2469.242684 | HP30: 2556.283488 | HQ30: 2646.392481 | HR30: 2739.677816 | HS30: 2836.251459 | HT30: 2936.229323 | HU30: 3039.731407 | HV30: 3146.881939 | HW30: 3257.809527 | HX30: 3372.647313 | HY30: 3491.533131 | HZ30: 3614.609674 | IA30: 3742.024665 | IB30: 3873.931034 | IC30: 4010.487103 | ID30: 4151.856774 | IE30: 4298.209725 | IF30: 4449.721618 | IG30: 4606.574305 | IH30: 4768.956049 | II30: 4937.06175 | IJ30: 5111.093176 | IK30: 5291.259211 | IL30: 5477.776098 | IM30: 5670.867706 | IN30: 5870.765792 | IO30: 6077.710286 | IP30: 6291.949574 | IQ30: 6513.740796 | IR30: 6743.35016 | IS30: 6981.053253 | IT30: 7227.13538 | IU30: 7481.891902 | IV30: 7745.628592 | IW30: 8018.661999 | IX30: 8301.319835 | IY30: 8593.941359 | IZ30: 8896.877792 | JA30: 9210.492734 | JB30: 9535.162603 | JC30: 9871.277085 | JD30: 10219.2396 | JE30: 10579.4678 | JF30: 10952.39404 | JG30: 11338.46593 | JH30: 11738.14685 | JI30: 12151.91653 | JJ30: 12580.27159 | JK30: 13023.72616 | JL30: 13482.81251 | JM30: 13958.08165 | JN30: 14450.10403 | JO30: 14959.47019 | JP30: 15486.79152 | JQ30: 16032.70092 | JR30: 16597.85362 | JS30: 17182.92796 | JT30: 17788.62618 | JU30: 18415.67525 | JV30: 19064.8278 | JW30: 19736.86298 | JX30: 20432.5874 | JY30: 21152.83611 | JZ30: 21898.47358 | KA30: 22670.39477 | KB30: 23469.52619 | KC30: 24296.82699 | KD30: 25153.29014 | KE30: 26039.94362 | KF30: 26957.85163 | KG30: 27908.1159 | KH30: 28891.87698 | KI30: 29910.31565 | KJ30: 30964.65427 | KK30: 32056.15834 | KL30: 33186.13792 | KM30: 34355.94928 | KN30: 35566.99649 | KO30: 36820.73312 | KP30: 38118.66396 | KQ30: 39462.34687 | KR30: 40853.39459 | KS30: 42293.47675 | KT30: 43784.32181 | KU30: 45327.71915
C31: Less: Dividends (Payout x Net Income) | D31: =show_formulaL(H31) -> =NI*dpo----> | H31: =NI*dpo -> 0.707 | I31: 0.7497735 | J31: 0.7951347968 | K31: 0.843240452 | L31: 0.8942564993 | M31: 1.237427431 | N31: 1.281046748 | O31: 1.326203646 | P31: 1.372952324 | Q31: 1.421348894 | R31: 1.471451442 | S31: 1.523320105 | T31: 1.577017139 | U31: 1.632606993 | V31: 1.69015639 | W31: 1.749734403 | X31: 1.81141254 | Y31: 1.875264832 | Z31: 1.941367918 | AA31: 2.009801137 | AB31: 2.080646627 | AC31: 2.15398942 | AD31: 2.229917548 | AE31: 2.308522141 | AF31: 2.389897547 | AG31: 2.474141435 | AH31: 2.561354921 | AI31: 2.651642682 | AJ31: 2.745113086 | AK31: 2.841878322 | AL31: 2.942054533 | AM31: 3.045761956 | AN31: 3.153125065 | AO31: 3.264272723 | AP31: 3.379338337 | AQ31: 3.498460013 | AR31: 3.621780728 | AS31: 3.749448499 | AT31: 3.881616559 | AU31: 4.018443542 | AV31: 4.160093677 | AW31: 4.306736979 | AX31: 4.458549458 | AY31: 4.615713326 | AZ31: 4.778417221 | BA31: 4.946856428 | BB31: 5.121233117 | BC31: 5.301756584 | BD31: 5.488643504 | BE31: 5.682118188 | BF31: 5.882412854 | BG31: 6.089767907 | BH31: 6.304432225 | BI31: 6.526663461 | BJ31: 6.756728348 | BK31: 6.994903023 | BL31: 7.241473354 | BM31: 7.49673529 | BN31: 7.760995209 | BO31: 8.03457029 | BP31: 8.317788893 | BQ31: 8.610990951 | BR31: 8.914528382 | BS31: 9.228765508 | BT31: =NI*dpo -> 9.554079492 | BU31: 9.890860794 | BV31: 10.23951364 | BW31: 10.60045649 | BX31: 10.97412258 | BY31: 11.36096041 | BZ31: 11.76143426 | CA31: 12.17602482 | CB31: 12.60522969 | CC31: 13.04956404 | CD31: 13.50956117 | CE31: 13.9857732 | CF31: 14.47877171 | CG31: 14.98914841 | CH31: 15.51751589 | CI31: 16.06450833 | CJ31: 16.63078225 | CK31: 17.21701732 | CL31: 17.82391718 | CM31: 18.45221026 | CN31: 19.10265067 | CO31: 19.77601911 | CP31: 20.47312378 | CQ31: 21.1948014 | CR31: 21.94191814 | CS31: 22.71537076 | CT31: 23.51608758 | CU31: 24.34502967 | CV31: 25.20319196 | CW31: 26.09160448 | CX31: 27.01133354 | CY31: 27.96348304 | CZ31: 28.94919582 | DA31: 29.96965497 | DB31: 31.02608531 | DC31: 32.11975482 | DD31: 33.25197618 | DE31: 34.42410834 | DF31: 35.63755815 | DG31: 36.89378208 | DH31: 38.1942879 | DI31: 39.54063655 | DJ31: 40.93444398 | DK31: 42.37738313 | DL31: 43.87118589 | DM31: 45.41764519 | DN31: 47.01861719 | DO31: 48.67602344 | DP31: 50.39185327 | DQ31: 52.1681661 | DR31: 54.00709395 | DS31: 55.91084401 | DT31: 57.88170126 | DU31: 59.92203123 | DV31: 62.03428283 | DW31: 64.2209913 | DX31: 66.48478125 | DY31: 68.82836979 | DZ31: 71.25456982 | EA31: 73.76629341 | EB31: 76.36655525 | EC31: 79.05847632 | ED31: 81.84528761 | EE31: 84.730334 | EF31: =NI*dpo -> 87.71707828 | EG31: 90.80910528 | EH31: 94.01012625 | EI31: 97.3239832 | EJ31: 100.7546536 | EK31: 104.3062551 | EL31: 107.9830506 | EM31: 111.7894532 | EN31: 115.7300314 | EO31: 119.809515 | EP31: 124.0328004 | EQ31: 128.4049566 | ER31: 132.9312313 | ES31: 137.6170572 | ET31: 142.4680585 | EU31: 147.4900576 | EV31: 152.6890821 | EW31: 158.0713723 | EX31: 163.6433881 | EY31: 169.4118176 | EZ31: 175.3835841 | FA31: 181.5658555 | FB31: 187.9660519 | FC31: 194.5918552 | FD31: 201.4512181 | FE31: 208.5523735 | FF31: 215.9038447 | FG31: 223.5144552 | FH31: 231.3933398 | FI31: 239.549955 | FJ31: 247.9940909 | FK31: 256.7358826 | FL31: 265.7858225 | FM31: 275.1547727 | FN31: 284.8539785 | FO31: 294.8950812 | FP31: 305.2901328 | FQ31: 316.05161 | FR31: 327.1924292 | FS31: 338.7259624 | FT31: 350.6660525 | FU31: 363.0270309 | FV31: 375.8237337 | FW31: 389.0715204 | FX31: 402.7862914 | FY31: 416.9845082 | FZ31: 431.6832121 | GA31: 446.9000454 | GB31: 462.653272 | GC31: 478.9617998 | GD31: 495.8452032 | GE31: 513.3237467 | GF31: 531.4184087 | GG31: 550.1509076 | GH31: 569.5437271 | GI31: 589.6201435 | GJ31: 610.4042536 | GK31: 631.9210035 | GL31: 654.1962189 | GM31: 677.2566356 | GN31: 701.129932 | GO31: 725.8447621 | GP31: 751.43079 | GQ31: 777.9187253 | GR31: =NI*dpo -> 805.3403604 | GS31: 833.7286081 | GT31: 863.1175415 | GU31: 893.5424349 | GV31: 925.0398057 | GW31: 957.6474588 | GX31: 991.4045318 | GY31: 1026.351542 | GZ31: 1062.530433 | HA31: 1099.984631 | HB31: 1138.759089 | HC31: 1178.900347 | HD31: 1220.456585 | HE31: 1263.477679 | HF31: 1308.015267 | HG31: 1354.122805 | HH31: 1401.855634 | HI31: 1451.271045 | HJ31: 1502.42835 | HK31: 1555.388949 | HL31: 1610.21641 | HM31: 1666.976538 | HN31: 1725.737461 | HO31: 1786.569707 | HP31: 1849.546289 | HQ31: 1914.742795 | HR31: 1982.237479 | HS31: 2052.11135 | HT31: 2124.448275 | HU31: 2199.335077 | HV31: 2276.861638 | HW31: 2357.121011 | HX31: 2440.209527 | HY31: 2526.226912 | HZ31: 2615.276411 | IA31: 2707.464905 | IB31: 2802.903043 | IC31: 2901.705375 | ID31: 3003.990489 | IE31: 3109.881154 | IF31: 3219.504465 | IG31: 3332.991997 | IH31: 3450.479965 | II31: 3572.109384 | IJ31: 3698.026239 | IK31: 3828.381664 | IL31: 3963.332118 | IM31: 4103.039575 | IN31: 4247.67172 | IO31: 4397.402148 | IP31: 4552.410574 | IQ31: 4712.883047 | IR31: 4879.012174 | IS31: 5050.997353 | IT31: 5229.04501 | IU31: 5413.368847 | IV31: 5604.190099 | IW31: 5801.7378 | IX31: 6006.249057 | IY31: 6217.969336 | IZ31: 6437.152755 | JA31: 6664.06239 | JB31: 6898.970589 | JC31: 7142.159302 | JD31: =NI*dpo -> 7393.920418 | JE31: 7654.556113 | JF31: 7924.379216 | JG31: 8203.713583 | JH31: 8492.894487 | JI31: 8792.269017 | JJ31: 9102.1965 | JK31: 9423.048927 | JL31: 9755.211402 | JM31: 10099.0826 | JN31: 10455.07527 | JO31: 10823.61667 | JP31: 11205.14916 | JQ31: 11600.13066 | JR31: 12009.03527 | JS31: 12432.35376 | JT31: 12870.59423 | JU31: 13324.28268 | JV31: 13793.96364 | JW31: 14280.20086 | JX31: 14783.57794 | JY31: 15304.69907 | JZ31: 15844.18971 | KA31: 16402.69739 | KB31: 16980.89248 | KC31: 17579.46894 | KD31: 18199.14522 | KE31: 18840.66509 | KF31: 19504.79853 | KG31: 20192.34268 | KH31: 20904.12276 | KI31: 21640.99309 | KJ31: 22403.83809 | KK31: 23193.57338 | KL31: 24011.14685 | KM31: 24857.53977 | KN31: 25733.76805 | KO31: 26640.88337 | KP31: 27579.97451 | KQ31: 28552.16861 | KR31: 29558.63256 | KS31: 30600.57436 | KT31: 31679.2446 | KU31: 32795.93797
C32: Closing Balance | G32: =I7 -> 10 | H32: =H29+H30-H31 -> 10.605 | I32: =I29+I30-I31 -> 11.2466025 | J32: 11.92702195 | K32: 12.64860678 | L32: 13.41384749 | M32: 13.88668561 | N32: 14.37619128 | O32: 14.88295202 | P32: 15.40757608 | Q32: 15.95069314 | R32: 16.51295507 | S32: 17.09503674 | T32: 17.69763678 | U32: 18.32147848 | V32: 18.9673106 | W32: 19.6359083 | X32: 20.32807406 | Y32: 21.04463867 | Z32: 21.78646219 | AA32: 22.55443498 | AB32: 23.34947881 | AC32: 24.17254794 | AD32: 25.02463026 | AE32: 25.90674847 | AF32: 26.81996136 | AG32: 27.76536499 | AH32: 28.74409411 | AI32: 29.75732343 | AJ32: 30.80626908 | AK32: 31.89219006 | AL32: 33.01638976 | AM32: 34.1802175 | AN32: 35.38507017 | AO32: 36.63239389 | AP32: 37.92368578 | AQ32: 39.2604957 | AR32: 40.64442817 | AS32: 42.07714427 | AT32: 43.5603636 | AU32: 45.09586642 | AV32: 46.68549571 | AW32: 48.33115943 | AX32: 50.0348328 | AY32: 51.79856066 | AZ32: 53.62445992 | BA32: 55.51472214 | BB32: 57.47161609 | BC32: 59.49749056 | BD32: 61.5947771 | BE32: 63.76599299 | BF32: 66.01374425 | BG32: 68.34072873 | BH32: 70.74973942 | BI32: 73.24366773 | BJ32: 75.82550702 | BK32: 78.49835614 | BL32: 81.2654232 | BM32: 84.13002937 | BN32: 87.0956129 | BO32: 90.16573326 | BP32: 93.34407535 | BQ32: 96.63445401 | BR32: 100.0408185 | BS32: 103.5672574 | BT32: 107.2180032 | BU32: =BU29+BU30-BU31 -> 110.9974378 | BV32: 114.9100975 | BW32: 118.9606784 | BX32: 123.1540423 | BY32: 127.4952223 | BZ32: 131.9894289 | CA32: 136.6420563 | CB32: 141.4586888 | CC32: 146.4451075 | CD32: 151.6072976 | CE32: 156.9514548 | CF32: 162.4839936 | CG32: 168.2115544 | CH32: 174.1410117 | CI32: 180.2794823 | CJ32: 186.6343341 | CK32: 193.2131944 | CL32: 200.0239595 | CM32: 207.074804 | CN32: 214.3741909 | CO32: 221.9308811 | CP32: 229.7539447 | CQ32: 237.8527712 | CR32: 246.2370814 | CS32: 254.9169385 | CT32: 263.9027606 | CU32: 273.2053329 | CV32: 282.8358209 | CW32: 292.8057836 | CX32: 303.1271875 | CY32: 313.8124208 | CZ32: 324.8743087 | DA32: 336.326128 | DB32: 348.181624 | DC32: 360.4550263 | DD32: 373.161066 | DE32: 386.3149935 | DF32: 399.9325971 | DG32: 414.0302211 | DH32: 428.6247864 | DI32: 443.7338101 | DJ32: 459.3754269 | DK32: 475.5684107 | DL32: 492.3321972 | DM32: 509.6869072 | DN32: 527.6533706 | DO32: 546.253152 | DP32: 565.5085756 | DQ32: 585.4427529 | DR32: 606.0796099 | DS32: 627.4439161 | DT32: 649.5613142 | DU32: 672.4583505 | DV32: 696.1625074 | DW32: 720.7022357 | DX32: 746.1069896 | DY32: 772.4072609 | DZ32: 799.6346169 | EA32: 827.8217371 | EB32: 857.0024534 | EC32: 887.2117898 | ED32: 918.4860054 | EE32: 950.8626371 | EF32: 984.3805451 | EG32: =EG29+EG30-EG31 -> 1019.079959 | EH32: 1055.002528 | EI32: 1092.191367 | EJ32: 1130.691113 | EK32: 1170.547974 | EL32: 1211.80979 | EM32: 1254.526086 | EN32: 1298.74813 | EO32: 1344.529002 | EP32: 1391.923649 | EQ32: 1440.988958 | ER32: 1491.783818 | ES32: 1544.369198 | ET32: 1598.808212 | EU32: 1655.166202 | EV32: 1713.51081 | EW32: 1773.912066 | EX32: 1836.442467 | EY32: 1901.177064 | EZ32: 1968.193555 | FA32: 2037.572378 | FB32: 2109.396804 | FC32: 2183.753042 | FD32: 2260.730336 | FE32: 2340.421081 | FF32: 2422.920924 | FG32: 2508.328886 | FH32: 2596.74748 | FI32: 2688.282828 | FJ32: 2783.044798 | FK32: 2881.147127 | FL32: 2982.707563 | FM32: 3087.848005 | FN32: 3196.694647 | FO32: 3309.378133 | FP32: 3426.033713 | FQ32: 3546.801401 | FR32: 3671.82615 | FS32: 3801.258022 | FT32: 3935.252367 | FU32: 4073.970013 | FV32: 4217.577456 | FW32: 4366.247062 | FX32: 4520.157271 | FY32: 4679.492814 | FZ32: 4844.444936 | GA32: 5015.21162 | GB32: 5191.99783 | GC32: 5375.015753 | GD32: 5564.485059 | GE32: 5760.633157 | GF32: 5963.695476 | GG32: 6173.915741 | GH32: 6391.546271 | GI32: 6616.848277 | GJ32: 6850.092179 | GK32: 7091.557928 | GL32: 7341.535345 | GM32: 7600.324466 | GN32: 7868.235904 | GO32: 8145.591219 | GP32: 8432.72331 | GQ32: 8729.976806 | GR32: 9037.708489 | GS32: =GS29+GS30-GS31 -> 9356.287713 | GT32: 9686.096855 | GU32: 10027.53177 | GV32: 10381.00226 | GW32: 10746.93259 | GX32: 11125.76197 | GY32: 11517.94508 | GZ32: 11923.95264 | HA32: 12344.27197 | HB32: 12779.40756 | HC32: 13229.88167 | HD32: 13696.235 | HE32: 14179.02729 | HF32: 14678.838 | HG32: 15196.26704 | HH32: 15731.93545 | HI32: 16286.48618 | HJ32: 16860.58481 | HK32: 17454.92043 | HL32: 18070.20637 | HM32: 18707.18115 | HN32: 19366.60928 | HO32: 20049.28226 | HP32: 20756.01946 | HQ32: 21487.66915 | HR32: 22245.10949 | HS32: 23029.24959 | HT32: 23841.03064 | HU32: 24681.42697 | HV32: 25551.44727 | HW32: 26452.13579 | HX32: 27384.57358 | HY32: 28349.8798 | HZ32: 29349.21306 | IA32: 30383.77282 | IB32: 31454.80081 | IC32: 32563.58254 | ID32: 33711.44882 | IE32: 34899.77739 | IF32: 36129.99455 | IG32: 37403.57686 | IH32: 38722.05294 | II32: 40087.00531 | IJ32: 41500.07224 | IK32: 42962.94979 | IL32: 44477.39377 | IM32: 46045.2219 | IN32: 47668.31597 | IO32: 49348.62411 | IP32: 51088.16311 | IQ32: 52889.02086 | IR32: 54753.35884 | IS32: 56683.41474 | IT32: 58681.50511 | IU32: 60750.02817 | IV32: 62891.46666 | IW32: 65108.39086 | IX32: 67403.46164 | IY32: 69779.43366 | IZ32: 72239.1587 | JA32: 74785.58904 | JB32: 77421.78106 | JC32: 80150.89884 | JD32: 82976.21802 | JE32: =JE29+JE30-JE31 -> 85901.12971 | JF32: 88929.14453 | JG32: 92063.89688 | JH32: 95309.14924 | JI32: 98668.79675 | JJ32: 102146.8718 | JK32: 105747.5491 | JL32: 109475.1502 | JM32: 113334.1492 | JN32: 117329.178 | JO32: 121465.0315 | JP32: 125746.6739 | JQ32: 130179.2441 | JR32: 134768.0625 | JS32: 139518.6367 | JT32: 144436.6686 | JU32: 149528.0612 | JV32: 154798.9253 | JW32: 160255.5875 | JX32: 165904.5969 | JY32: 171752.734 | JZ32: 177807.0178 | KA32: 184074.7152 | KB32: 190563.3489 | KC32: 197280.707 | KD32: 204234.8519 | KE32: 211434.1304 | KF32: 218887.1835 | KG32: 226602.9567 | KH32: 234590.711 | KI32: 242860.0335 | KJ32: 251420.8497 | KK32: 260283.4347 | KL32: 269458.4257 | KM32: 278956.8352 | KN32: 288790.0637 | KO32: 298969.9134 | KP32: 309508.6029 | KQ32: 320418.7811 | KR32: 331713.5432 | KS32: 343406.4455 | KT32: 355511.5228 | KU32: 368043.3039
C34: Discount Rate Index | D34: =show_formulaL(H34) -> =G34*(1+H26)----> | G34: 1 | H34: =G34*(1+H26) -> 1.0807 | I34: =H34*(1+I26) -> 1.16791249 | J34: 1.262163028 | K34: 1.364019584 | L34: 1.474095965 | M34: 1.601605266 | N34: 1.740144121 | O34: 1.890666588 | P34: 2.054209248 | Q34: 2.231898347 | R34: 2.424957554 | S34: 2.634716383 | T34: 2.86261935 | U34: 3.110235924 | V34: 3.379271331 | W34: 3.671578301 | X34: 3.989169824 | Y34: 4.334233014 | Z34: 4.70914417 | AA34: 5.116485141 | AB34: 5.559061105 | AC34: 6.039919891 | AD34: 6.562372962 | AE34: 7.130018223 | AF34: 7.746764799 | AG34: 8.416859954 | AH34: 9.14491834 | AI34: 9.935953777 | AJ34: 10.79541378 | AK34: 11.72921707 | AL34: 12.74379435 | AM34: 13.84613256 | AN34: 15.04382302 | AO34: 16.34511372 | AP34: 17.75896605 | AQ34: 19.29511662 | AR34: 20.9641442 | AS34: 22.77754268 | AT34: 24.74780012 | AU34: 26.88848483 | AV34: 29.21433877 | AW34: 31.74137907 | AX34: 34.48700836 | AY34: 37.47013458 | AZ34: 40.71130122 | BA34: 44.23282878 | BB34: 48.05896847 | BC34: 52.21606924 | BD34: 56.73275923 | BE34: 61.6401429 | BF34: 66.97201526 | BG34: 72.76509458 | BH34: 79.05927526 | BI34: 85.89790258 | BJ34: 93.32807115 | BK34: 101.4009493 | BL34: 110.1721314 | BM34: 119.7020208 | BN34: 130.0562456 | BO34: 141.3061108 | BP34: 153.5290894 | BQ34: 166.8093556 | BR34: 181.2383649 | BS34: 196.9154835 | BT34: 213.9486728 | BU34: =BT34*(1+BU26) -> 232.455233 | BV34: 252.5626106 | BW34: 274.4092765 | BX34: 298.1456789 | BY34: 323.9352801 | BZ34: 351.9556818 | CA34: 382.3998483 | CB34: 415.4774352 | CC34: 451.4162333 | CD34: 490.4637375 | CE34: 532.8888508 | CF34: 578.9837364 | CG34: 629.0658296 | CH34: 683.4800239 | CI34: 742.6010459 | CJ34: 806.8360364 | CK34: 876.6273536 | CL34: 952.4556196 | CM34: 1034.843031 | CN34: 1124.356953 | CO34: 1221.613829 | CP34: 1327.283426 | CQ34: 1442.093442 | CR34: 1566.834525 | CS34: 1702.365711 | CT34: 1849.620345 | CU34: 2009.612505 | CV34: 2183.443986 | CW34: 2372.311891 | CX34: 2577.51687 | CY34: 2800.472079 | CZ34: 3042.712914 | DA34: 3305.907581 | DB34: 3591.868587 | DC34: 3902.56522 | DD34: 4240.137111 | DE34: 4606.908971 | DF34: 5005.406597 | DG34: 5438.374268 | DH34: 5908.793642 | DI34: 6419.904292 | DJ34: 6975.226013 | DK34: 7578.583063 | DL34: 8234.130498 | DM34: 8946.382786 | DN34: 9720.244898 | DO34: 10561.04608 | DP34: 11474.57657 | DQ34: 12467.12744 | DR34: 13545.53396 | DS34: 14717.22265 | DT34: 15990.26241 | DU34: 17373.42011 | DV34: 18876.22095 | DW34: 20509.01406 | DX34: 22283.04378 | DY34: 24210.52706 | DZ34: 26304.73766 | EA34: 28580.09746 | EB34: 31052.27589 | EC34: 33738.29776 | ED34: 36656.66051 | EE34: 39827.46165 | EF34: 43272.53708 | EG34: =EF34*(1+EG26) -> 47015.61154 | EH34: 51082.46194 | EI34: 55501.09489 | EJ34: 60301.9396 | EK34: 65518.05738 | EL34: 71185.36934 | EM34: 77342.90379 | EN34: 84033.06497 | EO34: 91301.92509 | EP34: 99199.54161 | EQ34: 107780.302 | ER34: 117103.2981 | ES34: 127232.7334 | ET34: 138238.3648 | EU34: 150195.9833 | EV34: 163187.9359 | EW34: 177303.6924 | EX34: 192640.4618 | EY34: 209303.8617 | EZ34: 227408.6457 | FA34: 247079.4936 | FB34: 268451.8698 | FC34: 291672.9565 | FD34: 316902.6673 | FE34: 344314.748 | FF34: 374097.9737 | FG34: 406457.4484 | FH34: 441616.0177 | FI34: 479815.8032 | FJ34: 521319.8702 | FK34: 566414.039 | FL34: 615408.8533 | FM34: 668641.7191 | FN34: 726479.2279 | FO34: 789319.6811 | FP34: 857595.8335 | FQ34: 931777.8731 | FR34: 1012376.659 | FS34: 1099947.24 | FT34: 1195092.676 | FU34: 1298468.193 | FV34: 1410785.692 | FW34: 1532818.654 | FX34: 1665407.467 | FY34: 1809465.213 | FZ34: 1965983.954 | GA34: 2136041.566 | GB34: 2320809.162 | GC34: 2521559.154 | GD34: 2739674.021 | GE34: 2976655.824 | GF34: 3234136.553 | GG34: 3513889.365 | GH34: 3817840.795 | GI34: 4148084.023 | GJ34: 4506893.291 | GK34: 4896739.561 | GL34: 5320307.533 | GM34: 5780514.135 | GN34: 6280528.608 | GO34: 6823794.332 | GP34: 7414052.542 | GQ34: 8055368.087 | GR34: 8752157.426 | GS34: =GR34*(1+GS26) -> 9509219.044 | GT34: 10331766.49 | GU34: 11225464.29 | GV34: 12196466.95 | GW34: 13251461.35 | GX34: 14397712.75 | GY34: 15643114.9 | GZ34: 16996244.34 | HA34: 18466419.48 | HB34: 20063764.76 | HC34: 21799280.42 | HD34: 23684918.17 | HE34: 25733663.59 | HF34: 27959625.5 | HG34: 30378133.1 | HH34: 33005841.61 | HI34: 35860846.91 | HJ34: 38962810.17 | HK34: 42333093.25 | HL34: 45994905.82 | HM34: 49973465.17 | HN34: 54296169.91 | HO34: 58992788.6 | HP34: 64095664.82 | HQ34: 69639939.83 | HR34: 75663794.62 | HS34: 82208712.86 | HT34: 89319766.52 | HU34: 97045926.32 | HV34: 105440398.9 | HW34: 114560993.5 | HX34: 124470519.4 | HY34: 135237219.3 | HZ34: 146935238.8 | IA34: 159645136.9 | IB34: 173454441.3 | IC34: 188458250.5 | ID34: 204759889.1 | IE34: 222471619.5 | IF34: 241715414.6 | IG34: 262623798 | IH34: 285340756.5 | II34: 310022732 | IJ34: 336839698.3 | IK34: 365976332.2 | IL34: 397633284.9 | IM34: 432028564 | IN34: 469399034.8 | IO34: 510002051.4 | IP34: 554117228.8 | IQ34: 602048369.1 | IR34: 654125553 | IS34: 710707413.3 | IT34: 772183604.6 | IU34: 838977486.4 | IV34: 911549039 | IW34: 990398030.8 | IX34: 1076067461 | IY34: 1169147296 | IZ34: 1270278537 | JA34: 1380157630 | JB34: 1499541265 | JC34: 1629251585 | JD34: 1770181847 | JE34: =JD34*(1+JE26) -> 1923302577 | JF34: 2089668250 | JG34: 2270424553 | JH34: 2466816277 | JI34: 2680195885 | JJ34: 2912032829 | JK34: 3163923669 | JL34: 3437603066 | JM34: 3734955731 | JN34: 4058029402 | JO34: 4409048945 | JP34: 4790431679 | JQ34: 5204804019 | JR34: 5655019567 | JS34: 6144178760 | JT34: 6675650222 | JU34: 7253093967 | JV34: 7880486595 | JW34: 8562148685 | JX34: 9302774546 | JY34: 1.010746454e+10 | JZ34: 1.098176023e+10 | KA34: 1.193168249e+10 | KB34: 1.296377302e+10 | KC34: 1.408513939e+10 | KD34: 1.530350395e+10 | KE34: 1.662725704e+10 | KF34: 1.806551477e+10 | KG34: 1.96281818e+10 | KH34: 2.132601952e+10 | KI34: 2.317072021e+10 | KJ34: 2.517498751e+10 | KK34: 2.735262393e+10 | KL34: 2.97186259e+10 | KM34: 3.228928704e+10 | KN34: 3.508231037e+10 | KO34: 3.811693022e+10 | KP34: 4.141404468e+10 | KQ34: 4.499635955e+10 | KR34: 4.888854465e+10 | KS34: 5.311740376e+10 | KT34: 5.771205919e+10 | KU34: 6.270415231e+10
C36: Earnings Growth | I36: =I30/H30-1 -> 0.0605 | J36: =J30/I30-1 -> 0.0605 | K36: 0.0605 | L36: 0.0605 | M36: 0.03059260671 | N36: 0.03525 | O36: 0.03525 | P36: 0.03525 | Q36: 0.03525 | R36: 0.03525 | S36: 0.03525 | T36: 0.03525 | U36: 0.03525 | V36: 0.03525 | W36: 0.03525 | X36: 0.03525 | Y36: 0.03525 | Z36: 0.03525 | AA36: 0.03525 | AB36: 0.03525 | AC36: 0.03525 | AD36: 0.03525 | AE36: 0.03525 | AF36: 0.03525 | AG36: 0.03525 | AH36: 0.03525 | AI36: 0.03525 | AJ36: 0.03525 | AK36: 0.03525 | AL36: 0.03525 | AM36: 0.03525 | AN36: 0.03525 | AO36: 0.03525 | AP36: 0.03525 | AQ36: 0.03525 | AR36: 0.03525 | AS36: 0.03525 | AT36: 0.03525 | AU36: 0.03525 | AV36: 0.03525 | AW36: 0.03525 | AX36: 0.03525 | AY36: 0.03525 | AZ36: 0.03525 | BA36: 0.03525 | BB36: 0.03525 | BC36: 0.03525 | BD36: 0.03525 | BE36: 0.03525 | BF36: 0.03525 | BG36: 0.03525 | BH36: 0.03525 | BI36: 0.03525 | BJ36: 0.03525 | BK36: 0.03525 | BL36: 0.03525 | BM36: 0.03525 | BN36: 0.03525 | BO36: 0.03525 | BP36: 0.03525 | BQ36: 0.03525 | BR36: 0.03525 | BS36: 0.03525 | BT36: 0.03525 | BU36: 0.03525 | BV36: =BV30/BU30-1 -> 0.03525 | BW36: 0.03525 | BX36: 0.03525 | BY36: 0.03525 | BZ36: 0.03525 | CA36: 0.03525 | CB36: 0.03525 | CC36: 0.03525 | CD36: 0.03525 | CE36: 0.03525 | CF36: 0.03525 | CG36: 0.03525 | CH36: 0.03525 | CI36: 0.03525 | CJ36: 0.03525 | CK36: 0.03525 | CL36: 0.03525 | CM36: 0.03525 | CN36: 0.03525 | CO36: 0.03525 | CP36: 0.03525 | CQ36: 0.03525 | CR36: 0.03525 | CS36: 0.03525 | CT36: 0.03525 | CU36: 0.03525 | CV36: 0.03525 | CW36: 0.03525 | CX36: 0.03525 | CY36: 0.03525 | CZ36: 0.03525 | DA36: 0.03525 | DB36: 0.03525 | DC36: 0.03525 | DD36: 0.03525 | DE36: 0.03525 | DF36: 0.03525 | DG36: 0.03525 | DH36: 0.03525 | DI36: 0.03525 | DJ36: 0.03525 | DK36: 0.03525 | DL36: 0.03525 | DM36: 0.03525 | DN36: 0.03525 | DO36: 0.03525 | DP36: 0.03525 | DQ36: 0.03525 | DR36: 0.03525 | DS36: 0.03525 | DT36: 0.03525 | DU36: 0.03525 | DV36: 0.03525 | DW36: 0.03525 | DX36: 0.03525 | DY36: 0.03525 | DZ36: 0.03525 | EA36: 0.03525 | EB36: 0.03525 | EC36: 0.03525 | ED36: 0.03525 | EE36: 0.03525 | EF36: 0.03525 | EG36: 0.03525 | EH36: =EH30/EG30-1 -> 0.03525 | EI36: 0.03525 | EJ36: 0.03525 | EK36: 0.03525 | EL36: 0.03525 | EM36: 0.03525 | EN36: 0.03525 | EO36: 0.03525 | EP36: 0.03525 | EQ36: 0.03525 | ER36: 0.03525 | ES36: 0.03525 | ET36: 0.03525 | EU36: 0.03525 | EV36: 0.03525 | EW36: 0.03525 | EX36: 0.03525 | EY36: 0.03525 | EZ36: 0.03525 | FA36: 0.03525 | FB36: 0.03525 | FC36: 0.03525 | FD36: 0.03525 | FE36: 0.03525 | FF36: 0.03525 | FG36: 0.03525 | FH36: 0.03525 | FI36: 0.03525 | FJ36: 0.03525 | FK36: 0.03525 | FL36: 0.03525 | FM36: 0.03525 | FN36: 0.03525 | FO36: 0.03525 | FP36: 0.03525 | FQ36: 0.03525 | FR36: 0.03525 | FS36: 0.03525 | FT36: 0.03525 | FU36: 0.03525 | FV36: 0.03525 | FW36: 0.03525 | FX36: 0.03525 | FY36: 0.03525 | FZ36: 0.03525 | GA36: 0.03525 | GB36: 0.03525 | GC36: 0.03525 | GD36: 0.03525 | GE36: 0.03525 | GF36: 0.03525 | GG36: 0.03525 | GH36: 0.03525 | GI36: 0.03525 | GJ36: 0.03525 | GK36: 0.03525 | GL36: 0.03525 | GM36: 0.03525 | GN36: 0.03525 | GO36: 0.03525 | GP36: 0.03525 | GQ36: 0.03525 | GR36: 0.03525 | GS36: 0.03525 | GT36: =GT30/GS30-1 -> 0.03525 | GU36: 0.03525 | GV36: 0.03525 | GW36: 0.03525 | GX36: 0.03525 | GY36: 0.03525 | GZ36: 0.03525 | HA36: 0.03525 | HB36: 0.03525 | HC36: 0.03525 | HD36: 0.03525 | HE36: 0.03525 | HF36: 0.03525 | HG36: 0.03525 | HH36: 0.03525 | HI36: 0.03525 | HJ36: 0.03525 | HK36: 0.03525 | HL36: 0.03525 | HM36: 0.03525 | HN36: 0.03525 | HO36: 0.03525 | HP36: 0.03525 | HQ36: 0.03525 | HR36: 0.03525 | HS36: 0.03525 | HT36: 0.03525 | HU36: 0.03525 | HV36: 0.03525 | HW36: 0.03525 | HX36: 0.03525 | HY36: 0.03525 | HZ36: 0.03525 | IA36: 0.03525 | IB36: 0.03525 | IC36: 0.03525 | ID36: 0.03525 | IE36: 0.03525 | IF36: 0.03525 | IG36: 0.03525 | IH36: 0.03525 | II36: 0.03525 | IJ36: 0.03525 | IK36: 0.03525 | IL36: 0.03525 | IM36: 0.03525 | IN36: 0.03525 | IO36: 0.03525 | IP36: 0.03525 | IQ36: 0.03525 | IR36: 0.03525 | IS36: 0.03525 | IT36: 0.03525 | IU36: 0.03525 | IV36: 0.03525 | IW36: 0.03525 | IX36: 0.03525 | IY36: 0.03525 | IZ36: 0.03525 | JA36: 0.03525 | JB36: 0.03525 | JC36: 0.03525 | JD36: 0.03525 | JE36: 0.03525 | JF36: =JF30/JE30-1 -> 0.03525 | JG36: 0.03525 | JH36: 0.03525 | JI36: 0.03525 | JJ36: 0.03525 | JK36: 0.03525 | JL36: 0.03525 | JM36: 0.03525 | JN36: 0.03525 | JO36: 0.03525 | JP36: 0.03525 | JQ36: 0.03525 | JR36: 0.03525 | JS36: 0.03525 | JT36: 0.03525 | JU36: 0.03525 | JV36: 0.03525 | JW36: 0.03525 | JX36: 0.03525 | JY36: 0.03525 | JZ36: 0.03525 | KA36: 0.03525 | KB36: 0.03525 | KC36: 0.03525 | KD36: 0.03525 | KE36: 0.03525 | KF36: 0.03525 | KG36: 0.03525 | KH36: 0.03525 | KI36: 0.03525 | KJ36: 0.03525 | KK36: 0.03525 | KL36: 0.03525 | KM36: 0.03525 | KN36: 0.03525 | KO36: 0.03525 | KP36: 0.03525 | KQ36: 0.03525 | KR36: 0.03525 | KS36: 0.03525 | KT36: 0.03525 | KU36: 0.03525
D39: Scenario # | E39: 1 | L39: P/E | M39: P/B
E40: Inflation | H40: real ROE | I40: real CoE | J40: real growth | L40: =P8 -> 14.88603695 | M40: =P11 -> 1.953048048
D41: Base | E41: 0.02 | H41: 0.12 | I41: 0.07 | J41: 0.03 | K41: 1 | L41: 14.88603695 | M41: 1.953048048
D42: Downside | E42: 0.04 | H42: 0.14 | I42: 0.09 | J42: =J41-2% -> 0.01 | K42: =K41+1 -> 2 | L42: 14.88603695 | M42: 1.953048048
D43: Upside | E43: 0 | H43: 0.1 | I43: 0.05 | J43: 0.05 | K43: =K42+1 -> 3 | L43: 14.88603695 | M43: 1.953048048
D44: =TRANSPOSE(E40:J40)&" low" -> Inflation low | E44: =E42 -> 0.04 | H44: =H$41 -> 0.12 | I44: =I$41 -> 0.07 | J44: =J$41 -> 0.03 | K44: 4 | L44: 14.88603695 | M44: 1.953048048
D45: low | E45: =E$41 -> 0.02 | H45: =H42 -> 0.14 | I45: 0.07 | J45: 0.03 | K45: 5 | L45: 14.88603695 | M45: 1.953048048
D46: low | E46: 0.02 | H46: 0.12 | I46: =I42 -> 0.09 | J46: 0.03 | K46: 6 | L46: 14.88603695 | M46: 1.953048048
D47: real ROE low | E47: 0.02 | H47: 0.12 | I47: 0.07 | J47: =J42 -> 0.01 | K47: 7 | L47: 14.88603695 | M47: 1.953048048
D48: =TRANSPOSE(E40:J40)&" high" -> Inflation high | E48: =E43 -> 0 | H48: 0.12 | I48: 0.07 | J48: 0.03 | K48: 8 | L48: 14.88603695 | M48: 1.953048048
D49: high | E49: 0.02 | H49: =H43 -> 0.1 | I49: 0.07 | J49: 0.03 | K49: 9 | L49: 14.88603695 | M49: 1.953048048
D50: high | E50: 0.02 | H50: 0.12 | I50: =I43 -> 0.05 | J50: 0.03 | K50: 10 | L50: 14.88603695 | M50: 1.953048048
D51: real ROE high | E51: 0.02 | H51: 0.12 | I51: 0.07 | J51: =J43 -> 0.05 | K51: 11 | L51: 14.88603695 | M51: 1.953048048
D53: =INDEX(D41:D51,$E$39) -> Base | E53: =INDEX(E41:E51,$E$39) -> 0.02 | H53: =INDEX(H41:H51,$E$39) -> 0.12 | I53: =INDEX(I41:I51,$E$39) -> 0.07 | J53: =INDEX(J41:J51,$E$39) -> 0.03
E56: Low V Base | H56: High V Base
D57: =TRANSPOSE(E40:J40) -> Inflation | E57: =L44-$L$41 -> 0 | H57: =L48-$L$41 -> 0
D58: 0 | E58: =L45-$L$41 -> 0 | H58: =L49-$L$41 -> 0
D59: 0 | E59: =L46-$L$41 -> 0 | H59: =L50-$L$41 -> 0
D60: real ROE | E60: =L47-$L$41 -> 0 | H60: =L51-$L$41 -> 0
C63: GDP growth | D63: 0.02
C64: Industry growth | D64: 0.2
C65: Industry as % of GDP | D65: 0.03
C67: GDP | D67: 1000 | E67: =D67*(1+$D$63) -> 1020 | H67: =E67*(1+$D$63) -> 1040.4 | I67: =H67*(1+$D$63) -> 1061.208 | J67: 1082.43216 | K67: 1104.080803 | L67: 1126.162419 | M67: 1148.685668 | N67: 1171.659381 | O67: 1195.092569 | P67: 1218.99442 | Q67: 1243.374308 | R67: 1268.241795 | S67: 1293.60663 | T67: 1319.478763 | U67: 1345.868338 | V67: 1372.785705 | W67: 1400.241419 | X67: 1428.246248 | Y67: 1456.811173 | Z67: 1485.947396 | AA67: 1515.666344 | AB67: 1545.979671 | AC67: 1576.899264 | AD67: 1608.437249 | AE67: 1640.605994 | AF67: 1673.418114 | AG67: 1706.886477 | AH67: 1741.024206 | AI67: 1775.84469 | AJ67: 1811.361584 | AK67: 1847.588816 | AL67: 1884.540592 | AM67: 1922.231404 | AN67: 1960.676032 | AO67: 1999.889553 | AP67: 2039.887344 | AQ67: 2080.685091 | AR67: 2122.298792 | AS67: 2164.744768 | AT67: 2208.039664 | AU67: 2252.200457 | AV67: 2297.244466 | AW67: 2343.189355 | AX67: 2390.053142 | AY67: 2437.854205 | AZ67: 2486.611289 | BA67: 2536.343515 | BB67: 2587.070385 | BC67: 2638.811793 | BD67: 2691.588029 | BE67: 2745.41979 | BF67: 2800.328185 | BG67: 2856.334749 | BH67: 2913.461444 | BI67: 2971.730673 | BJ67: 3031.165286 | BK67: 3091.788592 | BL67: 3153.624364 | BM67: 3216.696851 | BN67: 3281.030788 | BO67: 3346.651404 | BP67: 3413.584432 | BQ67: 3481.856121 | BR67: 3551.493243 | BS67: 3622.523108 | BT67: =BS67*(1+$D$63) -> 3694.97357 | BU67: 3768.873042 | BV67: 3844.250503 | BW67: 3921.135513 | BX67: 3999.558223 | BY67: 4079.549387 | BZ67: 4161.140375 | CA67: 4244.363183 | CB67: 4329.250446 | CC67: 4415.835455 | CD67: 4504.152164 | CE67: 4594.235208 | CF67: 4686.119912 | CG67: 4779.84231 | CH67: 4875.439156 | CI67: 4972.947939 | CJ67: 5072.406898 | CK67: 5173.855036 | CL67: 5277.332137 | CM67: 5382.878779 | CN67: 5490.536355 | CO67: 5600.347082 | CP67: 5712.354024 | CQ67: 5826.601104 | CR67: 5943.133126 | CS67: 6061.995789 | CT67: 6183.235705 | CU67: 6306.900419 | CV67: 6433.038427 | CW67: 6561.699196 | CX67: 6692.93318 | CY67: 6826.791843 | CZ67: 6963.32768 | DA67: 7102.594234 | DB67: 7244.646118 | DC67: 7389.539041 | DD67: 7537.329821 | DE67: 7688.076418 | DF67: 7841.837946 | DG67: 7998.674705 | DH67: 8158.648199 | DI67: 8321.821163 | DJ67: 8488.257586 | DK67: 8658.022738 | DL67: 8831.183193 | DM67: 9007.806857 | DN67: 9187.962994 | DO67: 9371.722254 | DP67: 9559.156699 | DQ67: 9750.339833 | DR67: 9945.34663 | DS67: 10144.25356 | DT67: 10347.13863 | DU67: 10554.08141 | DV67: 10765.16303 | DW67: 10980.46629 | DX67: 11200.07562 | DY67: 11424.07713 | DZ67: 11652.55868 | EA67: 11885.60985 | EB67: 12123.32205 | EC67: 12365.78849 | ED67: 12613.10426 | EE67: 12865.36634 | EF67: =EE67*(1+$D$63) -> 13122.67367 | EG67: 13385.12714 | EH67: 13652.82969 | EI67: 13925.88628 | EJ67: 14204.404 | EK67: 14488.49208 | EL67: 14778.26193 | EM67: 15073.82716 | EN67: 15375.30371 | EO67: 15682.80978 | EP67: 15996.46598 | EQ67: 16316.3953 | ER67: 16642.7232 | ES67: 16975.57767 | ET67: 17315.08922 | EU67: 17661.39101 | EV67: 18014.61883 | EW67: 18374.9112 | EX67: 18742.40943 | EY67: 19117.25761 | EZ67: 19499.60277 | FA67: 19889.59482 | FB67: 20287.38672 | FC67: 20693.13445 | FD67: 21106.99714 | FE67: 21529.13708 | FF67: 21959.71983 | FG67: 22398.91422 | FH67: 22846.89251 | FI67: 23303.83036 | FJ67: 23769.90696 | FK67: 24245.3051 | FL67: 24730.21121 | FM67: 25224.81543 | FN67: 25729.31174 | FO67: 26243.89797 | FP67: 26768.77593 | FQ67: 27304.15145 | FR67: 27850.23448 | FS67: 28407.23917 | FT67: 28975.38395 | FU67: 29554.89163 | FV67: 30145.98947 | FW67: 30748.90925 | FX67: 31363.88744 | FY67: 31991.16519 | FZ67: 32630.98849 | GA67: 33283.60826 | GB67: 33949.28043 | GC67: 34628.26604 | GD67: 35320.83136 | GE67: 36027.24798 | GF67: 36747.79294 | GG67: 37482.7488 | GH67: 38232.40378 | GI67: 38997.05185 | GJ67: 39776.99289 | GK67: 40572.53275 | GL67: 41383.9834 | GM67: 42211.66307 | GN67: 43055.89633 | GO67: 43917.01426 | GP67: 44795.35455 | GQ67: 45691.26164 | GR67: =GQ67*(1+$D$63) -> 46605.08687 | GS67: 47537.18861 | GT67: 48487.93238 | GU67: 49457.69103 | GV67: 50446.84485 | GW67: 51455.78174 | GX67: 52484.89738 | GY67: 53534.59533 | GZ67: 54605.28723 | HA67: 55697.39298 | HB67: 56811.34084 | HC67: 57947.56765 | HD67: 59106.51901 | HE67: 60288.64939 | HF67: 61494.42237 | HG67: 62724.31082 | HH67: 63978.79704 | HI67: 65258.37298 | HJ67: 66563.54044 | HK67: 67894.81125 | HL67: 69252.70747 | HM67: 70637.76162 | HN67: 72050.51685 | HO67: 73491.52719 | HP67: 74961.35774 | HQ67: 76460.58489 | HR67: 77989.79659 | HS67: 79549.59252 | HT67: 81140.58437 | HU67: 82763.39606 | HV67: 84418.66398 | HW67: 86107.03726 | HX67: 87829.178 | HY67: 89585.76156 | HZ67: 91377.47679 | IA67: 93205.02633 | IB67: 95069.12686 | IC67: 96970.50939 | ID67: 98909.91958 | IE67: 100888.118 | IF67: 102905.8803 | IG67: 104963.9979 | IH67: 107063.2779 | II67: 109204.5435 | IJ67: 111388.6343 | IK67: 113616.407 | IL67: 115888.7352 | IM67: 118206.5099 | IN67: 120570.6401 | IO67: 122982.0529 | IP67: 125441.6939 | IQ67: 127950.5278 | IR67: 130509.5383 | IS67: 133119.7291 | IT67: 135782.1237 | IU67: 138497.7662 | IV67: 141267.7215 | IW67: 144093.0759 | IX67: 146974.9374 | IY67: 149914.4362 | IZ67: 152912.7249 | JA67: 155970.9794 | JB67: 159090.399 | JC67: 162272.207 | JD67: =JC67*(1+$D$63) -> 165517.6511 | JE67: 168828.0041 | JF67: 172204.5642 | JG67: 175648.6555 | JH67: 179161.6286 | JI67: 182744.8612 | JJ67: 186399.7584 | JK67: 190127.7536 | JL67: 193930.3087 | JM67: 197808.9148 | JN67: 201765.0931 | JO67: 205800.395 | JP67: 209916.4029 | JQ67: 214114.7309 | JR67: 218397.0256 | JS67: 222764.9661 | JT67: 227220.2654 | JU67: 231764.6707 | JV67: 236399.9641 | JW67: 241127.9634 | JX67: 245950.5227 | JY67: 250869.5331 | JZ67: 255886.9238 | KA67: 261004.6623 | KB67: 266224.7555 | KC67: 271549.2506 | KD67: 276980.2356 | KE67: 282519.8403 | KF67: 288170.2371 | KG67: 293933.6419 | KH67: 299812.3147 | KI67: 305808.561 | KJ67: 311924.7322 | KK67: 318163.2269 | KL67: 324526.4914 | KM67: 331017.0213 | KN67: 337637.3617 | KO67: 344390.1089 | KP67: 351277.9111 | KQ67: 358303.4693 | KR67: 365469.5387 | KS67: 372778.9295 | KT67: 380234.5081 | KU67: 387839.1982
C68: Industry | D68: =D67*D65 -> 30 | E68: =D68*(1+$D$64) -> 36 | H68: =E68*(1+$D$64) -> 43.2 | I68: =H68*(1+$D$64) -> 51.84 | J68: 62.208 | K68: 74.6496 | L68: 89.57952 | M68: 107.495424 | N68: 128.9945088 | O68: 154.7934106 | P68: 185.7520927 | Q68: 222.9025112 | R68: 267.4830134 | S68: 320.9796161 | T68: 385.1755394 | U68: 462.2106472 | V68: 554.6527767 | W68: 665.583332 | X68: 798.6999984 | Y68: 958.4399981 | Z68: 1150.127998 | AA68: 1380.153597 | AB68: 1656.184317 | AC68: 1987.42118 | AD68: 2384.905416 | AE68: 2861.886499 | AF68: 3434.263799 | AG68: 4121.116559 | AH68: 4945.339871 | AI68: 5934.407845 | AJ68: 7121.289414 | AK68: 8545.547297 | AL68: 10254.65676 | AM68: 12305.58811 | AN68: 14766.70573 | AO68: 17720.04687 | AP68: 21264.05625 | AQ68: 25516.8675 | AR68: 30620.241 | AS68: 36744.2892 | AT68: 44093.14704 | AU68: 52911.77645 | AV68: 63494.13174 | AW68: 76192.95808 | AX68: 91431.5497 | AY68: 109717.8596 | AZ68: 131661.4316 | BA68: 157993.7179 | BB68: 189592.4615 | BC68: 227510.9538 | BD68: 273013.1445 | BE68: 327615.7734 | BF68: 393138.9281 | BG68: 471766.7137 | BH68: 566120.0564 | BI68: 679344.0677 | BJ68: 815212.8813 | BK68: 978255.4575 | BL68: 1173906.549 | BM68: 1408687.859 | BN68: 1690425.431 | BO68: 2028510.517 | BP68: 2434212.62 | BQ68: 2921055.144 | BR68: 3505266.173 | BS68: 4206319.407 | BT68: =BS68*(1+$D$64) -> 5047583.289 | BU68: 6057099.947 | BV68: 7268519.936 | BW68: 8722223.923 | BX68: 10466668.71 | BY68: 12560002.45 | BZ68: 15072002.94 | CA68: 18086403.53 | CB68: 21703684.23 | CC68: 26044421.08 | CD68: 31253305.3 | CE68: 37503966.35 | CF68: 45004759.63 | CG68: 54005711.55 | CH68: 64806853.86 | CI68: 77768224.63 | CJ68: 93321869.56 | CK68: 111986243.5 | CL68: 134383492.2 | CM68: 161260190.6 | CN68: 193512228.7 | CO68: 232214674.5 | CP68: 278657609.4 | CQ68: 334389131.2 | CR68: 401266957.5 | CS68: 481520349 | CT68: 577824418.8 | CU68: 693389302.5 | CV68: 832067163 | CW68: 998480595.6 | CX68: 1198176715 | CY68: 1437812058 | CZ68: 1725374469 | DA68: 2070449363 | DB68: 2484539236 | DC68: 2981447083 | DD68: 3577736499 | DE68: 4293283799 | DF68: 5151940559 | DG68: 6182328671 | DH68: 7418794405 | DI68: 8902553286 | DJ68: 1.068306394e+10 | DK68: 1.281967673e+10 | DL68: 1.538361208e+10 | DM68: 1.846033449e+10 | DN68: 2.215240139e+10 | DO68: 2.658288167e+10 | DP68: 3.189945801e+10 | DQ68: 3.827934961e+10 | DR68: 4.593521953e+10 | DS68: 5.512226343e+10 | DT68: 6.614671612e+10 | DU68: 7.937605934e+10 | DV68: 9.525127121e+10 | DW68: 1.143015255e+11 | DX68: 1.371618305e+11 | DY68: 1.645941967e+11 | DZ68: 1.97513036e+11 | EA68: 2.370156432e+11 | EB68: 2.844187718e+11 | EC68: 3.413025262e+11 | ED68: 4.095630314e+11 | EE68: 4.914756377e+11 | EF68: =EE68*(1+$D$64) -> 5.897707653e+11 | EG68: 7.077249183e+11 | EH68: 8.49269902e+11 | EI68: 1.019123882e+12 | EJ68: 1.222948659e+12 | EK68: 1.467538391e+12 | EL68: 1.761046069e+12 | EM68: 2.113255282e+12 | EN68: 2.535906339e+12 | EO68: 3.043087607e+12 | EP68: 3.651705128e+12 | EQ68: 4.382046154e+12 | ER68: 5.258455384e+12 | ES68: 6.310146461e+12 | ET68: 7.572175754e+12 | EU68: 9.086610904e+12 | EV68: 1.090393309e+13 | EW68: 1.30847197e+13 | EX68: 1.570166364e+13 | EY68: 1.884199637e+13 | EZ68: 2.261039565e+13 | FA68: 2.713247477e+13 | FB68: 3.255896973e+13 | FC68: 3.907076368e+13 | FD68: 4.688491641e+13 | FE68: 5.626189969e+13 | FF68: 6.751427963e+13 | FG68: 8.101713556e+13 | FH68: 9.722056267e+13 | FI68: 1.166646752e+14 | FJ68: 1.399976102e+14 | FK68: 1.679971323e+14 | FL68: 2.015965587e+14 | FM68: 2.419158705e+14 | FN68: 2.902990446e+14 | FO68: 3.483588535e+14 | FP68: 4.180306242e+14 | FQ68: 5.016367491e+14 | FR68: 6.019640989e+14 | FS68: 7.223569187e+14 | FT68: 8.668283024e+14 | FU68: 1.040193963e+15 | FV68: 1248232755436868 | FW68: 1.497879307e+15 | FX68: 1.797455168e+15 | FY68: 2.156946201e+15 | FZ68: 2588335441673889 | GA68: 3.10600253e+15 | GB68: 3.727203036e+15 | GC68: 4472643643212479 | GD68: 5367172371854975 | GE68: 6440606846225970 | GF68: 7728728215471164 | GG68: 9274473858565396 | GH68: 1.112936863e+16 | GI68: 1.335524236e+16 | GJ68: 1.602629083e+16 | GK68: 1.923154899e+16 | GL68: 2.307785879e+16 | GM68: 2.769343055e+16 | GN68: 3.323211666e+16 | GO68: 3.987853999e+16 | GP68: 4.785424799e+16 | GQ68: 5.742509759e+16 | GR68: =GQ68*(1+$D$64) -> 6.891011711e+16 | GS68: 8.269214053e+16 | GT68: 9.923056863e+16 | GU68: 1.190766824e+17 | GV68: 1.428920188e+17 | GW68: 1.714704226e+17 | GX68: 2.057645071e+17 | GY68: 2.469174085e+17 | GZ68: 2.963008902e+17 | HA68: 3.555610683e+17 | HB68: 4.26673282e+17 | HC68: 5.120079384e+17 | HD68: 6.14409526e+17 | HE68: 7.372914312e+17 | HF68: 8.847497175e+17 | HG68: 1.061699661e+18 | HH68: 1.274039593e+18 | HI68: 1.528847512e+18 | HJ68: 1.834617014e+18 | HK68: 2.201540417e+18 | HL68: 2.6418485e+18 | HM68: 3.1702182e+18 | HN68: 3.804261841e+18 | HO68: 4.565114209e+18 | HP68: 5.47813705e+18 | HQ68: 6.57376446e+18 | HR68: 7.888517353e+18 | HS68: 9.466220823e+18 | HT68: 1.135946499e+19 | HU68: 1.363135799e+19 | HV68: 1.635762958e+19 | HW68: 1.96291555e+19 | HX68: 2.35549866e+19 | HY68: 2.826598392e+19 | HZ68: 3.39191807e+19 | IA68: 4.070301684e+19 | IB68: 4.884362021e+19 | IC68: 5.861234425e+19 | ID68: 7.03348131e+19 | IE68: 8.440177572e+19 | IF68: 1.012821309e+20 | IG68: 1.21538557e+20 | IH68: 1.458462685e+20 | II68: 1.750155221e+20 | IJ68: 2.100186266e+20 | IK68: 2.520223519e+20 | IL68: 3.024268223e+20 | IM68: 3.629121867e+20 | IN68: 4.354946241e+20 | IO68: 5.225935489e+20 | IP68: 6.271122586e+20 | IQ68: 7.525347104e+20 | IR68: 9.030416524e+20 | IS68: 1.083649983e+21 | IT68: 1.30037998e+21 | IU68: 1.560455975e+21 | IV68: 1.87254717e+21 | IW68: 2.247056605e+21 | IX68: 2.696467926e+21 | IY68: 3.235761511e+21 | IZ68: 3.882913813e+21 | JA68: 4.659496575e+21 | JB68: 5.59139589e+21 | JC68: 6.709675068e+21 | JD68: =JC68*(1+$D$64) -> 8.051610082e+21 | JE68: 9.661932098e+21 | JF68: 1.159431852e+22 | JG68: 1.391318222e+22 | JH68: 1.669581867e+22 | JI68: 2.00349824e+22 | JJ68: 2.404197888e+22 | JK68: 2.885037466e+22 | JL68: 3.462044959e+22 | JM68: 4.15445395e+22 | JN68: 4.98534474e+22 | JO68: 5.982413689e+22 | JP68: 7.178896426e+22 | JQ68: 8.614675711e+22 | JR68: 1.033761085e+23 | JS68: 1.240513302e+23 | JT68: 1.488615963e+23 | JU68: 1.786339156e+23 | JV68: 2.143606987e+23 | JW68: 2.572328384e+23 | JX68: 3.086794061e+23 | JY68: 3.704152873e+23 | JZ68: 4.444983447e+23 | KA68: 5.333980137e+23 | KB68: 6.400776164e+23 | KC68: 7.680931397e+23 | KD68: 9.217117677e+23 | KE68: 1.106054121e+24 | KF68: 1.327264945e+24 | KG68: 1.592717935e+24 | KH68: 1.911261521e+24 | KI68: 2.293513826e+24 | KJ68: 2.752216591e+24 | KK68: 3.302659909e+24 | KL68: 3.963191891e+24 | KM68: 4.755830269e+24 | KN68: 5.706996323e+24 | KO68: 6.848395587e+24 | KP68: 8.218074705e+24 | KQ68: 9.861689646e+24 | KR68: 1.183402758e+25 | KS68: 1.420083309e+25 | KT68: 1.704099971e+25 | KU68: 2.044919965e+25
C69: Industry as % of GDP | D69: =D68/D67 -> 0.03 | E69: =E68/E67 -> 0.03529411765 | H69: =H68/H67 -> 0.04152249135 | I69: 0.04884998982 | J69: 0.05747057626 | K69: 0.06761244266 | L69: 0.07954405019 | M69: 0.09358123552 | N69: 0.1100955712 | O69: 0.1295242014 | P69: 0.1523814134 | Q69: 0.1792722511 | R69: 0.2109085307 | S69: 0.2481276832 | T69: 0.2919149214 | U69: 0.3434293193 | V69: 0.4040344932 | W69: 0.4753346979 | X69: 0.5592172917 | Y69: 0.6579026961 | Z69: 0.7740031719 | AA69: 0.9105919669 | AB69: 1.071284667 | AC69: 1.260334902 | AD69: 1.482746944 | AE69: 1.744408169 | AF69: 2.052244905 | AG69: 2.414405771 | AH69: 2.840477377 | AI69: 3.341738091 | AJ69: 3.931456577 | AK69: 4.625243032 | AL69: 5.441462391 | AM69: 6.40172046 | AN69: 7.531435835 | AO69: 8.860512747 | AP69: 10.42413264 | AQ69: 12.26368546 | AR69: 14.42786525 | AS69: 16.97395912 | AT69: 19.96936367 | AU69: 23.49336902 | AV69: 27.63925767 | AW69: 32.51677373 | AX69: 38.25502792 | AY69: 45.0059152 | AZ69: 52.94813553 | BA69: 62.29192416 | BB69: 73.28461665 | BC69: 86.21719606 | BD69: 101.4319954 | BE69: 119.3317593 | BF69: 140.390305 | BG69: 165.1650647 | BH69: 194.3118408 | BI69: 228.6021657 | BJ69: 268.9437243 | BK69: 316.4043816 | BL69: 372.2404489 | BM69: 437.9299399 | BN69: 515.211694 | BO69: 606.1314047 | BP69: 713.0957703 | BQ69: 838.9362003 | BR69: 986.9837651 | BS69: 1161.157371 | BT69: =BT68/BT67 -> 1366.067495 | BU69: 1607.138229 | BV69: 1890.750858 | BW69: 2224.412774 | BX69: 2616.956205 | BY69: 3078.772006 | BZ69: 3622.084713 | CA69: 4261.276132 | CB69: 5013.266038 | CC69: 5897.960045 | CD69: 6938.776523 | CE69: 8163.266498 | CF69: 9603.842939 | CG69: 11298.63875 | CH69: 13292.51618 | CI69: 15638.25433 | CJ69: 18397.94627 | CK69: 21644.64267 | CL69: 25464.28549 | CM69: 29957.98293 | CN69: 35244.6858 | CO69: 41464.33624 | CP69: 48781.57204 | CQ69: 57390.08476 | CR69: 67517.74677 | CS69: 79432.64326 | CT69: 93450.16855 | CU69: 109941.3748 | CV69: 129342.7938 | CW69: 152167.9927 | CX69: 179021.1679 | CY69: 210613.1388 | CZ69: 247780.1632 | DA69: 291506.0744 | DB69: 342948.3228 | DC69: 403468.6151 | DD69: 474668.9589 | DE69: 558434.0693 | DF69: 656981.258 | DG69: 772919.1271 | DH69: 909316.6201 | DI69: 1069784.259 | DJ69: 1258569.716 | DK69: 1480670.255 | DL69: 1741965.005 | DM69: 2049370.595 | DN69: 2411024.229 | DO69: 2836499.093 | DP69: 3337057.756 | DQ69: 3925950.301 | DR69: 4618765.061 | DS69: 5433841.248 | DT69: 6392754.409 | DU69: 7520887.54 | DV69: 8848102.988 | DW69: 10409532.93 | DX69: 12246509.33 | DY69: 14407658.03 | DZ69: 16950185.92 | EA69: 19941395.2 | EB69: 23460464.94 | EC69: 27600546.99 | ED69: 32471231.75 | EE69: 38201449.12 | EF69: =EF68/EF67 -> 44942881.32 | EG69: 52873978.02 | EH69: 62204680.02 | EI69: 73181976.5 | EJ69: 86096442.94 | EK69: 101289932.9 | EL69: 119164626.9 | EM69: 140193678.7 | EN69: 164933739.7 | EO69: 194039693.7 | EP69: 228281992.6 | EQ69: 268567050.1 | ER69: 315961235.4 | ES69: 371719100.5 | ET69: 437316588.8 | EU69: 514490104.5 | EV69: 605282475.9 | EW69: 712097030.5 | EX69: 837761212.3 | EY69: 985601426.3 | EZ69: 1159531090 | FA69: 1364154223 | FB69: 1604887321 | FC69: 1888102731 | FD69: 2221297331 | FE69: 2613290977 | FF69: 3074459973 | FG69: 3617011733 | FH69: 4255307921 | FI69: 5006244614 | FJ69: 5889699545 | FK69: 6929058289 | FL69: 8151833281 | FM69: 9590392095 | FN69: 1.128281423e+10 | FO69: 1.327389909e+10 | FP69: 1.561635187e+10 | FQ69: 1.837217868e+10 | FR69: 2.161432785e+10 | FS69: 2.5428621e+10 | FT69: 2.991602471e+10 | FU69: 3.519532319e+10 | FV69: 4.140626258e+10 | FW69: 4.871325009e+10 | FX69: 5.730970599e+10 | FY69: 6.742318352e+10 | FZ69: 7.932139237e+10 | GA69: 9.331928514e+10 | GB69: 1.097873943e+11 | GC69: 1.291616403e+11 | GD69: 1.51954871e+11 | GE69: 1.787704365e+11 | GF69: 2.103181605e+11 | GG69: 2.4743313e+11 | GH69: 2.910978e+11 | GI69: 3.42468e+11 | GJ69: 4.029035295e+11 | GK69: 4.740041523e+11 | GL69: 5.576519439e+11 | GM69: 6.560611105e+11 | GN69: 7.718366006e+11 | GO69: 9.080430595e+11 | GP69: 1.068285952e+12 | GQ69: 1.256807003e+12 | GR69: =GR68/GR67 -> 1.478596474e+12 | GS69: 1.739525263e+12 | GT69: 2.04650031e+12 | GU69: 2.407647423e+12 | GV69: 2.83252638e+12 | GW69: 3.332383977e+12 | GX69: 3.920451737e+12 | GY69: 4.612296162e+12 | GZ69: 5.426230778e+12 | HA69: 6.383800916e+12 | HB69: 7.510354019e+12 | HC69: 8.83571061e+12 | HD69: 1.039495366e+13 | HE69: 1.222935725e+13 | HF69: 1.438747911e+13 | HG69: 1.692644602e+13 | HH69: 1.99134659e+13 | HI69: 2.342760694e+13 | HJ69: 2.756189052e+13 | HK69: 3.242575355e+13 | HL69: 3.814794536e+13 | HM69: 4.487993571e+13 | HN69: 5.279992437e+13 | HO69: 6.211755808e+13 | HP69: 7.307948009e+13 | HQ69: 8.597585893e+13 | HR69: 1.011480693e+14 | HS69: 1.189977286e+14 | HT69: 1.399973278e+14 | HU69: 1.647027386e+14 | HV69: 1.937679277e+14 | HW69: 2.279622679e+14 | HX69: 2.681909035e+14 | HY69: 3.155187099e+14 | HZ69: 3.711984823e+14 | IA69: 4.367040968e+14 | IB69: 5.137695257e+14 | IC69: 6.044347361e+14 | ID69: 7.110996895e+14 | IE69: 8.3658787e+14 | IF69: 9.842210235e+14 | IG69: 1.157907086e+15 | IH69: 1.362243631e+15 | II69: 1.602639566e+15 | IJ69: 1885458313042851 | IK69: 2.218186251e+15 | IL69: 2609630883104292 | IM69: 3.07015398e+15 | IN69: 3611945858967878 | IO69: 4.249348069e+15 | IP69: 4999233022792910 | IQ69: 5881450615050482 | IR69: 6919353664765273 | IS69: 8140416076194437 | IT69: 9576960089640514 | IU69: 1.126701187e+16 | IV69: 1.325530808e+16 | IW69: 1.55944801e+16 | IX69: 1.834644717e+16 | IY69: 2.15840555e+16 | IZ69: 2.539300647e+16 | JA69: 2.987412526e+16 | JB69: 3.514602971e+16 | JC69: 4.134827025e+16 | JD69: =JD68/JD67 -> 4.864502382e+16 | JE69: 5.722943979e+16 | JF69: 6.73287527e+16 | JG69: 7.921029729e+16 | JH69: 9.318858505e+16 | JI69: 1.096336295e+17 | JJ69: 1.289807406e+17 | JK69: 1.517420477e+17 | JL69: 1.785200561e+17 | JM69: 2.100235954e+17 | JN69: 2.470865829e+17 | JO69: 2.906900975e+17 | JP69: 3.4198835e+17 | JQ69: 4.023392353e+17 | JR69: 4.733402768e+17 | JS69: 5.568709139e+17 | JT69: 6.551422517e+17 | JU69: 7.707555902e+17 | JV69: 9.067712826e+17 | JW69: 1.066789744e+18 | JX69: 1.255046758e+18 | JY69: 1.476525598e+18 | JZ69: 1.737088938e+18 | KA69: 2.043634045e+18 | KB69: 2.404275347e+18 | KC69: 2.828559232e+18 | KD69: 3.327716743e+18 | KE69: 3.914960875e+18 | KF69: 4.605836323e+18 | KG69: 5.418630968e+18 | KH69: 6.374859963e+18 | KI69: 7.49983525e+18 | KJ69: 8.823335588e+18 | KK69: 1.038039481e+19 | KL69: 1.221222919e+19 | KM69: 1.436732846e+19 | KN69: 1.690273936e+19 | KO69: 1.988557572e+19 | KP69: 2.339479496e+19 | KQ69: 2.752328819e+19 | KR69: 3.238033905e+19 | KS69: 3.809451653e+19 | KT69: 4.481707827e+19 | KU69: 5.272597443e+19
C71: Yrs to 100% | D71: =MATCH(1,D69:KU69) -> 24
C72: Yrs to 50% | D72: =MATCH(0.5,D69:KU69) -> 20

Sheet 3.06 - Inflation & FX (hidden)
G6: 2014 | H6: =G6+1 -> 2015 | I6: =H6+1 -> 2016 | J6: 2017 | K6: 2018 | L6: 2019 | M6: 2020 | N6: 2021 | O6: 2022 | P6: 2023 | Q6: 2024
F7: Inflation rate - Brazil | H7: 0.16 | I7: 0.1 | J7: 0.1 | K7: 0.08 | L7: 0.15 | M7: 0.09 | N7: 0.15 | O7: 0.11 | P7: 0.15 | Q7: 0.13
F8: Inflation rate - USA | H8: 0.04 | I8: 0.05 | J8: 0.05 | K8: 0.01 | L8: 0.05 | M8: 0.01 | N8: 0.05 | O8: 0.04 | P8: 0.03 | Q8: 0.03
F10: Inflation Index - Brazil | G10: 1 | H10: =G10*(1+H7) -> 1.16 | I10: =H10*(1+I7) -> 1.276 | J10: 1.4036 | K10: 1.515888 | L10: 1.7432712 | M10: 1.900165608 | N10: 2.185190449 | O10: 2.425561399 | P10: 2.789395608 | Q10: 3.152017037
F11: Inflation Index - USA | G11: 1 | H11: =G11*(1+H8) -> 1.04 | I11: =H11*(1+I8) -> 1.092 | J11: 1.1466 | K11: 1.158066 | L11: 1.2159693 | M11: 1.228128993 | N11: 1.289535443 | O11: 1.34111686 | P11: 1.381350366 | Q11: 1.422790877
F13: Exchange Rate - Brazil | G13: 2
F14: Exchange Rate - USA | G14: =1/G13 -> 0.5
F15: Theoretical Exchange Rate - BRL/USD | G15: =G13 -> 2 | H15: =G15*(1+H7)/(1+H8) -> 2.230769231 | I15: =H15*(1+I7)/(1+I8) -> 2.336996337 | J15: 2.448281877 | K15: 2.617964779 | L15: 2.867294758 | M15: 3.094407214 | N15: 3.389112663 | O15: 3.617226016 | P15: 4.038650406 | Q15: 4.430752387
F16: (aka inflation adjusted Exchange Rate)
F18: FCFF - Brazil | G18: 100 | H18: =G18*(1+H7) -> 116 | I18: =H18*(1+I7) -> 127.6 | J18: 140.36 | K18: 151.5888 | L18: 174.32712 | M18: 190.0165608 | N18: 218.5190449 | O18: 242.5561399 | P18: 278.9395608 | Q18: 315.2017037
F19: FCFF - USA | G19: =G18/G15 -> 50 | H19: =H18/H15 -> 52 | I19: 54.6 | J19: 57.33 | K19: 57.9033 | L19: 60.798465 | M19: 61.40644965 | N19: 64.47677213 | O19: 67.05584302 | P19: 69.06751831 | Q19: 71.13954386
F20: FCFF - Real USA | G20: =G19/G11 -> 50 | H20: =H19/H11 -> 50 | I20: 50 | J20: 50 | K20: 50 | L20: 50 | M20: 50 | N20: 50 | O20: 50 | P20: 50 | Q20: 50
F21: FCFF - Real Brazil | G21: =G18/G10 -> 100 | H21: =H18/H10 -> 100 | I21: 100 | J21: 100 | K21: 100 | L21: 100 | M21: 100 | N21: 100 | O21: 100 | P21: 100 | Q21: 100
F23: WACC - USA (Base) | G23: 0.07
F24: Inflation Rate in USA | G24: 0.02
F25: WACC - USA (Real) | G25: =(1+G23)/(1+G24) -1 -> 0.04901960784
F26: Inflation Rate (in Rf) in Brazil WACC | G26: 0.12
F27: WACC - Brazil Nominal | G27: =(1+G25)*(1+G26)-1 -> 0.1749019608
F29: WACC - Brazil | H29: =(1+$G$25)*(1+H7)-1 -> 0.2168627451 | I29: 0.1539215686 | J29: 0.1539215686 | K29: 0.1329411765 | L29: 0.206372549 | M29: 0.1434313725 | N29: 0.206372549 | O29: 0.1644117647 | P29: 0.206372549 | Q29: 0.1853921569
F30: WACC - USA | H30: =(1+$G$25)*(1+H8)-1 -> 0.09098039216 | I30: 0.1014705882 | J30: 0.1014705882 | K30: 0.05950980392 | L30: 0.1014705882 | M30: 0.05950980392 | N30: 0.1014705882 | O30: 0.09098039216 | P30: 0.08049019608 | Q30: 0.08049019608
F31: WACC - Real | H31: =$G$25 -> 0.04901960784 | I31: =$G$25 -> 0.04901960784 | J31: 0.04901960784 | K31: 0.04901960784 | L31: 0.04901960784 | M31: 0.04901960784 | N31: 0.04901960784 | O31: 0.04901960784 | P31: 0.04901960784 | Q31: 0.04901960784
F33: What happens if the WACC changes over time???
F35: WACC Index - Brazil | G35: =1 -> 1 | H35: =G35*(1+H29) -> 1.216862745 | I35: =H35*(1+I29) -> 1.404164168 | J35: 1.620295319 | K35: 1.835699285 | L35: 2.214537225 | M35: 2.532171339 | N35: 3.054741993 | O35: 3.556977515 | P35: 4.291040032 | Q35: 5.086565198
F36: WACC Index - USA | G36: =1 -> 1 | H36: =G36*(1+H30) -> 1.090980392 | I36: 1.201682814 | J36: 1.323618276 | K36: 1.40238654 | L36: 1.544687528 | M36: 1.63661158 | N36: 1.802679519 | O36: 1.966688009 | P36: 2.124987112 | Q36: 2.296027742
F37: WACC Index - Real | G37: =1 -> 1 | H37: =G37*(1+H31) -> 1.049019608 | I37: 1.100442138 | J37: 1.15438538 | K37: 1.210972898 | L37: 1.270334315 | M37: 1.332605605 | N37: 1.397929409 | O37: 1.46645536 | P37: 1.538340427 | Q37: 1.613749272
F39: Nominal Valuation - Brazil | H39: =H18/H35 -> 95.3271028 | I39: =I18/I35 -> 90.87256529 | J39: 86.62618373 | K39: 82.57823122 | L39: 78.71943537 | M39: 75.04095708 | N39: 71.5343703 | O39: 68.19164272 | P39: 65.00511736 | Q39: 61.96749505
E40: =SUM(G39:Q39) -> 775.8631009 | F40: =SUMPRODUCT(H18:Q18/H35:Q35) -> 775.8631009 | G40: =SUM(H18:Q18/H35:Q35) -> 775.8631009
E41: (i) | F41: (ii) | G41: (iii)
F43: Nominal Valuation - USA | H43: =SUMPRODUCT(H19:Q19/H36:Q36) -> 387.9315505
F44: Nominal Valuation - Conversion to Brazil | H44: =H43*G15 -> 775.8631009
F46: Valuation - USA (Real) | G46: =NPV(G25,H20:Q20) -> 387.9315505
F47: Conversion to Brazil
H48: When you have a changing WACC, a WACC index is required
I49: Use SumProduct to quickly use it
H50: WACC needs to be consistent with the inflation rate
I51: If you have a changing WACC, you should also have a changing inflation rate
F54: Wrong way to make a valuation
F55: Brazil Growth (Real) - Assumes 0% growth | G55: =G21 -> 100 | H55: =H21 -> 100 | I55: 100 | J55: 100 | K55: 100 | L55: 100 | M55: 100 | N55: 100 | O55: 100 | P55: 100 | Q55: 100
F56: True Valuation | G56: =H44 -> 775.8631009
F57: Value with REAL growth and NOMINAL WACC | G57: =NPV(G27,H55:Q55) -> 457.6742576
F58: % Error | G58: =(G56-G57)/G57 -> 0.6952299328
F61: REFERENCE: | G61: EB files (Chapter 2, Part 4) - 101 Valuation Mistakes

Sheet 4.00 - Advanced DCF Analysis (hidden)
B2: DCF timing adjustment for 1/2 year and timing & why that is important/what issues does it address
B3: Terminal Value in a DCF - 3 methods
E4: Benefits | G4: Problems
C5: 1 - Typical growth rate method (standard)
E6: Theoretically correct | G6: Leads to a really high variation from WACC differences
G7: Really sensitive to the WACC
C8: 2 - Use of multiples
E9: Much less sensitive to WACC | G9: Hard to determine which multiples to utilize
G10: Terminal stable state multiple should vary from the comparable selection
C11: 3 - Value driver method
E12: Includes 3 value drivers | G12: One doesn't know the WACC return spread
E13: i - ROIC | G13: Leads to more sensitive WACC than section method 2
E14: ii - WACC
E15: iii - Growth
B16: Stable Ratios
C17: Working capital ratio - demonstrates that WC should change when terminal growth changes
C18: CAPEX to depreciation Parity ratio - demonstrates that CAPEX should change when terminal growth rates change
C19: Deferred tax parity ratio

Sheet 4.01 Timing in DCF (hidden)
A2: Assumptions
B3: Transaction Year | D3: 2016 | I3: Explicit | J3: Terminal | K3: Ent Value | L3: Long-term
B4: Explicit Period | D4: 6 | I4: =C43 -> 417.6256371 | J4: =C52 -> 533.0626905 | K4: =SUM(I4:J4) -> 950.6883276 | L4: =C61 -> 950.6883276
B5: Terminal Year | D5: =D3+D4-1 -> 2021 | G5: EOY | H5: 0 | I5: 389.4379146 | J5: 497.083522 | K5: 886.5214366 | L5: 886.5214366
G6: Middle | H6: 0.5 | I6: 417.6256371 | J6: 533.0626905 | K6: 950.6883276 | L6: 950.6883276
B7: WACC | D7: 0.15 | G7: BOY | H7: 1 | I7: 447.8536018 | J7: 571.6460503 | K7: 1019.499652 | L7: 1019.499652
B8: Terminal Growth | D8: 0.03
G9: BOY/EOY | I9: =I7/I5-1 -> 0.15 | J9: =J7/J5-1 -> 0.15 | K9: =K7/K5-1 -> 0.15 | L9: =L7/L5-1 -> 0.15
B10: Starting Cash Flow | D10: 100 | G10: Middle/EOY | I10: =I6/I5-1 -> 0.07238052948 | J10: =J6/J5-1 -> 0.07238052948 | K10: =K6/K5-1 -> 0.07238052948 | L10: =L6/L5-1 -> 0.07238052948
B11: Explicit Growth Rate | D11: 0.1
B13: Valuation Year | D13: 2014
B14: Valuation Date | D14: 2014-01-01
B16: Period Adjustment Factor | D16: 0.5
B17: Adjustment Factor for CF | D17: =(1+D7)^D16 -> 1.072380529
A19: Cash Flow Model with Terminal Value
B20: Year | D20: 2013 | E20: =D20+1 -> 2014 | F20: =E20+1 -> 2015 | G20: 2016 | H20: 2017 | I20: 2018 | J20: 2019 | K20: 2020 | L20: 2021 | M20: 2022 | N20: 2023 | O20: 2024 | P20: 2025 | Q20: 2026 | R20: 2027 | S20: 2028 | T20: 2029 | U20: 2030 | V20: 2031 | W20: 2032 | X20: 2033 | Y20: 2034 | Z20: 2035 | AA20: 2036 | AB20: 2037 | AC20: 2038 | AD20: 2039 | AE20: 2040 | AF20: 2041 | AG20: 2042 | AH20: 2043 | AI20: 2044 | AJ20: 2045 | AK20: 2046 | AL20: 2047 | AM20: 2048 | AN20: 2049 | AO20: 2050 | AP20: 2051 | AQ20: 2052 | AR20: 2053 | AS20: 2054 | AT20: 2055 | AU20: 2056 | AV20: 2057 | AW20: 2058 | AX20: 2059 | AY20: 2060 | AZ20: 2061 | BA20: 2062 | BB20: 2063 | BC20: 2064 | BD20: 2065 | BE20: 2066 | BF20: 2067 | BG20: 2068 | BH20: 2069 | BI20: 2070 | BJ20: 2071 | BK20: 2072 | BL20: 2073 | BM20: 2074 | BN20: 2075 | BO20: 2076 | BP20: 2077 | BQ20: 2078 | BR20: =BQ20+1 -> 2079 | BS20: 2080 | BT20: 2081 | BU20: 2082 | BV20: 2083 | BW20: 2084 | BX20: 2085 | BY20: 2086 | BZ20: 2087 | CA20: 2088 | CB20: 2089 | CC20: 2090 | CD20: 2091 | CE20: 2092 | CF20: 2093 | CG20: 2094 | CH20: 2095 | CI20: 2096 | CJ20: 2097 | CK20: 2098 | CL20: 2099 | CM20: 2100 | CN20: 2101 | CO20: 2102 | CP20: 2103 | CQ20: 2104 | CR20: 2105 | CS20: 2106 | CT20: 2107 | CU20: 2108 | CV20: 2109 | CW20: 2110 | CX20: 2111 | CY20: 2112 | CZ20: 2113 | DA20: 2114 | DB20: 2115 | DC20: 2116 | DD20: 2117 | DE20: 2118 | DF20: 2119 | DG20: 2120 | DH20: 2121 | DI20: 2122 | DJ20: 2123 | DK20: 2124 | DL20: 2125 | DM20: 2126 | DN20: 2127 | DO20: 2128 | DP20: 2129 | DQ20: 2130 | DR20: 2131 | DS20: 2132 | DT20: 2133 | DU20: 2134 | DV20: 2135 | DW20: 2136 | DX20: 2137 | DY20: 2138 | DZ20: 2139 | EA20: 2140 | EB20: 2141 | EC20: 2142 | ED20: =EC20+1 -> 2143 | EE20: 2144 | EF20: 2145 | EG20: 2146 | EH20: 2147 | EI20: 2148 | EJ20: 2149 | EK20: 2150 | EL20: 2151 | EM20: 2152 | EN20: 2153 | EO20: 2154 | EP20: 2155 | EQ20: 2156 | ER20: 2157 | ES20: 2158 | ET20: 2159 | EU20: 2160 | EV20: 2161 | EW20: 2162 | EX20: 2163 | EY20: 2164 | EZ20: 2165 | FA20: 2166 | FB20: 2167 | FC20: 2168 | FD20: 2169 | FE20: 2170 | FF20: 2171 | FG20: 2172 | FH20: 2173 | FI20: 2174 | FJ20: 2175 | FK20: 2176 | FL20: 2177 | FM20: 2178 | FN20: 2179 | FO20: 2180 | FP20: 2181 | FQ20: 2182 | FR20: 2183 | FS20: 2184 | FT20: 2185 | FU20: 2186 | FV20: 2187 | FW20: 2188 | FX20: 2189 | FY20: 2190 | FZ20: 2191 | GA20: 2192 | GB20: 2193 | GC20: 2194 | GD20: 2195 | GE20: 2196 | GF20: 2197 | GG20: 2198 | GH20: 2199 | GI20: 2200 | GJ20: 2201 | GK20: 2202 | GL20: 2203 | GM20: 2204 | GN20: 2205 | GO20: 2206 | GP20: =GO20+1 -> 2207 | GQ20: 2208 | GR20: 2209 | GS20: 2210 | GT20: 2211 | GU20: 2212 | GV20: 2213 | GW20: 2214 | GX20: 2215 | GY20: 2216 | GZ20: 2217 | HA20: 2218 | HB20: 2219 | HC20: 2220 | HD20: 2221 | HE20: 2222 | HF20: 2223 | HG20: 2224 | HH20: 2225 | HI20: 2226 | HJ20: 2227 | HK20: 2228 | HL20: 2229 | HM20: 2230 | HN20: 2231 | HO20: 2232 | HP20: 2233 | HQ20: 2234 | HR20: 2235 | HS20: 2236 | HT20: 2237 | HU20: 2238 | HV20: 2239 | HW20: 2240 | HX20: 2241 | HY20: 2242 | HZ20: 2243 | IA20: 2244 | IB20: 2245 | IC20: 2246 | ID20: 2247 | IE20: 2248 | IF20: 2249 | IG20: 2250 | IH20: 2251 | II20: 2252 | IJ20: 2253 | IK20: 2254 | IL20: 2255 | IM20: 2256 | IN20: 2257 | IO20: 2258 | IP20: 2259 | IQ20: 2260 | IR20: 2261 | IS20: 2262 | IT20: 2263 | IU20: 2264 | IV20: 2265 | IW20: 2266 | IX20: 2267 | IY20: 2268 | IZ20: 2269 | JA20: 2270 | JB20: =JA20+1 -> 2271 | JC20: 2272 | JD20: 2273 | JE20: 2274 | JF20: 2275 | JG20: 2276 | JH20: 2277 | JI20: 2278 | JJ20: 2279 | JK20: 2280 | JL20: 2281 | JM20: 2282 | JN20: 2283 | JO20: 2284 | JP20: 2285 | JQ20: 2286 | JR20: 2287 | JS20: 2288 | JT20: 2289 | JU20: 2290 | JV20: 2291 | JW20: 2292 | JX20: 2293 | JY20: 2294 | JZ20: 2295 | KA20: 2296 | KB20: 2297 | KC20: 2298 | KD20: 2299 | KE20: 2300 | KF20: 2301 | KG20: 2302 | KH20: 2303 | KI20: 2304 | KJ20: 2305 | KK20: 2306 | KL20: 2307 | KM20: 2308 | KN20: 2309 | KO20: 2310 | KP20: 2311 | KQ20: 2312
B22: Valuation Swith | D22: =D20=$D$13 -> FALSE | E22: =E20=$D$13 -> TRUE | F22: FALSE | G22: FALSE | H22: FALSE | I22: FALSE | J22: FALSE | K22: FALSE | L22: FALSE | M22: FALSE | N22: FALSE | O22: FALSE | P22: FALSE | Q22: FALSE | R22: FALSE | S22: FALSE | T22: FALSE | U22: FALSE | V22: FALSE | W22: FALSE | X22: FALSE | Y22: FALSE | Z22: FALSE | AA22: FALSE | AB22: FALSE | AC22: FALSE | AD22: FALSE | AE22: FALSE | AF22: FALSE | AG22: FALSE | AH22: FALSE | AI22: FALSE | AJ22: FALSE | AK22: FALSE | AL22: FALSE | AM22: FALSE | AN22: FALSE | AO22: FALSE | AP22: FALSE | AQ22: FALSE | AR22: FALSE | AS22: FALSE | AT22: FALSE | AU22: FALSE | AV22: FALSE | AW22: FALSE | AX22: FALSE | AY22: FALSE | AZ22: FALSE | BA22: FALSE | BB22: FALSE | BC22: FALSE | BD22: FALSE | BE22: FALSE | BF22: FALSE | BG22: FALSE | BH22: FALSE | BI22: FALSE | BJ22: FALSE | BK22: FALSE | BL22: FALSE | BM22: FALSE | BN22: FALSE | BO22: FALSE | BP22: FALSE | BQ22: =BQ20=$D$13 -> FALSE | BR22: FALSE | BS22: FALSE | BT22: FALSE | BU22: FALSE | BV22: FALSE | BW22: FALSE | BX22: FALSE | BY22: FALSE | BZ22: FALSE | CA22: FALSE | CB22: FALSE | CC22: FALSE | CD22: FALSE | CE22: FALSE | CF22: FALSE | CG22: FALSE | CH22: FALSE | CI22: FALSE | CJ22: FALSE | CK22: FALSE | CL22: FALSE | CM22: FALSE | CN22: FALSE | CO22: FALSE | CP22: FALSE | CQ22: FALSE | CR22: FALSE | CS22: FALSE | CT22: FALSE | CU22: FALSE | CV22: FALSE | CW22: FALSE | CX22: FALSE | CY22: FALSE | CZ22: FALSE | DA22: FALSE | DB22: FALSE | DC22: FALSE | DD22: FALSE | DE22: FALSE | DF22: FALSE | DG22: FALSE | DH22: FALSE | DI22: FALSE | DJ22: FALSE | DK22: FALSE | DL22: FALSE | DM22: FALSE | DN22: FALSE | DO22: FALSE | DP22: FALSE | DQ22: FALSE | DR22: FALSE | DS22: FALSE | DT22: FALSE | DU22: FALSE | DV22: FALSE | DW22: FALSE | DX22: FALSE | DY22: FALSE | DZ22: FALSE | EA22: FALSE | EB22: FALSE | EC22: =EC20=$D$13 -> FALSE | ED22: FALSE | EE22: FALSE | EF22: FALSE | EG22: FALSE | EH22: FALSE | EI22: FALSE | EJ22: FALSE | EK22: FALSE | EL22: FALSE | EM22: FALSE | EN22: FALSE | EO22: FALSE | EP22: FALSE | EQ22: FALSE | ER22: FALSE | ES22: FALSE | ET22: FALSE | EU22: FALSE | EV22: FALSE | EW22: FALSE | EX22: FALSE | EY22: FALSE | EZ22: FALSE | FA22: FALSE | FB22: FALSE | FC22: FALSE | FD22: FALSE | FE22: FALSE | FF22: FALSE | FG22: FALSE | FH22: FALSE | FI22: FALSE | FJ22: FALSE | FK22: FALSE | FL22: FALSE | FM22: FALSE | FN22: FALSE | FO22: FALSE | FP22: FALSE | FQ22: FALSE | FR22: FALSE | FS22: FALSE | FT22: FALSE | FU22: FALSE | FV22: FALSE | FW22: FALSE | FX22: FALSE | FY22: FALSE | FZ22: FALSE | GA22: FALSE | GB22: FALSE | GC22: FALSE | GD22: FALSE | GE22: FALSE | GF22: FALSE | GG22: FALSE | GH22: FALSE | GI22: FALSE | GJ22: FALSE | GK22: FALSE | GL22: FALSE | GM22: FALSE | GN22: FALSE | GO22: =GO20=$D$13 -> FALSE | GP22: FALSE | GQ22: FALSE | GR22: FALSE | GS22: FALSE | GT22: FALSE | GU22: FALSE | GV22: FALSE | GW22: FALSE | GX22: FALSE | GY22: FALSE | GZ22: FALSE | HA22: FALSE | HB22: FALSE | HC22: FALSE | HD22: FALSE | HE22: FALSE | HF22: FALSE | HG22: FALSE | HH22: FALSE | HI22: FALSE | HJ22: FALSE | HK22: FALSE | HL22: FALSE | HM22: FALSE | HN22: FALSE | HO22: FALSE | HP22: FALSE | HQ22: FALSE | HR22: FALSE | HS22: FALSE | HT22: FALSE | HU22: FALSE | HV22: FALSE | HW22: FALSE | HX22: FALSE | HY22: FALSE | HZ22: FALSE | IA22: FALSE | IB22: FALSE | IC22: FALSE | ID22: FALSE | IE22: FALSE | IF22: FALSE | IG22: FALSE | IH22: FALSE | II22: FALSE | IJ22: FALSE | IK22: FALSE | IL22: FALSE | IM22: FALSE | IN22: FALSE | IO22: FALSE | IP22: FALSE | IQ22: FALSE | IR22: FALSE | IS22: FALSE | IT22: FALSE | IU22: FALSE | IV22: FALSE | IW22: FALSE | IX22: FALSE | IY22: FALSE | IZ22: FALSE | JA22: =JA20=$D$13 -> FALSE | JB22: FALSE | JC22: FALSE | JD22: FALSE | JE22: FALSE | JF22: FALSE | JG22: FALSE | JH22: FALSE | JI22: FALSE | JJ22: FALSE | JK22: FALSE | JL22: FALSE | JM22: FALSE | JN22: FALSE | JO22: FALSE | JP22: FALSE | JQ22: FALSE | JR22: FALSE | JS22: FALSE | JT22: FALSE | JU22: FALSE | JV22: FALSE | JW22: FALSE | JX22: FALSE | JY22: FALSE | JZ22: FALSE | KA22: FALSE | KB22: FALSE | KC22: FALSE | KD22: FALSE | KE22: FALSE | KF22: FALSE | KG22: FALSE | KH22: FALSE | KI22: FALSE | KJ22: FALSE | KK22: FALSE | KL22: FALSE | KM22: FALSE | KN22: FALSE | KO22: FALSE | KP22: FALSE | KQ22: FALSE
B23: Explicit Period Switch | D23: =AND(D20>=$D$3,D20<=$D$5) -> FALSE | E23: =AND(E20>=$D$3,E20<=$D$5) -> FALSE | F23: FALSE | G23: TRUE | H23: TRUE | I23: TRUE | J23: TRUE | K23: TRUE | L23: TRUE | M23: FALSE | N23: FALSE | O23: FALSE | P23: FALSE | Q23: FALSE | R23: FALSE | S23: FALSE | T23: FALSE | U23: FALSE | V23: FALSE | W23: FALSE | X23: FALSE | Y23: FALSE | Z23: FALSE | AA23: FALSE | AB23: FALSE | AC23: FALSE | AD23: FALSE | AE23: FALSE | AF23: FALSE | AG23: FALSE | AH23: FALSE | AI23: FALSE | AJ23: FALSE | AK23: FALSE | AL23: FALSE | AM23: FALSE | AN23: FALSE | AO23: FALSE | AP23: FALSE | AQ23: FALSE | AR23: FALSE | AS23: FALSE | AT23: FALSE | AU23: FALSE | AV23: FALSE | AW23: FALSE | AX23: FALSE | AY23: FALSE | AZ23: FALSE | BA23: FALSE | BB23: FALSE | BC23: FALSE | BD23: FALSE | BE23: FALSE | BF23: FALSE | BG23: FALSE | BH23: FALSE | BI23: FALSE | BJ23: FALSE | BK23: FALSE | BL23: FALSE | BM23: FALSE | BN23: FALSE | BO23: FALSE | BP23: FALSE | BQ23: =AND(BQ20>=$D$3,BQ20<=$D$5) -> FALSE | BR23: FALSE | BS23: FALSE | BT23: FALSE | BU23: FALSE | BV23: FALSE | BW23: FALSE | BX23: FALSE | BY23: FALSE | BZ23: FALSE | CA23: FALSE | CB23: FALSE | CC23: FALSE | CD23: FALSE | CE23: FALSE | CF23: FALSE | CG23: FALSE | CH23: FALSE | CI23: FALSE | CJ23: FALSE | CK23: FALSE | CL23: FALSE | CM23: FALSE | CN23: FALSE | CO23: FALSE | CP23: FALSE | CQ23: FALSE | CR23: FALSE | CS23: FALSE | CT23: FALSE | CU23: FALSE | CV23: FALSE | CW23: FALSE | CX23: FALSE | CY23: FALSE | CZ23: FALSE | DA23: FALSE | DB23: FALSE | DC23: FALSE | DD23: FALSE | DE23: FALSE | DF23: FALSE | DG23: FALSE | DH23: FALSE | DI23: FALSE | DJ23: FALSE | DK23: FALSE | DL23: FALSE | DM23: FALSE | DN23: FALSE | DO23: FALSE | DP23: FALSE | DQ23: FALSE | DR23: FALSE | DS23: FALSE | DT23: FALSE | DU23: FALSE | DV23: FALSE | DW23: FALSE | DX23: FALSE | DY23: FALSE | DZ23: FALSE | EA23: FALSE | EB23: FALSE | EC23: =AND(EC20>=$D$3,EC20<=$D$5) -> FALSE | ED23: FALSE | EE23: FALSE | EF23: FALSE | EG23: FALSE | EH23: FALSE | EI23: FALSE | EJ23: FALSE | EK23: FALSE | EL23: FALSE | EM23: FALSE | EN23: FALSE | EO23: FALSE | EP23: FALSE | EQ23: FALSE | ER23: FALSE | ES23: FALSE | ET23: FALSE | EU23: FALSE | EV23: FALSE | EW23: FALSE | EX23: FALSE | EY23: FALSE | EZ23: FALSE | FA23: FALSE | FB23: FALSE | FC23: FALSE | FD23: FALSE | FE23: FALSE | FF23: FALSE | FG23: FALSE | FH23: FALSE | FI23: FALSE | FJ23: FALSE | FK23: FALSE | FL23: FALSE | FM23: FALSE | FN23: FALSE | FO23: FALSE | FP23: FALSE | FQ23: FALSE | FR23: FALSE | FS23: FALSE | FT23: FALSE | FU23: FALSE | FV23: FALSE | FW23: FALSE | FX23: FALSE | FY23: FALSE | FZ23: FALSE | GA23: FALSE | GB23: FALSE | GC23: FALSE | GD23: FALSE | GE23: FALSE | GF23: FALSE | GG23: FALSE | GH23: FALSE | GI23: FALSE | GJ23: FALSE | GK23: FALSE | GL23: FALSE | GM23: FALSE | GN23: FALSE | GO23: =AND(GO20>=$D$3,GO20<=$D$5) -> FALSE | GP23: FALSE | GQ23: FALSE | GR23: FALSE | GS23: FALSE | GT23: FALSE | GU23: FALSE | GV23: FALSE | GW23: FALSE | GX23: FALSE | GY23: FALSE | GZ23: FALSE | HA23: FALSE | HB23: FALSE | HC23: FALSE | HD23: FALSE | HE23: FALSE | HF23: FALSE | HG23: FALSE | HH23: FALSE | HI23: FALSE | HJ23: FALSE | HK23: FALSE | HL23: FALSE | HM23: FALSE | HN23: FALSE | HO23: FALSE | HP23: FALSE | HQ23: FALSE | HR23: FALSE | HS23: FALSE | HT23: FALSE | HU23: FALSE | HV23: FALSE | HW23: FALSE | HX23: FALSE | HY23: FALSE | HZ23: FALSE | IA23: FALSE | IB23: FALSE | IC23: FALSE | ID23: FALSE | IE23: FALSE | IF23: FALSE | IG23: FALSE | IH23: FALSE | II23: FALSE | IJ23: FALSE | IK23: FALSE | IL23: FALSE | IM23: FALSE | IN23: FALSE | IO23: FALSE | IP23: FALSE | IQ23: FALSE | IR23: FALSE | IS23: FALSE | IT23: FALSE | IU23: FALSE | IV23: FALSE | IW23: FALSE | IX23: FALSE | IY23: FALSE | IZ23: FALSE | JA23: =AND(JA20>=$D$3,JA20<=$D$5) -> FALSE | JB23: FALSE | JC23: FALSE | JD23: FALSE | JE23: FALSE | JF23: FALSE | JG23: FALSE | JH23: FALSE | JI23: FALSE | JJ23: FALSE | JK23: FALSE | JL23: FALSE | JM23: FALSE | JN23: FALSE | JO23: FALSE | JP23: FALSE | JQ23: FALSE | JR23: FALSE | JS23: FALSE | JT23: FALSE | JU23: FALSE | JV23: FALSE | JW23: FALSE | JX23: FALSE | JY23: FALSE | JZ23: FALSE | KA23: FALSE | KB23: FALSE | KC23: FALSE | KD23: FALSE | KE23: FALSE | KF23: FALSE | KG23: FALSE | KH23: FALSE | KI23: FALSE | KJ23: FALSE | KK23: FALSE | KL23: FALSE | KM23: FALSE | KN23: FALSE | KO23: FALSE | KP23: FALSE | KQ23: FALSE
B24: Terminal Switch | D24: =D20=$D$5 -> FALSE | E24: =E20=$D$5 -> FALSE | F24: FALSE | G24: FALSE | H24: FALSE | I24: FALSE | J24: FALSE | K24: FALSE | L24: TRUE | M24: FALSE | N24: FALSE | O24: FALSE | P24: FALSE | Q24: FALSE | R24: FALSE | S24: FALSE | T24: FALSE | U24: FALSE | V24: FALSE | W24: FALSE | X24: FALSE | Y24: FALSE | Z24: FALSE | AA24: FALSE | AB24: FALSE | AC24: FALSE | AD24: FALSE | AE24: FALSE | AF24: FALSE | AG24: FALSE | AH24: FALSE | AI24: FALSE | AJ24: FALSE | AK24: FALSE | AL24: FALSE | AM24: FALSE | AN24: FALSE | AO24: FALSE | AP24: FALSE | AQ24: FALSE | AR24: FALSE | AS24: FALSE | AT24: FALSE | AU24: FALSE | AV24: FALSE | AW24: FALSE | AX24: FALSE | AY24: FALSE | AZ24: FALSE | BA24: FALSE | BB24: FALSE | BC24: FALSE | BD24: FALSE | BE24: FALSE | BF24: FALSE | BG24: FALSE | BH24: FALSE | BI24: FALSE | BJ24: FALSE | BK24: FALSE | BL24: FALSE | BM24: FALSE | BN24: FALSE | BO24: FALSE | BP24: FALSE | BQ24: =BQ20=$D$5 -> FALSE | BR24: FALSE | BS24: FALSE | BT24: FALSE | BU24: FALSE | BV24: FALSE | BW24: FALSE | BX24: FALSE | BY24: FALSE | BZ24: FALSE | CA24: FALSE | CB24: FALSE | CC24: FALSE | CD24: FALSE | CE24: FALSE | CF24: FALSE | CG24: FALSE | CH24: FALSE | CI24: FALSE | CJ24: FALSE | CK24: FALSE | CL24: FALSE | CM24: FALSE | CN24: FALSE | CO24: FALSE | CP24: FALSE | CQ24: FALSE | CR24: FALSE | CS24: FALSE | CT24: FALSE | CU24: FALSE | CV24: FALSE | CW24: FALSE | CX24: FALSE | CY24: FALSE | CZ24: FALSE | DA24: FALSE | DB24: FALSE | DC24: FALSE | DD24: FALSE | DE24: FALSE | DF24: FALSE | DG24: FALSE | DH24: FALSE | DI24: FALSE | DJ24: FALSE | DK24: FALSE | DL24: FALSE | DM24: FALSE | DN24: FALSE | DO24: FALSE | DP24: FALSE | DQ24: FALSE | DR24: FALSE | DS24: FALSE | DT24: FALSE | DU24: FALSE | DV24: FALSE | DW24: FALSE | DX24: FALSE | DY24: FALSE | DZ24: FALSE | EA24: FALSE | EB24: FALSE | EC24: =EC20=$D$5 -> FALSE | ED24: FALSE | EE24: FALSE | EF24: FALSE | EG24: FALSE | EH24: FALSE | EI24: FALSE | EJ24: FALSE | EK24: FALSE | EL24: FALSE | EM24: FALSE | EN24: FALSE | EO24: FALSE | EP24: FALSE | EQ24: FALSE | ER24: FALSE | ES24: FALSE | ET24: FALSE | EU24: FALSE | EV24: FALSE | EW24: FALSE | EX24: FALSE | EY24: FALSE | EZ24: FALSE | FA24: FALSE | FB24: FALSE | FC24: FALSE | FD24: FALSE | FE24: FALSE | FF24: FALSE | FG24: FALSE | FH24: FALSE | FI24: FALSE | FJ24: FALSE | FK24: FALSE | FL24: FALSE | FM24: FALSE | FN24: FALSE | FO24: FALSE | FP24: FALSE | FQ24: FALSE | FR24: FALSE | FS24: FALSE | FT24: FALSE | FU24: FALSE | FV24: FALSE | FW24: FALSE | FX24: FALSE | FY24: FALSE | FZ24: FALSE | GA24: FALSE | GB24: FALSE | GC24: FALSE | GD24: FALSE | GE24: FALSE | GF24: FALSE | GG24: FALSE | GH24: FALSE | GI24: FALSE | GJ24: FALSE | GK24: FALSE | GL24: FALSE | GM24: FALSE | GN24: FALSE | GO24: =GO20=$D$5 -> FALSE | GP24: FALSE | GQ24: FALSE | GR24: FALSE | GS24: FALSE | GT24: FALSE | GU24: FALSE | GV24: FALSE | GW24: FALSE | GX24: FALSE | GY24: FALSE | GZ24: FALSE | HA24: FALSE | HB24: FALSE | HC24: FALSE | HD24: FALSE | HE24: FALSE | HF24: FALSE | HG24: FALSE | HH24: FALSE | HI24: FALSE | HJ24: FALSE | HK24: FALSE | HL24: FALSE | HM24: FALSE | HN24: FALSE | HO24: FALSE | HP24: FALSE | HQ24: FALSE | HR24: FALSE | HS24: FALSE | HT24: FALSE | HU24: FALSE | HV24: FALSE | HW24: FALSE | HX24: FALSE | HY24: FALSE | HZ24: FALSE | IA24: FALSE | IB24: FALSE | IC24: FALSE | ID24: FALSE | IE24: FALSE | IF24: FALSE | IG24: FALSE | IH24: FALSE | II24: FALSE | IJ24: FALSE | IK24: FALSE | IL24: FALSE | IM24: FALSE | IN24: FALSE | IO24: FALSE | IP24: FALSE | IQ24: FALSE | IR24: FALSE | IS24: FALSE | IT24: FALSE | IU24: FALSE | IV24: FALSE | IW24: FALSE | IX24: FALSE | IY24: FALSE | IZ24: FALSE | JA24: =JA20=$D$5 -> FALSE | JB24: FALSE | JC24: FALSE | JD24: FALSE | JE24: FALSE | JF24: FALSE | JG24: FALSE | JH24: FALSE | JI24: FALSE | JJ24: FALSE | JK24: FALSE | JL24: FALSE | JM24: FALSE | JN24: FALSE | JO24: FALSE | JP24: FALSE | JQ24: FALSE | JR24: FALSE | JS24: FALSE | JT24: FALSE | JU24: FALSE | JV24: FALSE | JW24: FALSE | JX24: FALSE | JY24: FALSE | JZ24: FALSE | KA24: FALSE | KB24: FALSE | KC24: FALSE | KD24: FALSE | KE24: FALSE | KF24: FALSE | KG24: FALSE | KH24: FALSE | KI24: FALSE | KJ24: FALSE | KK24: FALSE | KL24: FALSE | KM24: FALSE | KN24: FALSE | KO24: FALSE | KP24: FALSE | KQ24: FALSE
B25: Discounting Switch | D25: =D20>=$D$13 -> FALSE | E25: =E20>=$D$13 -> TRUE | F25: TRUE | G25: TRUE | H25: TRUE | I25: TRUE | J25: TRUE | K25: TRUE | L25: TRUE | M25: TRUE | N25: TRUE | O25: TRUE | P25: TRUE | Q25: TRUE | R25: TRUE | S25: TRUE | T25: TRUE | U25: TRUE | V25: TRUE | W25: TRUE | X25: TRUE | Y25: TRUE | Z25: TRUE | AA25: TRUE | AB25: TRUE | AC25: TRUE | AD25: TRUE | AE25: TRUE | AF25: TRUE | AG25: TRUE | AH25: TRUE | AI25: TRUE | AJ25: TRUE | AK25: TRUE | AL25: TRUE | AM25: TRUE | AN25: TRUE | AO25: TRUE | AP25: TRUE | AQ25: TRUE | AR25: TRUE | AS25: TRUE | AT25: TRUE | AU25: TRUE | AV25: TRUE | AW25: TRUE | AX25: TRUE | AY25: TRUE | AZ25: TRUE | BA25: TRUE | BB25: TRUE | BC25: TRUE | BD25: TRUE | BE25: TRUE | BF25: TRUE | BG25: TRUE | BH25: TRUE | BI25: TRUE | BJ25: TRUE | BK25: TRUE | BL25: TRUE | BM25: TRUE | BN25: TRUE | BO25: TRUE | BP25: TRUE | BQ25: =BQ20>=$D$13 -> TRUE | BR25: TRUE | BS25: TRUE | BT25: TRUE | BU25: TRUE | BV25: TRUE | BW25: TRUE | BX25: TRUE | BY25: TRUE | BZ25: TRUE | CA25: TRUE | CB25: TRUE | CC25: TRUE | CD25: TRUE | CE25: TRUE | CF25: TRUE | CG25: TRUE | CH25: TRUE | CI25: TRUE | CJ25: TRUE | CK25: TRUE | CL25: TRUE | CM25: TRUE | CN25: TRUE | CO25: TRUE | CP25: TRUE | CQ25: TRUE | CR25: TRUE | CS25: TRUE | CT25: TRUE | CU25: TRUE | CV25: TRUE | CW25: TRUE | CX25: TRUE | CY25: TRUE | CZ25: TRUE | DA25: TRUE | DB25: TRUE | DC25: TRUE | DD25: TRUE | DE25: TRUE | DF25: TRUE | DG25: TRUE | DH25: TRUE | DI25: TRUE | DJ25: TRUE | DK25: TRUE | DL25: TRUE | DM25: TRUE | DN25: TRUE | DO25: TRUE | DP25: TRUE | DQ25: TRUE | DR25: TRUE | DS25: TRUE | DT25: TRUE | DU25: TRUE | DV25: TRUE | DW25: TRUE | DX25: TRUE | DY25: TRUE | DZ25: TRUE | EA25: TRUE | EB25: TRUE | EC25: =EC20>=$D$13 -> TRUE | ED25: TRUE | EE25: TRUE | EF25: TRUE | EG25: TRUE | EH25: TRUE | EI25: TRUE | EJ25: TRUE | EK25: TRUE | EL25: TRUE | EM25: TRUE | EN25: TRUE | EO25: TRUE | EP25: TRUE | EQ25: TRUE | ER25: TRUE | ES25: TRUE | ET25: TRUE | EU25: TRUE | EV25: TRUE | EW25: TRUE | EX25: TRUE | EY25: TRUE | EZ25: TRUE | FA25: TRUE | FB25: TRUE | FC25: TRUE | FD25: TRUE | FE25: TRUE | FF25: TRUE | FG25: TRUE | FH25: TRUE | FI25: TRUE | FJ25: TRUE | FK25: TRUE | FL25: TRUE | FM25: TRUE | FN25: TRUE | FO25: TRUE | FP25: TRUE | FQ25: TRUE | FR25: TRUE | FS25: TRUE | FT25: TRUE | FU25: TRUE | FV25: TRUE | FW25: TRUE | FX25: TRUE | FY25: TRUE | FZ25: TRUE | GA25: TRUE | GB25: TRUE | GC25: TRUE | GD25: TRUE | GE25: TRUE | GF25: TRUE | GG25: TRUE | GH25: TRUE | GI25: TRUE | GJ25: TRUE | GK25: TRUE | GL25: TRUE | GM25: TRUE | GN25: TRUE | GO25: =GO20>=$D$13 -> TRUE | GP25: TRUE | GQ25: TRUE | GR25: TRUE | GS25: TRUE | GT25: TRUE | GU25: TRUE | GV25: TRUE | GW25: TRUE | GX25: TRUE | GY25: TRUE | GZ25: TRUE | HA25: TRUE | HB25: TRUE | HC25: TRUE | HD25: TRUE | HE25: TRUE | HF25: TRUE | HG25: TRUE | HH25: TRUE | HI25: TRUE | HJ25: TRUE | HK25: TRUE | HL25: TRUE | HM25: TRUE | HN25: TRUE | HO25: TRUE | HP25: TRUE | HQ25: TRUE | HR25: TRUE | HS25: TRUE | HT25: TRUE | HU25: TRUE | HV25: TRUE | HW25: TRUE | HX25: TRUE | HY25: TRUE | HZ25: TRUE | IA25: TRUE | IB25: TRUE | IC25: TRUE | ID25: TRUE | IE25: TRUE | IF25: TRUE | IG25: TRUE | IH25: TRUE | II25: TRUE | IJ25: TRUE | IK25: TRUE | IL25: TRUE | IM25: TRUE | IN25: TRUE | IO25: TRUE | IP25: TRUE | IQ25: TRUE | IR25: TRUE | IS25: TRUE | IT25: TRUE | IU25: TRUE | IV25: TRUE | IW25: TRUE | IX25: TRUE | IY25: TRUE | IZ25: TRUE | JA25: =JA20>=$D$13 -> TRUE | JB25: TRUE | JC25: TRUE | JD25: TRUE | JE25: TRUE | JF25: TRUE | JG25: TRUE | JH25: TRUE | JI25: TRUE | JJ25: TRUE | JK25: TRUE | JL25: TRUE | JM25: TRUE | JN25: TRUE | JO25: TRUE | JP25: TRUE | JQ25: TRUE | JR25: TRUE | JS25: TRUE | JT25: TRUE | JU25: TRUE | JV25: TRUE | JW25: TRUE | JX25: TRUE | JY25: TRUE | JZ25: TRUE | KA25: TRUE | KB25: TRUE | KC25: TRUE | KD25: TRUE | KE25: TRUE | KF25: TRUE | KG25: TRUE | KH25: TRUE | KI25: TRUE | KJ25: TRUE | KK25: TRUE | KL25: TRUE | KM25: TRUE | KN25: TRUE | KO25: TRUE | KP25: TRUE | KQ25: TRUE
B26: Pre-Transaction | D26: =D20<$D$3 -> TRUE | E26: =E20<$D$3 -> TRUE | F26: TRUE | G26: FALSE | H26: FALSE | I26: FALSE | J26: FALSE | K26: FALSE | L26: FALSE | M26: FALSE | N26: FALSE | O26: FALSE | P26: FALSE | Q26: FALSE | R26: FALSE | S26: FALSE | T26: FALSE | U26: FALSE | V26: FALSE | W26: FALSE | X26: FALSE | Y26: FALSE | Z26: FALSE | AA26: FALSE | AB26: FALSE | AC26: FALSE | AD26: FALSE | AE26: FALSE | AF26: FALSE | AG26: FALSE | AH26: FALSE | AI26: FALSE | AJ26: FALSE | AK26: FALSE | AL26: FALSE | AM26: FALSE | AN26: FALSE | AO26: FALSE | AP26: FALSE | AQ26: FALSE | AR26: FALSE | AS26: FALSE | AT26: FALSE | AU26: FALSE | AV26: FALSE | AW26: FALSE | AX26: FALSE | AY26: FALSE | AZ26: FALSE | BA26: FALSE | BB26: FALSE | BC26: FALSE | BD26: FALSE | BE26: FALSE | BF26: FALSE | BG26: FALSE | BH26: FALSE | BI26: FALSE | BJ26: FALSE | BK26: FALSE | BL26: FALSE | BM26: FALSE | BN26: FALSE | BO26: FALSE | BP26: FALSE | BQ26: =BQ20<$D$3 -> FALSE | BR26: FALSE | BS26: FALSE | BT26: FALSE | BU26: FALSE | BV26: FALSE | BW26: FALSE | BX26: FALSE | BY26: FALSE | BZ26: FALSE | CA26: FALSE | CB26: FALSE | CC26: FALSE | CD26: FALSE | CE26: FALSE | CF26: FALSE | CG26: FALSE | CH26: FALSE | CI26: FALSE | CJ26: FALSE | CK26: FALSE | CL26: FALSE | CM26: FALSE | CN26: FALSE | CO26: FALSE | CP26: FALSE | CQ26: FALSE | CR26: FALSE | CS26: FALSE | CT26: FALSE | CU26: FALSE | CV26: FALSE | CW26: FALSE | CX26: FALSE | CY26: FALSE | CZ26: FALSE | DA26: FALSE | DB26: FALSE | DC26: FALSE | DD26: FALSE | DE26: FALSE | DF26: FALSE | DG26: FALSE | DH26: FALSE | DI26: FALSE | DJ26: FALSE | DK26: FALSE | DL26: FALSE | DM26: FALSE | DN26: FALSE | DO26: FALSE | DP26: FALSE | DQ26: FALSE | DR26: FALSE | DS26: FALSE | DT26: FALSE | DU26: FALSE | DV26: FALSE | DW26: FALSE | DX26: FALSE | DY26: FALSE | DZ26: FALSE | EA26: FALSE | EB26: FALSE | EC26: =EC20<$D$3 -> FALSE | ED26: FALSE | EE26: FALSE | EF26: FALSE | EG26: FALSE | EH26: FALSE | EI26: FALSE | EJ26: FALSE | EK26: FALSE | EL26: FALSE | EM26: FALSE | EN26: FALSE | EO26: FALSE | EP26: FALSE | EQ26: FALSE | ER26: FALSE | ES26: FALSE | ET26: FALSE | EU26: FALSE | EV26: FALSE | EW26: FALSE | EX26: FALSE | EY26: FALSE | EZ26: FALSE | FA26: FALSE | FB26: FALSE | FC26: FALSE | FD26: FALSE | FE26: FALSE | FF26: FALSE | FG26: FALSE | FH26: FALSE | FI26: FALSE | FJ26: FALSE | FK26: FALSE | FL26: FALSE | FM26: FALSE | FN26: FALSE | FO26: FALSE | FP26: FALSE | FQ26: FALSE | FR26: FALSE | FS26: FALSE | FT26: FALSE | FU26: FALSE | FV26: FALSE | FW26: FALSE | FX26: FALSE | FY26: FALSE | FZ26: FALSE | GA26: FALSE | GB26: FALSE | GC26: FALSE | GD26: FALSE | GE26: FALSE | GF26: FALSE | GG26: FALSE | GH26: FALSE | GI26: FALSE | GJ26: FALSE | GK26: FALSE | GL26: FALSE | GM26: FALSE | GN26: FALSE | GO26: =GO20<$D$3 -> FALSE | GP26: FALSE | GQ26: FALSE | GR26: FALSE | GS26: FALSE | GT26: FALSE | GU26: FALSE | GV26: FALSE | GW26: FALSE | GX26: FALSE | GY26: FALSE | GZ26: FALSE | HA26: FALSE | HB26: FALSE | HC26: FALSE | HD26: FALSE | HE26: FALSE | HF26: FALSE | HG26: FALSE | HH26: FALSE | HI26: FALSE | HJ26: FALSE | HK26: FALSE | HL26: FALSE | HM26: FALSE | HN26: FALSE | HO26: FALSE | HP26: FALSE | HQ26: FALSE | HR26: FALSE | HS26: FALSE | HT26: FALSE | HU26: FALSE | HV26: FALSE | HW26: FALSE | HX26: FALSE | HY26: FALSE | HZ26: FALSE | IA26: FALSE | IB26: FALSE | IC26: FALSE | ID26: FALSE | IE26: FALSE | IF26: FALSE | IG26: FALSE | IH26: FALSE | II26: FALSE | IJ26: FALSE | IK26: FALSE | IL26: FALSE | IM26: FALSE | IN26: FALSE | IO26: FALSE | IP26: FALSE | IQ26: FALSE | IR26: FALSE | IS26: FALSE | IT26: FALSE | IU26: FALSE | IV26: FALSE | IW26: FALSE | IX26: FALSE | IY26: FALSE | IZ26: FALSE | JA26: =JA20<$D$3 -> FALSE | JB26: FALSE | JC26: FALSE | JD26: FALSE | JE26: FALSE | JF26: FALSE | JG26: FALSE | JH26: FALSE | JI26: FALSE | JJ26: FALSE | JK26: FALSE | JL26: FALSE | JM26: FALSE | JN26: FALSE | JO26: FALSE | JP26: FALSE | JQ26: FALSE | JR26: FALSE | JS26: FALSE | JT26: FALSE | JU26: FALSE | JV26: FALSE | JW26: FALSE | JX26: FALSE | JY26: FALSE | JZ26: FALSE | KA26: FALSE | KB26: FALSE | KC26: FALSE | KD26: FALSE | KE26: FALSE | KF26: FALSE | KG26: FALSE | KH26: FALSE | KI26: FALSE | KJ26: FALSE | KK26: FALSE | KL26: FALSE | KM26: FALSE | KN26: FALSE | KO26: FALSE | KP26: FALSE | KQ26: FALSE
B27: Transaction Date | D27: =D20=$D$3 -> FALSE | E27: =E20=$D$3 -> FALSE | F27: FALSE | G27: TRUE | H27: FALSE | I27: FALSE | J27: FALSE | K27: FALSE | L27: FALSE | M27: FALSE | N27: FALSE | O27: FALSE | P27: FALSE | Q27: FALSE | R27: FALSE | S27: FALSE | T27: FALSE | U27: FALSE | V27: FALSE | W27: FALSE | X27: FALSE | Y27: FALSE | Z27: FALSE | AA27: FALSE | AB27: FALSE | AC27: FALSE | AD27: FALSE | AE27: FALSE | AF27: FALSE | AG27: FALSE | AH27: FALSE | AI27: FALSE | AJ27: FALSE | AK27: FALSE | AL27: FALSE | AM27: FALSE | AN27: FALSE | AO27: FALSE | AP27: FALSE | AQ27: FALSE | AR27: FALSE | AS27: FALSE | AT27: FALSE | AU27: FALSE | AV27: FALSE | AW27: FALSE | AX27: FALSE | AY27: FALSE | AZ27: FALSE | BA27: FALSE | BB27: FALSE | BC27: FALSE | BD27: FALSE | BE27: FALSE | BF27: FALSE | BG27: FALSE | BH27: FALSE | BI27: FALSE | BJ27: FALSE | BK27: FALSE | BL27: FALSE | BM27: FALSE | BN27: FALSE | BO27: FALSE | BP27: FALSE | BQ27: =BQ20=$D$3 -> FALSE | BR27: FALSE | BS27: FALSE | BT27: FALSE | BU27: FALSE | BV27: FALSE | BW27: FALSE | BX27: FALSE | BY27: FALSE | BZ27: FALSE | CA27: FALSE | CB27: FALSE | CC27: FALSE | CD27: FALSE | CE27: FALSE | CF27: FALSE | CG27: FALSE | CH27: FALSE | CI27: FALSE | CJ27: FALSE | CK27: FALSE | CL27: FALSE | CM27: FALSE | CN27: FALSE | CO27: FALSE | CP27: FALSE | CQ27: FALSE | CR27: FALSE | CS27: FALSE | CT27: FALSE | CU27: FALSE | CV27: FALSE | CW27: FALSE | CX27: FALSE | CY27: FALSE | CZ27: FALSE | DA27: FALSE | DB27: FALSE | DC27: FALSE | DD27: FALSE | DE27: FALSE | DF27: FALSE | DG27: FALSE | DH27: FALSE | DI27: FALSE | DJ27: FALSE | DK27: FALSE | DL27: FALSE | DM27: FALSE | DN27: FALSE | DO27: FALSE | DP27: FALSE | DQ27: FALSE | DR27: FALSE | DS27: FALSE | DT27: FALSE | DU27: FALSE | DV27: FALSE | DW27: FALSE | DX27: FALSE | DY27: FALSE | DZ27: FALSE | EA27: FALSE | EB27: FALSE | EC27: =EC20=$D$3 -> FALSE | ED27: FALSE | EE27: FALSE | EF27: FALSE | EG27: FALSE | EH27: FALSE | EI27: FALSE | EJ27: FALSE | EK27: FALSE | EL27: FALSE | EM27: FALSE | EN27: FALSE | EO27: FALSE | EP27: FALSE | EQ27: FALSE | ER27: FALSE | ES27: FALSE | ET27: FALSE | EU27: FALSE | EV27: FALSE | EW27: FALSE | EX27: FALSE | EY27: FALSE | EZ27: FALSE | FA27: FALSE | FB27: FALSE | FC27: FALSE | FD27: FALSE | FE27: FALSE | FF27: FALSE | FG27: FALSE | FH27: FALSE | FI27: FALSE | FJ27: FALSE | FK27: FALSE | FL27: FALSE | FM27: FALSE | FN27: FALSE | FO27: FALSE | FP27: FALSE | FQ27: FALSE | FR27: FALSE | FS27: FALSE | FT27: FALSE | FU27: FALSE | FV27: FALSE | FW27: FALSE | FX27: FALSE | FY27: FALSE | FZ27: FALSE | GA27: FALSE | GB27: FALSE | GC27: FALSE | GD27: FALSE | GE27: FALSE | GF27: FALSE | GG27: FALSE | GH27: FALSE | GI27: FALSE | GJ27: FALSE | GK27: FALSE | GL27: FALSE | GM27: FALSE | GN27: FALSE | GO27: =GO20=$D$3 -> FALSE | GP27: FALSE | GQ27: FALSE | GR27: FALSE | GS27: FALSE | GT27: FALSE | GU27: FALSE | GV27: FALSE | GW27: FALSE | GX27: FALSE | GY27: FALSE | GZ27: FALSE | HA27: FALSE | HB27: FALSE | HC27: FALSE | HD27: FALSE | HE27: FALSE | HF27: FALSE | HG27: FALSE | HH27: FALSE | HI27: FALSE | HJ27: FALSE | HK27: FALSE | HL27: FALSE | HM27: FALSE | HN27: FALSE | HO27: FALSE | HP27: FALSE | HQ27: FALSE | HR27: FALSE | HS27: FALSE | HT27: FALSE | HU27: FALSE | HV27: FALSE | HW27: FALSE | HX27: FALSE | HY27: FALSE | HZ27: FALSE | IA27: FALSE | IB27: FALSE | IC27: FALSE | ID27: FALSE | IE27: FALSE | IF27: FALSE | IG27: FALSE | IH27: FALSE | II27: FALSE | IJ27: FALSE | IK27: FALSE | IL27: FALSE | IM27: FALSE | IN27: FALSE | IO27: FALSE | IP27: FALSE | IQ27: FALSE | IR27: FALSE | IS27: FALSE | IT27: FALSE | IU27: FALSE | IV27: FALSE | IW27: FALSE | IX27: FALSE | IY27: FALSE | IZ27: FALSE | JA27: =JA20=$D$3 -> FALSE | JB27: FALSE | JC27: FALSE | JD27: FALSE | JE27: FALSE | JF27: FALSE | JG27: FALSE | JH27: FALSE | JI27: FALSE | JJ27: FALSE | JK27: FALSE | JL27: FALSE | JM27: FALSE | JN27: FALSE | JO27: FALSE | JP27: FALSE | JQ27: FALSE | JR27: FALSE | JS27: FALSE | JT27: FALSE | JU27: FALSE | JV27: FALSE | JW27: FALSE | JX27: FALSE | JY27: FALSE | JZ27: FALSE | KA27: FALSE | KB27: FALSE | KC27: FALSE | KD27: FALSE | KE27: FALSE | KF27: FALSE | KG27: FALSE | KH27: FALSE | KI27: FALSE | KJ27: FALSE | KK27: FALSE | KL27: FALSE | KM27: FALSE | KN27: FALSE | KO27: FALSE | KP27: FALSE | KQ27: FALSE
B28: Post Terminal Period | D28: =D20>$D$5 -> FALSE | E28: =E20>$D$5 -> FALSE | F28: FALSE | G28: FALSE | H28: FALSE | I28: FALSE | J28: FALSE | K28: FALSE | L28: FALSE | M28: TRUE | N28: TRUE | O28: TRUE | P28: TRUE | Q28: TRUE | R28: TRUE | S28: TRUE | T28: TRUE | U28: TRUE | V28: TRUE | W28: TRUE | X28: TRUE | Y28: TRUE | Z28: TRUE | AA28: TRUE | AB28: TRUE | AC28: TRUE | AD28: TRUE | AE28: TRUE | AF28: TRUE | AG28: TRUE | AH28: TRUE | AI28: TRUE | AJ28: TRUE | AK28: TRUE | AL28: TRUE | AM28: TRUE | AN28: TRUE | AO28: TRUE | AP28: TRUE | AQ28: TRUE | AR28: TRUE | AS28: TRUE | AT28: TRUE | AU28: TRUE | AV28: TRUE | AW28: TRUE | AX28: TRUE | AY28: TRUE | AZ28: TRUE | BA28: TRUE | BB28: TRUE | BC28: TRUE | BD28: TRUE | BE28: TRUE | BF28: TRUE | BG28: TRUE | BH28: TRUE | BI28: TRUE | BJ28: TRUE | BK28: TRUE | BL28: TRUE | BM28: TRUE | BN28: TRUE | BO28: TRUE | BP28: TRUE | BQ28: =BQ20>$D$5 -> TRUE | BR28: TRUE | BS28: TRUE | BT28: TRUE | BU28: TRUE | BV28: TRUE | BW28: TRUE | BX28: TRUE | BY28: TRUE | BZ28: TRUE | CA28: TRUE | CB28: TRUE | CC28: TRUE | CD28: TRUE | CE28: TRUE | CF28: TRUE | CG28: TRUE | CH28: TRUE | CI28: TRUE | CJ28: TRUE | CK28: TRUE | CL28: TRUE | CM28: TRUE | CN28: TRUE | CO28: TRUE | CP28: TRUE | CQ28: TRUE | CR28: TRUE | CS28: TRUE | CT28: TRUE | CU28: TRUE | CV28: TRUE | CW28: TRUE | CX28: TRUE | CY28: TRUE | CZ28: TRUE | DA28: TRUE | DB28: TRUE | DC28: TRUE | DD28: TRUE | DE28: TRUE | DF28: TRUE | DG28: TRUE | DH28: TRUE | DI28: TRUE | DJ28: TRUE | DK28: TRUE | DL28: TRUE | DM28: TRUE | DN28: TRUE | DO28: TRUE | DP28: TRUE | DQ28: TRUE | DR28: TRUE | DS28: TRUE | DT28: TRUE | DU28: TRUE | DV28: TRUE | DW28: TRUE | DX28: TRUE | DY28: TRUE | DZ28: TRUE | EA28: TRUE | EB28: TRUE | EC28: =EC20>$D$5 -> TRUE | ED28: TRUE | EE28: TRUE | EF28: TRUE | EG28: TRUE | EH28: TRUE | EI28: TRUE | EJ28: TRUE | EK28: TRUE | EL28: TRUE | EM28: TRUE | EN28: TRUE | EO28: TRUE | EP28: TRUE | EQ28: TRUE | ER28: TRUE | ES28: TRUE | ET28: TRUE | EU28: TRUE | EV28: TRUE | EW28: TRUE | EX28: TRUE | EY28: TRUE | EZ28: TRUE | FA28: TRUE | FB28: TRUE | FC28: TRUE | FD28: TRUE | FE28: TRUE | FF28: TRUE | FG28: TRUE | FH28: TRUE | FI28: TRUE | FJ28: TRUE | FK28: TRUE | FL28: TRUE | FM28: TRUE | FN28: TRUE | FO28: TRUE | FP28: TRUE | FQ28: TRUE | FR28: TRUE | FS28: TRUE | FT28: TRUE | FU28: TRUE | FV28: TRUE | FW28: TRUE | FX28: TRUE | FY28: TRUE | FZ28: TRUE | GA28: TRUE | GB28: TRUE | GC28: TRUE | GD28: TRUE | GE28: TRUE | GF28: TRUE | GG28: TRUE | GH28: TRUE | GI28: TRUE | GJ28: TRUE | GK28: TRUE | GL28: TRUE | GM28: TRUE | GN28: TRUE | GO28: =GO20>$D$5 -> TRUE | GP28: TRUE | GQ28: TRUE | GR28: TRUE | GS28: TRUE | GT28: TRUE | GU28: TRUE | GV28: TRUE | GW28: TRUE | GX28: TRUE | GY28: TRUE | GZ28: TRUE | HA28: TRUE | HB28: TRUE | HC28: TRUE | HD28: TRUE | HE28: TRUE | HF28: TRUE | HG28: TRUE | HH28: TRUE | HI28: TRUE | HJ28: TRUE | HK28: TRUE | HL28: TRUE | HM28: TRUE | HN28: TRUE | HO28: TRUE | HP28: TRUE | HQ28: TRUE | HR28: TRUE | HS28: TRUE | HT28: TRUE | HU28: TRUE | HV28: TRUE | HW28: TRUE | HX28: TRUE | HY28: TRUE | HZ28: TRUE | IA28: TRUE | IB28: TRUE | IC28: TRUE | ID28: TRUE | IE28: TRUE | IF28: TRUE | IG28: TRUE | IH28: TRUE | II28: TRUE | IJ28: TRUE | IK28: TRUE | IL28: TRUE | IM28: TRUE | IN28: TRUE | IO28: TRUE | IP28: TRUE | IQ28: TRUE | IR28: TRUE | IS28: TRUE | IT28: TRUE | IU28: TRUE | IV28: TRUE | IW28: TRUE | IX28: TRUE | IY28: TRUE | IZ28: TRUE | JA28: =JA20>$D$5 -> TRUE | JB28: TRUE | JC28: TRUE | JD28: TRUE | JE28: TRUE | JF28: TRUE | JG28: TRUE | JH28: TRUE | JI28: TRUE | JJ28: TRUE | JK28: TRUE | JL28: TRUE | JM28: TRUE | JN28: TRUE | JO28: TRUE | JP28: TRUE | JQ28: TRUE | JR28: TRUE | JS28: TRUE | JT28: TRUE | JU28: TRUE | JV28: TRUE | JW28: TRUE | JX28: TRUE | JY28: TRUE | JZ28: TRUE | KA28: TRUE | KB28: TRUE | KC28: TRUE | KD28: TRUE | KE28: TRUE | KF28: TRUE | KG28: TRUE | KH28: TRUE | KI28: TRUE | KJ28: TRUE | KK28: TRUE | KL28: TRUE | KM28: TRUE | KN28: TRUE | KO28: TRUE | KP28: TRUE | KQ28: TRUE
B29: Cash Flow Switch | D29: =D28<>D23 -> FALSE | E29: =E28<>E23 -> FALSE | F29: FALSE | G29: TRUE | H29: TRUE | I29: TRUE | J29: TRUE | K29: TRUE | L29: TRUE | M29: TRUE | N29: TRUE | O29: TRUE | P29: TRUE | Q29: TRUE | R29: TRUE | S29: TRUE | T29: TRUE | U29: TRUE | V29: TRUE | W29: TRUE | X29: TRUE | Y29: TRUE | Z29: TRUE | AA29: TRUE | AB29: TRUE | AC29: TRUE | AD29: TRUE | AE29: TRUE | AF29: TRUE | AG29: TRUE | AH29: TRUE | AI29: TRUE | AJ29: TRUE | AK29: TRUE | AL29: TRUE | AM29: TRUE | AN29: TRUE | AO29: TRUE | AP29: TRUE | AQ29: TRUE | AR29: TRUE | AS29: TRUE | AT29: TRUE | AU29: TRUE | AV29: TRUE | AW29: TRUE | AX29: TRUE | AY29: TRUE | AZ29: TRUE | BA29: TRUE | BB29: TRUE | BC29: TRUE | BD29: TRUE | BE29: TRUE | BF29: TRUE | BG29: TRUE | BH29: TRUE | BI29: TRUE | BJ29: TRUE | BK29: TRUE | BL29: TRUE | BM29: TRUE | BN29: TRUE | BO29: TRUE | BP29: TRUE | BQ29: =BQ28<>BQ23 -> TRUE | BR29: TRUE | BS29: TRUE | BT29: TRUE | BU29: TRUE | BV29: TRUE | BW29: TRUE | BX29: TRUE | BY29: TRUE | BZ29: TRUE | CA29: TRUE | CB29: TRUE | CC29: TRUE | CD29: TRUE | CE29: TRUE | CF29: TRUE | CG29: TRUE | CH29: TRUE | CI29: TRUE | CJ29: TRUE | CK29: TRUE | CL29: TRUE | CM29: TRUE | CN29: TRUE | CO29: TRUE | CP29: TRUE | CQ29: TRUE | CR29: TRUE | CS29: TRUE | CT29: TRUE | CU29: TRUE | CV29: TRUE | CW29: TRUE | CX29: TRUE | CY29: TRUE | CZ29: TRUE | DA29: TRUE | DB29: TRUE | DC29: TRUE | DD29: TRUE | DE29: TRUE | DF29: TRUE | DG29: TRUE | DH29: TRUE | DI29: TRUE | DJ29: TRUE | DK29: TRUE | DL29: TRUE | DM29: TRUE | DN29: TRUE | DO29: TRUE | DP29: TRUE | DQ29: TRUE | DR29: TRUE | DS29: TRUE | DT29: TRUE | DU29: TRUE | DV29: TRUE | DW29: TRUE | DX29: TRUE | DY29: TRUE | DZ29: TRUE | EA29: TRUE | EB29: TRUE | EC29: =EC28<>EC23 -> TRUE | ED29: TRUE | EE29: TRUE | EF29: TRUE | EG29: TRUE | EH29: TRUE | EI29: TRUE | EJ29: TRUE | EK29: TRUE | EL29: TRUE | EM29: TRUE | EN29: TRUE | EO29: TRUE | EP29: TRUE | EQ29: TRUE | ER29: TRUE | ES29: TRUE | ET29: TRUE | EU29: TRUE | EV29: TRUE | EW29: TRUE | EX29: TRUE | EY29: TRUE | EZ29: TRUE | FA29: TRUE | FB29: TRUE | FC29: TRUE | FD29: TRUE | FE29: TRUE | FF29: TRUE | FG29: TRUE | FH29: TRUE | FI29: TRUE | FJ29: TRUE | FK29: TRUE | FL29: TRUE | FM29: TRUE | FN29: TRUE | FO29: TRUE | FP29: TRUE | FQ29: TRUE | FR29: TRUE | FS29: TRUE | FT29: TRUE | FU29: TRUE | FV29: TRUE | FW29: TRUE | FX29: TRUE | FY29: TRUE | FZ29: TRUE | GA29: TRUE | GB29: TRUE | GC29: TRUE | GD29: TRUE | GE29: TRUE | GF29: TRUE | GG29: TRUE | GH29: TRUE | GI29: TRUE | GJ29: TRUE | GK29: TRUE | GL29: TRUE | GM29: TRUE | GN29: TRUE | GO29: =GO28<>GO23 -> TRUE | GP29: TRUE | GQ29: TRUE | GR29: TRUE | GS29: TRUE | GT29: TRUE | GU29: TRUE | GV29: TRUE | GW29: TRUE | GX29: TRUE | GY29: TRUE | GZ29: TRUE | HA29: TRUE | HB29: TRUE | HC29: TRUE | HD29: TRUE | HE29: TRUE | HF29: TRUE | HG29: TRUE | HH29: TRUE | HI29: TRUE | HJ29: TRUE | HK29: TRUE | HL29: TRUE | HM29: TRUE | HN29: TRUE | HO29: TRUE | HP29: TRUE | HQ29: TRUE | HR29: TRUE | HS29: TRUE | HT29: TRUE | HU29: TRUE | HV29: TRUE | HW29: TRUE | HX29: TRUE | HY29: TRUE | HZ29: TRUE | IA29: TRUE | IB29: TRUE | IC29: TRUE | ID29: TRUE | IE29: TRUE | IF29: TRUE | IG29: TRUE | IH29: TRUE | II29: TRUE | IJ29: TRUE | IK29: TRUE | IL29: TRUE | IM29: TRUE | IN29: TRUE | IO29: TRUE | IP29: TRUE | IQ29: TRUE | IR29: TRUE | IS29: TRUE | IT29: TRUE | IU29: TRUE | IV29: TRUE | IW29: TRUE | IX29: TRUE | IY29: TRUE | IZ29: TRUE | JA29: =JA28<>JA23 -> TRUE | JB29: TRUE | JC29: TRUE | JD29: TRUE | JE29: TRUE | JF29: TRUE | JG29: TRUE | JH29: TRUE | JI29: TRUE | JJ29: TRUE | JK29: TRUE | JL29: TRUE | JM29: TRUE | JN29: TRUE | JO29: TRUE | JP29: TRUE | JQ29: TRUE | JR29: TRUE | JS29: TRUE | JT29: TRUE | JU29: TRUE | JV29: TRUE | JW29: TRUE | JX29: TRUE | JY29: TRUE | JZ29: TRUE | KA29: TRUE | KB29: TRUE | KC29: TRUE | KD29: TRUE | KE29: TRUE | KF29: TRUE | KG29: TRUE | KH29: TRUE | KI29: TRUE | KJ29: TRUE | KK29: TRUE | KL29: TRUE | KM29: TRUE | KN29: TRUE | KO29: TRUE | KP29: TRUE | KQ29: TRUE
B31: Beginning of Period | D31: =DATE(D20,1,1) -> 2013-01-01 | E31: =DATE(E20,1,1) -> 2014-01-01 | F31: 2015-01-01 | G31: 2016-01-01 | H31: 2017-01-01 | I31: 2018-01-01 | J31: 2019-01-01 | K31: 2020-01-01 | L31: 2021-01-01 | M31: 2022-01-01 | N31: 2023-01-01 | O31: 2024-01-01 | P31: 2025-01-01 | Q31: 2026-01-01 | R31: 2027-01-01 | S31: 2028-01-01 | T31: 2029-01-01 | U31: 2030-01-01 | V31: 2031-01-01 | W31: 2032-01-01 | X31: 2033-01-01 | Y31: 2034-01-01 | Z31: 2035-01-01 | AA31: 2036-01-01 | AB31: 2037-01-01 | AC31: 2038-01-01 | AD31: 2039-01-01 | AE31: 2040-01-01 | AF31: 2041-01-01 | AG31: 2042-01-01 | AH31: 2043-01-01 | AI31: 2044-01-01 | AJ31: 2045-01-01 | AK31: 2046-01-01 | AL31: 2047-01-01 | AM31: 2048-01-01 | AN31: 2049-01-01 | AO31: 2050-01-01 | AP31: 2051-01-01 | AQ31: 2052-01-01 | AR31: 2053-01-01 | AS31: 2054-01-01 | AT31: 2055-01-01 | AU31: 2056-01-01 | AV31: 2057-01-01 | AW31: 2058-01-01 | AX31: 2059-01-01 | AY31: 2060-01-01 | AZ31: 2061-01-01 | BA31: 2062-01-01 | BB31: 2063-01-01 | BC31: 2064-01-01 | BD31: 2065-01-01 | BE31: 2066-01-01 | BF31: 2067-01-01 | BG31: 2068-01-01 | BH31: 2069-01-01 | BI31: 2070-01-01 | BJ31: 2071-01-01 | BK31: 2072-01-01 | BL31: 2073-01-01 | BM31: 2074-01-01 | BN31: 2075-01-01 | BO31: 2076-01-01 | BP31: 2077-01-01 | BQ31: =DATE(BQ20,1,1) -> 2078-01-01 | BR31: 2079-01-01 | BS31: 2080-01-01 | BT31: 2081-01-01 | BU31: 2082-01-01 | BV31: 2083-01-01 | BW31: 2084-01-01 | BX31: 2085-01-01 | BY31: 2086-01-01 | BZ31: 2087-01-01 | CA31: 2088-01-01 | CB31: 2089-01-01 | CC31: 2090-01-01 | CD31: 2091-01-01 | CE31: 2092-01-01 | CF31: 2093-01-01 | CG31: 2094-01-01 | CH31: 2095-01-01 | CI31: 2096-01-01 | CJ31: 2097-01-01 | CK31: 2098-01-01 | CL31: 2099-01-01 | CM31: 2100-01-01 | CN31: 2101-01-01 | CO31: 2102-01-01 | CP31: 2103-01-01 | CQ31: 2104-01-01 | CR31: 2105-01-01 | CS31: 2106-01-01 | CT31: 2107-01-01 | CU31: 2108-01-01 | CV31: 2109-01-01 | CW31: 2110-01-01 | CX31: 2111-01-01 | CY31: 2112-01-01 | CZ31: 2113-01-01 | DA31: 2114-01-01 | DB31: 2115-01-01 | DC31: 2116-01-01 | DD31: 2117-01-01 | DE31: 2118-01-01 | DF31: 2119-01-01 | DG31: 2120-01-01 | DH31: 2121-01-01 | DI31: 2122-01-01 | DJ31: 2123-01-01 | DK31: 2124-01-01 | DL31: 2125-01-01 | DM31: 2126-01-01 | DN31: 2127-01-01 | DO31: 2128-01-01 | DP31: 2129-01-01 | DQ31: 2130-01-01 | DR31: 2131-01-01 | DS31: 2132-01-01 | DT31: 2133-01-01 | DU31: 2134-01-01 | DV31: 2135-01-01 | DW31: 2136-01-01 | DX31: 2137-01-01 | DY31: 2138-01-01 | DZ31: 2139-01-01 | EA31: 2140-01-01 | EB31: 2141-01-01 | EC31: =DATE(EC20,1,1) -> 2142-01-01 | ED31: 2143-01-01 | EE31: 2144-01-01 | EF31: 2145-01-01 | EG31: 2146-01-01 | EH31: 2147-01-01 | EI31: 2148-01-01 | EJ31: 2149-01-01 | EK31: 2150-01-01 | EL31: 2151-01-01 | EM31: 2152-01-01 | EN31: 2153-01-01 | EO31: 2154-01-01 | EP31: 2155-01-01 | EQ31: 2156-01-01 | ER31: 2157-01-01 | ES31: 2158-01-01 | ET31: 2159-01-01 | EU31: 2160-01-01 | EV31: 2161-01-01 | EW31: 2162-01-01 | EX31: 2163-01-01 | EY31: 2164-01-01 | EZ31: 2165-01-01 | FA31: 2166-01-01 | FB31: 2167-01-01 | FC31: 2168-01-01 | FD31: 2169-01-01 | FE31: 2170-01-01 | FF31: 2171-01-01 | FG31: 2172-01-01 | FH31: 2173-01-01 | FI31: 2174-01-01 | FJ31: 2175-01-01 | FK31: 2176-01-01 | FL31: 2177-01-01 | FM31: 2178-01-01 | FN31: 2179-01-01 | FO31: 2180-01-01 | FP31: 2181-01-01 | FQ31: 2182-01-01 | FR31: 2183-01-01 | FS31: 2184-01-01 | FT31: 2185-01-01 | FU31: 2186-01-01 | FV31: 2187-01-01 | FW31: 2188-01-01 | FX31: 2189-01-01 | FY31: 2190-01-01 | FZ31: 2191-01-01 | GA31: 2192-01-01 | GB31: 2193-01-01 | GC31: 2194-01-01 | GD31: 2195-01-01 | GE31: 2196-01-01 | GF31: 2197-01-01 | GG31: 2198-01-01 | GH31: 2199-01-01 | GI31: 2200-01-01 | GJ31: 2201-01-01 | GK31: 2202-01-01 | GL31: 2203-01-01 | GM31: 2204-01-01 | GN31: 2205-01-01 | GO31: =DATE(GO20,1,1) -> 2206-01-01 | GP31: 2207-01-01 | GQ31: 2208-01-01 | GR31: 2209-01-01 | GS31: 2210-01-01 | GT31: 2211-01-01 | GU31: 2212-01-01 | GV31: 2213-01-01 | GW31: 2214-01-01 | GX31: 2215-01-01 | GY31: 2216-01-01 | GZ31: 2217-01-01 | HA31: 2218-01-01 | HB31: 2219-01-01 | HC31: 2220-01-01 | HD31: 2221-01-01 | HE31: 2222-01-01 | HF31: 2223-01-01 | HG31: 2224-01-01 | HH31: 2225-01-01 | HI31: 2226-01-01 | HJ31: 2227-01-01 | HK31: 2228-01-01 | HL31: 2229-01-01 | HM31: 2230-01-01 | HN31: 2231-01-01 | HO31: 2232-01-01 | HP31: 2233-01-01 | HQ31: 2234-01-01 | HR31: 2235-01-01 | HS31: 2236-01-01 | HT31: 2237-01-01 | HU31: 2238-01-01 | HV31: 2239-01-01 | HW31: 2240-01-01 | HX31: 2241-01-01 | HY31: 2242-01-01 | HZ31: 2243-01-01 | IA31: 2244-01-01 | IB31: 2245-01-01 | IC31: 2246-01-01 | ID31: 2247-01-01 | IE31: 2248-01-01 | IF31: 2249-01-01 | IG31: 2250-01-01 | IH31: 2251-01-01 | II31: 2252-01-01 | IJ31: 2253-01-01 | IK31: 2254-01-01 | IL31: 2255-01-01 | IM31: 2256-01-01 | IN31: 2257-01-01 | IO31: 2258-01-01 | IP31: 2259-01-01 | IQ31: 2260-01-01 | IR31: 2261-01-01 | IS31: 2262-01-01 | IT31: 2263-01-01 | IU31: 2264-01-01 | IV31: 2265-01-01 | IW31: 2266-01-01 | IX31: 2267-01-01 | IY31: 2268-01-01 | IZ31: 2269-01-01 | JA31: =DATE(JA20,1,1) -> 2270-01-01 | JB31: 2271-01-01 | JC31: 2272-01-01 | JD31: 2273-01-01 | JE31: 2274-01-01 | JF31: 2275-01-01 | JG31: 2276-01-01 | JH31: 2277-01-01 | JI31: 2278-01-01 | JJ31: 2279-01-01 | JK31: 2280-01-01 | JL31: 2281-01-01 | JM31: 2282-01-01 | JN31: 2283-01-01 | JO31: 2284-01-01 | JP31: 2285-01-01 | JQ31: 2286-01-01 | JR31: 2287-01-01 | JS31: 2288-01-01 | JT31: 2289-01-01 | JU31: 2290-01-01 | JV31: 2291-01-01 | JW31: 2292-01-01 | JX31: 2293-01-01 | JY31: 2294-01-01 | JZ31: 2295-01-01 | KA31: 2296-01-01 | KB31: 2297-01-01 | KC31: 2298-01-01 | KD31: 2299-01-01 | KE31: 2300-01-01 | KF31: 2301-01-01 | KG31: 2302-01-01 | KH31: 2303-01-01 | KI31: 2304-01-01 | KJ31: 2305-01-01 | KK31: 2306-01-01 | KL31: 2307-01-01 | KM31: 2308-01-01 | KN31: 2309-01-01 | KO31: 2310-01-01 | KP31: 2311-01-01 | KQ31: 2312-01-01
B32: Cash Realisation Date - 1/2 Year | D32: =IF(D26,$D$14,AVERAGE(D31:E31)) -> 2014-01-01 | E32: =IF(E26,$D$14,AVERAGE(E31:F31)) -> 2014-01-01 | F32: 2014-01-01 | G32: 2016-07-02 | H32: 2017-07-02T12:00:00 | I32: 2018-07-02T12:00:00 | J32: 2019-07-02T12:00:00 | K32: 2020-07-02 | L32: 2021-07-02T12:00:00 | M32: 2022-07-02T12:00:00 | N32: 2023-07-02T12:00:00 | O32: 2024-07-02 | P32: 2025-07-02T12:00:00 | Q32: 2026-07-02T12:00:00 | R32: 2027-07-02T12:00:00 | S32: 2028-07-02 | T32: 2029-07-02T12:00:00 | U32: 2030-07-02T12:00:00 | V32: 2031-07-02T12:00:00 | W32: 2032-07-02 | X32: 2033-07-02T12:00:00 | Y32: 2034-07-02T12:00:00 | Z32: 2035-07-02T12:00:00 | AA32: 2036-07-02 | AB32: 2037-07-02T12:00:00 | AC32: 2038-07-02T12:00:00 | AD32: 2039-07-02T12:00:00 | AE32: 2040-07-02 | AF32: 2041-07-02T12:00:00 | AG32: 2042-07-02T12:00:00 | AH32: 2043-07-02T12:00:00 | AI32: 2044-07-02 | AJ32: 2045-07-02T12:00:00 | AK32: 2046-07-02T12:00:00 | AL32: 2047-07-02T12:00:00 | AM32: 2048-07-02 | AN32: 2049-07-02T12:00:00 | AO32: 2050-07-02T12:00:00 | AP32: 2051-07-02T12:00:00 | AQ32: 2052-07-02 | AR32: 2053-07-02T12:00:00 | AS32: 2054-07-02T12:00:00 | AT32: 2055-07-02T12:00:00 | AU32: 2056-07-02 | AV32: 2057-07-02T12:00:00 | AW32: 2058-07-02T12:00:00 | AX32: 2059-07-02T12:00:00 | AY32: 2060-07-02 | AZ32: 2061-07-02T12:00:00 | BA32: 2062-07-02T12:00:00 | BB32: 2063-07-02T12:00:00 | BC32: 2064-07-02 | BD32: 2065-07-02T12:00:00 | BE32: 2066-07-02T12:00:00 | BF32: 2067-07-02T12:00:00 | BG32: 2068-07-02 | BH32: 2069-07-02T12:00:00 | BI32: 2070-07-02T12:00:00 | BJ32: 2071-07-02T12:00:00 | BK32: 2072-07-02 | BL32: 2073-07-02T12:00:00 | BM32: 2074-07-02T12:00:00 | BN32: 2075-07-02T12:00:00 | BO32: 2076-07-02 | BP32: 2077-07-02T12:00:00 | BQ32: =IF(BQ26,$D$14,AVERAGE(BQ31:BR31)) -> 2078-07-02T12:00:00 | BR32: 2079-07-02T12:00:00 | BS32: 2080-07-02 | BT32: 2081-07-02T12:00:00 | BU32: 2082-07-02T12:00:00 | BV32: 2083-07-02T12:00:00 | BW32: 2084-07-02 | BX32: 2085-07-02T12:00:00 | BY32: 2086-07-02T12:00:00 | BZ32: 2087-07-02T12:00:00 | CA32: 2088-07-02 | CB32: 2089-07-02T12:00:00 | CC32: 2090-07-02T12:00:00 | CD32: 2091-07-02T12:00:00 | CE32: 2092-07-02 | CF32: 2093-07-02T12:00:00 | CG32: 2094-07-02T12:00:00 | CH32: 2095-07-02T12:00:00 | CI32: 2096-07-02 | CJ32: 2097-07-02T12:00:00 | CK32: 2098-07-02T12:00:00 | CL32: 2099-07-02T12:00:00 | CM32: 2100-07-02T12:00:00 | CN32: 2101-07-02T12:00:00 | CO32: 2102-07-02T12:00:00 | CP32: 2103-07-02T12:00:00 | CQ32: 2104-07-02 | CR32: 2105-07-02T12:00:00 | CS32: 2106-07-02T12:00:00 | CT32: 2107-07-02T12:00:00 | CU32: 2108-07-02 | CV32: 2109-07-02T12:00:00 | CW32: 2110-07-02T12:00:00 | CX32: 2111-07-02T12:00:00 | CY32: 2112-07-02 | CZ32: 2113-07-02T12:00:00 | DA32: 2114-07-02T12:00:00 | DB32: 2115-07-02T12:00:00 | DC32: 2116-07-02 | DD32: 2117-07-02T12:00:00 | DE32: 2118-07-02T12:00:00 | DF32: 2119-07-02T12:00:00 | DG32: 2120-07-02 | DH32: 2121-07-02T12:00:00 | DI32: 2122-07-02T12:00:00 | DJ32: 2123-07-02T12:00:00 | DK32: 2124-07-02 | DL32: 2125-07-02T12:00:00 | DM32: 2126-07-02T12:00:00 | DN32: 2127-07-02T12:00:00 | DO32: 2128-07-02 | DP32: 2129-07-02T12:00:00 | DQ32: 2130-07-02T12:00:00 | DR32: 2131-07-02T12:00:00 | DS32: 2132-07-02 | DT32: 2133-07-02T12:00:00 | DU32: 2134-07-02T12:00:00 | DV32: 2135-07-02T12:00:00 | DW32: 2136-07-02 | DX32: 2137-07-02T12:00:00 | DY32: 2138-07-02T12:00:00 | DZ32: 2139-07-02T12:00:00 | EA32: 2140-07-02 | EB32: 2141-07-02T12:00:00 | EC32: =IF(EC26,$D$14,AVERAGE(EC31:ED31)) -> 2142-07-02T12:00:00 | ED32: 2143-07-02T12:00:00 | EE32: 2144-07-02 | EF32: 2145-07-02T12:00:00 | EG32: 2146-07-02T12:00:00 | EH32: 2147-07-02T12:00:00 | EI32: 2148-07-02 | EJ32: 2149-07-02T12:00:00 | EK32: 2150-07-02T12:00:00 | EL32: 2151-07-02T12:00:00 | EM32: 2152-07-02 | EN32: 2153-07-02T12:00:00 | EO32: 2154-07-02T12:00:00 | EP32: 2155-07-02T12:00:00 | EQ32: 2156-07-02 | ER32: 2157-07-02T12:00:00 | ES32: 2158-07-02T12:00:00 | ET32: 2159-07-02T12:00:00 | EU32: 2160-07-02 | EV32: 2161-07-02T12:00:00 | EW32: 2162-07-02T12:00:00 | EX32: 2163-07-02T12:00:00 | EY32: 2164-07-02 | EZ32: 2165-07-02T12:00:00 | FA32: 2166-07-02T12:00:00 | FB32: 2167-07-02T12:00:00 | FC32: 2168-07-02 | FD32: 2169-07-02T12:00:00 | FE32: 2170-07-02T12:00:00 | FF32: 2171-07-02T12:00:00 | FG32: 2172-07-02 | FH32: 2173-07-02T12:00:00 | FI32: 2174-07-02T12:00:00 | FJ32: 2175-07-02T12:00:00 | FK32: 2176-07-02 | FL32: 2177-07-02T12:00:00 | FM32: 2178-07-02T12:00:00 | FN32: 2179-07-02T12:00:00 | FO32: 2180-07-02 | FP32: 2181-07-02T12:00:00 | FQ32: 2182-07-02T12:00:00 | FR32: 2183-07-02T12:00:00 | FS32: 2184-07-02 | FT32: 2185-07-02T12:00:00 | FU32: 2186-07-02T12:00:00 | FV32: 2187-07-02T12:00:00 | FW32: 2188-07-02 | FX32: 2189-07-02T12:00:00 | FY32: 2190-07-02T12:00:00 | FZ32: 2191-07-02T12:00:00 | GA32: 2192-07-02 | GB32: 2193-07-02T12:00:00 | GC32: 2194-07-02T12:00:00 | GD32: 2195-07-02T12:00:00 | GE32: 2196-07-02 | GF32: 2197-07-02T12:00:00 | GG32: 2198-07-02T12:00:00 | GH32: 2199-07-02T12:00:00 | GI32: 2200-07-02T12:00:00 | GJ32: 2201-07-02T12:00:00 | GK32: 2202-07-02T12:00:00 | GL32: 2203-07-02T12:00:00 | GM32: 2204-07-02 | GN32: 2205-07-02T12:00:00 | GO32: =IF(GO26,$D$14,AVERAGE(GO31:GP31)) -> 2206-07-02T12:00:00 | GP32: 2207-07-02T12:00:00 | GQ32: 2208-07-02 | GR32: 2209-07-02T12:00:00 | GS32: 2210-07-02T12:00:00 | GT32: 2211-07-02T12:00:00 | GU32: 2212-07-02 | GV32: 2213-07-02T12:00:00 | GW32: 2214-07-02T12:00:00 | GX32: 2215-07-02T12:00:00 | GY32: 2216-07-02 | GZ32: 2217-07-02T12:00:00 | HA32: 2218-07-02T12:00:00 | HB32: 2219-07-02T12:00:00 | HC32: 2220-07-02 | HD32: 2221-07-02T12:00:00 | HE32: 2222-07-02T12:00:00 | HF32: 2223-07-02T12:00:00 | HG32: 2224-07-02 | HH32: 2225-07-02T12:00:00 | HI32: 2226-07-02T12:00:00 | HJ32: 2227-07-02T12:00:00 | HK32: 2228-07-02 | HL32: 2229-07-02T12:00:00 | HM32: 2230-07-02T12:00:00 | HN32: 2231-07-02T12:00:00 | HO32: 2232-07-02 | HP32: 2233-07-02T12:00:00 | HQ32: 2234-07-02T12:00:00 | HR32: 2235-07-02T12:00:00 | HS32: 2236-07-02 | HT32: 2237-07-02T12:00:00 | HU32: 2238-07-02T12:00:00 | HV32: 2239-07-02T12:00:00 | HW32: 2240-07-02 | HX32: 2241-07-02T12:00:00 | HY32: 2242-07-02T12:00:00 | HZ32: 2243-07-02T12:00:00 | IA32: 2244-07-02 | IB32: 2245-07-02T12:00:00 | IC32: 2246-07-02T12:00:00 | ID32: 2247-07-02T12:00:00 | IE32: 2248-07-02 | IF32: 2249-07-02T12:00:00 | IG32: 2250-07-02T12:00:00 | IH32: 2251-07-02T12:00:00 | II32: 2252-07-02 | IJ32: 2253-07-02T12:00:00 | IK32: 2254-07-02T12:00:00 | IL32: 2255-07-02T12:00:00 | IM32: 2256-07-02 | IN32: 2257-07-02T12:00:00 | IO32: 2258-07-02T12:00:00 | IP32: 2259-07-02T12:00:00 | IQ32: 2260-07-02 | IR32: 2261-07-02T12:00:00 | IS32: 2262-07-02T12:00:00 | IT32: 2263-07-02T12:00:00 | IU32: 2264-07-02 | IV32: 2265-07-02T12:00:00 | IW32: 2266-07-02T12:00:00 | IX32: 2267-07-02T12:00:00 | IY32: 2268-07-02 | IZ32: 2269-07-02T12:00:00 | JA32: =IF(JA26,$D$14,AVERAGE(JA31:JB31)) -> 2270-07-02T12:00:00 | JB32: 2271-07-02T12:00:00 | JC32: 2272-07-02 | JD32: 2273-07-02T12:00:00 | JE32: 2274-07-02T12:00:00 | JF32: 2275-07-02T12:00:00 | JG32: 2276-07-02 | JH32: 2277-07-02T12:00:00 | JI32: 2278-07-02T12:00:00 | JJ32: 2279-07-02T12:00:00 | JK32: 2280-07-02 | JL32: 2281-07-02T12:00:00 | JM32: 2282-07-02T12:00:00 | JN32: 2283-07-02T12:00:00 | JO32: 2284-07-02 | JP32: 2285-07-02T12:00:00 | JQ32: 2286-07-02T12:00:00 | JR32: 2287-07-02T12:00:00 | JS32: 2288-07-02 | JT32: 2289-07-02T12:00:00 | JU32: 2290-07-02T12:00:00 | JV32: 2291-07-02T12:00:00 | JW32: 2292-07-02 | JX32: 2293-07-02T12:00:00 | JY32: 2294-07-02T12:00:00 | JZ32: 2295-07-02T12:00:00 | KA32: 2296-07-02 | KB32: 2297-07-02T12:00:00 | KC32: 2298-07-02T12:00:00 | KD32: 2299-07-02T12:00:00 | KE32: 2300-07-02T12:00:00 | KF32: 2301-07-02T12:00:00 | KG32: 2302-07-02T12:00:00 | KH32: 2303-07-02T12:00:00 | KI32: 2304-07-02 | KJ32: 2305-07-02T12:00:00 | KK32: 2306-07-02T12:00:00 | KL32: 2307-07-02T12:00:00 | KM32: 2308-07-02 | KN32: 2309-07-02T12:00:00 | KO32: 2310-07-02T12:00:00 | KP32: 2311-07-02T12:00:00 | KQ32: 2312-01-01
B33: Cash Realisation Date - End of Year | D33: =IF(D26,D32,EOMONTH(D31,11)) -> 2014-01-01 | E33: =IF(E26,E32,EOMONTH(E31,11)) -> 2014-01-01 | F33: 2014-01-01 | G33: 2016-12-31 | H33: 2017-12-31 | I33: 2018-12-31 | J33: 2019-12-31 | K33: 2020-12-31 | L33: 2021-12-31 | M33: 2022-12-31 | N33: 2023-12-31 | O33: 2024-12-31 | P33: 2025-12-31 | Q33: 2026-12-31 | R33: 2027-12-31 | S33: 2028-12-31 | T33: 2029-12-31 | U33: 2030-12-31 | V33: 2031-12-31 | W33: 2032-12-31 | X33: 2033-12-31 | Y33: 2034-12-31 | Z33: 2035-12-31 | AA33: 2036-12-31 | AB33: 2037-12-31 | AC33: 2038-12-31 | AD33: 2039-12-31 | AE33: 2040-12-31 | AF33: 2041-12-31 | AG33: 2042-12-31 | AH33: 2043-12-31 | AI33: 2044-12-31 | AJ33: 2045-12-31 | AK33: 2046-12-31 | AL33: 2047-12-31 | AM33: 2048-12-31 | AN33: 2049-12-31 | AO33: 2050-12-31 | AP33: 2051-12-31 | AQ33: 2052-12-31 | AR33: 2053-12-31 | AS33: 2054-12-31 | AT33: 2055-12-31 | AU33: 2056-12-31 | AV33: 2057-12-31 | AW33: 2058-12-31 | AX33: 2059-12-31 | AY33: 2060-12-31 | AZ33: 2061-12-31 | BA33: 2062-12-31 | BB33: 2063-12-31 | BC33: 2064-12-31 | BD33: 2065-12-31 | BE33: 2066-12-31 | BF33: 2067-12-31 | BG33: 2068-12-31 | BH33: 2069-12-31 | BI33: 2070-12-31 | BJ33: 2071-12-31 | BK33: 2072-12-31 | BL33: 2073-12-31 | BM33: 2074-12-31 | BN33: 2075-12-31 | BO33: 2076-12-31 | BP33: 2077-12-31 | BQ33: =IF(BQ26,BQ32,EOMONTH(BQ31,11)) -> 2078-12-31 | BR33: 2079-12-31 | BS33: 2080-12-31 | BT33: 2081-12-31 | BU33: 2082-12-31 | BV33: 2083-12-31 | BW33: 2084-12-31 | BX33: 2085-12-31 | BY33: 2086-12-31 | BZ33: 2087-12-31 | CA33: 2088-12-31 | CB33: 2089-12-31 | CC33: 2090-12-31 | CD33: 2091-12-31 | CE33: 2092-12-31 | CF33: 2093-12-31 | CG33: 2094-12-31 | CH33: 2095-12-31 | CI33: 2096-12-31 | CJ33: 2097-12-31 | CK33: 2098-12-31 | CL33: 2099-12-31 | CM33: 2100-12-31 | CN33: 2101-12-31 | CO33: 2102-12-31 | CP33: 2103-12-31 | CQ33: 2104-12-31 | CR33: 2105-12-31 | CS33: 2106-12-31 | CT33: 2107-12-31 | CU33: 2108-12-31 | CV33: 2109-12-31 | CW33: 2110-12-31 | CX33: 2111-12-31 | CY33: 2112-12-31 | CZ33: 2113-12-31 | DA33: 2114-12-31 | DB33: 2115-12-31 | DC33: 2116-12-31 | DD33: 2117-12-31 | DE33: 2118-12-31 | DF33: 2119-12-31 | DG33: 2120-12-31 | DH33: 2121-12-31 | DI33: 2122-12-31 | DJ33: 2123-12-31 | DK33: 2124-12-31 | DL33: 2125-12-31 | DM33: 2126-12-31 | DN33: 2127-12-31 | DO33: 2128-12-31 | DP33: 2129-12-31 | DQ33: 2130-12-31 | DR33: 2131-12-31 | DS33: 2132-12-31 | DT33: 2133-12-31 | DU33: 2134-12-31 | DV33: 2135-12-31 | DW33: 2136-12-31 | DX33: 2137-12-31 | DY33: 2138-12-31 | DZ33: 2139-12-31 | EA33: 2140-12-31 | EB33: 2141-12-31 | EC33: =IF(EC26,EC32,EOMONTH(EC31,11)) -> 2142-12-31 | ED33: 2143-12-31 | EE33: 2144-12-31 | EF33: 2145-12-31 | EG33: 2146-12-31 | EH33: 2147-12-31 | EI33: 2148-12-31 | EJ33: 2149-12-31 | EK33: 2150-12-31 | EL33: 2151-12-31 | EM33: 2152-12-31 | EN33: 2153-12-31 | EO33: 2154-12-31 | EP33: 2155-12-31 | EQ33: 2156-12-31 | ER33: 2157-12-31 | ES33: 2158-12-31 | ET33: 2159-12-31 | EU33: 2160-12-31 | EV33: 2161-12-31 | EW33: 2162-12-31 | EX33: 2163-12-31 | EY33: 2164-12-31 | EZ33: 2165-12-31 | FA33: 2166-12-31 | FB33: 2167-12-31 | FC33: 2168-12-31 | FD33: 2169-12-31 | FE33: 2170-12-31 | FF33: 2171-12-31 | FG33: 2172-12-31 | FH33: 2173-12-31 | FI33: 2174-12-31 | FJ33: 2175-12-31 | FK33: 2176-12-31 | FL33: 2177-12-31 | FM33: 2178-12-31 | FN33: 2179-12-31 | FO33: 2180-12-31 | FP33: 2181-12-31 | FQ33: 2182-12-31 | FR33: 2183-12-31 | FS33: 2184-12-31 | FT33: 2185-12-31 | FU33: 2186-12-31 | FV33: 2187-12-31 | FW33: 2188-12-31 | FX33: 2189-12-31 | FY33: 2190-12-31 | FZ33: 2191-12-31 | GA33: 2192-12-31 | GB33: 2193-12-31 | GC33: 2194-12-31 | GD33: 2195-12-31 | GE33: 2196-12-31 | GF33: 2197-12-31 | GG33: 2198-12-31 | GH33: 2199-12-31 | GI33: 2200-12-31 | GJ33: 2201-12-31 | GK33: 2202-12-31 | GL33: 2203-12-31 | GM33: 2204-12-31 | GN33: 2205-12-31 | GO33: =IF(GO26,GO32,EOMONTH(GO31,11)) -> 2206-12-31 | GP33: 2207-12-31 | GQ33: 2208-12-31 | GR33: 2209-12-31 | GS33: 2210-12-31 | GT33: 2211-12-31 | GU33: 2212-12-31 | GV33: 2213-12-31 | GW33: 2214-12-31 | GX33: 2215-12-31 | GY33: 2216-12-31 | GZ33: 2217-12-31 | HA33: 2218-12-31 | HB33: 2219-12-31 | HC33: 2220-12-31 | HD33: 2221-12-31 | HE33: 2222-12-31 | HF33: 2223-12-31 | HG33: 2224-12-31 | HH33: 2225-12-31 | HI33: 2226-12-31 | HJ33: 2227-12-31 | HK33: 2228-12-31 | HL33: 2229-12-31 | HM33: 2230-12-31 | HN33: 2231-12-31 | HO33: 2232-12-31 | HP33: 2233-12-31 | HQ33: 2234-12-31 | HR33: 2235-12-31 | HS33: 2236-12-31 | HT33: 2237-12-31 | HU33: 2238-12-31 | HV33: 2239-12-31 | HW33: 2240-12-31 | HX33: 2241-12-31 | HY33: 2242-12-31 | HZ33: 2243-12-31 | IA33: 2244-12-31 | IB33: 2245-12-31 | IC33: 2246-12-31 | ID33: 2247-12-31 | IE33: 2248-12-31 | IF33: 2249-12-31 | IG33: 2250-12-31 | IH33: 2251-12-31 | II33: 2252-12-31 | IJ33: 2253-12-31 | IK33: 2254-12-31 | IL33: 2255-12-31 | IM33: 2256-12-31 | IN33: 2257-12-31 | IO33: 2258-12-31 | IP33: 2259-12-31 | IQ33: 2260-12-31 | IR33: 2261-12-31 | IS33: 2262-12-31 | IT33: 2263-12-31 | IU33: 2264-12-31 | IV33: 2265-12-31 | IW33: 2266-12-31 | IX33: 2267-12-31 | IY33: 2268-12-31 | IZ33: 2269-12-31 | JA33: =IF(JA26,JA32,EOMONTH(JA31,11)) -> 2270-12-31 | JB33: 2271-12-31 | JC33: 2272-12-31 | JD33: 2273-12-31 | JE33: 2274-12-31 | JF33: 2275-12-31 | JG33: 2276-12-31 | JH33: 2277-12-31 | JI33: 2278-12-31 | JJ33: 2279-12-31 | JK33: 2280-12-31 | JL33: 2281-12-31 | JM33: 2282-12-31 | JN33: 2283-12-31 | JO33: 2284-12-31 | JP33: 2285-12-31 | JQ33: 2286-12-31 | JR33: 2287-12-31 | JS33: 2288-12-31 | JT33: 2289-12-31 | JU33: 2290-12-31 | JV33: 2291-12-31 | JW33: 2292-12-31 | JX33: 2293-12-31 | JY33: 2294-12-31 | JZ33: 2295-12-31 | KA33: 2296-12-31 | KB33: 2297-12-31 | KC33: 2298-12-31 | KD33: 2299-12-31 | KE33: 2300-12-31 | KF33: 2301-12-31 | KG33: 2302-12-31 | KH33: 2303-12-31 | KI33: 2304-12-31 | KJ33: 2305-12-31 | KK33: 2306-12-31 | KL33: 2307-12-31 | KM33: 2308-12-31 | KN33: 2309-12-31 | KO33: 2310-12-31 | KP33: 2311-12-31 | KQ33: 2312-12-31
B35: Growth Rate | D35: =$D$11*D23+D28*$D$8 -> 0 | E35: =$D$11*E23+E28*$D$8 -> 0 | F35: 0 | G35: 0.1 | H35: 0.1 | I35: 0.1 | J35: 0.1 | K35: 0.1 | L35: 0.1 | M35: 0.03 | N35: 0.03 | O35: 0.03 | P35: 0.03 | Q35: 0.03 | R35: 0.03 | S35: 0.03 | T35: 0.03 | U35: 0.03 | V35: 0.03 | W35: 0.03 | X35: 0.03 | Y35: 0.03 | Z35: 0.03 | AA35: 0.03 | AB35: 0.03 | AC35: 0.03 | AD35: 0.03 | AE35: 0.03 | AF35: 0.03 | AG35: 0.03 | AH35: 0.03 | AI35: 0.03 | AJ35: 0.03 | AK35: 0.03 | AL35: 0.03 | AM35: 0.03 | AN35: 0.03 | AO35: 0.03 | AP35: 0.03 | AQ35: 0.03 | AR35: 0.03 | AS35: 0.03 | AT35: 0.03 | AU35: 0.03 | AV35: 0.03 | AW35: 0.03 | AX35: 0.03 | AY35: 0.03 | AZ35: 0.03 | BA35: 0.03 | BB35: 0.03 | BC35: 0.03 | BD35: 0.03 | BE35: 0.03 | BF35: 0.03 | BG35: 0.03 | BH35: 0.03 | BI35: 0.03 | BJ35: 0.03 | BK35: 0.03 | BL35: 0.03 | BM35: 0.03 | BN35: 0.03 | BO35: 0.03 | BP35: 0.03 | BQ35: =$D$11*BQ23+BQ28*$D$8 -> 0.03 | BR35: 0.03 | BS35: 0.03 | BT35: 0.03 | BU35: 0.03 | BV35: 0.03 | BW35: 0.03 | BX35: 0.03 | BY35: 0.03 | BZ35: 0.03 | CA35: 0.03 | CB35: 0.03 | CC35: 0.03 | CD35: 0.03 | CE35: 0.03 | CF35: 0.03 | CG35: 0.03 | CH35: 0.03 | CI35: 0.03 | CJ35: 0.03 | CK35: 0.03 | CL35: 0.03 | CM35: 0.03 | CN35: 0.03 | CO35: 0.03 | CP35: 0.03 | CQ35: 0.03 | CR35: 0.03 | CS35: 0.03 | CT35: 0.03 | CU35: 0.03 | CV35: 0.03 | CW35: 0.03 | CX35: 0.03 | CY35: 0.03 | CZ35: 0.03 | DA35: 0.03 | DB35: 0.03 | DC35: 0.03 | DD35: 0.03 | DE35: 0.03 | DF35: 0.03 | DG35: 0.03 | DH35: 0.03 | DI35: 0.03 | DJ35: 0.03 | DK35: 0.03 | DL35: 0.03 | DM35: 0.03 | DN35: 0.03 | DO35: 0.03 | DP35: 0.03 | DQ35: 0.03 | DR35: 0.03 | DS35: 0.03 | DT35: 0.03 | DU35: 0.03 | DV35: 0.03 | DW35: 0.03 | DX35: 0.03 | DY35: 0.03 | DZ35: 0.03 | EA35: 0.03 | EB35: 0.03 | EC35: =$D$11*EC23+EC28*$D$8 -> 0.03 | ED35: 0.03 | EE35: 0.03 | EF35: 0.03 | EG35: 0.03 | EH35: 0.03 | EI35: 0.03 | EJ35: 0.03 | EK35: 0.03 | EL35: 0.03 | EM35: 0.03 | EN35: 0.03 | EO35: 0.03 | EP35: 0.03 | EQ35: 0.03 | ER35: 0.03 | ES35: 0.03 | ET35: 0.03 | EU35: 0.03 | EV35: 0.03 | EW35: 0.03 | EX35: 0.03 | EY35: 0.03 | EZ35: 0.03 | FA35: 0.03 | FB35: 0.03 | FC35: 0.03 | FD35: 0.03 | FE35: 0.03 | FF35: 0.03 | FG35: 0.03 | FH35: 0.03 | FI35: 0.03 | FJ35: 0.03 | FK35: 0.03 | FL35: 0.03 | FM35: 0.03 | FN35: 0.03 | FO35: 0.03 | FP35: 0.03 | FQ35: 0.03 | FR35: 0.03 | FS35: 0.03 | FT35: 0.03 | FU35: 0.03 | FV35: 0.03 | FW35: 0.03 | FX35: 0.03 | FY35: 0.03 | FZ35: 0.03 | GA35: 0.03 | GB35: 0.03 | GC35: 0.03 | GD35: 0.03 | GE35: 0.03 | GF35: 0.03 | GG35: 0.03 | GH35: 0.03 | GI35: 0.03 | GJ35: 0.03 | GK35: 0.03 | GL35: 0.03 | GM35: 0.03 | GN35: 0.03 | GO35: =$D$11*GO23+GO28*$D$8 -> 0.03 | GP35: 0.03 | GQ35: 0.03 | GR35: 0.03 | GS35: 0.03 | GT35: 0.03 | GU35: 0.03 | GV35: 0.03 | GW35: 0.03 | GX35: 0.03 | GY35: 0.03 | GZ35: 0.03 | HA35: 0.03 | HB35: 0.03 | HC35: 0.03 | HD35: 0.03 | HE35: 0.03 | HF35: 0.03 | HG35: 0.03 | HH35: 0.03 | HI35: 0.03 | HJ35: 0.03 | HK35: 0.03 | HL35: 0.03 | HM35: 0.03 | HN35: 0.03 | HO35: 0.03 | HP35: 0.03 | HQ35: 0.03 | HR35: 0.03 | HS35: 0.03 | HT35: 0.03 | HU35: 0.03 | HV35: 0.03 | HW35: 0.03 | HX35: 0.03 | HY35: 0.03 | HZ35: 0.03 | IA35: 0.03 | IB35: 0.03 | IC35: 0.03 | ID35: 0.03 | IE35: 0.03 | IF35: 0.03 | IG35: 0.03 | IH35: 0.03 | II35: 0.03 | IJ35: 0.03 | IK35: 0.03 | IL35: 0.03 | IM35: 0.03 | IN35: 0.03 | IO35: 0.03 | IP35: 0.03 | IQ35: 0.03 | IR35: 0.03 | IS35: 0.03 | IT35: 0.03 | IU35: 0.03 | IV35: 0.03 | IW35: 0.03 | IX35: 0.03 | IY35: 0.03 | IZ35: 0.03 | JA35: =$D$11*JA23+JA28*$D$8 -> 0.03 | JB35: 0.03 | JC35: 0.03 | JD35: 0.03 | JE35: 0.03 | JF35: 0.03 | JG35: 0.03 | JH35: 0.03 | JI35: 0.03 | JJ35: 0.03 | JK35: 0.03 | JL35: 0.03 | JM35: 0.03 | JN35: 0.03 | JO35: 0.03 | JP35: 0.03 | JQ35: 0.03 | JR35: 0.03 | JS35: 0.03 | JT35: 0.03 | JU35: 0.03 | JV35: 0.03 | JW35: 0.03 | JX35: 0.03 | JY35: 0.03 | JZ35: 0.03 | KA35: 0.03 | KB35: 0.03 | KC35: 0.03 | KD35: 0.03 | KE35: 0.03 | KF35: 0.03 | KG35: 0.03 | KH35: 0.03 | KI35: 0.03 | KJ35: 0.03 | KK35: 0.03 | KL35: 0.03 | KM35: 0.03 | KN35: 0.03 | KO35: 0.03 | KP35: 0.03 | KQ35: 0.03
